Workbook

Sheet Home
B2: Hint-How to use
B3: : | C3: Use only unhighlighted cells (i.e. white colour cells), rest cells are linked with master data. Select proper condition that is applicable. Please avoid mismatching codition that's are not applicable.
K5: आहरण एवं वितरण अधिकारी को दिये जाने वाले आयकर गणना प्रपत्र को तैयार करना इस एक्सल सीट का मुख्य उद्वेश्य है । चूंकि जीए 55 पै-मेनेजर से स्वतः निकलता है, इसलिये इसको पृथक को परिकलित करना उचित नहीं है । एक सामान्य कार्मिक के परिपेक्ष्य में अन्य सहायक गणनाए भी इस एक्सल सीट से की जा सकती है ।
B6: :: | C6: Use required cells, please leave blank cells, if no data for input
B7: :: | C7: If any tax deducted in arrear amt, input this type of tax amt in against relevant month name with regular tax amount
B9: :: | C9: If any error/suggestion, please contact to GRIRAJ HARSH or Cash Section in working hours
C12: Calculate Gross Salary | G12: Option Form (Old Scheme/New Scheme)
C15: View/Print Income Tax Statement | G15: Form 12BB
C18: Breakup_of_Gross_Salary | G18: HRA Rebate & NPS
C21: CM_CORONA_RELEIF_FUND | G21: Know about deferment of salary and deduction
C24: Employee List (admin use only) | G24: Key points -Section 115BAC
B27: Other useful information for F.Y. 2021-22
B29: Income from Salary | F29: Income from House Property
B31: Various Deductions | F31: Income from other sources
F33: Income from Capital Gain

Sheet Breakup of salary
B1: Home | D1: Gross Salary
A3: Name | B3: ='Gross Salary 19-20'!D13 -> 1-PRAVESH KUMAR SHARMA | E3: PAN | F3: ='Gross Salary 19-20'!N13 -> ABCPP1234D
A4: Breakup of Gross Salary
A6: PARTICULAR | D6: REGULAR | E6: NPS SHARE | F6: TOTAL
A7: =taxtable1819!BA32 -> Gross Salary (2021-22) | D7: =taxtable1819!BD32 -> 1369030 | E7: =taxtable1819!BE32 -> 0 | F7: =taxtable1819!BF32 -> 1369030
A8: =taxtable1819!AX33 -> FIXATION ARREAR | D8: =taxtable1819!BD33 -> 0 | E8: =taxtable1819!BE33 -> 0 | F8: =taxtable1819!BF33 -> 0
A9: =taxtable1819!$BB$36 -> D.A. Arrear ( 07/21 to 10/21) | D9: =taxtable1819!BD36 -> 0 | E9: =taxtable1819!BE36 -> 0 | F9: =taxtable1819!BF36 -> 0
A10: =taxtable1819!$BB$37 -> D.A. Arrear ( 07/19 to 02/20) | D10: =taxtable1819!BD37 -> 0 | E10: =taxtable1819!BE37 -> 0 | F10: =taxtable1819!BF37 -> 0
A11: =taxtable1819!BB38 -> House Rent Allowance Arrear ( 07/21 to 07/21) | D11: =taxtable1819!BD38 -> 1604 | E11: =taxtable1819!BE38 -> 0 | F11: =taxtable1819!BF38 -> 1604
A12: =CONCATENATE("Surrender Leave Salary ","(",TEXT('Gross Salary 19-20'!M11,"mm/yyyy"),")") -> Surrender Leave Salary (07/2021) | D12: =taxtable1819!BD34 -> 0 | E12: =taxtable1819!BE34 -> 0 | F12: =taxtable1819!BF34 -> 0
A13: ='Gross Salary 19-20'!$A$54 -> (Bonus : Cash in Rs.0 and adjusted in GPF amt in Rs.0) | D13: =taxtable1819!BD35 -> 0 | E13: =taxtable1819!BE35 -> 0 | F13: =taxtable1819!BF35 -> 0
A14: Surr.Leave DA Arrear | D14: =taxtable1819!BD39 -> 0 | E14: =taxtable1819!BE39 -> 0 | F14: =taxtable1819!BF39 -> 0
A15: OTHER ARREAR | D15: =taxtable1819!BD40 -> 0 | E15: =taxtable1819!BE40 -> 0 | F15: =taxtable1819!BF40 -> 0
A16: Total | D16: =SUM(D7:D15) -> 1370634 | E16: =SUM(E7:E15) -> 0 | F16: =SUM(F7:F15) -> 1370634
A19: Deduction through Salary | B19: =IF('Gross Salary 19-20'!$H$11="YES",'Gross Salary 19-20'!$F$37,'Gross Salary 19-20'!$I$37) -> GPF | C19: State Insurance | D19: LIC | E19: HBA Int. | F19: Group Insurance
B20: =taxtable1819!Z87 -> 0 | C20: ='Gross Salary 19-20'!J56 -> 0 | D20: ='Gross Salary 19-20'!K56 -> 0 | E20: ='Gross Salary 19-20'!L56 -> 0 | F20: ='Gross Salary 19-20'!E79 -> 220
B21: HBA Prin. | C21: CM Corona Relief | D21: Other Deduction | E21: I.Tax | F21: =IF('Gross Salary 19-20'!H11="NO","","GPF-2004") -> 
B22: ='Gross Salary 19-20'!M56 -> 0 | C22: ='Gross Salary 19-20'!$A$111 -> 0 | D22: ='Gross Salary 19-20'!O56 -> 0 | E22: ='Gross Salary 19-20'!N56 -> 0 | F22: ='Gross Salary 19-20'!E92 -> 0
A24: =taxtable1819!AM54 -> * Total of GPF include DA arrear amt from 07/21 -10/21 Rs.0 , , Adjuested amt. of Bonus Rs.0** Total of GPF include DA arrear amt from 07/19 -02/20 Rs.0
A26: =taxtable1819!X32 -> **Income tax amount include amt. Rs.0 tax deducted from arrear in the month of 07/2021

Sheet Gross Salary 19-20
A1: Hint | C1: Hint_How_to_use | E1: Option Form | G1: 12BB | H1: Employee List | J1: Home | K1: Income Tax Statement
A2: For complete version of Tax calculation and other relevant aspects.. Please visit | H2: https://www.simpletaxindia.net/2021/05/15-in-one-income-tax-calculator-fy-21-22.html
A7: Financial Year | D7: 2021-22 | F7: =CONCATENATE("Input value for find out Gross Total Income"," ","for Financial Year"," ",$D$7) -> Input value for find out Gross Total Income for Financial Year 2021-22 | M7: Existing Option
M8: =IF($D$7="2020-21",M7,"Existing Option") -> Existing Option
A9: Employee Type | D9: Regular | F9: HRA (in VII Pay Scale) | H9: 0.18 | I9: Criteria | K9: Rate/Days/Amt | M9: Month | O9: Condition | P9: =IF($D$7="2021-22","New option u/s 115BAC is applicable for F.Y. 2021-22",IF($D$7="2020-21","New option u/s 115BAC is applicable for F.Y. 2020-21",CONCATENATE("New option u/s 115BAC is not applicable for F.Y.",H7))) -> New option u/s 115BAC is applicable for F.Y. 2021-22
A10: Employee Taxable Category | D10: MALE | F10: CCA (in VII Pay Scale) | H10: YES | I10: Incre. Month (in VI Pay) | K10: 0.03 | M10: 2021-07-01 | O10: YES
A11: Salary Start/End Month | D11: 2021-03-01 | E11: 2022-02-01 | F11: NPS CONDITION | H11: NO | I11: Surrendar leave | K11: 15 | M11: 2021-07-01 | O11: NO
A12: Basic Pay in VII pay sacle | D12: 77900 | F12: Group Insurance | G12: 220 | H12: YES | I12: BOUNS | J12: 6774 | K12: Cash % | L12: 0.5 | M12: 2021-11-01 | O12: NO
A13: Name of Employee | D13: 1-PRAVESH KUMAR SHARMA | H13: Designation | J13: =INDEX(taxtable1819!$CA$4:$CA$866,MATCH('Gross Salary 19-20'!$D$13,Code_Name,0)) -> AAO-I | M13: PAN | N13: =INDEX(taxtable1819!$CB$4:$CB$866,MATCH('Gross Salary 19-20'!$D$13,Code_Name,0)) -> ABCPP1234D
A14: Effect of D.A. Arrear (If NPS condition "YES",select "Cash") | J14: Effect of HRA Arrear | P14: Key Points for New Option
A15: Type of D.A. | C15: Start Month | E15: End Month | G15: Deposited in GPF/Cash | I15: Condition | J15: Start Month | L15: 2021-07-01 | M15: Condition | N15: HRA Arr. Amt
A16: Ist Arrear | C16: 2021-07-01 | E16: 2021-10-01 | G16: GPF | I16: NO | J16: End Month | L16: 2021-07-01 | M16: YES | N16: =taxtable1819!$AK$38 -> 1604
A17: IInd Arrear | C17: 2019-07-01 | E17: 2020-02-01 | G17: GPF | I17: NO
A18: Surrender Leave DA arr.(Between Jan-Feb 20) | E18: 2020-01-01 | G18: Cash | I18: NO
A19: =CONCATENATE("D.A. Arr. For S.Leave Salary","(",TEXT(M11,"mm/yyyy"),")") -> D.A. Arr. For S.Leave Salary(07/2021) | E19: Due DA Rate | F19: =taxtable1819!AD87 -> 0.31 | G19: Drawn DA Rate | H19: =taxtable1819!AD88 -> 0.28 | I19: YES
A20: If CM corona releif ded. Through salary.. Please click here | F20: CM_CORONA_RELEIF_FUND | J20: Know about deferment of salary and deduction
A24: Effect of VII pay fixation arrear | K24: For any kind updation/edit in VII pay fixation arrear (Select "YES", for process) | N24: VII pay Fixation Arrear
A25: Arrear Start | C25: Arrear End | E25: Due Pay (in VII pay) | G25: Drawn Pay (in VI pay) | I25: Gross Due Amount
A26: 2017-01-01 | C26: 2017-09-30 | E26: 69200 | G26: 26670 | I26: ='Fixation Arrear'!M20 -> 0
A28: If any kind updation rquired in Basic Pay or D.A rate .. Input your update pay and select condition "YES", otherwise select "NO"
A29: Salary Month | D29: =A38 -> 2021-03-01 | E29: =A39 -> 2021-04-01 | F29: =A40 -> 2021-05-01 | G29: =A41 -> 2021-06-01 | H29: =A42 -> 2021-07-01 | I29: =A43 -> 2021-08-01 | J29: =A44 -> 2021-09-01 | K29: =A45 -> 2021-10-01 | L29: =A46 -> 2021-11-01 | M29: =A47 -> 2021-12-01 | N29: =A48 -> 2022-01-01 | O29: =A49 -> 2022-02-01
A30: Pay as per Norms | D30: =taxtable1819!AI13 -> 77900 | E30: =taxtable1819!AI14 -> 77900 | F30: =taxtable1819!AI15 -> 77900 | G30: =taxtable1819!AI16 -> 77900 | H30: =taxtable1819!AI17 -> 80200 | I30: =taxtable1819!AI18 -> 80200 | J30: =taxtable1819!AI19 -> 80200 | K30: =taxtable1819!AI20 -> 80200 | L30: =taxtable1819!AI21 -> 80200 | M30: =taxtable1819!AI22 -> 80200 | N30: =taxtable1819!AI23 -> 80200 | O30: =taxtable1819!AI24 -> 80200
A31: Edit/Update in Pay | D31: =ROUND(D30*E109/31,36581) -> 75387.09677 | E31: 0 | F31: 0 | G31: 0
A32: Process (edit/update pay) | D32: NO | E32: NO | F32: NO | G32: NO | H32: NO | I32: NO | J32: NO | K32: NO | L32: NO | M32: NO | N32: NO | O32: NO | Q32: 64223 | R32: 1 | S32: =Q32*R32 -> 64223 | U32: 3045
A33: DA Rate in VII Pay | D33: 0.17 | E33: =D33 -> 0.17 | F33: =E33 -> 0.17 | G33: =F33 -> 0.17 | H33: 0.28 | I33: =H33 -> 0.28 | J33: =I33 -> 0.28 | K33: 0.31 | L33: =K33 -> 0.31 | M33: =L33 -> 0.31 | N33: =M33 -> 0.31 | O33: =N33 -> 0.31
A34: HRA Rate in VII Pay | D34: 0.16 | E34: 0.16 | F34: 0.16 | G34: 0.16 | H34: 0.16 | I34: 0.18 | J34: 0.18 | K34: 0.18 | L34: 0.18 | M34: 0.18 | N34: 0.18 | O34: 0.18
A36: Data Relating to Salary/Allowable deduction u/s 80C and tax deducted through salary | Q36: 71646 | R36: 5 | S36: 358230 | U36: 20062
A37: Period | B37: Basic Pay | C37: D.A. | D37: H.R.A. | E37: CCA | F37: NPS | G37: Oth Allow./Adj. | H37: Gross Salary | I37: GPF | J37: SI | K37: LIC | L37: HBA Int. | M37: HBA Prin. | N37: I.Tax | O37: Other Ded, | R37: =SUM(R32:R36) -> 6 | S37: =SUM(S32:S36) -> 422453 | T37: =SUM(T32:T36) -> 0 | U37: =SUM(U32:U36) -> 23107
A38: =D11 -> 2021-03-01 | B38: =taxtable1819!AL13 -> 77900 | C38: =IF($D$9="Fixed",0,taxtable1819!AM13) -> 13243 | D38: =IF($D$9="Fixed",0,taxtable1819!AN13) -> 12464 | E38: =IF(taxtable1819!AO13=FALSE,0,taxtable1819!AO13) -> 620 | F38: =IF(A38="",0,taxtable1819!V13) -> 0 | G38: 0 | H38: =SUM(B38:G38) -> 104227 | I38: 0 | J38: 0 | K38: 0 | L38: 0 | M38: 0 | N38: 0 | O38: 0 | P38: Fill value
A39: =IF($E$11>A38,EOMONTH(A38,0)+1,"") -> 2021-04-01 | B39: =taxtable1819!AL14 -> 77900 | C39: =IF($D$9="Fixed",0,taxtable1819!AM14) -> 13243 | D39: =IF($D$9="Fixed",0,taxtable1819!AN14) -> 12464 | E39: =IF(taxtable1819!AO14=FALSE,0,taxtable1819!AO14) -> 620 | F39: =IF(A39="",0,taxtable1819!V14) -> 0 | G39: 0 | H39: 104227 | I39: =I38 -> 0 | J39: =J38 -> 0 | K39: =K38 -> 0 | L39: =L38 -> 0 | M39: =M38 -> 0 | N39: 0 | O39: 0
A40: 2021-05-01 | B40: =taxtable1819!AL15 -> 77900 | C40: =IF($D$9="Fixed",0,taxtable1819!AM15) -> 13243 | D40: =IF($D$9="Fixed",0,taxtable1819!AN15) -> 12464 | E40: =IF(taxtable1819!AO15=FALSE,0,taxtable1819!AO15) -> 620 | F40: =IF(A40="",0,taxtable1819!V15) -> 0 | G40: 0 | H40: 104227 | I40: =I39 -> 0 | J40: 0 | K40: 0 | L40: 0 | M40: 0 | N40: 0 | O40: 0 | S40: =S37+U37 -> 445560
A41: 2021-06-01 | B41: =taxtable1819!AL16 -> 77900 | C41: =IF($D$9="Fixed",0,taxtable1819!AM16) -> 13243 | D41: =IF($D$9="Fixed",0,taxtable1819!AN16) -> 12464 | E41: =IF(taxtable1819!AO16=FALSE,0,taxtable1819!AO16) -> 620 | F41: =IF(A41="",0,taxtable1819!V16) -> 0 | G41: 0 | H41: 104227 | I41: =I40 -> 0 | J41: 0 | K41: 0 | L41: 0 | M41: 0 | N41: 0 | O41: 0
A42: 2021-07-01 | B42: =taxtable1819!AL17 -> 80200 | C42: =IF($D$9="Fixed",0,taxtable1819!AM17) -> 22456 | D42: =IF($D$9="Fixed",0,taxtable1819!AN17) -> 12832 | E42: =IF(taxtable1819!AO17=FALSE,0,taxtable1819!AO17) -> 620 | F42: =IF(A42="",0,taxtable1819!V17) -> 0 | G42: 0 | H42: 116108 | I42: 0 | J42: 0 | K42: 0 | L42: 0 | M42: 0 | N42: 0 | O42: 0
A43: =IF($E$11>A42,EOMONTH(A42,0)+1,"") -> 2021-08-01 | B43: =taxtable1819!AL18 -> 80200 | C43: =IF($D$9="Fixed",0,taxtable1819!AM18) -> 22456 | D43: =IF($D$9="Fixed",0,taxtable1819!AN18) -> 14436 | E43: =IF(taxtable1819!AO18=FALSE,0,taxtable1819!AO18) -> 620 | F43: =IF(A43="",0,taxtable1819!V18) -> 0 | G43: 0 | H43: 117712 | I43: 0 | J43: 0 | K43: 0 | L43: 0 | M43: 0 | N43: 0 | O43: 0
A44: 2021-09-01 | B44: =taxtable1819!AL19 -> 80200 | C44: =IF($D$9="Fixed",0,taxtable1819!AM19) -> 22456 | D44: =IF($D$9="Fixed",0,taxtable1819!AN19) -> 14436 | E44: =IF(taxtable1819!AO19=FALSE,0,taxtable1819!AO19) -> 620 | F44: =IF(A44="",0,taxtable1819!V19) -> 0 | G44: 0 | H44: 117712 | I44: 0 | J44: 0 | K44: 0 | L44: 0 | M44: 0 | N44: 0 | O44: 0 | P44: Fill value
A45: 2021-10-01 | B45: =taxtable1819!AL20 -> 80200 | C45: =IF($D$9="Fixed",0,taxtable1819!AM20) -> 24862 | D45: =IF($D$9="Fixed",0,taxtable1819!AN20) -> 14436 | E45: =IF(taxtable1819!AO20=FALSE,0,taxtable1819!AO20) -> 620 | F45: =IF(A45="",0,taxtable1819!V20) -> 0 | G45: 0 | H45: 120118 | I45: 0 | J45: 0 | K45: 0 | L45: 0 | M45: 0 | N45: 0 | O45: 0 | P45: Fill value
A46: 2021-11-01 | B46: =taxtable1819!AL21 -> 80200 | C46: =IF($D$9="Fixed",0,taxtable1819!AM21) -> 24862 | D46: =IF($D$9="Fixed",0,taxtable1819!AN21) -> 14436 | E46: =IF(taxtable1819!AO21=FALSE,0,taxtable1819!AO21) -> 620 | F46: =IF(A46="",0,taxtable1819!V21) -> 0 | G46: 0 | H46: 120118 | I46: 0 | J46: 0 | K46: 0 | L46: 0 | M46: 0 | N46: 0 | O46: 0
A47: 2021-12-01 | B47: =taxtable1819!AL22 -> 80200 | C47: =IF($D$9="Fixed",0,taxtable1819!AM22) -> 24862 | D47: =IF($D$9="Fixed",0,taxtable1819!AN22) -> 14436 | E47: =IF(taxtable1819!AO22=FALSE,0,taxtable1819!AO22) -> 620 | F47: =IF(A47="",0,taxtable1819!V22) -> 0 | G47: 0 | H47: 120118 | I47: 0 | J47: 0 | K47: 0 | L47: 0 | M47: 0 | N47: 0 | O47: 0
A48: 2022-01-01 | B48: =taxtable1819!AL23 -> 80200 | C48: =IF($D$9="Fixed",0,taxtable1819!AM23) -> 24862 | D48: =IF($D$9="Fixed",0,taxtable1819!AN23) -> 14436 | E48: =IF(taxtable1819!AO23=FALSE,0,taxtable1819!AO23) -> 620 | F48: =IF(A48="",0,taxtable1819!V23) -> 0 | G48: 0 | H48: 120118 | I48: 0 | J48: 0 | K48: 0 | L48: 0 | M48: 0 | N48: 0 | O48: 0
A49: 2022-02-01 | B49: =taxtable1819!AL24 -> 80200 | C49: =IF($D$9="Fixed",0,taxtable1819!AM24) -> 24862 | D49: =IF($D$9="Fixed",0,taxtable1819!AN24) -> 14436 | E49: =IF(taxtable1819!AO24=FALSE,0,taxtable1819!AO24) -> 620 | F49: =IF(A49="",0,taxtable1819!V24) -> 0 | G49: 0 | H49: 120118 | I49: 0 | J49: 0 | K49: 0 | L49: 0 | M49: 0 | N49: 0 | O49: 0
A50: VII pay fixation arrear | D50: VII pay Fixation Arrear | F50: =IF(A50="",0,taxtable1819!V25) -> 0 | H50: =SUM(B50:F50) -> 0 | I50: ='Fixation Arrear'!S20 -> 0 | J50: 0 | K50: 0 | L50: 0 | M50: 0 | N50: ='Fixation Arrear'!R20 -> 0 | O50: 0
A51: HRA Arrear | C51: 0 | D51: =N16 -> 1604 | E51: 0 | F51: 0 | G51: 0 | H51: =SUM(B51:G51) -> 1604 | I51: 0 | J51: 0 | K51: 0 | L51: 0 | M51: 0 | N51: 0 | O51: 0
A52: D.A. Arrear | C52: =taxtable1819!$AK$36+taxtable1819!$AK$37 -> 0 | D52: 0 | E52: 0 | F52: ='Breakup of salary'!E9 -> 0 | G52: 0 | H52: =SUM(B52:G52) -> 0 | I52: 0 | J52: 0 | K52: 0 | L52: 0 | M52: 0 | N52: 0 | O52: 0
A53: =CONCATENATE("Surrender Leave Salary ","(",TEXT(M11,"mm/yyyy"),")",taxtable1819!AG90) -> Surrender Leave Salary (07/2021) Including S.Leave (DA arr.) Rs. 0 | F53: 0 | G53: 0 | H53: =taxtable1819!AS25+taxtable1819!AJ87 -> 0 | I53: 0 | J53: 0 | K53: 0 | L53: 0 | M53: 0 | N53: 0 | O53: 0
A54: =taxtable1819!AR40 -> (Bonus : Cash in Rs.0 and adjusted in GPF amt in Rs.0) | D54: Other Arrear. (a) | E54: Other Arrear. (b) | F54: 0 | G54: 0 | H54: =IF($O$12="YES",ROUND($J$12*1,0),0) -> 0 | I54: 0 | J54: 0 | K54: 0 | L54: 0 | M54: 0 | N54: 0 | O54: 0
A55: Other Arrear…Here input other all taxable amt in whole | D55: 0 | E55: 0 | F55: 0 | G55: 0 | H55: =SUM(D55:G55) -> 0 | I55: 0 | J55: 0 | K55: 0 | L55: 0 | M55: 0 | N55: 0 | O55: 2021-07-01
A56: Gross Total | C56: Breakup_of_Gross_Salary | F56: =IF($H$11="YES",SUM(F38:F55),0) -> 0 | G56: =SUM(G38:G55) -> 0 | H56: =IF($H$11="YES",SUM(H38:H55),SUM(H38:H55)) -> 1370634 | I56: =IF($H$11="YES",0,taxtable1819!Z87) -> 0 | J56: =SUM(J38:J55) -> 0 | K56: 0 | L56: =-SUM(L38:L55) -> 0 | M56: 0 | N56: 0 | O56: =SUM(O38:O49) -> 0
A57: =A37 -> Period | B57: Basic Pay | C57: D.A. | D57: H.R.A. | E57: CCA | F57: =F37 -> NPS | G57: Oth | H57: =H37 -> Gross Salary | I57: GPF | J57: SI | K57: LIC | L57: HBA Int. | M57: HBA Prin. | N57: I.Tax | O57: Other Ded,
A58: Other part of Gross Salary …. Please leave blank , if following sections are not applicable | J58: Deduction u/s 16 & 17 | N58: Releif U/S 89 (1)
A59: Salary as per provisons contained in sec 17(1) | C59: Value of perquisites u/s 17(2) | E59: Profits in lieu of salary under section 17(3) | G59: Reported total amount of salary received from other employer(s) | J59: Entertainment Allowance | M59: 0
J60: Tax on Employment | M60: 0 | N60: 0
A61: 0 | C61: 0 | E61: 0 | G61: 0 | J61: Calulation of Intrest on National Saving Certificate(NSC)
A62: Less : Allowance to the extent exempt under section 10 | F62: Add : Any other income reported by the employee | J62: Particulars | N62: NSC (A)
A63: Travel concession or assistance u/s 10(5) | E63: 0 | F63: NSC INTREST | H63: 0 | J63: Period | L63: Date(dd/mm/yyyy) | N63: 2016-04-01
A64: Death-cum-retirement gratuity u/s 10(10) | E64: 0 | F64: Bank Intrest on Saving | H64: 0 | J64: Purchased amt. | L64: Amount in Rs. | N64: 5000
A65: Commuted value of pension u/s 10(10A) | E65: 0 | F65: (Loss) Intrest on House Loan Intrest (other than salary) | H65: 0 | J65: Relevant Fin. Year | L65: Select Fin. Year | N65: F. Year 2019-20
A66: Cash equivlent of leave salary encashment u/s 10(10AA) | E66: 0 | F66: Income from pension | H66: 0 | J66: Apply Int. Rate | L66: Rate in % | N66: =TABLE1920!AV34 -> 9.46
A67: House rent allowance u/s 10(13 A) | E67: 0 | F67: Any other income | H67: 0 | J67: Accured Intrest | L67: Intrest amt in Rs.(Round off) | N67: =ROUND(TABLE1920!AS34,0) -> 473
A68: Conv Allow under Section 10(14) | E68: 0 | F68: Investment in NPS u/s 80CCD(IB) BY Non-NPS Category Employee | J68: Investment Amount (Max Rs. 50000) | L68: 25000 | N68: Condition
A69: Other Allowances exempt u/s 10 | E69: 0 | N69: NO
A70: Total amount of exemption claimd u/s 10 | E70: =SUM(E63:E69) -> 0
A72: Calculation of HRA rebate and Practical aspect of NPS for tax purpose | J72: HRA Rebate & NPS
A75: Deductions under chapter VI A | F75: Other sections ( for e.g., 80E, 80G etc. ) under chapter VIA
A76: (a) | B76: U/S 80 CCE -: Invesment in specified investment plans | F76: a. | G76: U/S 80 CCD(2) | H76: Employer cont. towards new pension scheme | N76: =IF($H$11="YES",E94,0) -> 0
A77: (i) | B77: Genral Provided Fund | E77: =IF($H$11="YES",0,I56) -> 0 | G77: U/S 80 CCD(1B) | H77: Additional contribution towards NPS (Upto Rs. 50000 from F.Y. 2015-16) | K77: Swithover to saving in 80CCD(1B) | M77: YES | N77: =IF(N69="YES",$L$68,IF(M77="YES",TABLE1920!G1381,0)) -> 0
A78: (ii) | B78: State Insurance | E78: =J56 -> 0 | F78: b. | G78: U/S 80CCF | H78: Investment in long term infrasturture bonds | N78: 0
A79: (iii) | B79: Group Insurance | E79: =IF(H12="YES",G12,0) -> 220 | F79: c. | G79: U/S 80D- | H79: Medical ins. premium | N79: 0
A80: (iv) | B80: Life Insurance Premium | D80: =K56 -> 0 | E80: 0 | F80: d. | G80: U/S 80DD- | H80: Medical treat. of dependent handicapped person | L80: Severe disability | N80: 0
A81: (v) | B81: Accured Intrest on NSC | E81: 0 | F81: e. | G81: U/S 80DDB- | H81: Spl ded.to the guardion of a patient suff.from Cancer/Aids | N81: 0
A82: (vi) | B82: Tution Fee | E82: 150000 | F82: f. | G82: U/S 80E- | H82: Repayment of loan for higher education | N82: 0
A83: (vii) | B83: Repayment of HBA | D83: =M56 -> 0 | E83: 0 | F83: g. | G83: U/S 80EE | H83: Intrest paid on HBA(Loan taking after01-04-13 excluding u/s 24B) | N83: 0
A84: (viii) | B84: Hazard Fund | E84: 0 | F84: h. | G84: U/S 80G- | H84: Donation . 50% and 100% | J84: (Through Salary | L84: =SUM(O38:O49) -> 0 | M84: 1 | N84: 0 | P84: For other than salary
A85: (ix) | B85: Purchases of NSC | E85: 0 | F85: i. | G85: U/S 80CCG | H85: New Rajiv Gandhi Saving Scheme | N85: 0
A86: (x) | B86: PPF | E86: 0 | F86: j. | G86: U/S 80TTA | H86: Exempt -Intrest from saving bank | N86: 0
A87: (xi) | B87: PLI / ULIP | E87: 0 | F87: k. | G87: U/S 80TTB | H87: Interest income earned on Fixed Deposits & Recurring Deposits | N87: 0
A88: (xii) | B88: IDBI/ICCI | E88: 0 | F88: l. | G88: U/S 80U- | H88: Phy. hand. person or blind person | L88: Severe disability | N88: 0
A89: (xiii) | B89: BANK /POST OFFICE FD | E89: 0 | F89: Total deduction under chapter VIA | N89: =SUM(E95,N76:N88) -> 150000
A90: (xiv) | B90: Equity link saving bond | E90: 0 | F90: Summary
A91: (xv) | B91: Sukanya Samriddhi Account Deposit Scheme | E91: 0 | F91: A | G91: Gross Total Income | N91: =Statement1920!H34 -> 1320634
A92: (xvi) | B92: GPF-2004 | E92: =taxtable1819!AU42+taxtable1819!AU43 -> 0 | F92: b. | G92: Deductions under chapter VI A | N92: =Statement1920!H65 -> 150000
A93: (b) | B93: Cont. in pension fund (Section 80 CCC) | E93: 0 | F93: c. | G93: Net Tax Payable | N93: =Statement1920!H74 -> 170237
A94: (c ) | B94: Employee cont. towards NPS U/S 80 CCD(1) | E94: =IF($H$11="YES",taxtable1819!W30,0) -> 0 | F94: d. | G94: Income Tax Deducted | N94: =Statement1920!H75 -> 0
A95: Aggregate total of sect. 80C,80CCC,80CCD (u/s 80 CCE) | E95: =IF(D80+SUM(E77:E94)>150000,150000,D80+SUM(E77:E94)) -> 150000 | F95: e. | G95: Income Tax PAYABLE (Rounded off) | N95: =Statement1920!H81 -> 170240
A96: For complete version of Tax calculation and other relevant aspects.. Please visit | H96: https://www.simpletaxindia.net/2021/05/15-in-one-income-tax-calculator-fy-21-22.html
A98: Hint-How to use
A99: : | B99: Use only unhighlighted cells (i.e. white colour cells), rest cells are linked with master data. Select proper condition that is applicable. Please avoid mismatching codition that's are not applicable.
A101: :: | B101: Use required cells, please leave blank cells, if no data for input
A102: :: | B102: If any tax deducted in arrear amt, input this type of tax amt in against relevant month name with regular tax amount
A103: :: | B103: If any error/suggestion, please contact to GRIRAJ HARSH or Cash Section in working hours
N105: Home
A107: CM CORONA RELEIF FUND | I107: GPF
A108: Effect of covid on Salary & CM corona releif calculation | C108: Month | E108: =D29 -> 2021-03-01 | F108: =A44 -> 2021-09-01 | G108: =A45 -> 2021-10-01 | I108: REGULAR
C109: No of days-salary | E109: 30 | F109: =ROUND(D30*E109/31,0) -> 75387
C110: No of days-cm releif fund | E110: 0 | F110: 0 | G110: 0
A111: =SUM(E111:G111) -> 0 | C111: Amt for CM Releif Fund | E111: =ROUND(D30*E110/31,0) -> 0 | F111: =ROUND(H44*F110/30,0) -> 0 | G111: =ROUND(H45*G110/31,0) -> 0
C127: =taxtable1819!$AM$49 -> * Total of GPF include DA arrear amt from 07/21 -10/21 Rs.0 , , Adjuested amt. of Bonus Rs.0
C128: =taxtable1819!$AM$53 -> ** Total of GPF include DA arrear amt from 07/19 -02/20 Rs.0
C131: =taxtable1819!BB18 -> ***Gross Salary include the DA arrar on Surrender leave Salary Rs. 0 | F131: IT through Arrear
G161: Arr.(c)
G162: 3
B163: Gross Salary (including NPS cont.)

Sheet taxtable1819 (hidden)
A1: Tax computation for Tax Calculator | CI1: Increment Start | CL1: ='Fixation Arrear'!$A$6 -> 2017-01-01 | CM1: =DATE(YEAR(CL1),MONTH(CL1),1) -> 2017-01-01 | CN1: =EOMONTH(CL1,0) -> 2017-01-31 | CY1: =CONCATENATE("Basic Pay in VI pay Scale for"," ",TEXT('Gross Salary 19-20'!D11,"mm/yy")) -> Basic Pay in VI pay Scale for 03/21 | DA1: VII Pay Scale Arrear from | EX1: 2016-17 | FA1: Text message
B2: Financial Year | E2: =Statement1819!$F$1 -> 2018-19 | I2: (Above 60 year but less than 80) | K2: =E4+250000 ->  | BY2: =INDEX($BY$4:$BY$866,MATCH($CC$2,Code_Name,0)) -> 1 | BZ2: =INDEX($BZ$4:$BZ$866,MATCH($CC$2,Code_Name,0)) -> PRAVESH KUMAR SHARMA | CC2: ='Gross Salary 19-20'!$D$13 -> 1-PRAVESH KUMAR SHARMA | CI2: Increment End | CL2: ='Fixation Arrear'!$C$6 -> 2017-09-30 | CM2: =DATE(YEAR(CL2),MONTH(CL2),-1) -> 2017-08-30 | CN2: =DATE(YEAR(CL1),MONTH(CL1),1) -> 2017-01-01 | EX2: 80DD | EZ2: =EZ5 -> 0
B3: Tax Category | E3: =Statement1819!$C$2 -> MALE | AZ3: Emply status | BB3: ='Gross Salary 19-20'!$D$9 -> Regular | BY3: Empl.code | BZ3: Name | CA3: Disignation | CB3: PAN | CC3: Code_Name | CL3: =EOMONTH(CL2,0) -> 2017-09-30 | CM3: =DATE(YEAR(CL2),MONTH(CL2),1) -> 2017-09-01 | DO3: 80C | EX3: Disability | EY3: 75000 | EZ3: Incurred amt
B4: Taxable Income | E4: =Statement1819!$H$52 ->  | BY4: =IF(Emp_list!A2="","",Emp_list!A2) -> 1 | BZ4: =IF(Emp_list!B2="","",Emp_list!B2) -> PRAVESH KUMAR SHARMA | CA4: =IF(Emp_list!C2="","",Emp_list!C2) -> AAO-I | CB4: =IF(Emp_list!D2="","",Emp_list!D2) -> ABCPP1234D | CC4: =CONCATENATE(BY4,"-",BZ4) -> 1-PRAVESH KUMAR SHARMA | CL4: Due Basic Pay | CQ4: Drawn Basic Pay | CY4: 26360 | DA4: 2018-03-01 | DL4: ='Fixation Arrear'!$T$3 -> NO | DO4: Genral Provided Fund | EX4: Severe disability | EY4: 125000 | EZ4: ='Gross Salary 19-20'!N80 -> 0 | FA4: =CONCATENATE("Maxi. allow limit in case of"," ",EX5," ","Rs."," ",EY5," ") -> Maxi. allow limit in case of Severe disability Rs. 125000
A5: Fin. Year | C5: 1985 | D5: =C5+1 -> 1986 | F5: 1985-86 | H5: Computation Table | N5: Fin. Year | P5: 1985 | Q5: =P5+1 -> 1986 | Z5: ='Gross Salary 19-20'!A11 -> Salary Start/End Month | AC5: ='Gross Salary 19-20'!D11 -> 2021-03-01 | AD5: ='Gross Salary 19-20'!I10 -> Incre. Month (in VI Pay) | AN5: ='Gross Salary 19-20'!M10 -> 2021-07-01 | AO5: ='Gross Salary 19-20'!O10 -> YES | AQ5: ='Gross Salary 19-20'!K10 -> 0.03 | AU5: GPF ARR. | AV5: DA RATE | AW5: PAY | AX5: DA | AY5: NPS | AZ5: ='Gross Salary 19-20'!$H$11 -> NO | BB5: GPF ARR. | BC5: DA RATE | BD5: PAY | BE5: DA | BF5: NPS | BG5: ='Gross Salary 19-20'!$H$11 -> NO | BK5: NPS TREATMENT | BY5: =IF(Emp_list!A3="","",Emp_list!A3) -> 2 | BZ5: =IF(Emp_list!B3="","",Emp_list!B3) -> xyz | CA5: =IF(Emp_list!C3="","",Emp_list!C3) -> abc | CB5: =IF(Emp_list!D3="","",Emp_list!D3) -> ABCPP1234D | CC5: 2-xyz | CJ5: Sorted period (List A) | CK5: Sorted period (List B) | CL5: Basic Pay on start | CN5: ='Fixation Arrear'!E6 -> 69200 | CQ5: Pay at drawn | CS5: ='Fixation Arrear'!G6 -> 26670 | DF5: TAX through Salary | DH5: TAX through Fixation | DJ5: TAX through othrs | DL5: Total Tax amt | DO5: State Insurance | EX5: ='Gross Salary 19-20'!L80 -> Severe disability | EY5: =IF(EX5=EX3,EY3,EY4) -> 125000 | EZ5: =MIN(EY5,EZ4) -> 0
A6: Male | D6: TAX MARGIN | E6: TAX AT MARGIN | F6: SUR RATE | G6: E.Cess | H6: TAXABLE INCOME | I6: TAX RATE APPLY | J6: TAX MARGIN SLAB | K6: TAX SLAB | L6: Surch.Rate | M6: E.Cess | N6: Tax Range | Z6: ='Gross Salary 19-20'!A11 -> Salary Start/End Month | AC6: ='Gross Salary 19-20'!E11 -> 2022-02-01 | AD6: ='Gross Salary 19-20'!I11 -> Surrendar leave | AN6: ='Gross Salary 19-20'!M11 -> 2021-07-01 | AO6: ='Gross Salary 19-20'!O11 -> NO | AQ6: ='Gross Salary 19-20'!K11 -> 15 | AU6: 2020-01-01 | AV6: 0.03 | AW6: =AW9 ->  | AX6: =ROUND(AW6*AV6,0) ->  | AY6: =ROUND(SUM(AW6*0+AX6)*10%,0) ->  | AZ6: =CONCATENATE("*Gross Salary and Total of GPF include DA arrear amt from Jan-Feb 19"," ","Rs.",AX10) -> *Gross Salary and Total of GPF include DA arrear amt from Jan-Feb 19 Rs.0 | BB6: 2020-07-01 | BC6: 0 | BD6: =INDEX($AL$13:$AL$24,MATCH(BB6,$AE$13:$AE$24,0)) ->  | BE6: =ROUND(BD6*BC6,0) ->  | BF6: =ROUND(SUM(BD6*0+BE6)*10%,0) ->  | BG6: =CONCATENATE("**Gross Salary and Total of GPF include DA arrear amt from July-Sept 19"," ","Rs.",BE10) -> **Gross Salary and Total of GPF include DA arrear amt from July-Sept 19 Rs.0 | BK6: Total cont. in section 80CCD(1) | BO6: ='Gross Salary 19-20'!F56 -> 0 | BY6: =IF(Emp_list!A4="","",Emp_list!A4) -> 3 | BZ6: =IF(Emp_list!B4="","",Emp_list!B4) -> ABCD | CA6: =IF(Emp_list!C4="","",Emp_list!C4) -> UDC | CB6: =IF(Emp_list!D4="","",Emp_list!D4) -> ABCPP1234D | CC6: 3-ABCD | CL6: Incr. Condt. | CM6: ='Fixation Arrear'!D9 -> Grade Pay Diff. | CN6: Base due pay in VII pay | CO6: Edit Pay in VII pay | CP6: Final Basic Pay | CQ6: Basic Pay | CR6: Pay after incr. | CS6: B.Pay Edit | CT6: Final Basic Pay | CU6: Act. I.R. deposited in gpf | CY6: D.A. RATE FOR VI SCALE | DB6: D.A. RATE FOR VII SCALE | DE6: CODE | DF6: Month | DG6: Tax amt | DH6: Month | DI6: Tax amt | DJ6: Month | DK6: Tax amt | DO6: Group Insurance | DX6: ='Fixation Arrear'!V11 -> 2019-08-01 | DY6: ='Fixation Arrear'!V12 -> 2019-09-01 | DZ6: ='Fixation Arrear'!V13 -> 2019-09-01 | EA6: ='Fixation Arrear'!V14 -> 2019-09-01 | EB6: ='Fixation Arrear'!V15 -> 2019-09-01 | EC6: ='Fixation Arrear'!V16 -> 2019-09-01 | ED6: ='Fixation Arrear'!V17 -> 2019-09-01 | EE6: ='Fixation Arrear'!V18 -> 2019-09-01 | EF6: ='Fixation Arrear'!V19 -> 2019-09-01 | EX6: 80U | EZ6: =EZ9 -> 0
A7: Not defined | N7: F.Year | O7: =C5 -> 1985 | P7: =D5 -> 1986 | Z7: =taxtable1819!CY1 -> Basic Pay in VI pay Scale for 03/21 | AC7: =taxtable1819!CY4 -> 26360 | AD7: ='Gross Salary 19-20'!I12 -> BOUNS | AN7: ='Gross Salary 19-20'!M12 -> 2021-11-01 | AO7: ='Gross Salary 19-20'!O12 -> NO | AQ7: ='Gross Salary 19-20'!J12 -> 6774 | AU7: 2020-02-01 | AV7: =AV6 -> 0.03 | AW7: =AW6 ->  | AX7: =ROUND(AW7*AV7,0) ->  | AY7: =ROUND(SUM(AW7*0+AX7)*10%,0) ->  | AZ7: =CONCATENATE("*Gross Salary and Total of NPS include DA arrear amt from Jan-Feb 19"," ","Rs.",AY10) -> *Gross Salary and Total of NPS include DA arrear amt from Jan-Feb 19 Rs.0 | BB7: 2020-08-01 | BC7: =BC6 -> 0 | BD7: =INDEX($AL$13:$AL$24,MATCH(BB7,$AE$13:$AE$24,0)) ->  | BE7: =ROUND(BD7*BC7,0) ->  | BF7: =ROUND(SUM(BD7*0+BE7)*10%,0) ->  | BG7: =CONCATENATE("**Gross Salary and Total of NPS include DA arrear amt from Jan-March 19"," ","Rs.",BF10) -> **Gross Salary and Total of NPS include DA arrear amt from Jan-March 19 Rs.0 | BK7: Other investmentin section 80C | BO7: =SUM('Gross Salary 19-20'!$E$77:$E$93) -> 150220 | BY7: =IF(Emp_list!A5="","",Emp_list!A5) ->  | BZ7: =IF(Emp_list!B5="","",Emp_list!B5) ->  | CA7: =IF(Emp_list!C5="","",Emp_list!C5) ->  | CB7: =IF(Emp_list!D5="","",Emp_list!D5) ->  | CC7: - | CY7: DA | CZ7: DP | DA7: DEPOSITED | DB7: DA | DC7: DEPOSITED | DE7: 1 | DF7: =Statement1819!B62 -> 2021-03-01 | DG7: =IF(DF7="","",'Gross Salary 19-20'!N38) -> 0 | DH7: ='Fixation Arrear'!V11 -> 2019-08-01 | DI7: =IF($DL$4="YES",'Fixation Arrear'!R11,0) -> 0 | DJ7: ='Gross Salary 19-20'!O55 -> 2021-07-01 | DK7: ='Gross Salary 19-20'!N55 -> 0 | DL7: =IF($DJ$7=DF7,$DK$7+SUMIF($DH$7:$DH$15,DF7,$DI$7:$DI$15)+DG7,SUMIF($DH$7:$DH$15,DF7,$DI$7:$DI$15)+DG7) -> 0 | DM7: =IF(DF7="","",DL7) -> 0 | DO7: Life Insurance Premium | DX7: =IF($DL$4="NO",0,INDEX('Fixation Arrear'!$R$11:$R$19,MATCH(DF7,$DX$6:$EF$6,0))) -> 0 | DY7: =IF($DL$4="NO",0,INDEX('Fixation Arrear'!$R$11:$R$19,MATCH(DF7,$DX$6:$EF$6,0))) -> 0 | DZ7: =IF($DL$4="NO",0,IF($DZ$6=DF7,'Fixation Arrear'!R11,0)) -> 0 | EA7: =IF($DL$4="NO",0,IF($EA$6=DF7,'Fixation Arrear'!R11,0)) -> 0 | EB7: =IF($DL$4="NO",0,IF($EB$6=DF7,'Fixation Arrear'!R11,0)) -> 0 | EC7: =IF($DL$4="NO",0,IF($EC$6=DF7,'Fixation Arrear'!R11,0)) -> 0 | ED7: =IF($DL$4="NO",0,IF($ED$6=DF7,'Fixation Arrear'!R11,0)) -> 0 | EE7: =IF($DL$4="NO",0,IF($EE$6=DF7,'Fixation Arrear'!R11,0)) -> 0 | EF7: =IF($DL$4="NO",0,IF($EF$6=DF7,'Fixation Arrear'!R11,0)) -> 0 | EX7: Disability | EY7: 75000 | EZ7: Incurred amt
A8: 0 | B8: 18000 | C8: 0 | D8: 0 | E8: 0 | F8: 0 | G8: 0 | H8: =$E$4 ->  | I8: =VLOOKUP(H8,A8:C12,3) ->  | J8: =INDEX(D8:D12,MATCH(I8,C8:C12,0)) ->  | K8: =INDEX(E8:E12,MATCH(I8,C8:C12,0)) ->  | L8: =IF(H8>H12,VLOOKUP(H8,A8:F12,6),0) ->  | M8: =VLOOKUP(H8,A8:G12,7) ->  | N8: 0 | O8: =IF($E$3="Male",B8,IF($E$3="Female",B15,IF($E$3="Senior Citizen",B22,B29))) -> 18000 | P8: 0 | Z8: ='Gross Salary 19-20'!A12 -> Basic Pay in VII pay sacle | AC8: ='Gross Salary 19-20'!D12 -> 77900 | AD8: ='Gross Salary 19-20'!F9 -> HRA (in VII Pay Scale) | AN8: ='Gross Salary 19-20'!H9 -> 0.18 | AQ8: ='Gross Salary 19-20'!H9 -> 0.18 | AU8: 2020-03-01 | AW8: =AW7 ->  | AX8: =ROUND(AW8*AV8,0) ->  | AZ8: =IF($AZ$5="YES",AZ7,AZ6) -> *Gross Salary and Total of GPF include DA arrear amt from Jan-Feb 19 Rs.0 | BB8: 2020-09-01 | BC8: 0 | BD8: =INDEX($AL$13:$AL$24,MATCH(BB8,$AE$13:$AE$24,0)) ->  | BE8: =ROUND(BD8*BC8,0) ->  | BG8: =IF($AZ$5="YES",BG7,BG6) -> **Gross Salary and Total of GPF include DA arrear amt from July-Sept 19 Rs.0 | BK8: Maxi Limit | BO8: 150000 | BY8: =IF(Emp_list!A6="","",Emp_list!A6) ->  | BZ8: =IF(Emp_list!B6="","",Emp_list!B6) ->  | CA8: =IF(Emp_list!C6="","",Emp_list!C6) ->  | CB8: =IF(Emp_list!D6="","",Emp_list!D6) ->  | CC8: - | CI8: =CN2 -> 2017-01-01 | CJ8: =INDEX($CI$8:$CI$16,MATCH(0,COUNTIF($CJ$5:CJ7,$CI$8:$CI$16)+(COUNTIF($CI$8:$CI$16,$CI$8:$CI$16)<>1),0)) -> 2017-01-01 | CK8: =IF(ISERROR(CJ8),"",CJ8) -> 2017-01-01 | CL8: ='Fixation Arrear'!C11 -> NO | CM8: ='Fixation Arrear'!D11 -> 0 | CN8: =IF(CL8="YES",(ROUNDUP($CN$5+(ROUND(CN5*3%,0)),-2)+CM8),$CN$5) -> 69200 | CO8: ='Fixation Arrear'!F11 -> 0 | CP8: =IF(CO8>0,CO8,CN8) -> 69200 | CQ8: =CR8 -> 26670 | CR8: =IF(CL8="YES",$CS$5+CQ8,$CS$5) -> 26670 | CS8: ='Fixation Arrear'!I11 -> 0 | CT8: =IF(CS8>0,CS8,CR8) -> 26670 | CU8: =VLOOKUP(CI8,$C$7:$I$411,16) ->  | CY8: 1.36 | CZ8: 0.04 | DA8: 0.04 | DB8: 0.04 | DC8: 0 | DE8: 2 | DF8: =Statement1819!B63 -> 2021-04-01 | DG8: =IF(DF8="","",'Gross Salary 19-20'!N39) -> 0 | DH8: ='Fixation Arrear'!V12 -> 2019-09-01 | DI8: =IF($DL$4="YES",'Fixation Arrear'!R12,0) -> 0 | DL8: 0 | DM8: =IF(DF8="","",DL8) -> 0 | DO8: Accured Intrest on NSC | DX8: =IF($DL$4="NO",0,INDEX('Fixation Arrear'!$R$11:$R$19,MATCH(DF8,$DX$6:$EF$6,0))) -> 0 | DY8: =IF($DL$4="NO",0,INDEX('Fixation Arrear'!$R$11:$R$19,MATCH(DF8,$DX$6:$EF$6,0))) -> 0 | DZ8: =IF($DL$4="NO",0,IF($DZ$6=DF8,'Fixation Arrear'!R12,0)) -> 0 | EA8: =IF($DL$4="NO",0,IF($EA$6=DF8,'Fixation Arrear'!R12,0)) -> 0 | EB8: =IF($DL$4="NO",0,IF($EB$6=DF8,'Fixation Arrear'!R12,0)) -> 0 | EC8: =IF($DL$4="NO",0,IF($EC$6=DF8,'Fixation Arrear'!R12,0)) -> 0 | ED8: =IF($DL$4="NO",0,IF($ED$6=DF8,'Fixation Arrear'!R12,0)) -> 0 | EE8: =IF($DL$4="NO",0,IF($EE$6=DF8,'Fixation Arrear'!R12,0)) -> 0 | EF8: =IF($DL$4="NO",0,IF($EF$6=DF8,'Fixation Arrear'!R12,0)) -> 0 | EX8: Severe disability | EY8: 125000 | EZ8: ='Gross Salary 19-20'!N88 -> 0
A9: =B8+1 -> 18001 | B9: 25000 | C9: 0.25 | D9: =B8 -> 18000 | E9: =(B9-B8)*C9 -> 1750 | F9: 0 | G9: 0 | H9: TAX CALCULALTION | I9: SURCHARGE | J9: E. CESS | K9: TOTAL TAX DUE | N9: =O8+1 -> 18001 | O9: 25000 | P9: 0.25 | Z9: =taxtable1819!DA1 -> VII Pay Scale Arrear from | AC9: =taxtable1819!DA4 -> 2018-03-01 | AD9: ='Gross Salary 19-20'!F10 -> CCA (in VII Pay Scale) | AO9: ='Gross Salary 19-20'!H10 -> YES | AU9: 2020-04-01 | AW9: =INDEX($AL$13:$AL$24,MATCH(AU9,$AE$13:$AE$24,0)) ->  | BB9: 2020-10-01 | BC9: =BC8 -> 0 | BD9: =INDEX($AL$13:$AL$24,MATCH(BB9,$AE$13:$AE$24,0)) ->  | BK9: Remaining amt | BO9: =(BO6+BO7-BO8) -> 220 | BP9: =IF($AZ$5="YES",IF(BO9>0,BO9),0) -> 0 | BY9: =IF(Emp_list!A7="","",Emp_list!A7) ->  | BZ9: =IF(Emp_list!B7="","",Emp_list!B7) ->  | CA9: =IF(Emp_list!C7="","",Emp_list!C7) ->  | CB9: =IF(Emp_list!D7="","",Emp_list!D7) ->  | CC9: - | CI9: =IF($CM$2>=CI8,EOMONTH(CI8,0)+1,"") -> 2017-02-01 | CJ9: =INDEX($CI$8:$CI$16,MATCH(0,COUNTIF($CJ$5:CJ8,$CI$8:$CI$16)+(COUNTIF($CI$8:$CI$16,$CI$8:$CI$16)<>1),0)) -> 2017-02-01 | CK9: 2017-02-01 | CL9: ='Fixation Arrear'!C12 -> NO | CM9: ='Fixation Arrear'!D12 -> 0 | CN9: =IF(CL9="NO",CN8,ROUNDUP(SUM(+ROUND(CN8*103%,0)),-2))+CM9 -> 69200 | CO9: ='Fixation Arrear'!F12 -> 0 | CP9: =IF(CO9>0,CO9,CN9) -> 69200 | CQ9: =CR9 -> 26670 | CR9: =IF(CL9="NO",CR8,ROUNDUP(SUM(+ROUND(CR8*103%,0)),-1)) -> 26670 | CS9: ='Fixation Arrear'!I12 -> 0 | CT9: =IF(CS9>0,CS9,CR9) -> 26670 | CY9: 1.36 | CZ9: 0.04 | DA9: 0.04 | DB9: 0.04 | DC9: 0 | DE9: 3 | DF9: =Statement1819!B64 -> 2021-05-01 | DG9: =IF(DF9="","",'Gross Salary 19-20'!N40) -> 0 | DH9: ='Fixation Arrear'!V13 -> 2019-09-01 | DI9: =IF($DL$4="YES",'Fixation Arrear'!R13,0) -> 0 | DL9: 0 | DM9: 0 | DO9: Tution Fee | DX9: =IF($DL$4="NO",0,INDEX('Fixation Arrear'!$R$11:$R$19,MATCH(DF9,$DX$6:$EF$6,0))) -> 0 | DY9: =IF($DL$4="NO",0,INDEX('Fixation Arrear'!$R$11:$R$19,MATCH(DF9,$DX$6:$EF$6,0))) -> 0 | DZ9: =IF($DL$4="NO",0,IF($DZ$6=DF9,'Fixation Arrear'!R13,0)) -> 0 | EA9: =IF($DL$4="NO",0,IF($EA$6=DF9,'Fixation Arrear'!R13,0)) -> 0 | EB9: =IF($DL$4="NO",0,IF($EB$6=DF9,'Fixation Arrear'!R13,0)) -> 0 | EC9: =IF($DL$4="NO",0,IF($EC$6=DF9,'Fixation Arrear'!R13,0)) -> 0 | ED9: =IF($DL$4="NO",0,IF($ED$6=DF9,'Fixation Arrear'!R13,0)) -> 0 | EE9: =IF($DL$4="NO",0,IF($EE$6=DF9,'Fixation Arrear'!R13,0)) -> 0 | EF9: =IF($DL$4="NO",0,IF($EF$6=DF9,'Fixation Arrear'!R13,0)) -> 0 | EX9: ='Gross Salary 19-20'!L88 -> Severe disability | EY9: =IF(EX9=EX7,EY7,EY8) -> 125000 | EZ9: =MIN(EY9,EZ8) -> 0 | FA9: =CONCATENATE("Maxi. allow limit in case of"," ",EX9," ","Rs."," ",EY9," ") -> Maxi. allow limit in case of Severe disability Rs. 125000
A10: =B9+1 -> 25001 | B10: 50000 | C10: 0.3 | D10: =B9 -> 25000 | E10: =E9+(B10-B9)*C10 -> 9250 | F10: 0 | G10: 0 | H10: =IF(I8=C12,E11+ROUND((H8-J8),0)*I8,IF(I8=C11,E10+ROUND((H8-J8)*I8,0),IF(I8=C10,E9+ROUND((H8-J8)*I8,0),IF(I8=C9,E8+ROUND((H8-J8)*I8,0),E7+ROUND((H8-J8)*I8,0))))) ->  | I10: =MIN(K12:L12) ->  | J10: =ROUND(SUM(H10+I10)*M8,0) ->  | K10: =SUM(H10:J10) ->  | N10: =O9+1 -> 25001 | O10: 50000 | P10: 0.3 | S10: Condition | T10: ='Gross Salary 19-20'!$H$11 -> NO | Z10: ='Gross Salary 19-20'!A36 -> Data Relating to Salary/Allowable deduction u/s 80C and tax deducted through salary | AX10: =IF(BB3="Fixed",0,IFERROR(SUM(AX6:AX9),0)) -> 0 | AY10: =IF(BB3="Fixed",0,IFERROR(SUM(AY6:AY9),0)) -> 0 | AZ10: =IF(BB3="Fixed",0,IF(AZ5="YES",AY10,AX10)) -> 0 | BE10: =IF(BB3="Fixed",0,IFERROR(SUM(BE6:BE9),0)) -> 0 | BF10: =IF(BB3="Fixed",0,IFERROR(SUM(BF6:BF9),0)) -> 0 | BG10: =IF($BB$3="Fixed",0,IF(BG5="YES",BF10,BE10)) -> 0 | BK10: Amt may be adjusted in 80CCD(1B) | BO10: =IF(BP9=FALSE,0,BP9) -> 0 | BR10: =IF(BP9>50000,50000,BP9) -> 0 | BY10: =IF(Emp_list!A8="","",Emp_list!A8) ->  | BZ10: =IF(Emp_list!B8="","",Emp_list!B8) ->  | CA10: =IF(Emp_list!C8="","",Emp_list!C8) ->  | CB10: =IF(Emp_list!D8="","",Emp_list!D8) ->  | CC10: - | CI10: =IF($CM$2>=CI9,EOMONTH(CI9,0)+1,"") -> 2017-03-01 | CJ10: =INDEX($CI$8:$CI$16,MATCH(0,COUNTIF($CJ$5:CJ9,$CI$8:$CI$16)+(COUNTIF($CI$8:$CI$16,$CI$8:$CI$16)<>1),0)) -> 2017-03-01 | CK10: 2017-03-01 | CL10: ='Fixation Arrear'!C13 -> NO | CM10: ='Fixation Arrear'!D13 -> 0 | CN10: =IF(CL10="NO",CN9,ROUNDUP(SUM(+ROUND(CN9*103%,0)),-2))+CM10 -> 69200 | CO10: ='Fixation Arrear'!F13 -> 0 | CP10: 69200 | CQ10: 26670 | CR10: =IF(CL10="NO",CR9,ROUNDUP(SUM(+ROUND(CR9*103%,0)),-1)) -> 26670 | CS10: ='Fixation Arrear'!I13 -> 0 | CT10: =IF(CS10>0,CS10,CR10) -> 26670 | CY10: 1.36 | CZ10: 0.04 | DA10: 0.04 | DB10: 0.04 | DC10: 0 | DE10: 4 | DF10: =Statement1819!B65 -> 2021-06-01 | DG10: =IF(DF10="","",'Gross Salary 19-20'!N41) -> 0 | DH10: ='Fixation Arrear'!V14 -> 2019-09-01 | DI10: =IF($DL$4="YES",'Fixation Arrear'!R14,0) -> 0 | DL10: 0 | DM10: 0 | DO10: Repayment of HBA | DX10: =IF($DL$4="NO",0,INDEX('Fixation Arrear'!$R$11:$R$19,MATCH(DF10,$DX$6:$EF$6,0))) -> 0 | DY10: =IF($DL$4="NO",0,INDEX('Fixation Arrear'!$R$11:$R$19,MATCH(DF10,$DX$6:$EF$6,0))) -> 0 | DZ10: =IF($DL$4="NO",0,IF($DZ$6=DF10,'Fixation Arrear'!R14,0)) -> 0 | EA10: =IF($DL$4="NO",0,IF($EA$6=DF10,'Fixation Arrear'!R14,0)) -> 0 | EB10: =IF($DL$4="NO",0,IF($EB$6=DF10,'Fixation Arrear'!R14,0)) -> 0 | EC10: =IF($DL$4="NO",0,IF($EC$6=DF10,'Fixation Arrear'!R14,0)) -> 0 | ED10: =IF($DL$4="NO",0,IF($ED$6=DF10,'Fixation Arrear'!R14,0)) -> 0 | EE10: =IF($DL$4="NO",0,IF($EE$6=DF10,'Fixation Arrear'!R14,0)) -> 0 | EF10: =IF($DL$4="NO",0,IF($EF$6=DF10,'Fixation Arrear'!R14,0)) -> 0 | EX10: 80G | EZ10: =EZ14 -> 
A11: =B10+1 -> 50001 | B11: 100000 | C11: 0.4 | D11: =B10 -> 50000 | E11: =E10+(B11-B10)*C11 -> 29250 | F11: 0.05 | G11: 0 | H11: Surcharge limit | I11: Add.Tax Income | J11: Add. Tax | K11: Diff | L11: Sur. Amt | M11: M.R. | N11: =O10+1 -> 50001 | O11: 100000 | P11: 0.4 | S11: Categary | T11: 80CCD(1) | U11: 80CCD(2) | V11: Employee share | W11: employer share | AM11: =AE17-AN5 -> 0 | AU11: 30 | BK11: Swithover to saving in 80CCD(1) | BO11: ='Gross Salary 19-20'!M77 -> YES | BY11: =IF(Emp_list!A9="","",Emp_list!A9) ->  | BZ11: =IF(Emp_list!B9="","",Emp_list!B9) ->  | CA11: =IF(Emp_list!C9="","",Emp_list!C9) ->  | CB11: =IF(Emp_list!D9="","",Emp_list!D9) ->  | CC11: - | CI11: 2017-04-01 | CJ11: =INDEX($CI$8:$CI$16,MATCH(0,COUNTIF($CJ$5:CJ10,$CI$8:$CI$16)+(COUNTIF($CI$8:$CI$16,$CI$8:$CI$16)<>1),0)) -> 2017-04-01 | CK11: 2017-04-01 | CL11: ='Fixation Arrear'!C14 -> NO | CM11: ='Fixation Arrear'!D14 -> 0 | CN11: 69200 | CO11: ='Fixation Arrear'!F14 -> 0 | CP11: 69200 | CQ11: 26670 | CR11: 26670 | CS11: ='Fixation Arrear'!I14 -> 0 | CT11: 26670 | CY11: 1.36 | CZ11: 0 | DA11: 0 | DB11: 0.04 | DC11: 0 | DE11: 5 | DF11: =Statement1819!D62 -> 2021-07-01 | DG11: =IF(DF11="","",'Gross Salary 19-20'!N42) -> 0 | DH11: ='Fixation Arrear'!V15 -> 2019-09-01 | DI11: =IF($DL$4="YES",'Fixation Arrear'!R15,0) -> 0 | DL11: 0 | DM11: 0 | DO11: Hazard Fund | DX11: =IF($DL$4="NO",0,INDEX('Fixation Arrear'!$R$11:$R$19,MATCH(DF11,$DX$6:$EF$6,0))) -> 0 | DY11: =IF($DL$4="NO",0,INDEX('Fixation Arrear'!$R$11:$R$19,MATCH(DF11,$DX$6:$EF$6,0))) -> 0 | DZ11: =IF($DL$4="NO",0,IF($DZ$6=DF11,'Fixation Arrear'!R15,0)) -> 0 | EA11: =IF($DL$4="NO",0,IF($EA$6=DF11,'Fixation Arrear'!R15,0)) -> 0 | EB11: =IF($DL$4="NO",0,IF($EB$6=DF11,'Fixation Arrear'!R15,0)) -> 0 | EC11: =IF($DL$4="NO",0,IF($EC$6=DF11,'Fixation Arrear'!R15,0)) -> 0 | ED11: =IF($DL$4="NO",0,IF($ED$6=DF11,'Fixation Arrear'!R15,0)) -> 0 | EE11: =IF($DL$4="NO",0,IF($EE$6=DF11,'Fixation Arrear'!R15,0)) -> 0 | EF11: =IF($DL$4="NO",0,IF($EF$6=DF11,'Fixation Arrear'!R15,0)) -> 0 | EX11: 0.5 | EY11: ='Gross Salary 19-20'!N84 -> 0 | EZ11: =ROUND(EY11*EX11,0) -> 0
A12: =B11+1 -> 100001 | C12: 0.5 | D12: 100000 | E12: =IF(J9=0,0,E11) -> 29250 | F12: 0.05 | G12: 0 | H12: 50000 | I12: =IF(H8>H12,H8-H12,0) ->  | J12: =IF(I12>0,ROUND(I12*I8,0),0) ->  | K12: =I12-J12 ->  | L12: =IF(H10>0,ROUND(H10*L8,0),0) ->  | M12: =IF(K12>L12,0,L12-K12) ->  | N12: =O11+1 -> 100001 | O12: 0 | P12: 0.5 | S12: Regular | T12: 0.1 | U12: 0.1 | V12: NPS U/S 80CCD(1) | W12: NPS U/S 80CCD(2) | X12: Income tax | Z12: Salary_month1718 | AA12: DA VI | AB12: DA VII | AC12: HRA VI | AD12: HRA VII | AE12: Period | AF12: P.Scale | AG12: Basic Pay | AH12: Incre. | AJ12: EDIT PAY | AK12: COND | AL12: FINAL BASIC PAY | AM12: DA RATE | AN12: HRA | AO12: CCA | AP12: Days | AQ12: BASIC PAY_SL | AR12: DA_SL | AS12: FINAL AMT SL | AV12: Surr. Leave | AW12: DA RATE | AX12: DA RATE | AZ12: Actual DA Rate in VI pay | BA12: DA Rate for S.Leave in VII | BD12: Actual | BE12: Paid | BI12: Salary_month1718 | BK12: Additional contribution in 80CCD(1) | BO12: ='Gross Salary 19-20'!N77 -> 0 | BY12: =IF(Emp_list!A10="","",Emp_list!A10) ->  | BZ12: =IF(Emp_list!B10="","",Emp_list!B10) ->  | CA12: =IF(Emp_list!C10="","",Emp_list!C10) ->  | CB12: =IF(Emp_list!D10="","",Emp_list!D10) ->  | CC12: - | CI12: 2017-05-01 | CJ12: =INDEX($CI$8:$CI$16,MATCH(0,COUNTIF($CJ$5:CJ11,$CI$8:$CI$16)+(COUNTIF($CI$8:$CI$16,$CI$8:$CI$16)<>1),0)) -> 2017-05-01 | CK12: 2017-05-01 | CL12: ='Fixation Arrear'!C15 -> NO | CM12: ='Fixation Arrear'!D15 -> 0 | CN12: 69200 | CO12: ='Fixation Arrear'!F15 -> 0 | CP12: 69200 | CQ12: 26670 | CR12: 26670 | CS12: ='Fixation Arrear'!I15 -> 0 | CT12: 26670 | CY12: 1.36 | CZ12: 0 | DA12: 0 | DB12: 0.04 | DC12: 0 | DE12: 6 | DF12: =Statement1819!D63 -> 2021-08-01 | DG12: =IF(DF12="","",'Gross Salary 19-20'!N43) -> 0 | DH12: ='Fixation Arrear'!V16 -> 2019-09-01 | DI12: =IF($DL$4="YES",'Fixation Arrear'!R16,0) -> 0 | DL12: 0 | DM12: 0 | DO12: Purchases of NSC | DX12: =IF($DL$4="NO",0,INDEX('Fixation Arrear'!$R$11:$R$19,MATCH(DF12,$DX$6:$EF$6,0))) -> 0 | DY12: =IF($DL$4="NO",0,INDEX('Fixation Arrear'!$R$11:$R$19,MATCH(DF12,$DX$6:$EF$6,0))) -> 0 | DZ12: =IF($DL$4="NO",0,IF($DZ$6=DF12,'Fixation Arrear'!R16,0)) -> 0 | EA12: =IF($DL$4="NO",0,IF($EA$6=DF12,'Fixation Arrear'!R16,0)) -> 0 | EB12: =IF($DL$4="NO",0,IF($EB$6=DF12,'Fixation Arrear'!R16,0)) -> 0 | EC12: =IF($DL$4="NO",0,IF($EC$6=DF12,'Fixation Arrear'!R16,0)) -> 0 | ED12: =IF($DL$4="NO",0,IF($ED$6=DF12,'Fixation Arrear'!R16,0)) -> 0 | EE12: =IF($DL$4="NO",0,IF($EE$6=DF12,'Fixation Arrear'!R16,0)) -> 0 | EF12: =IF($DL$4="NO",0,IF($EF$6=DF12,'Fixation Arrear'!R16,0)) -> 0 | EX12: 1 | EY12: =EY11 -> 0 | EZ12: =ROUND(EY12*EX12,0) -> 0
A13: Female | D13: TAX MARGIN | E13: TAX AT MARGIN | F13: SUR RATE | G13: E.Cess | H13: TAXABLE INCOME | I13: TAX RATE APPLY | J13: TAX MARGIN SLAB | K13: TAX SLAB | L13: Surch.Rate | M13: E.Cess | N13: TAX CALCULALTION | P13: =IF($E$3="Male",H10,IF($E$3="Female",H17,IF($E$3="Senior Citizen",H24,H31))) ->  | S13: Fixed | T13: 0 | U13: 0 | V13: =ROUND(SUM('Gross Salary 19-20'!B38:C38)*$T$15,0) -> 0 | W13: =ROUND(SUM('Gross Salary 19-20'!B38:C38)*$U$15,0) -> 0 | X13: ='Gross Salary 19-20'!N38 -> 0 | Y13: =Z13-AE13 -> 0 | Z13: 2021-03-01 | AA13: 1.64 | AB13: =INDEX($AD$40:$AD$72,MATCH(Z13,SALARY_MONTH_da,0)) -> 0.17 | AC13: ='Gross Salary 19-20'!D34 -> 0.16 | AD13: =AC13 -> 0.16 | AE13: =IF('Gross Salary 19-20'!A38="","",'Gross Salary 19-20'!A38) -> 2021-03-01 | AF13: =IF('Gross Salary 19-20'!A38="","",IF(taxtable1819!$DA$4<='Gross Salary 19-20'!A38,"VII","VI")) -> VII | AG13: =IF(AF13="","",IF(AF13="VI",$AC$7,$AC$8)) -> 77900 | AH13: =IF($AO$5="YES",IF($AN$5=AE13,ROUND(AG13*$AQ$5,-2),0)) -> 0 | AI13: =AG13+AH13 -> 77900 | AJ13: ='Gross Salary 19-20'!D31 -> 75387.09677 | AK13: ='Gross Salary 19-20'!D32 -> NO | AL13: =IF(AE13="","",IF(AK13="YES",AJ13,AI13)) -> 77900 | AM13: =IF(AF13="","",IF(AF13="VI",ROUND(AL13*AW13,0),ROUND(AL13*AX13,0))) -> 13243 | AN13: =IF(AF13="","",IF(AF13="VI",ROUND(AL13*AC13,0),ROUND(AL13*AD13,0))) -> 12464 | AO13: =IF(AF13="","",IF($AO$9="YES",IF(AF13="VI",VLOOKUP(AI13,$AB$32:$AD$34,3),VLOOKUP(AI13,$AF$32:$AJ$33,3)))) -> 620 | AP13: 30 | AQ13: =ROUND(AL13*$AQ$6/AP13,0) -> 38950 | AR13: =IF(AF13="VII",ROUND(AQ13*AB13,0),ROUND(AQ13*AA13,0)) -> 6622 | AS13: =IF(AL13="","",IF($AO$6="YES",IF($AN$6=AE13,SUM(AQ13:AR13),0))) -> FALSE | AV13: =IF(AE13="","",IF($AN$6=AE13,IF($AO$6="YES",IF(AF13="VI",ROUND(AL13*$AQ$6/AP13,0)+ROUND(ROUND(AL13*$AQ$6/AP13,0)*AW13,0),ROUND(AL13*$AQ$6/AP13,0)+ROUND(ROUND(AL13*$AQ$6/AP13,0)*AX13,0))))) -> FALSE | AW13: =INDEX($AA$13:$AA$27,MATCH(AE13,Salary_month1718,0)) -> 1.64 | AX13: =INDEX($AB$13:$AB$27,MATCH(AE13,Salary_month1718,0)) -> 0.17 | AZ13: 1.36 | BA13: =AB13 -> 0.17 | BB13: DA rate for SL in VI | BD13: =INDEX($AZ$13:$AZ$27,MATCH($AN$6,$Z$13:$Z$25,0)) -> 1.36 | BE13: =INDEX($AA$13:$AA$27,MATCH($AN$6,Salary_month1718,0)) -> 1.64 | BI13: 2017-01-01 | BK13: Total investment part | BO13: =IF(BO11="YES",BO10+BO12,BO12) -> 0 | BY13: =IF(Emp_list!A11="","",Emp_list!A11) ->  | BZ13: =IF(Emp_list!B11="","",Emp_list!B11) ->  | CA13: =IF(Emp_list!C11="","",Emp_list!C11) ->  | CB13: =IF(Emp_list!D11="","",Emp_list!D11) ->  | CC13: - | CI13: 2017-06-01 | CJ13: =INDEX($CI$8:$CI$16,MATCH(0,COUNTIF($CJ$5:CJ12,$CI$8:$CI$16)+(COUNTIF($CI$8:$CI$16,$CI$8:$CI$16)<>1),0)) -> 2017-06-01 | CK13: 2017-06-01 | CL13: ='Fixation Arrear'!C16 -> NO | CM13: ='Fixation Arrear'!D16 -> 0 | CN13: 69200 | CO13: ='Fixation Arrear'!F16 -> 0 | CP13: 69200 | CQ13: 26670 | CR13: 26670 | CS13: ='Fixation Arrear'!I16 -> 0 | CT13: 26670 | CY13: 1.36 | CZ13: 0 | DA13: 0 | DB13: 0.04 | DC13: 0 | DE13: 7 | DF13: =Statement1819!D64 -> 2021-09-01 | DG13: =IF(DF13="","",'Gross Salary 19-20'!N44) -> 0 | DH13: ='Fixation Arrear'!V17 -> 2019-09-01 | DI13: =IF($DL$4="YES",'Fixation Arrear'!R17,0) -> 0 | DL13: 0 | DM13: 0 | DO13: PPF | DX13: =IF($DL$4="NO",0,INDEX('Fixation Arrear'!$R$11:$R$19,MATCH(DF13,$DX$6:$EF$6,0))) -> 0 | DY13: =IF($DL$4="NO",0,INDEX('Fixation Arrear'!$R$11:$R$19,MATCH(DF13,$DX$6:$EF$6,0))) -> 0 | DZ13: =IF($DL$4="NO",0,IF($DZ$6=DF13,'Fixation Arrear'!R17,0)) -> 0 | EA13: =IF($DL$4="NO",0,IF($EA$6=DF13,'Fixation Arrear'!R17,0)) -> 0 | EB13: =IF($DL$4="NO",0,IF($EB$6=DF13,'Fixation Arrear'!R17,0)) -> 0 | EC13: =IF($DL$4="NO",0,IF($EC$6=DF13,'Fixation Arrear'!R17,0)) -> 0 | ED13: =IF($DL$4="NO",0,IF($ED$6=DF13,'Fixation Arrear'!R17,0)) -> 0 | EE13: =IF($DL$4="NO",0,IF($EE$6=DF13,'Fixation Arrear'!R17,0)) -> 0 | EF13: =IF($DL$4="NO",0,IF($EF$6=DF13,'Fixation Arrear'!R17,0)) -> 0 | EX13: ='Gross Salary 19-20'!M84 -> 1 | EY13: =IF(EX13=EX11,EY11,EY12) -> 0 | EZ13: =IF(EX13=EX11,EZ11,EZ12) -> 0
A14: Not defined | N14: SURCHARGE | P14: =IF($E$3="Male",I10,IF($E$3="Female",I17,IF($E$3="Senior Citizen",I24,I31))) ->  | S14: Central Govtt. | T14: 0.1 | U14: 0.14 | V14: =ROUND(SUM('Gross Salary 19-20'!B39:C39)*$T$15,0) -> 0 | W14: =ROUND(SUM('Gross Salary 19-20'!B39:C39)*$U$15,0) -> 0 | X14: ='Gross Salary 19-20'!N39 -> 0 | Y14: =Z14-AE14 -> 0 | Z14: 2021-04-01 | AA14: =AA13 -> 1.64 | AB14: 0.17 | AC14: ='Gross Salary 19-20'!E34 -> 0.16 | AD14: =AC14 -> 0.16 | AE14: =IF('Gross Salary 19-20'!A39="","",'Gross Salary 19-20'!A39) -> 2021-04-01 | AF14: =IF('Gross Salary 19-20'!A39="","",IF(taxtable1819!$DA$4<='Gross Salary 19-20'!A39,"VII","VI")) -> VII | AG14: 77900 | AH14: 0 | AI14: =IF(AF14="","",IF(AF14="ViI",AI13+AH14,AG14)) -> 77900 | AJ14: ='Gross Salary 19-20'!E31 -> 0 | AK14: ='Gross Salary 19-20'!E32 -> NO | AL14: 77900 | AM14: 13243 | AN14: 12464 | AO14: =IF(AF14="","",IF($AO$9="YES",IF(AF14="VI",VLOOKUP(AL14,$AB$32:$AD$34,3),VLOOKUP(AL14,$AF$32:$AJ$33,3)))) -> 620 | AP14: 30 | AQ14: =ROUND(AL14*$AQ$6/AP14,0) -> 38950 | AR14: =IF(AF14="VII",ROUND(AQ14*AB14,0),ROUND(AQ14*AA14,0)) -> 6622 | AS14: =IF(AL14="","",IF($AO$6="YES",IF($AN$6=AE14,SUM(AQ14:AR14),0))) -> FALSE | AV14: FALSE | AW14: =IF(AE14="","",INDEX($AA$13:$AA$27,MATCH(AE14,Salary_month1718,0))) -> 1.64 | AX14: =IF(AE14="","",INDEX($AB$13:$AB$27,MATCH(AE14,Salary_month1718,0))) -> 0.17 | AZ14: =AZ13 -> 1.36 | BA14: 0.17 | BB14: DA rate for SL in VII | BD14: =INDEX($BA$13:$BA$27,MATCH($AN$6,Salary_month1718,0)) -> 0.28 | BE14: =INDEX($AB$13:$AB$27,MATCH($AN$6,Salary_month1718,0)) -> 0.28 | BI14: 2017-02-01 | BK14: Maxi Limit | BO14: =IF(BO13>50000,50000,BO13) -> 0 | BY14: =IF(Emp_list!A12="","",Emp_list!A12) ->  | BZ14: =IF(Emp_list!B12="","",Emp_list!B12) ->  | CA14: =IF(Emp_list!C12="","",Emp_list!C12) ->  | CB14: =IF(Emp_list!D12="","",Emp_list!D12) ->  | CC14: - | CI14: 2017-07-01 | CJ14: =INDEX($CI$8:$CI$16,MATCH(0,COUNTIF($CJ$5:CJ13,$CI$8:$CI$16)+(COUNTIF($CI$8:$CI$16,$CI$8:$CI$16)<>1),0)) -> 2017-07-01 | CK14: 2017-07-01 | CL14: ='Fixation Arrear'!C17 -> YES | CM14: ='Fixation Arrear'!D17 -> 0 | CN14: 71300 | CO14: ='Fixation Arrear'!F17 -> 0 | CP14: 71300 | CQ14: 27470 | CR14: 27470 | CS14: ='Fixation Arrear'!I17 -> 0 | CT14: 27470 | CY14: 1.39 | CZ14: 0.03 | DA14: 0.03 | DB14: 0.05 | DC14: 0 | DE14: 8 | DF14: =Statement1819!D65 -> 2021-10-01 | DG14: =IF(DF14="","",'Gross Salary 19-20'!N45) -> 0 | DH14: ='Fixation Arrear'!V18 -> 2019-09-01 | DI14: =IF($DL$4="YES",'Fixation Arrear'!R18,0) -> 0 | DL14: 0 | DM14: 0 | DO14: PLI / ULIP | DX14: =IF($DL$4="NO",0,INDEX('Fixation Arrear'!$R$11:$R$19,MATCH(DF14,$DX$6:$EF$6,0))) -> 0 | DY14: =IF($DL$4="NO",0,INDEX('Fixation Arrear'!$R$11:$R$19,MATCH(DF14,$DX$6:$EF$6,0))) -> 0 | DZ14: =IF($DL$4="NO",0,IF($DZ$6=DF14,'Fixation Arrear'!R18,0)) -> 0 | EA14: =IF($DL$4="NO",0,IF($EA$6=DF14,'Fixation Arrear'!R18,0)) -> 0 | EB14: =IF($DL$4="NO",0,IF($EB$6=DF14,'Fixation Arrear'!R18,0)) -> 0 | EC14: =IF($DL$4="NO",0,IF($EC$6=DF14,'Fixation Arrear'!R18,0)) -> 0 | ED14: =IF($DL$4="NO",0,IF($ED$6=DF14,'Fixation Arrear'!R18,0)) -> 0 | EE14: =IF($DL$4="NO",0,IF($EE$6=DF14,'Fixation Arrear'!R18,0)) -> 0 | EF14: =IF($DL$4="NO",0,IF($EF$6=DF14,'Fixation Arrear'!R18,0)) -> 0 | EX14: GTI | EY14: =ROUND(Statement1819!H22*0.1,0) ->  | EZ14: =MIN(EZ13,EY14) -> 
A15: 0 | B15: 18000 | C15: 0 | D15: 0 | E15: 0 | F15: 0 | G15: 0 | H15: =H8 ->  | I15: =VLOOKUP(H15,A15:C19,3) ->  | J15: =INDEX(D15:D19,MATCH(I15,C15:C19,0)) ->  | K15: =INDEX(E15:E19,MATCH(I15,C15:C19,0)) ->  | L15: =IF(H15>H19,VLOOKUP(H15,A15:F19,6),0) ->  | M15: =VLOOKUP(H15,A15:G19,7) ->  | N15: E. CESS | P15: =IF($E$3="Male",J10,IF($E$3="Female",J17,IF($E$3="Senior Citizen",J24,J31))) ->  | S15: ='Gross Salary 19-20'!D9 -> Regular | T15: =IF($T$10="NO",0%,INDEX(T12:T14,MATCH($S$15,$S$12:$S$14,0))) -> 0 | U15: =IF($T$10="NO",0%,INDEX(U12:U14,MATCH($S$15,$S$12:$S$14,0))) -> 0 | V15: =ROUND(SUM('Gross Salary 19-20'!B40:C40)*$T$15,0) -> 0 | W15: =ROUND(SUM('Gross Salary 19-20'!B40:C40)*$U$15,0) -> 0 | X15: ='Gross Salary 19-20'!N40 -> 0 | Y15: 0 | Z15: 2021-05-01 | AA15: 1.64 | AB15: 0.17 | AC15: ='Gross Salary 19-20'!F34 -> 0.16 | AD15: 0.16 | AE15: =IF('Gross Salary 19-20'!A40="","",'Gross Salary 19-20'!A40) -> 2021-05-01 | AF15: =IF('Gross Salary 19-20'!A40="","",IF(taxtable1819!$DA$4<='Gross Salary 19-20'!A40,"VII","VI")) -> VII | AG15: 77900 | AH15: 0 | AI15: 77900 | AJ15: ='Gross Salary 19-20'!F31 -> 0 | AK15: ='Gross Salary 19-20'!F32 -> NO | AL15: 77900 | AM15: 13243 | AN15: 12464 | AO15: 620 | AP15: 30 | AQ15: 38950 | AR15: 6622 | AS15: FALSE | AV15: FALSE | AW15: 1.64 | AX15: 0.17 | AZ15: =AZ14 -> 1.36 | BA15: 0.17 | BB15: App. Pay Scale | BD15: =INDEX($AF$13:$AF$27,MATCH($AN$6,$AE$13:$AE$27,0)) -> VII | BE15: =AO6 -> NO | BI15: 2017-03-01 | BY15: =IF(Emp_list!A13="","",Emp_list!A13) ->  | BZ15: =IF(Emp_list!B13="","",Emp_list!B13) ->  | CA15: =IF(Emp_list!C13="","",Emp_list!C13) ->  | CB15: =IF(Emp_list!D13="","",Emp_list!D13) ->  | CC15: - | CI15: 2017-08-01 | CJ15: =INDEX($CI$8:$CI$16,MATCH(0,COUNTIF($CJ$5:CJ14,$CI$8:$CI$16)+(COUNTIF($CI$8:$CI$16,$CI$8:$CI$16)<>1),0)) -> 2017-08-01 | CK15: 2017-08-01 | CL15: ='Fixation Arrear'!C18 -> NO | CM15: ='Fixation Arrear'!D18 -> 0 | CN15: 71300 | CO15: ='Fixation Arrear'!F18 -> 0 | CP15: 71300 | CQ15: 27470 | CR15: 27470 | CS15: ='Fixation Arrear'!I18 -> 0 | CT15: 27470 | CY15: 1.39 | CZ15: 0.03 | DA15: 0.03 | DB15: 0.05 | DC15: 0 | DE15: 9 | DF15: =Statement1819!F62 -> 2021-11-01 | DG15: =IF(DF15="","",'Gross Salary 19-20'!N46) -> 0 | DH15: ='Fixation Arrear'!V19 -> 2019-09-01 | DI15: =IF($DL$4="YES",'Fixation Arrear'!R19,0) -> 0 | DL15: 0 | DM15: 0 | DO15: IDBI/ICCI | DX15: =IF($DL$4="NO",0,INDEX('Fixation Arrear'!$R$11:$R$19,MATCH(DF15,$DX$6:$EF$6,0))) -> 0 | DY15: =IF($DL$4="NO",0,INDEX('Fixation Arrear'!$R$11:$R$19,MATCH(DF15,$DX$6:$EF$6,0))) -> 0 | DZ15: =IF($DL$4="NO",0,IF($DZ$6=DF15,'Fixation Arrear'!R19,0)) -> 0 | EA15: =IF($DL$4="NO",0,IF($EA$6=DF15,'Fixation Arrear'!R19,0)) -> 0 | EB15: =IF($DL$4="NO",0,IF($EB$6=DF15,'Fixation Arrear'!R19,0)) -> 0 | EC15: =IF($DL$4="NO",0,IF($EC$6=DF15,'Fixation Arrear'!R19,0)) -> 0 | ED15: =IF($DL$4="NO",0,IF($ED$6=DF15,'Fixation Arrear'!R19,0)) -> 0 | EE15: =IF($DL$4="NO",0,IF($EE$6=DF15,'Fixation Arrear'!R19,0)) -> 0 | EF15: =IF($DL$4="NO",0,IF($EF$6=DF15,'Fixation Arrear'!R19,0)) -> 0 | EX15: 80CCG | EZ15: =EZ18 -> 
A16: =B15+1 -> 18001 | B16: 25000 | C16: 0.25 | D16: =B15 -> 18000 | E16: =(B16-B15)*C16 -> 1750 | F16: 0 | G16: 0 | H16: TAX CALCULALTION | I16: SURCHARGE | J16: E. CESS | K16: TOTAL TAX DUE | N16: TOTAL TAX DUE | P16: =IF($E$3="Male",K10,IF($E$3="Female",K17,IF($E$3="Senior Citizen",K24,K31))) ->  | V16: =ROUND(SUM('Gross Salary 19-20'!B41:C41)*$T$15,0) -> 0 | W16: =ROUND(SUM('Gross Salary 19-20'!B41:C41)*$U$15,0) -> 0 | X16: ='Gross Salary 19-20'!N41 -> 0 | Y16: 0 | Z16: 2021-06-01 | AA16: 1.64 | AB16: 0.17 | AC16: ='Gross Salary 19-20'!G34 -> 0.16 | AD16: 0.16 | AE16: =IF('Gross Salary 19-20'!A41="","",'Gross Salary 19-20'!A41) -> 2021-06-01 | AF16: =IF('Gross Salary 19-20'!A41="","",IF(taxtable1819!$DA$4<='Gross Salary 19-20'!A41,"VII","VI")) -> VII | AG16: 77900 | AH16: 0 | AI16: 77900 | AJ16: ='Gross Salary 19-20'!G31 -> 0 | AK16: ='Gross Salary 19-20'!G32 -> NO | AL16: 77900 | AM16: 13243 | AN16: 12464 | AO16: 620 | AP16: 30 | AQ16: 38950 | AR16: 6622 | AS16: FALSE | AV16: FALSE | AW16: 1.64 | AX16: 0.17 | AZ16: 1.36 | BA16: 0.17 | BB16: Paid Srr. Leave Salary | BE16: =INDEX($AL$13:$AL$27,MATCH($AN$6,$AE$13:$AE$27,0)) -> 80200 | BI16: 2017-04-01 | BK16: Employee contribution in NPS -u/S80ccd(1) | BP16: 53708 | BY16: =IF(Emp_list!A14="","",Emp_list!A14) ->  | BZ16: =IF(Emp_list!B14="","",Emp_list!B14) ->  | CA16: =IF(Emp_list!C14="","",Emp_list!C14) ->  | CB16: =IF(Emp_list!D14="","",Emp_list!D14) ->  | CC16: - | CI16: 2017-09-01 | CJ16: =INDEX($CI$8:$CI$16,MATCH(0,COUNTIF($CJ$5:CJ15,$CI$8:$CI$16)+(COUNTIF($CI$8:$CI$16,$CI$8:$CI$16)<>1),0)) -> 2017-09-01 | CK16: 2017-09-01 | CL16: ='Fixation Arrear'!C19 -> NO | CM16: ='Fixation Arrear'!D19 -> 0 | CN16: 71300 | CO16: ='Fixation Arrear'!F19 -> 0 | CP16: 71300 | CQ16: 27470 | CR16: 27470 | CS16: ='Fixation Arrear'!I19 -> 0 | CT16: 27470 | CY16: 1.39 | CZ16: 0 | DA16: 0 | DB16: 0.05 | DC16: 0 | DE16: 10 | DF16: =Statement1819!F63 -> 2021-12-01 | DG16: =IF(DF16="","",'Gross Salary 19-20'!N47) -> 0 | DL16: 0 | DM16: 0 | DO16: BANK /POST OFFICE FD | DX16: =IF($DL$4="NO",0,INDEX('Fixation Arrear'!$R$11:$R$19,MATCH(DF16,$DX$6:$EF$6,0))) -> 0 | DY16: =IF($DL$4="NO",0,INDEX('Fixation Arrear'!$R$11:$R$19,MATCH(DF16,$DX$6:$EF$6,0))) -> 0 | DZ16: =IF($DL$4="NO",0,IF($DZ$6=DF16,'Fixation Arrear'!R20,0)) -> 0 | EA16: =IF($DL$4="NO",0,IF($EA$6=DF16,'Fixation Arrear'!R20,0)) -> 0 | EB16: =IF($DL$4="NO",0,IF($EB$6=DF16,'Fixation Arrear'!R20,0)) -> 0 | EC16: =IF($DL$4="NO",0,IF($EC$6=DF16,'Fixation Arrear'!R20,0)) -> 0 | ED16: =IF($DL$4="NO",0,IF($ED$6=DF16,'Fixation Arrear'!R20,0)) -> 0 | EE16: =IF($DL$4="NO",0,IF($EE$6=DF16,'Fixation Arrear'!R20,0)) -> 0 | EF16: =IF($DL$4="NO",0,IF($EF$6=DF16,'Fixation Arrear'!R20,0)) -> 0 | EX16: GTI | EY16: =Statement1819!H22 ->  | EZ16: =IF(EY16>1200000,0,EZ17) -> 
A17: =B16+1 -> 25001 | B17: 50000 | C17: 0.3 | D17: =B16 -> 25000 | E17: =E16+(B17-B16)*C17 -> 9250 | F17: 0 | G17: 0 | H17: =IF(I15=C19,E18+ROUND((H15-J15),0)*I15,IF(I15=C18,E17+ROUND((H15-J15)*I15,0),IF(I15=C17,E16+ROUND((H15-J15)*I15,0),IF(I15=C16,E15+ROUND((H15-J15)*I15,0),E14+ROUND((H15-J15)*I15,0))))) ->  | I17: =MIN(K19:L19) ->  | J17: =ROUND(SUM(H17+I17)*M15,0) ->  | K17: =SUM(H17:J17) ->  | N17: Age Defined | P17: =IF($E$3="Male",A7,IF($E$3="Female",A14,IF($E$3="Senior Citizen",A21,A28))) -> Not defined | V17: =ROUND(SUM('Gross Salary 19-20'!B42:C42)*$T$15,0) -> 0 | W17: =ROUND(SUM('Gross Salary 19-20'!B42:C42)*$U$15,0) -> 0 | X17: ='Gross Salary 19-20'!N42 -> 0 | Y17: 0 | Z17: 2021-07-01 | AA17: 1.64 | AB17: 0.28 | AC17: ='Gross Salary 19-20'!H34 -> 0.16 | AD17: 0.16 | AE17: =IF('Gross Salary 19-20'!A42="","",'Gross Salary 19-20'!A42) -> 2021-07-01 | AF17: =IF('Gross Salary 19-20'!A42="","",IF(taxtable1819!$DA$4<='Gross Salary 19-20'!A42,"VII","VI")) -> VII | AG17: 77900 | AH17: 2300 | AI17: 80200 | AJ17: ='Gross Salary 19-20'!H31 -> 0 | AK17: ='Gross Salary 19-20'!H32 -> NO | AL17: 80200 | AM17: 22456 | AN17: 12832 | AO17: 620 | AP17: 30 | AQ17: 40100 | AR17: 11228 | AS17: =IF(AL17="","",IF($AO$6="YES",IF($AN$6=AE17,SUM(AQ17:AR17),0))) -> FALSE | AV17: FALSE | AW17: 1.64 | AX17: 0.28 | AZ17: 1.36 | BA17: 0.28 | BB17: DA arrear on Srr. Leave | BE17: =IF($AO$6="NO",0,ROUND(BE16/2*(BD14-BE14),0)) -> 0 | BI17: 2017-05-01 | BK17: Other Investment u/s 80C | BP17: 117256 | BY17: =IF(Emp_list!A15="","",Emp_list!A15) ->  | BZ17: =IF(Emp_list!B15="","",Emp_list!B15) ->  | CA17: =IF(Emp_list!C15="","",Emp_list!C15) ->  | CB17: =IF(Emp_list!D15="","",Emp_list!D15) ->  | CC17: - | DE17: 11 | DF17: =Statement1819!F64 -> 2022-01-01 | DG17: =IF(DF17="","",'Gross Salary 19-20'!N48) -> 0 | DL17: 0 | DM17: 0 | DO17: Equity link saving bond | DX17: =IF($DL$4="NO",0,INDEX('Fixation Arrear'!$R$11:$R$19,MATCH(DF17,$DX$6:$EF$6,0))) -> 0 | DY17: =IF($DL$4="NO",0,INDEX('Fixation Arrear'!$R$11:$R$19,MATCH(DF17,$DX$6:$EF$6,0))) -> 0 | DZ17: =IF($DL$4="NO",0,IF($DZ$6=DF17,'Fixation Arrear'!R21,0)) -> 0 | EA17: =IF($DL$4="NO",0,IF($EA$6=DF17,'Fixation Arrear'!R21,0)) -> 0 | EB17: =IF($DL$4="NO",0,IF($EB$6=DF17,'Fixation Arrear'!R21,0)) -> 0 | EC17: =IF($DL$4="NO",0,IF($EC$6=DF17,'Fixation Arrear'!R21,0)) -> 0 | ED17: =IF($DL$4="NO",0,IF($ED$6=DF17,'Fixation Arrear'!R21,0)) -> 0 | EE17: =IF($DL$4="NO",0,IF($EE$6=DF17,'Fixation Arrear'!R21,0)) -> 0 | EF17: =IF($DL$4="NO",0,IF($EF$6=DF17,'Fixation Arrear'!R21,0)) -> 0 | EX17: INVEST. | EY17: ='Gross Salary 19-20'!N85 -> 0 | EZ17: =IF(EY17>50000,ROUND(50000*0.5,0),ROUND(EY17*0.5,0)) -> 0
A18: =B17+1 -> 50001 | B18: 100000 | C18: 0.4 | D18: =B17 -> 50000 | E18: =E17+(B18-B17)*C18 -> 29250 | F18: 0.05 | G18: 0 | H18: Surcharge limit | I18: Add.Tax Income | J18: Add. Tax | K18: Diff | L18: Sur. Amt | M18: M.R. | N18: Marginal Releif | P18: =IF($E$3="Male",M12,IF($E$3="Female",M19,IF($E$3="Senior Citizen",M26,M33))) ->  | V18: =ROUND(SUM('Gross Salary 19-20'!B43:C43)*$T$15,0) -> 0 | W18: =ROUND(SUM('Gross Salary 19-20'!B43:C43)*$U$15,0) -> 0 | X18: ='Gross Salary 19-20'!N43 -> 0 | Y18: 0 | Z18: 2021-08-01 | AA18: 1.64 | AB18: 0.28 | AC18: ='Gross Salary 19-20'!I34 -> 0.18 | AD18: 0.18 | AE18: =IF('Gross Salary 19-20'!A43="","",'Gross Salary 19-20'!A43) -> 2021-08-01 | AF18: =IF('Gross Salary 19-20'!A43="","",IF(taxtable1819!$DA$4<='Gross Salary 19-20'!A43,"VII","VI")) -> VII | AG18: 77900 | AH18: 0 | AI18: 80200 | AJ18: ='Gross Salary 19-20'!I31 -> 0 | AK18: ='Gross Salary 19-20'!I32 -> NO | AL18: 80200 | AM18: 22456 | AN18: 14436 | AO18: 620 | AP18: 30 | AQ18: 40100 | AR18: 11228 | AS18: FALSE | AV18: FALSE | AW18: 1.64 | AX18: 0.28 | AZ18: 1.36 | BA18: 0.28 | BB18: =CONCATENATE("***Gross Salary include the DA arrar on Surrender leave Salary"," ","Rs. ",BE17) -> ***Gross Salary include the DA arrar on Surrender leave Salary Rs. 0 | BI18: 2017-06-01 | BK18: Total Investment (subject to max 150000 )-u/s 80 CCE | BP18: =IF(SUM(BP16:BP17)>150000,150000,SUM(BP16:BP17)) -> 150000 | BY18: =IF(Emp_list!A16="","",Emp_list!A16) ->  | BZ18: =IF(Emp_list!B16="","",Emp_list!B16) ->  | CA18: =IF(Emp_list!C16="","",Emp_list!C16) ->  | CB18: =IF(Emp_list!D16="","",Emp_list!D16) ->  | CC18: - | DE18: 12 | DF18: =Statement1819!F65 -> 2022-02-01 | DG18: =IF(DF18="","",'Gross Salary 19-20'!N49) -> 0 | DL18: 0 | DM18: 0 | DO18: Sukanya Samriddhi Account Deposit Scheme | DX18: =IF($DL$4="NO",0,INDEX('Fixation Arrear'!$R$11:$R$19,MATCH(DF18,$DX$6:$EF$6,0))) -> 0 | DY18: =IF($DL$4="NO",0,INDEX('Fixation Arrear'!$R$11:$R$19,MATCH(DF18,$DX$6:$EF$6,0))) -> 0 | DZ18: =IF($DL$4="NO",0,IF($DZ$6=DF18,'Fixation Arrear'!R22,0)) -> 0 | EA18: =IF($DL$4="NO",0,IF($EA$6=DF18,'Fixation Arrear'!R22,0)) -> 0 | EB18: =IF($DL$4="NO",0,IF($EB$6=DF18,'Fixation Arrear'!R22,0)) -> 0 | EC18: =IF($DL$4="NO",0,IF($EC$6=DF18,'Fixation Arrear'!R22,0)) -> 0 | ED18: =IF($DL$4="NO",0,IF($ED$6=DF18,'Fixation Arrear'!R22,0)) -> 0 | EE18: =IF($DL$4="NO",0,IF($EE$6=DF18,'Fixation Arrear'!R22,0)) -> 0 | EF18: =IF($DL$4="NO",0,IF($EF$6=DF18,'Fixation Arrear'!R22,0)) -> 0 | EX18: ALLOWABLE LIMIT | EZ18: =MIN(EZ16:EZ17) -> 
A19: =B18+1 -> 100001 | C19: 0.5 | D19: 100000 | E19: =IF(J16=0,0,E18) -> 29250 | F19: 0.05 | G19: 0 | H19: =H12 -> 50000 | I19: =IF(H15>H19,H15-H19,0) ->  | J19: =IF(I19>0,ROUND(I19*I15,0),0) ->  | K19: =I19-J19 ->  | L19: =IF(H17>0,ROUND(H17*L15,0),0) ->  | M19: =IF(K19>L19,0,L19-K19) ->  | N19: Tax Due | P19: =IF($E$3="Male",K10,IF($E$3="Female",K17,IF($E$3="Senior Citizen",K24,K31))) ->  | V19: =ROUND(SUM('Gross Salary 19-20'!B44:C44)*$T$15,0) -> 0 | W19: =ROUND(SUM('Gross Salary 19-20'!B44:C44)*$U$15,0) -> 0 | X19: ='Gross Salary 19-20'!N44 -> 0 | Y19: 0 | Z19: 2021-09-01 | AA19: 1.64 | AB19: 0.28 | AC19: ='Gross Salary 19-20'!J34 -> 0.18 | AD19: 0.18 | AE19: =IF('Gross Salary 19-20'!A44="","",'Gross Salary 19-20'!A44) -> 2021-09-01 | AF19: =IF('Gross Salary 19-20'!A44="","",IF(taxtable1819!$DA$4<='Gross Salary 19-20'!A44,"VII","VI")) -> VII | AG19: 77900 | AH19: 0 | AI19: 80200 | AJ19: ='Gross Salary 19-20'!J31 -> 0 | AK19: ='Gross Salary 19-20'!J32 -> NO | AL19: 80200 | AM19: 22456 | AN19: 14436 | AO19: 620 | AP19: 30 | AQ19: 40100 | AR19: 11228 | AS19: FALSE | AV19: FALSE | AW19: 1.64 | AX19: 0.28 | AZ19: 1.39 | BA19: 0.28 | BI19: 2017-07-01 | BK19: NPS contribution remaining part | BP19: =(BP16+BP17-BP18) -> 20964 | BQ19: =IF(BP19>0,BP19,0) -> 20964 | BY19: =IF(Emp_list!A17="","",Emp_list!A17) ->  | BZ19: =IF(Emp_list!B17="","",Emp_list!B17) ->  | CA19: =IF(Emp_list!C17="","",Emp_list!C17) ->  | CB19: =IF(Emp_list!D17="","",Emp_list!D17) ->  | CC19: - | CU19: MONTH SEPRATE FOR HRA | DF19: Total | DG19: =SUM(DG7:DG18) -> 0 | DI19: =SUM(DI7:DI18) -> 0 | DK19: =SUM(DK7:DK18) -> 0 | DL19: =SUM(DL7:DL18) -> 0 | DM19: 0 | DO19: Any other ded. u/s 80C | DR19: =SUM(DR7:DR18) -> 0
A20: Senior Citizen | D20: TAX MARGIN | E20: TAX AT MARGIN | F20: SUR RATE | G20: E.Cess | H20: TAXABLE INCOME | I20: TAX RATE APPLY | J20: TAX MARGIN SLAB | K20: TAX SLAB | L20: Surch.Rate | M20: E.Cess | V20: =ROUND(SUM('Gross Salary 19-20'!B45:C45)*$T$15,0) -> 0 | W20: =ROUND(SUM('Gross Salary 19-20'!B45:C45)*$U$15,0) -> 0 | X20: ='Gross Salary 19-20'!N45 -> 0 | Y20: 0 | Z20: 2021-10-01 | AA20: =AA19 -> 1.64 | AB20: 0.31 | AC20: ='Gross Salary 19-20'!K34 -> 0.18 | AD20: 0.18 | AE20: =IF('Gross Salary 19-20'!A45="","",'Gross Salary 19-20'!A45) -> 2021-10-01 | AF20: =IF('Gross Salary 19-20'!A45="","",IF(taxtable1819!$DA$4<='Gross Salary 19-20'!A45,"VII","VI")) -> VII | AG20: 77900 | AH20: 0 | AI20: 80200 | AJ20: ='Gross Salary 19-20'!K31 -> 0 | AK20: ='Gross Salary 19-20'!K32 -> NO | AL20: 80200 | AM20: 24862 | AN20: 14436 | AO20: 620 | AP20: 30 | AQ20: 40100 | AR20: 12431 | AS20: FALSE | AV20: FALSE | AW20: 1.64 | AX20: 0.31 | AZ20: 1.39 | BA20: 0.31 | BI20: 2017-08-01 | BK20: Additional contribution in 80CCD(1) | BP20: 0 | BY20: =IF(Emp_list!A18="","",Emp_list!A18) ->  | BZ20: =IF(Emp_list!B18="","",Emp_list!B18) ->  | CA20: =IF(Emp_list!C18="","",Emp_list!C18) ->  | CB20: =IF(Emp_list!D18="","",Emp_list!D18) ->  | CC20: - | CJ20: Fin._Year | CK20: Asst._Year | CL20: Month Name | CN20: Selected data for Tax Calculator | CU20: Fin. Year | CV20: Month | EX20: TREATMENT OF SECTION 80TTB | FB20: 2017-18 | FC20: 2018-19
A21: Not defined | V21: =ROUND(SUM('Gross Salary 19-20'!B46:C46)*$T$15,0) -> 0 | W21: =ROUND(SUM('Gross Salary 19-20'!B46:C46)*$U$15,0) -> 0 | X21: ='Gross Salary 19-20'!N46 -> 0 | Y21: 0 | Z21: 2021-11-01 | AA21: 1.64 | AB21: 0.31 | AC21: ='Gross Salary 19-20'!L34 -> 0.18 | AD21: 0.18 | AE21: =IF('Gross Salary 19-20'!A46="","",'Gross Salary 19-20'!A46) -> 2021-11-01 | AF21: =IF('Gross Salary 19-20'!A46="","",IF(taxtable1819!$DA$4<='Gross Salary 19-20'!A46,"VII","VI")) -> VII | AG21: 77900 | AH21: 0 | AI21: 80200 | AJ21: ='Gross Salary 19-20'!L31 -> 0 | AK21: ='Gross Salary 19-20'!L32 -> NO | AL21: 80200 | AM21: 24862 | AN21: 14436 | AO21: 620 | AP21: 30 | AQ21: 40100 | AR21: 12431 | AS21: FALSE | AV21: FALSE | AW21: 1.64 | AX21: 0.31 | AZ21: 1.39 | BA21: 0.31 | BI21: 2017-09-01 | BK21: Total investment part | BP21: =SUM(BP19:BP20) -> 20964 | BY21: =IF(Emp_list!A19="","",Emp_list!A19) ->  | BZ21: =IF(Emp_list!B19="","",Emp_list!B19) ->  | CA21: =IF(Emp_list!C19="","",Emp_list!C19) ->  | CB21: =IF(Emp_list!D19="","",Emp_list!D19) ->  | CC21: - | CI21: =CJ21 -> 1985-86 | CJ21: 1985-86 | CK21: 1986-87 | CL21: 1985-03-01 | CM21: 1986-03-31 | CN21: Fin. Year | CO21: Month | CP21: Year | CV21: =VLOOKUP($N$53,$C$53:$E$90,3) -> 00:00:00 | EX21: SELECTED F.Y. | EZ21: =Statement1819!F1 -> 2018-19 | FB21: 10000 | FC21: 50000
A22: 0 | B22: 18000 | C22: 0 | D22: 0 | E22: 0 | F22: 0 | G22: 0 | H22: =H8 ->  | I22: =VLOOKUP(H22,A22:C26,3) ->  | J22: =INDEX(D22:D26,MATCH(I22,C22:C26,0)) ->  | K22: =INDEX(E22:E26,MATCH(I22,C22:C26,0)) ->  | L22: =IF(H22>H26,VLOOKUP(H22,A22:F26,6),0) ->  | M22: =VLOOKUP(H22,A22:G26,7) ->  | V22: =ROUND(SUM('Gross Salary 19-20'!B47:C47)*$T$15,0) -> 0 | W22: =ROUND(SUM('Gross Salary 19-20'!B47:C47)*$U$15,0) -> 0 | X22: ='Gross Salary 19-20'!N47 -> 0 | Y22: 0 | Z22: 2021-12-01 | AA22: 1.64 | AB22: 0.31 | AC22: ='Gross Salary 19-20'!M34 -> 0.18 | AD22: 0.18 | AE22: =IF('Gross Salary 19-20'!A47="","",'Gross Salary 19-20'!A47) -> 2021-12-01 | AF22: =IF('Gross Salary 19-20'!A47="","",IF(taxtable1819!$DA$4<='Gross Salary 19-20'!A47,"VII","VI")) -> VII | AG22: 77900 | AH22: 0 | AI22: 80200 | AJ22: ='Gross Salary 19-20'!M31 -> 0 | AK22: ='Gross Salary 19-20'!M32 -> NO | AL22: 80200 | AM22: 24862 | AN22: 14436 | AO22: 620 | AP22: 30 | AQ22: 40100 | AR22: 12431 | AS22: FALSE | AV22: FALSE | AW22: 1.64 | AX22: 0.31 | AZ22: 1.39 | BA22: 0.31 | BI22: 2017-10-01 | BK22: Swithover to saving in 80CCD(1) | BP22: =IF(BP21>50000,50000,BP21) -> 20964 | BY22: =IF(Emp_list!A20="","",Emp_list!A20) ->  | BZ22: =IF(Emp_list!B20="","",Emp_list!B20) ->  | CA22: =IF(Emp_list!C20="","",Emp_list!C20) ->  | CB22: =IF(Emp_list!D20="","",Emp_list!D20) ->  | CC22: - | CI22: =CJ22 -> 1986-87 | CJ22: 1986-87 | CK22: 1987-88 | CL22: =DATE(YEAR(CL21),MONTH(CL21)+12,DAY(CL21)) -> 1986-03-01 | CM22: =DATE(YEAR(CM21),MONTH(CM21)+12,DAY(CM21)) -> 1987-03-31 | CN22: ='Gross Salary 19-20'!D7 -> 2021-22 | CO22: =VLOOKUP($CN$22,$CJ$21:$CL$59,3) -> 2021-03-01 | CP22: =YEAR(CO22) -> 2021 | EX22: TAX CATEGORY | EZ22: ='Gross Salary 19-20'!D10 -> MALE | FB22: ='Gross Salary 19-20'!N87 -> 0 | FC22: =FB22 -> 0
A23: =B22+1 -> 18001 | B23: 25000 | C23: 0.25 | D23: =B22 -> 18000 | E23: =(B23-B22)*C23 -> 1750 | F23: 0 | G23: 0 | H23: TAX CALCULALTION | I23: SURCHARGE | J23: E. CESS | K23: TOTAL TAX DUE | V23: =ROUND(SUM('Gross Salary 19-20'!B48:C48)*$T$15,0) -> 0 | W23: =ROUND(SUM('Gross Salary 19-20'!B48:C48)*$U$15,0) -> 0 | X23: ='Gross Salary 19-20'!N48 -> 0 | Y23: 0 | Z23: 2022-01-01 | AA23: 1.64 | AB23: 0.31 | AC23: ='Gross Salary 19-20'!N34 -> 0.18 | AD23: 0.18 | AE23: =IF('Gross Salary 19-20'!A48="","",'Gross Salary 19-20'!A48) -> 2022-01-01 | AF23: =IF('Gross Salary 19-20'!A48="","",IF(taxtable1819!$DA$4<='Gross Salary 19-20'!A48,"VII","VI")) -> VII | AG23: 77900 | AH23: 0 | AI23: 80200 | AJ23: ='Gross Salary 19-20'!N31 -> 0 | AK23: ='Gross Salary 19-20'!N32 -> NO | AL23: 80200 | AM23: 24862 | AN23: 14436 | AO23: 620 | AP23: 30 | AQ23: 40100 | AR23: 12431 | AS23: FALSE | AV23: FALSE | AW23: 1.64 | AX23: 0.31 | AZ23: 1.39 | BA23: 0.31 | BI23: 2017-11-01 | BY23: =IF(Emp_list!A21="","",Emp_list!A21) ->  | BZ23: =IF(Emp_list!B21="","",Emp_list!B21) ->  | CA23: =IF(Emp_list!C21="","",Emp_list!C21) ->  | CB23: =IF(Emp_list!D21="","",Emp_list!D21) ->  | CC23: - | CI23: 1987-88 | CJ23: 1987-88 | CK23: 1988-89 | CL23: =DATE(YEAR(CL22),MONTH(CL22)+12,DAY(CL22)) -> 1987-03-01 | CM23: 1988-03-31 | CN23: Day | CO23: Space | CP23: Month | CQ23: Space | CR23: Year | CS23: Final Result | CU23: MONTH SEPRATE FOR Gross Salary | EX23: FINAL RESULT | EZ23: =IF($N$264="SENIOR CITIZEN",IF($N$263=$P$262,FB23,IF($N$263=FC20,FC23,0))) -> FALSE | FA23: =IF(EZ23=FALSE,0,EZ23) -> 0 | FB23: =MIN(FB21:FB22) -> 0 | FC23: =MIN(FC21:FC22) -> 0
A24: =B23+1 -> 25001 | B24: 50000 | C24: 0.3 | D24: =B23 -> 25000 | E24: =E23+(B24-B23)*C24 -> 9250 | F24: 0 | G24: 0 | H24: =IF(I22=C26,E25+ROUND((H22-J22),0)*I22,IF(I22=C25,E24+ROUND((H22-J22)*I22,0),IF(I22=C24,E23+ROUND((H22-J22)*I22,0),IF(I22=C23,E22+ROUND((H22-J22)*I22,0),E21+ROUND((H22-J22)*I22,0))))) ->  | I24: =MIN(K26:L26) ->  | J24: =ROUND(SUM(H24+I24)*M22,0) ->  | K24: =SUM(H24:J24) ->  | V24: =ROUND(SUM('Gross Salary 19-20'!B49:C49)*$T$15,0) -> 0 | W24: =ROUND(SUM('Gross Salary 19-20'!B49:C49)*$U$15,0) -> 0 | X24: ='Gross Salary 19-20'!N49 -> 0 | Y24: 0 | Z24: 2022-02-01 | AA24: 1.64 | AB24: 0.31 | AC24: ='Gross Salary 19-20'!O34 -> 0.18 | AD24: =AC24 -> 0.18 | AE24: =IF('Gross Salary 19-20'!A49="","",'Gross Salary 19-20'!A49) -> 2022-02-01 | AF24: =IF('Gross Salary 19-20'!A49="","",IF(taxtable1819!$DA$4<='Gross Salary 19-20'!A49,"VII","VI")) -> VII | AG24: 77900 | AH24: =IF($AO$5="YES",IF($AN$5=AE24,ROUND(AG24*$AQ$5,-2),0)) -> 0 | AI24: =IF(AF24="","",IF(AF24="ViI",AI23+AH24,AG24)) -> 80200 | AJ24: ='Gross Salary 19-20'!O31 -> 0 | AK24: ='Gross Salary 19-20'!O32 -> NO | AL24: 80200 | AM24: 24862 | AN24: 14436 | AO24: 620 | AP24: 30 | AQ24: 40100 | AR24: 12431 | AS24: FALSE | AV24: FALSE | AW24: 1.64 | AX24: 0.31 | AZ24: 1.39 | BA24: 0.31 | BI24: 2017-12-01 | BY24: =IF(Emp_list!A22="","",Emp_list!A22) ->  | BZ24: =IF(Emp_list!B22="","",Emp_list!B22) ->  | CA24: =IF(Emp_list!C22="","",Emp_list!C22) ->  | CB24: =IF(Emp_list!D22="","",Emp_list!D22) ->  | CC24: - | CI24: 1988-89 | CJ24: 1988-89 | CK24: 1989-90 | CL24: 1988-03-01 | CM24: 1989-03-31 | CN24: 15 | CO24: - | CP24: Jun | CQ24: - | CR24: =RIGHT($I$54,4) ->  | CS24: =CONCATENATE(CN24,CO24,CP24,CQ24,CR24) ->  | CU24: Fin. Year | CV24: Month | EX24: TREATMENT OF SECTION 80TTA | FB24: 2017-18 | FC24: 2018-19
A25: =B24+1 -> 50001 | B25: 100000 | C25: 0.4 | D25: =B24 -> 50000 | E25: =E24+(B25-B24)*C25 -> 29250 | F25: 0.05 | G25: 0 | H25: Surcharge limit | I25: Add.Tax Income | J25: Add. Tax | K25: Diff | L25: Sur. Amt | M25: M.R. | V25: ='Gross Salary 19-20'!F51 -> 0 | W25: =V25 -> 0 | X25: ='Gross Salary 19-20'!N50 -> 0 | Y25: 0 | AJ25: =TRANSPOSE('Gross Salary 19-20'!#REF!) ->  | AK25: ='Gross Salary 19-20'!P32 -> 0 | AS25: =MAX(AS13:AS24) -> 0 | AT25: =IF(AF25="","",IF($AO$9="YES",IF(AF25="VI",VLOOKUP(AL25,$AB$32:$AD$34,3),VLOOKUP(AL25,$AF$32:$AJ$33,3)))) ->  | AV25: =IF(AE25="","",IF($AN$6=AE25,IF($AO$6="YES",IF(AF25="VI",ROUND(AL25*$AQ$6/AU25,0)+ROUND(ROUND(AL25*$AQ$6/AU25,0)*AW25,0),ROUND(AL25*$AQ$6/AU25,0)+ROUND(ROUND(AL25*$AQ$6/AU25,0)*AX25,0))))) ->  | AZ25: 1.39 | BA25: 0 | BI25: 2018-01-01 | BY25: =IF(Emp_list!A23="","",Emp_list!A23) ->  | BZ25: =IF(Emp_list!B23="","",Emp_list!B23) ->  | CA25: =IF(Emp_list!C23="","",Emp_list!C23) ->  | CB25: =IF(Emp_list!D23="","",Emp_list!D23) ->  | CC25: - | CI25: 1989-90 | CJ25: 1989-90 | CK25: 1990-91 | CL25: 1989-03-01 | CM25: 1990-03-31 | CN25: 15 | CO25: - | CP25: Sep | CQ25: - | CR25: =RIGHT($I$54,4) ->  | CS25: =CONCATENATE(CN25,CO25,CP25,CQ25,CR25) ->  | CV25: =VLOOKUP($N$57,$C$53:$E$90,3) -> 00:00:00 | EX25: SELECTED F.Y. | EZ25: =EZ21 -> 2018-19 | FB25: 10000 | FC25: 10000
A26: =B25+1 -> 100001 | C26: 0.5 | D26: 100000 | E26: =IF(J23=0,0,E25) -> 29250 | F26: 0.05 | G26: 0 | H26: =H19 -> 50000 | I26: =IF(H22>H26,H22-H26,0) ->  | J26: =IF(I26>0,ROUND(I26*I22,0),0) ->  | K26: =I26-J26 ->  | L26: =IF(H24>0,ROUND(H24*L22,0),0) ->  | M26: =IF(K26>L26,0,L26-K26) ->  | V26: ='Gross Salary 19-20'!F52 -> 0 | W26: =V26 -> 0 | X26: ='Gross Salary 19-20'!N51 -> 0 | AJ26: =TRANSPOSE('Gross Salary 19-20'!#REF!) ->  | AK26: ='Gross Salary 19-20'!Q32 -> 64223 | AS26: =IF(AF26="","",IF(AF26="VI",ROUND(AL26*AC26,0),ROUND(AL26*AD26,0))) ->  | AT26: =IF(AF26="","",IF($AO$9="YES",IF(AF26="VI",VLOOKUP(AL26,$AB$32:$AD$34,3),VLOOKUP(AL26,$AF$32:$AJ$33,3)))) ->  | AV26: =IF(AE26="","",IF($AN$6=AE26,IF($AO$6="YES",IF(AF26="VI",ROUND(AL26*$AQ$6/AU26,0)+ROUND(ROUND(AL26*$AQ$6/AU26,0)*AW26,0),ROUND(AL26*$AQ$6/AU26,0)+ROUND(ROUND(AL26*$AQ$6/AU26,0)*AX26,0))))) ->  | AZ26: 1.39 | BA26: 0 | BI26: 2018-02-01 | BY26: =IF(Emp_list!A24="","",Emp_list!A24) ->  | BZ26: =IF(Emp_list!B24="","",Emp_list!B24) ->  | CA26: =IF(Emp_list!C24="","",Emp_list!C24) ->  | CB26: =IF(Emp_list!D24="","",Emp_list!D24) ->  | CC26: - | CI26: 1990-91 | CJ26: 1990-91 | CK26: 1991-92 | CL26: 1990-03-01 | CM26: 1991-03-31 | CN26: 15 | CO26: - | CP26: Dec | CQ26: - | CR26: =RIGHT($I$54,4) ->  | CS26: =CONCATENATE(CN26,CO26,CP26,CQ26,CR26) ->  | EX26: TAX CATEGORY | EZ26: =EZ22 -> MALE | FB26: ='Gross Salary 19-20'!N86 -> 0 | FC26: =FB26 -> 0
A27: Very Senior Citizen | D27: TAX MARGIN | E27: TAX AT MARGIN | F27: SUR RATE | G27: E.Cess | H27: TAXABLE INCOME | I27: TAX RATE APPLY | J27: TAX MARGIN SLAB | K27: TAX SLAB | L27: Surch.Rate | M27: E.Cess | V27: ='Gross Salary 19-20'!F53 -> 0 | W27: 0 | X27: ='Gross Salary 19-20'!N52 -> 0 | AJ27: =TRANSPOSE('Gross Salary 19-20'!#REF!) ->  | AK27: ='Gross Salary 19-20'!S32 -> 64223 | AS27: =IF(AF27="","",IF(AF27="VI",ROUND(AL27*AC27,0),ROUND(AL27*AD27,0))) ->  | AT27: =IF(AF27="","",IF($AO$9="YES",IF(AF27="VI",VLOOKUP(AL27,$AB$32:$AD$34,3),VLOOKUP(AL27,$AF$32:$AJ$33,3)))) ->  | AV27: =IF(AE27="","",IF($AN$6=AE27,IF($AO$6="YES",IF(AF27="VI",ROUND(AL27*$AQ$6/AU27,0)+ROUND(ROUND(AL27*$AQ$6/AU27,0)*AW27,0),ROUND(AL27*$AQ$6/AU27,0)+ROUND(ROUND(AL27*$AQ$6/AU27,0)*AX27,0))))) ->  | AZ27: 1.39 | BA27: 0 | BI27: 2018-03-01 | BY27: =IF(Emp_list!A25="","",Emp_list!A25) ->  | BZ27: =IF(Emp_list!B25="","",Emp_list!B25) ->  | CA27: =IF(Emp_list!C25="","",Emp_list!C25) ->  | CB27: =IF(Emp_list!D25="","",Emp_list!D25) ->  | CC27: - | CI27: 1991-92 | CJ27: 1991-92 | CK27: 1992-93 | CL27: 1991-03-01 | CM27: 1992-03-31 | CN27: 15 | CO27: - | CP27: Mar | CQ27: - | CR27: =RIGHT($I$54,4)+1 ->  | CS27: =CONCATENATE(CN27,CO27,CP27,CQ27,CR27) ->  | EX27: FINAL RESULT | EZ27: =IF(EZ26="SENIOR CITIZEN",IF(EZ25=FB24,FB27,IF(EZ25=FC24,FC27,0))) -> FALSE | FA27: =IF(EZ25=FB24,FB32,FC32) -> 0 | FB27: =MIN(FB25:FB26) -> 0 | FC27: =IF(EZ26="SENIOR CITIZEN",0,MIN(FC25:FC26)) -> 0
A28: Not defined | V28: ='Gross Salary 19-20'!F54 -> 0 | W28: 0 | X28: ='Gross Salary 19-20'!N53 -> 0 | AV28: =MAX(AV13:AV27) -> 0 | BY28: =IF(Emp_list!A26="","",Emp_list!A26) ->  | BZ28: =IF(Emp_list!B26="","",Emp_list!B26) ->  | CA28: =IF(Emp_list!C26="","",Emp_list!C26) ->  | CB28: =IF(Emp_list!D26="","",Emp_list!D26) ->  | CC28: - | CI28: 1992-93 | CJ28: 1992-93 | CK28: 1993-94 | CL28: 1992-03-01 | CM28: 1993-03-31 | CN28: 31 | CO28: - | CP28: Mar | CQ28: - | CR28: =RIGHT($I$54,4)+1 ->  | CS28: =CONCATENATE(CN28,CO28,CP28,CQ28,CR28) ->  | EZ28: MALE | FB28: =FB27 -> 0 | FC28: =FC27 -> 0
A29: 0 | B29: 18000 | C29: 0 | D29: 0 | E29: 0 | F29: 0 | G29: 0 | H29: =H8 ->  | I29: =VLOOKUP(H29,A29:C33,3) ->  | J29: =INDEX(D29:D33,MATCH(I29,C29:C33,0)) ->  | K29: =INDEX(E29:E33,MATCH(I29,C29:C33,0)) ->  | L29: =IF(H29>H33,VLOOKUP(H29,A29:F33,6),0) ->  | M29: =VLOOKUP(H29,A29:G33,7) ->  | V29: ='Gross Salary 19-20'!F55 -> 0 | W29: 0 | X29: ='Gross Salary 19-20'!N54 -> 0 | AX29: F.Y. | BY29: =IF(Emp_list!A27="","",Emp_list!A27) ->  | BZ29: =IF(Emp_list!B27="","",Emp_list!B27) ->  | CA29: =IF(Emp_list!C27="","",Emp_list!C27) ->  | CB29: =IF(Emp_list!D27="","",Emp_list!D27) ->  | CC29: - | CI29: 1993-94 | CJ29: 1993-94 | CK29: 1994-95 | CL29: 1993-03-01 | CM29: 1994-03-31 | EZ29: FEMALE | FB29: =FB28 -> 0 | FC29: 0
A30: =B29+1 -> 18001 | B30: 25000 | C30: 0.25 | D30: =B29 -> 18000 | E30: =(B30-B29)*C30 -> 1750 | F30: 0 | G30: 0 | H30: TAX CALCULALTION | I30: SURCHARGE | J30: E. CESS | K30: TOTAL TAX DUE | V30: =SUM(V13:V29) -> 0 | W30: =SUM(W13:W29) -> 0 | X30: ='Gross Salary 19-20'!N55 -> 0 | Y30: ='Gross Salary 19-20'!O55 -> 2021-07-01 | AB30: CCA CONDITION | AD30: ='Gross Salary 19-20'!$H$10 -> YES | AO30: NPS RATE-EMPLOYEE CATEGORY | BB30: ='Gross Salary 19-20'!H11 -> NO | BY30: =IF(Emp_list!A28="","",Emp_list!A28) ->  | BZ30: =IF(Emp_list!B28="","",Emp_list!B28) ->  | CA30: =IF(Emp_list!C28="","",Emp_list!C28) ->  | CB30: =IF(Emp_list!D28="","",Emp_list!D28) ->  | CC30: - | CI30: 1994-95 | CJ30: 1994-95 | CK30: 1995-96 | CL30: 1994-03-01 | CM30: 1995-03-31 | CN30: Selected data for Statement | EZ30: SENIOR CITIZEN | FB30: 0 | FC30: 0
A31: =B30+1 -> 25001 | B31: 50000 | C31: 0.3 | D31: =B30 -> 25000 | E31: =E30+(B31-B30)*C31 -> 9250 | F31: 0 | G31: 0 | H31: =IF(I29=C33,E32+ROUND((H29-J29),0)*I29,IF(I29=C32,E31+ROUND((H29-J29)*I29,0),IF(I29=C31,E30+ROUND((H29-J29)*I29,0),IF(I29=C30,E29+ROUND((H29-J29)*I29,0),E28+ROUND((H29-J29)*I29,0))))) ->  | I31: =MIN(K33:L33) ->  | J31: =ROUND(SUM(H31+I31)*M29,0) ->  | K31: =SUM(H31:J31) ->  | X31: =SUM(X13:X30) -> 0 | AB31: CCA Table in VI Pay Scale | AF31: CCA Table in VII Pay Scale | AO31: Central Govtt. | AP31: 0.14 | AQ31: ='Gross Salary 19-20'!D9 -> Regular | AR31: =INDEX($AP$31:$AP$33,MATCH(AQ31,$AO$31:$AO$33,0)) -> 0.1 | BD31: REGULAR | BE31: NPS SHARE | BF31: TOTAL | BY31: =IF(Emp_list!A29="","",Emp_list!A29) ->  | BZ31: =IF(Emp_list!B29="","",Emp_list!B29) ->  | CA31: =IF(Emp_list!C29="","",Emp_list!C29) ->  | CB31: =IF(Emp_list!D29="","",Emp_list!D29) ->  | CC31: - | CI31: 1995-96 | CJ31: 1995-96 | CK31: 1996-97 | CL31: 1995-03-01 | CM31: 1996-03-31 | CN31: Fin. Year | CO31: Month | CP31: Year | EZ31: VERY SENIOR CITIZEN | FB31: 0 | FC31: 0
A32: =B31+1 -> 50001 | B32: 100000 | C32: 0.4 | D32: =B31 -> 50000 | E32: =E31+(B32-B31)*C32 -> 29250 | F32: 0.05 | G32: 0 | H32: Surcharge limit | I32: Add.Tax Income | J32: Add. Tax | K32: Diff | L32: Sur. Amt | M32: M.R. | X32: =CONCATENATE("**Income tax amount include amt."," ","Rs.",X30," ","tax deducted from arrear in the month of"," ",TEXT(Y30,"mm/yyyy")," ") -> **Income tax amount include amt. Rs.0 tax deducted from arrear in the month of 07/2021 | AB32: 0 | AC32: 7000 | AD32: 70 | AF32: 0 | AG32: 23100 | AH32: 320 | AO32: Regular | AP32: 0.1 | AQ32: CONT | AR32: ='Gross Salary 19-20'!H11 -> NO | AX32: Gross Salary | AY32: ='Gross Salary 19-20'!$D$7 -> 2021-22 | BA32: =CONCATENATE(AX32," ","(",AY32,")") -> Gross Salary (2021-22) | BD32: =SUM('Gross Salary 19-20'!H38:H49)-SUM('Gross Salary 19-20'!F38:F49) -> 1369030 | BE32: =IF($BB$30="YES",SUM('Gross Salary 19-20'!F38:F49),0) -> 0 | BF32: =BD32+BE32 -> 1369030 | BY32: =IF(Emp_list!A30="","",Emp_list!A30) ->  | BZ32: =IF(Emp_list!B30="","",Emp_list!B30) ->  | CA32: =IF(Emp_list!C30="","",Emp_list!C30) ->  | CB32: =IF(Emp_list!D30="","",Emp_list!D30) ->  | CC32: - | CI32: 1996-97 | CJ32: 1996-97 | CK32: 1997-98 | CL32: 1996-03-01 | CM32: 1997-03-31 | CN32: ='Gross Salary 19-20'!$D$7 -> 2021-22 | CO32: =VLOOKUP(CN32,$CJ$21:$CL$59,3) -> 2021-03-01 | CP32: =YEAR(CO32) -> 2021 | EZ32: =EZ26 -> MALE | FB32: =INDEX($P$270:$P$273,MATCH($N$274,$N$270:$N$273,0)) ->  | FC32: =INDEX(FC28:FC31,MATCH(EZ32,EZ28:EZ31,0)) -> 0
A33: =B32+1 -> 100001 | C33: 0.5 | D33: 100000 | E33: =IF(J30=0,0,E32) -> 29250 | F33: 0.05 | G33: 0 | H33: =H26 -> 50000 | I33: =IF(H29>H33,H29-H33,0) ->  | J33: =IF(I33>0,ROUND(I33*I29,0),0) ->  | K33: =I33-J33 ->  | L33: =IF(H31>0,ROUND(H31*L29,0),0) ->  | M33: =IF(K33>L33,0,L33-K33) ->  | AB33: 7001 | AC33: 9000 | AD33: 130 | AF33: 23101 | AH33: 620 | AO33: Fixed | AP33: 0 | AQ33: Final | AR33: =IF(AR32="YES",AR31,0) -> 0 | AX33: FIXATION ARREAR | BD33: ='Gross Salary 19-20'!H50 -> 0 | BE33: =IF($BB$30="NO",0,'Gross Salary 19-20'!F50) -> 0 | BF33: =BD33+BE33 -> 0 | BY33: =IF(Emp_list!A31="","",Emp_list!A31) ->  | BZ33: =IF(Emp_list!B31="","",Emp_list!B31) ->  | CA33: =IF(Emp_list!C31="","",Emp_list!C31) ->  | CB33: =IF(Emp_list!D31="","",Emp_list!D31) ->  | CC33: - | CI33: 1997-98 | CJ33: 1997-98 | CK33: 1998-99 | CL33: 1997-03-01 | CM33: 1998-03-31 | CN33: Day | CO33: Space | CP33: Month | CQ33: Space | CR33: Year | CS33: Final Result
C34: =D5 -> 1986 | D34: =C34+1 -> 1987 | F34: 1986-87 | AB34: 9001 | AD34: 240 | AK34: Arrear amt | AR34: Bonus due | AS34: Condt | AT34: GPF | AU34: CASH | AV34: Emy cate | AX34: SURRENDER SALARY | AZ34: ='Gross Salary 19-20'!$A$53 -> Surrender Leave Salary (07/2021) Including S.Leave (DA arr.) Rs. 0 | BD34: ='Gross Salary 19-20'!H53-BD39 -> 0 | BE34: =IF($BB$30="NO",0,'Gross Salary 19-20'!F53) -> 0 | BF34: =BD34+BE34 -> 0 | BY34: =IF(Emp_list!A32="","",Emp_list!A32) ->  | BZ34: =IF(Emp_list!B32="","",Emp_list!B32) ->  | CA34: =IF(Emp_list!C32="","",Emp_list!C32) ->  | CB34: =IF(Emp_list!D32="","",Emp_list!D32) ->  | CC34: - | CI34: 1998-99 | CJ34: 1998-99 | CK34: 1999-00 | CL34: 1998-03-01 | CM34: 1999-03-31 | CN34: 15 | CO34: - | CP34: Jun | CQ34: - | CR34: =RIGHT($I$64,4) ->  | CS34: =CONCATENATE(CN34,CO34,CP34,CQ34,CR34) -> 15-Jun-
A35: Male | D35: TAX MARGIN | E35: TAX AT MARGIN | F35: SUR RATE | G35: E.Cess | H35: TAXABLE INCOME | I35: TAX RATE APPLY | J35: TAX MARGIN SLAB | K35: TAX SLAB | L35: Surch.Rate | M35: E.Cess | N35: Tax Range | AF35: Month Code | AH35: DA Arr due | AI35: Payment | AJ35: Process | AK35: GPF | AL35: NPS | AR35: ='Gross Salary 19-20'!J12 -> 6774 | AS35: ='Gross Salary 19-20'!O12 -> NO | AU35: =IF('Gross Salary 19-20'!L12>100,0,'Gross Salary 19-20'!L12) -> 0.5 | AV35: ='Gross Salary 19-20'!H11 -> NO | AX35: BONUS | BD35: ='Gross Salary 19-20'!H54 -> 0 | BE35: =IF($BB$30="NO",0,'Gross Salary 19-20'!F54) -> 0 | BF35: 0 | BY35: =IF(Emp_list!A33="","",Emp_list!A33) ->  | BZ35: =IF(Emp_list!B33="","",Emp_list!B33) ->  | CA35: =IF(Emp_list!C33="","",Emp_list!C33) ->  | CB35: =IF(Emp_list!D33="","",Emp_list!D33) ->  | CC35: - | CI35: 1999-00 | CJ35: 1999-00 | CK35: 2000-01 | CL35: 1999-03-01 | CM35: 2000-03-31 | CN35: 15 | CO35: - | CP35: Sep | CQ35: - | CR35: =RIGHT($I$64,4) ->  | CS35: =CONCATENATE(CN35,CO35,CP35,CQ35,CR35) -> 15-Sep-
A36: Not defined | N36: F.Year | O36: =C34 -> 1986 | P36: =D34 -> 1987 | AB36: DA Arrear Data | AC36: Ist | AD36: ='Gross Salary 19-20'!$C$16 -> 2021-07-01 | AE36: ='Gross Salary 19-20'!$E$16 -> 2021-10-01 | AF36: =INDEX($AC$40:$AC$71,MATCH(AD36,SALARY_MONTH_da,0)) -> 25 | AG36: 28 | AH36: =1+AG36-AF36 -> 4 | AI36: ='Gross Salary 19-20'!$G$16 -> GPF | AJ36: ='Gross Salary 19-20'!$I$16 -> NO | AK36: =IF(AJ36="YES",SUMPRODUCT((($AD$36<=SALARY_MONTH_da)*($AE$36>=SALARY_MONTH_da)*$AK$40:$AK$72)),0) -> 0 | AL36: =IF(AJ36="YES",SUMPRODUCT((($AD$36<=SALARY_MONTH_da)*($AE$36>=SALARY_MONTH_da)*$AL$40:$AL$72)),0) -> 0 | AT36: =IF(AS35="YES",ROUND(AR35*(1-AU35),0),0) -> 0 | AU36: =IF(AS35="NO",0,AR35-AT36) -> 0 | AX36: DA ARREAR (A) | AZ36: ='Gross Salary 19-20'!$C$16 -> 2021-07-01 | BA36: ='Gross Salary 19-20'!$E$16 -> 2021-10-01 | BB36: =CONCATENATE("D.A. Arrear"," ( ",TEXT(AZ36,"mm/yy")," ","to"," ",TEXT(BA36,"mm/yy"),")") -> D.A. Arrear ( 07/21 to 10/21) | BD36: =AK36 -> 0 | BE36: =AN44 -> 0 | BF36: 0 | BY36: =IF(Emp_list!A34="","",Emp_list!A34) ->  | BZ36: =IF(Emp_list!B34="","",Emp_list!B34) ->  | CA36: =IF(Emp_list!C34="","",Emp_list!C34) ->  | CB36: =IF(Emp_list!D34="","",Emp_list!D34) ->  | CC36: - | CI36: 2000-01 | CJ36: 2000-01 | CK36: 2001-02 | CL36: 2000-03-01 | CM36: 2001-03-31 | CN36: 15 | CO36: - | CP36: Dec | CQ36: - | CR36: =RIGHT($I$64,4) ->  | CS36: =CONCATENATE(CN36,CO36,CP36,CQ36,CR36) -> 15-Dec-
A37: 0 | B37: 18000 | C37: 0 | D37: 0 | E37: 0 | F37: 0 | G37: 0 | H37: =$E$4 ->  | I37: =VLOOKUP(H37,A37:C42,3) ->  | J37: =INDEX(D37:D42,MATCH(I37,C37:C42,0)) ->  | K37: =INDEX(E37:E42,MATCH(I37,C37:C42,0)) ->  | L37: =IF(H37>H42,VLOOKUP(H37,A37:F42,6),0) ->  | M37: =VLOOKUP(H37,A37:G42,7) ->  | N37: 0 | O37: =IF($E$3="Male",B37,IF($E$3="Female",B45,IF($E$3="Senior Citizen",B52,B59))) -> 18000 | P37: 0 | AC37: Iind | AD37: ='Gross Salary 19-20'!$C$17 -> 2019-07-01 | AE37: ='Gross Salary 19-20'!$E$17 -> 2020-02-01 | AF37: 1 | AG37: 8 | AH37: =1+AG37-AF37 -> 8 | AI37: ='Gross Salary 19-20'!$G$17 -> GPF | AJ37: ='Gross Salary 19-20'!$I$17 -> NO | AK37: =IF(AJ37="YES",SUMPRODUCT((($AD$37<=SALARY_MONTH_da)*($AE$37>=SALARY_MONTH_da)*$AK$40:$AK$72)),0) -> 0 | AR37: TEXT MESSAGE | AX37: DA ARREAR (B) | AZ37: ='Gross Salary 19-20'!$C$17 -> 2019-07-01 | BA37: ='Gross Salary 19-20'!$E$17 -> 2020-02-01 | BB37: =CONCATENATE("D.A. Arrear"," ( ",TEXT(AZ37,"mm/yy")," ","to"," ",TEXT(BA37,"mm/yy"),")") -> D.A. Arrear ( 07/19 to 02/20) | BD37: =AK37 -> 0 | BE37: =AP44 -> 0 | BF37: 0 | BY37: =IF(Emp_list!A35="","",Emp_list!A35) ->  | BZ37: =IF(Emp_list!B35="","",Emp_list!B35) ->  | CA37: =IF(Emp_list!C35="","",Emp_list!C35) ->  | CB37: =IF(Emp_list!D35="","",Emp_list!D35) ->  | CC37: - | CI37: 2001-02 | CJ37: 2001-02 | CK37: 2002-03 | CL37: 2001-03-01 | CM37: 2002-03-31 | CN37: 15 | CO37: - | CP37: Mar | CQ37: - | CR37: =RIGHT($I$64,4)+1 ->  | CS37: =CONCATENATE(CN37,CO37,CP37,CQ37,CR37) -> 
AB38: HRA ARR | AD38: ='Gross Salary 19-20'!$L$15 -> 2021-07-01 | AE38: ='Gross Salary 19-20'!$L$16 -> 2021-07-01 | AF38: 25 | AG38: 25 | AJ38: ='Gross Salary 19-20'!$M$16 -> YES | AK38: =IF(AJ38="YES",SUMPRODUCT((($AD$38<=SALARY_MONTH_da)*($AE$38>=SALARY_MONTH_da)*$AJ$40:$AJ$72)),0) -> 1604 | AQ38: GPF emly | AR38: =CONCATENATE("(","Bonus : Cash in Rs.",,AU36," ","and adjusted in GPF amt in Rs.",,AT36,")") -> (Bonus : Cash in Rs.0 and adjusted in GPF amt in Rs.0) | AX38: House Rent Allowance Arrear | AZ38: ='Gross Salary 19-20'!L15 -> 2021-07-01 | BA38: ='Gross Salary 19-20'!L16 -> 2021-07-01 | BB38: =CONCATENATE(AX38," ( ",TEXT(AZ38,"mm/yy")," ","to"," ",TEXT(BA38,"mm/yy"),")") -> House Rent Allowance Arrear ( 07/21 to 07/21) | BD38: ='Gross Salary 19-20'!N16 -> 1604 | BE38: 0 | BF38: 1604 | CI38: 2002-03 | CJ38: 2002-03 | CK38: 2003-04 | CL38: 2002-03-01 | CM38: 2003-03-31 | CN38: 31 | CO38: - | CP38: Mar | CQ38: - | CR38: =RIGHT($I$64,4)+1 ->  | CS38: =CONCATENATE(CN38,CO38,CP38,CQ38,CR38) -> 
A39: =B37+1 -> 18001 | B39: 25000 | C39: 0.25 | D39: =B37 -> 18000 | E39: =(B39-B37)*C39 -> 1750 | F39: 0 | G39: 0 | H39: TAX CALCULALTION | I39: SURCHARGE | J39: E. CESS | K39: TOTAL TAX DUE | N39: =O37+1 -> 18001 | O39: =IF($E$3="Male",B39,IF($E$3="Female",B46,IF($E$3="Senior Citizen",B53,B83))) -> 25000 | P39: 0.25 | AB39: SALARY_MONTH_da | AC39: Month Code | AD39: New D.A. Rate | AE39: Old D.A. Rate | AF39: HRA Rate | AH39: Salary | AJ39: HRA ARR AMT | AK39: D.A. Arrear amt | AL39: NPS AMT | AM39: Ist DA arrear | AO39: IIND DA arrear | AQ39: NPS emply | AR39: =CONCATENATE("(","Bonus: Cash in Rs.",,AU36," ","and adjusted in 'GPF-2004' amt in Rs.",,AT36,")") -> (Bonus: Cash in Rs.0 and adjusted in 'GPF-2004' amt in Rs.0) | AX39: S. LEAVE DA ARR.(2019-20) | BD39: =AJ87 -> 0 | BE39: 0 | BF39: 0 | BY39: =IF(Emp_list!A36="","",Emp_list!A36) ->  | BZ39: =IF(Emp_list!B36="","",Emp_list!B36) ->  | CA39: =IF(Emp_list!C36="","",Emp_list!C36) ->  | CB39: =IF(Emp_list!D36="","",Emp_list!D36) ->  | CC39: - | CI39: 2003-04 | CJ39: 2003-04 | CK39: 2004-05 | CL39: =DATE(YEAR(CL38),MONTH(CL38)+12,DAY(CL38)) -> 2003-03-01 | CM39: 2004-03-31
A40: =B39+1 -> 25001 | B40: 50000 | C40: 0.3 | D40: =B39 -> 25000 | E40: =E39+(B40-B39)*C40 -> 9250 | F40: 0 | G40: 0 | H40: =IF(I37=C42,E41+ROUND((H37-J37),0)*I37,IF(I37=C41,E40+ROUND((H37-J37)*I37,0),IF(I37=C40,E39+ROUND((H37-J37)*I37,0),IF(I37=C39,E37+ROUND((H37-J37)*I37,0),E36+ROUND((H37-J37)*I37,0))))) ->  | I40: =MIN(K42:L42) ->  | J40: =ROUND(SUM(H40+I40)*M37,0) ->  | K40: =SUM(H40:J40) ->  | N40: =O39+1 -> 25001 | O40: 50000 | P40: 0.3 | AB40: 2019-07-01 | AC40: 1 | AD40: 0.17 | AE40: 0.12 | AF40: =INDEX('Gross Salary 19-20'!$D$34:$O$34,MATCH(taxtable1819!AB40,'Gross Salary 19-20'!$D$29:$O$29,0)) ->  | AG40: =IFERROR(AF40,$AF$75) -> 0.16 | AH40: =AH41 -> 77900 | AI40: =IFERROR(AH40,$AH$75) -> 77900 | AJ40: =ROUND(AI40*$AF$77,0) -> 1558 | AK40: =IF(AB40="",0,ROUND(AI40*(AD40-AE40),0)) -> 3895 | AL40: =ROUND(AK40*$AR$33,0) -> 0 | AM40: GPF adjt | AN40: Cash pay | AO40: GPF adjt | AP40: Cash pay | AQ40: Final | AR40: =IF(AV35="NO",AR38,AR39) -> (Bonus : Cash in Rs.0 and adjusted in GPF amt in Rs.0) | AX40: OTHER ARREAR | BD40: ='Gross Salary 19-20'!H55 -> 0 | BE40: ='Gross Salary 19-20'!F55 -> 0 | BF40: =BD40+BE40 -> 0 | BH40: ='Gross Salary 19-20'!H56 -> 1370634 | BY40: =IF(Emp_list!A37="","",Emp_list!A37) ->  | BZ40: =IF(Emp_list!B37="","",Emp_list!B37) ->  | CA40: =IF(Emp_list!C37="","",Emp_list!C37) ->  | CB40: =IF(Emp_list!D37="","",Emp_list!D37) ->  | CC40: - | CI40: 2004-05 | CJ40: 2004-05 | CK40: 2005-06 | CL40: 2004-03-01 | CM40: 2005-03-31 | CN40: Selected data for from no 16
A41: =B40+1 -> 50001 | B41: 100000 | C41: 0.4 | D41: =B40 -> 50000 | E41: =E40+(B41-B40)*C41 -> 29250 | F41: 0.05 | G41: 0 | H41: Surcharge limit | I41: Add.Tax Income | J41: Add. Tax | K41: Diff | L41: Sur. Amt | M41: M.R. | N41: =O40+1 -> 50001 | O41: 100000 | P41: 0.4 | AB41: 2019-08-01 | AC41: 2 | AD41: 0.17 | AE41: 0.12 | AF41: =INDEX('Gross Salary 19-20'!$D$34:$O$34,MATCH(taxtable1819!AB41,'Gross Salary 19-20'!$D$29:$O$29,0)) ->  | AG41: 0.16 | AH41: 77900 | AI41: 77900 | AJ41: 1558 | AK41: 3895 | AL41: =ROUND(AK41*$AR$33,0) -> 0 | AM41: =IF($AJ$36="YES",IF($AI$36="GPF",$AK$36,0)) -> FALSE | AN41: =IF($AJ$36="YES",IF($AI$36="Cash",$AL$36,0)) -> FALSE | AO41: =IF($AJ$37="YES",IF($AI$37="GPF",$AK$37,0)) -> FALSE | AP41: =IF($AJ$37="YES",IF($AI$37="Cash",ROUND($AK$37*10%,0),0)) -> FALSE | AQ41: AMT TRANSFER/ADJUSTED | AT41: GPF | AU41: GPF-2004 | BF41: =SUM(BF32:BF40) -> 1370634 | BY41: =IF(Emp_list!A38="","",Emp_list!A38) ->  | BZ41: =IF(Emp_list!B38="","",Emp_list!B38) ->  | CA41: =IF(Emp_list!C38="","",Emp_list!C38) ->  | CB41: =IF(Emp_list!D38="","",Emp_list!D38) ->  | CC41: - | CI41: 2005-06 | CJ41: 2005-06 | CK41: 2006-07 | CL41: 2005-03-01 | CM41: 2006-03-31 | CN41: Fin. Year | CO41: Asst. Year | CP41: From | CQ41: To
A42: =B41+1 -> 100001 | C42: 0.5 | D42: 100000 | E42: =IF(J39=0,0,E41) -> 29250 | F42: 0.05 | G42: 0 | H42: 50000 | I42: =IF(H37>H42,H37-H42,0) ->  | J42: =IF(I42>0,ROUND(I42*I37,0),0) ->  | K42: =I42-J42 ->  | L42: =IF(H40>0,ROUND(H40*L37,0),0) ->  | M42: =IF(K42>L42,0,L42-K42) ->  | N42: =O41+1 -> 100001 | O42: 0 | P42: 0.5 | AB42: 2019-09-01 | AC42: 3 | AD42: 0.17 | AE42: 0.12 | AF42: =INDEX('Gross Salary 19-20'!$D$34:$O$34,MATCH(taxtable1819!AB42,'Gross Salary 19-20'!$D$29:$O$29,0)) ->  | AG42: 0.16 | AH42: 77900 | AI42: 77900 | AJ42: 1558 | AK42: 3895 | AL42: 0 | AM42: =IF(AM41=FALSE,0,AM41) -> 0 | AN42: =IF(AN41=FALSE,0,AN41) -> 0 | AO42: =IF(AO41=FALSE,0,AO41) -> 0 | AP42: =IF(AP41=FALSE,0,AP41) -> 0 | AT42: =IF($AV$35="YES",0,AT36) -> 0 | AU42: =IF($AV$35="YES",AT36,0) -> 0 | BY42: =IF(Emp_list!A39="","",Emp_list!A39) ->  | BZ42: =IF(Emp_list!B39="","",Emp_list!B39) ->  | CA42: =IF(Emp_list!C39="","",Emp_list!C39) ->  | CB42: =IF(Emp_list!D39="","",Emp_list!D39) ->  | CC42: - | CI42: 2006-07 | CJ42: 2006-07 | CK42: 2007-08 | CL42: 2006-03-01 | CM42: 2007-03-31 | CN42: =INDEX($C$53:$C$90,MATCH($H$74,$D$53:$D$90,0)) -> 0 | CP42: =INDEX($E$53:$E$90,MATCH($H$74,$D$53:$D$90,0)) -> 00:00:00 | CQ42: =INDEX($F$53:$F$90,MATCH($H$74,$D$53:$D$90,0)) -> 00:00:00
A43: Female | D43: TAX MARGIN | E43: TAX AT MARGIN | F43: SUR RATE | G43: E.Cess | H43: TAXABLE INCOME | I43: TAX RATE APPLY | J43: TAX MARGIN SLAB | K43: TAX SLAB | L43: Surch.Rate | M43: E.Cess | N43: TAX CALCULALTION | P43: =IF($E$3="Male",H40,IF($E$3="Female",H47,IF($E$3="Senior Citizen",H54,H84))) ->  | AB43: 2019-10-01 | AC43: 4 | AD43: 0.17 | AE43: 0.12 | AF43: =INDEX('Gross Salary 19-20'!$D$34:$O$34,MATCH(taxtable1819!AB43,'Gross Salary 19-20'!$D$29:$O$29,0)) ->  | AG43: 0.16 | AH43: 77900 | AI43: 77900 | AJ43: 1558 | AK43: 3895 | AL43: 0 | AM43: Type of employee | AO43: ='Gross Salary 19-20'!$D$9 -> Regular | AQ43: DA ARREAR AMT | AS43: ='Gross Salary 19-20'!H52-'Gross Salary 19-20'!F52-'Gross Salary 19-20'!F52 -> 0 | AT43: 0 | AU43: =IF(AV35="YES",AS43,0) -> 0 | BY43: =IF(Emp_list!A40="","",Emp_list!A40) ->  | BZ43: =IF(Emp_list!B40="","",Emp_list!B40) ->  | CA43: =IF(Emp_list!C40="","",Emp_list!C40) ->  | CB43: =IF(Emp_list!D40="","",Emp_list!D40) ->  | CC43: - | CI43: 2007-08 | CJ43: 2007-08 | CK43: 2008-09 | CL43: 2007-03-01 | CM43: 2008-03-31
A44: Not defined | N44: SURCHARGE | P44: =IF($E$3="Male",I40,IF($E$3="Female",I47,IF($E$3="Senior Citizen",I54,I84))) ->  | AB44: 2019-11-01 | AC44: 5 | AD44: 0.17 | AE44: 0.12 | AF44: =INDEX('Gross Salary 19-20'!$D$34:$O$34,MATCH(taxtable1819!AB44,'Gross Salary 19-20'!$D$29:$O$29,0)) ->  | AG44: 0.16 | AH44: 77900 | AI44: 77900 | AJ44: 1558 | AK44: 3895 | AL44: 0 | AM44: =IF($AO$43="Fixed",0,AM42) -> 0 | AN44: =IF($AO$43="Fixed",0,AN42) -> 0 | AO44: 0 | AP44: 0 | BY44: =IF(Emp_list!A41="","",Emp_list!A41) ->  | BZ44: =IF(Emp_list!B41="","",Emp_list!B41) ->  | CA44: =IF(Emp_list!C41="","",Emp_list!C41) ->  | CB44: =IF(Emp_list!D41="","",Emp_list!D41) ->  | CC44: - | CI44: 2008-09 | CJ44: 2008-09 | CK44: 2009-10 | CL44: 2008-03-01 | CM44: 2009-03-31 | CN44: Selected data for DDO data
A45: 0 | B45: 18000 | C45: 0 | D45: 0 | E45: 0 | F45: 0 | G45: 0 | H45: =H37 ->  | I45: =VLOOKUP(H45,A45:C49,3) ->  | J45: =INDEX(D45:D49,MATCH(I45,C45:C49,0)) ->  | K45: =INDEX(E45:E49,MATCH(I45,C45:C49,0)) ->  | L45: =IF(H45>H49,VLOOKUP(H45,A45:F49,6),0) ->  | M45: =VLOOKUP(H45,A45:G49,7) ->  | N45: E. CESS | P45: =IF($E$3="Male",J40,IF($E$3="Female",J47,IF($E$3="Senior Citizen",J54,J84))) ->  | AB45: 2019-12-01 | AC45: 6 | AD45: 0.17 | AE45: 0.12 | AF45: =INDEX('Gross Salary 19-20'!$D$34:$O$34,MATCH(taxtable1819!AB45,'Gross Salary 19-20'!$D$29:$O$29,0)) ->  | AG45: 0.16 | AH45: 77900 | AI45: 77900 | AJ45: 1558 | AK45: 3895 | AL45: 0 | AM45: NPS Category | AO45: ='Gross Salary 19-20'!$H$11 -> NO | BY45: =IF(Emp_list!A42="","",Emp_list!A42) ->  | BZ45: =IF(Emp_list!B42="","",Emp_list!B42) ->  | CA45: =IF(Emp_list!C42="","",Emp_list!C42) ->  | CB45: =IF(Emp_list!D42="","",Emp_list!D42) ->  | CC45: - | CI45: 2009-10 | CJ45: 2009-10 | CK45: 2010-11 | CL45: 2009-03-01 | CM45: 2010-03-31 | CN45: Fin. Year | CO45: Month | CP45: Year
A46: =B45+1 -> 18001 | B46: 25000 | C46: 0.25 | D46: =B45 -> 18000 | E46: =(B46-B45)*C46 -> 1750 | F46: 0 | G46: 0 | H46: TAX CALCULALTION | I46: SURCHARGE | J46: E. CESS | K46: TOTAL TAX DUE | N46: TOTAL TAX DUE | P46: =IF($E$3="Male",K40,IF($E$3="Female",K47,IF($E$3="Senior Citizen",K54,K84))) ->  | AB46: 2020-01-01 | AC46: 7 | AD46: 0.17 | AE46: 0.12 | AF46: =INDEX('Gross Salary 19-20'!$D$34:$O$34,MATCH(taxtable1819!AB46,'Gross Salary 19-20'!$D$29:$O$29,0)) ->  | AG46: 0.16 | AH46: 77900 | AI46: 77900 | AJ46: 1558 | AK46: 3895 | AL46: 0 | AM46: Text message for Ist DA arrear | AX46: 12390 | BY46: =IF(Emp_list!A43="","",Emp_list!A43) ->  | BZ46: =IF(Emp_list!B43="","",Emp_list!B43) ->  | CA46: =IF(Emp_list!C43="","",Emp_list!C43) ->  | CB46: =IF(Emp_list!D43="","",Emp_list!D43) ->  | CC46: - | CI46: 2010-11 | CJ46: 2010-11 | CK46: 2011-12 | CL46: 2010-03-01 | CM46: 2011-03-31 | CO46: =VLOOKUP($G$78,$C$53:$E$90,3) -> 00:00:00 | CP46: =YEAR(CO46) -> 1900
A47: =B46+1 -> 25001 | B47: 50000 | C47: 0.3 | D47: =B46 -> 25000 | E47: =E46+(B47-B46)*C47 -> 9250 | F47: 0 | G47: 0 | H47: =IF(I45=C49,E48+ROUND((H45-J45),0)*I45,IF(I45=C48,E47+ROUND((H45-J45)*I45,0),IF(I45=C47,E46+ROUND((H45-J45)*I45,0),IF(I45=C46,E45+ROUND((H45-J45)*I45,0),E44+ROUND((H45-J45)*I45,0))))) ->  | I47: =MIN(K49:L49) ->  | J47: =ROUND(SUM(H47+I47)*M45,0) ->  | K47: =SUM(H47:J47) ->  | N47: Age Defined | P47: =IF($E$3="Male",A36,IF($E$3="Female",A44,IF($E$3="Senior Citizen",A51,A58))) -> Not defined | AB47: 2020-02-01 | AC47: 8 | AD47: 0.17 | AE47: 0.12 | AF47: =INDEX('Gross Salary 19-20'!$D$34:$O$34,MATCH(taxtable1819!AB47,'Gross Salary 19-20'!$D$29:$O$29,0)) ->  | AG47: 0.16 | AH47: 77900 | AI47: 77900 | AJ47: 1558 | AK47: 3895 | AL47: 0 | AM47: =CONCATENATE("* Total of GPF include DA arrear amt from"," ",TEXT(AD36,"mm/yy")," ","-",TEXT(AE36,"mm/yy")," ","Rs.",AM44," , ",AL86,", ",AL88,"Adjuested amt. of Bonus Rs.",AT42) -> * Total of GPF include DA arrear amt from 07/21 -10/21 Rs.0 , , Adjuested amt. of Bonus Rs.0 | AX47: 4130 | BY47: =IF(Emp_list!A44="","",Emp_list!A44) ->  | BZ47: =IF(Emp_list!B44="","",Emp_list!B44) ->  | CA47: =IF(Emp_list!C44="","",Emp_list!C44) ->  | CB47: =IF(Emp_list!D44="","",Emp_list!D44) ->  | CC47: - | CI47: 2011-12 | CJ47: 2011-12 | CK47: 2012-13 | CL47: 2011-03-01 | CM47: 2012-03-31
A48: =B47+1 -> 50001 | B48: 100000 | C48: 0.4 | D48: =B47 -> 50000 | E48: =E47+(B48-B47)*C48 -> 29250 | F48: 0.05 | G48: 0 | H48: Surcharge limit | I48: Add.Tax Income | J48: Add. Tax | K48: Diff | L48: Sur. Amt | M48: M.R. | N48: Marginal Releif | P48: =IF($E$3="Male",M42,IF($E$3="Female",M49,IF($E$3="Senior Citizen",M56,M86))) ->  | Z48: ='Gross Salary 19-20'!I38 -> 0 | AA48: 0 | AB48: 2020-03-01 | AC48: 9 | AD48: =AD47 -> 0.17 | AE48: 0.17 | AF48: =INDEX('Gross Salary 19-20'!$D$34:$O$34,MATCH(taxtable1819!AB48,'Gross Salary 19-20'!$D$29:$O$29,0)) ->  | AG48: 0.16 | AH48: 77900 | AI48: 77900 | AJ48: 1558 | AK48: 0 | AL48: 0 | AM48: =CONCATENATE("* Total of NPS include DA arrear amt from"," ",TEXT(AD36,"mm/yy")," ","-",TEXT(AE36,"mm/yy")," ","Rs.",AK36,", ",AM86,",",AM88,"NPS-",AN42) -> * Total of NPS include DA arrear amt from 07/21 -10/21 Rs.0, ,NPS-0 | BY48: =IF(Emp_list!A45="","",Emp_list!A45) ->  | BZ48: =IF(Emp_list!B45="","",Emp_list!B45) ->  | CA48: =IF(Emp_list!C45="","",Emp_list!C45) ->  | CB48: =IF(Emp_list!D45="","",Emp_list!D45) ->  | CC48: - | CI48: 2012-13 | CJ48: 2012-13 | CK48: 2013-14 | CL48: 2012-03-01 | CM48: 2013-03-31 | CN48: Selected data for Gross Salary
A49: =B48+1 -> 100001 | C49: 0.5 | D49: 100000 | E49: =IF(J46=0,0,E48) -> 29250 | F49: 0.05 | G49: 0 | H49: =H42 -> 50000 | I49: =IF(H45>H49,H45-H49,0) ->  | J49: =IF(I49>0,ROUND(I49*I45,0),0) ->  | K49: =I49-J49 ->  | L49: =IF(H47>0,ROUND(H47*L45,0),0) ->  | M49: =IF(K49>L49,0,L49-K49) ->  | N49: Tax Due | P49: =IF($E$3="Male",K40,IF($E$3="Female",K47,IF($E$3="Senior Citizen",K54,K84))) ->  | Z49: ='Gross Salary 19-20'!I39 -> 0 | AA49: 6000 | AB49: 2020-04-01 | AC49: 10 | AD49: =AD48 -> 0.17 | AE49: =AE48 -> 0.17 | AF49: =INDEX('Gross Salary 19-20'!$D$34:$O$34,MATCH(taxtable1819!AB49,'Gross Salary 19-20'!$D$29:$O$29,0)) ->  | AG49: 0.16 | AH49: 77900 | AI49: 77900 | AJ49: 1558 | AK49: 0 | AL49: 0 | AM49: =IF($AO$45="YES",AM48,AM47) -> * Total of GPF include DA arrear amt from 07/21 -10/21 Rs.0 , , Adjuested amt. of Bonus Rs.0 | BY49: =IF(Emp_list!A46="","",Emp_list!A46) ->  | BZ49: =IF(Emp_list!B46="","",Emp_list!B46) ->  | CA49: =IF(Emp_list!C46="","",Emp_list!C46) ->  | CB49: =IF(Emp_list!D46="","",Emp_list!D46) ->  | CC49: - | CI49: 2013-14 | CJ49: 2013-14 | CK49: 2014-15 | CL49: 2013-03-01 | CM49: 2014-03-31 | CN49: Fin. Year | CO49: Month | CP49: Year
A50: Senior Citizen | D50: TAX MARGIN | E50: TAX AT MARGIN | F50: SUR RATE | G50: E.Cess | H50: TAXABLE INCOME | I50: TAX RATE APPLY | J50: TAX MARGIN SLAB | K50: TAX SLAB | L50: Surch.Rate | M50: E.Cess | Z50: ='Gross Salary 19-20'!I40 -> 0 | AA50: 2850 | AB50: 2020-05-01 | AC50: 11 | AD50: 0.17 | AE50: =AE49 -> 0.17 | AF50: =INDEX('Gross Salary 19-20'!$D$34:$O$34,MATCH(taxtable1819!AB50,'Gross Salary 19-20'!$D$29:$O$29,0)) ->  | AG50: 0.16 | AH50: 77900 | AI50: 77900 | AJ50: 1558 | AK50: 0 | AL50: 0 | AM50: Text message for IInd DA arrear | BY50: =IF(Emp_list!A47="","",Emp_list!A47) ->  | BZ50: =IF(Emp_list!B47="","",Emp_list!B47) ->  | CA50: =IF(Emp_list!C47="","",Emp_list!C47) ->  | CB50: =IF(Emp_list!D47="","",Emp_list!D47) ->  | CC50: - | CI50: 2014-15 | CJ50: 2014-15 | CK50: 2015-16 | CL50: 2014-03-01 | CM50: 2015-03-31 | CN50: 2021-22 | CO50: =VLOOKUP($G$82,$C$53:$E$90,3) -> 00:00:00 | CP50: =YEAR(CO50) -> 1900
A51: Not defined | Z51: ='Gross Salary 19-20'!I41 -> 0 | AA51: 2850 | AB51: 2020-06-01 | AC51: 12 | AD51: 0.17 | AE51: 0.17 | AF51: =INDEX('Gross Salary 19-20'!$D$34:$O$34,MATCH(taxtable1819!AB51,'Gross Salary 19-20'!$D$29:$O$29,0)) ->  | AG51: 0.16 | AH51: 77900 | AI51: 77900 | AJ51: 1558 | AK51: 0 | AL51: 0 | AM51: =CONCATENATE("** Total of GPF include DA arrear amt from"," ",TEXT(AD37,"mm/yy")," ","-",TEXT(AE37,"mm/yy")," ","Rs.", AO44) -> ** Total of GPF include DA arrear amt from 07/19 -02/20 Rs.0 | BY51: =IF(Emp_list!A48="","",Emp_list!A48) ->  | BZ51: =IF(Emp_list!B48="","",Emp_list!B48) ->  | CA51: =IF(Emp_list!C48="","",Emp_list!C48) ->  | CB51: =IF(Emp_list!D48="","",Emp_list!D48) ->  | CC51: - | CI51: 2015-16 | CJ51: 2015-16 | CK51: 2016-17 | CL51: 2015-03-01 | CM51: 2016-03-31
A52: 0 | B52: 18000 | C52: 0 | D52: 0 | E52: 0 | F52: 0 | G52: 0 | H52: =H37 ->  | I52: =VLOOKUP(H52,A52:C56,3) ->  | J52: =INDEX(D52:D56,MATCH(I52,C52:C56,0)) ->  | K52: =INDEX(E52:E56,MATCH(I52,C52:C56,0)) ->  | L52: =IF(H52>H56,VLOOKUP(H52,A52:F56,6),0) ->  | M52: =VLOOKUP(H52,A52:G56,7) ->  | Z52: ='Gross Salary 19-20'!I42 -> 0 | AA52: 5000 | AB52: 2020-07-01 | AC52: 13 | AD52: 0.17 | AE52: 0.17 | AF52: =INDEX('Gross Salary 19-20'!$D$34:$O$34,MATCH(taxtable1819!AB52,'Gross Salary 19-20'!$D$29:$O$29,0)) ->  | AG52: 0.16 | AH52: 77900 | AI52: 77900 | AJ52: 1558 | AK52: 0 | AL52: 0 | AM52: =CONCATENATE("** include DA arrear amt from"," ",TEXT(AD37,"mm/yy")," ","-",TEXT(AE37,"mm/yy")," ","Rs.", AP44) -> ** include DA arrear amt from 07/19 -02/20 Rs.0 | BY52: =IF(Emp_list!A49="","",Emp_list!A49) ->  | BZ52: =IF(Emp_list!B49="","",Emp_list!B49) ->  | CA52: =IF(Emp_list!C49="","",Emp_list!C49) ->  | CB52: =IF(Emp_list!D49="","",Emp_list!D49) ->  | CC52: - | CI52: 2016-17 | CJ52: =CK51 -> 2016-17 | CK52: 2017-18 | CL52: 2016-03-01 | CM52: 2017-03-31
A53: =B52+1 -> 18001 | B53: 25000 | C53: 0.25 | D53: =B52 -> 18000 | E53: =(B53-B52)*C53 -> 1750 | F53: 0 | G53: 0 | H53: TAX CALCULALTION | I53: SURCHARGE | J53: E. CESS | K53: TOTAL TAX DUE | Z53: ='Gross Salary 19-20'!I43 -> 0 | AA53: 5000 | AB53: 2020-08-01 | AC53: 14 | AD53: 0.17 | AE53: 0.17 | AF53: =INDEX('Gross Salary 19-20'!$D$34:$O$34,MATCH(taxtable1819!AB53,'Gross Salary 19-20'!$D$29:$O$29,0)) ->  | AG53: 0.16 | AH53: 77900 | AI53: 77900 | AJ53: 1558 | AK53: 0 | AL53: 0 | AM53: =IF($AO$45="YES",AM52,AM51) -> ** Total of GPF include DA arrear amt from 07/19 -02/20 Rs.0 | BY53: =IF(Emp_list!A50="","",Emp_list!A50) ->  | BZ53: =IF(Emp_list!B50="","",Emp_list!B50) ->  | CA53: =IF(Emp_list!C50="","",Emp_list!C50) ->  | CB53: =IF(Emp_list!D50="","",Emp_list!D50) ->  | CC53: - | CI53: 2017-18 | CJ53: =CK52 -> 2017-18 | CK53: 2018-19 | CL53: =DATE(YEAR(CL52),MONTH(CL52)+12,DAY(CL52)) -> 2017-03-01 | CM53: 2018-03-31
A54: =B53+1 -> 25001 | B54: 50000 | C54: 0.3 | D54: =B53 -> 25000 | E54: =E53+(B54-B53)*C54 -> 9250 | F54: 0 | G54: 0 | H54: =IF(I52=C56,E55+ROUND((H52-J52),0)*I52,IF(I52=C55,E54+ROUND((H52-J52)*I52,0),IF(I52=C54,E53+ROUND((H52-J52)*I52,0),IF(I52=C53,E52+ROUND((H52-J52)*I52,0),E51+ROUND((H52-J52)*I52,0))))) ->  | I54: =MIN(K56:L56) ->  | J54: =ROUND(SUM(H54+I54)*M52,0) ->  | K54: =SUM(H54:J54) ->  | Z54: ='Gross Salary 19-20'!I44 -> 0 | AA54: 5000 | AB54: 2020-09-01 | AC54: 15 | AD54: 0.17 | AE54: 0.17 | AF54: =INDEX('Gross Salary 19-20'!$D$34:$O$34,MATCH(taxtable1819!AB54,'Gross Salary 19-20'!$D$29:$O$29,0)) ->  | AG54: 0.16 | AH54: 77900 | AI54: 77900 | AJ54: 1558 | AK54: 0 | AL54: 0 | AM54: =CONCATENATE(AM49,AM53) -> * Total of GPF include DA arrear amt from 07/21 -10/21 Rs.0 , , Adjuested amt. of Bonus Rs.0** Total of GPF include DA arrear amt from 07/19 -02/20 Rs.0 | BY54: =IF(Emp_list!A51="","",Emp_list!A51) ->  | BZ54: =IF(Emp_list!B51="","",Emp_list!B51) ->  | CA54: =IF(Emp_list!C51="","",Emp_list!C51) ->  | CB54: =IF(Emp_list!D51="","",Emp_list!D51) ->  | CC54: - | CI54: 2018-19 | CJ54: 2018-19 | CK54: 2019-20 | CL54: =DATE(YEAR(CL53),MONTH(CL53)+12,DAY(CL53)) -> 2018-03-01 | CM54: 2018-03-31
A55: =B54+1 -> 50001 | B55: 100000 | C55: 0.4 | D55: =B54 -> 50000 | E55: =E54+(B55-B54)*C55 -> 29250 | F55: 0.05 | G55: 0 | H55: Surcharge limit | I55: Add.Tax Income | J55: Add. Tax | K55: Diff | L55: Sur. Amt | M55: M.R. | Z55: ='Gross Salary 19-20'!I45 -> 0 | AA55: 5000 | AB55: 2020-10-01 | AC55: 16 | AD55: 0.17 | AE55: 0.17 | AF55: =INDEX('Gross Salary 19-20'!$D$34:$O$34,MATCH(taxtable1819!AB55,'Gross Salary 19-20'!$D$29:$O$29,0)) ->  | AG55: 0.16 | AH55: 77900 | AI55: 77900 | AJ55: 1558 | AK55: 0 | AL55: 0 | AV55: 2335 | BY55: =IF(Emp_list!A52="","",Emp_list!A52) ->  | BZ55: =IF(Emp_list!B52="","",Emp_list!B52) ->  | CA55: =IF(Emp_list!C52="","",Emp_list!C52) ->  | CB55: =IF(Emp_list!D52="","",Emp_list!D52) ->  | CC55: - | CI55: 2019-20 | CJ55: 2019-20 | CK55: 2020-21 | CL55: =DATE(YEAR(CL54),MONTH(CL54)+12,DAY(CL54)) -> 2019-03-01 | CM55: 2019-03-31
A56: =B55+1 -> 100001 | C56: 0.5 | D56: 100000 | E56: =IF(J53=0,0,E55) -> 29250 | F56: 0.05 | G56: 0 | H56: =H49 -> 50000 | I56: =IF(H52>H56,H52-H56,0) ->  | J56: =IF(I56>0,ROUND(I56*I52,0),0) ->  | K56: =I56-J56 ->  | L56: =IF(H54>0,ROUND(H54*L52,0),0) ->  | M56: =IF(K56>L56,0,L56-K56) ->  | Z56: ='Gross Salary 19-20'!I46 -> 0 | AA56: 5000 | AB56: 2020-11-01 | AC56: 17 | AD56: 0.17 | AE56: 0.17 | AF56: =INDEX('Gross Salary 19-20'!$D$34:$O$34,MATCH(taxtable1819!AB56,'Gross Salary 19-20'!$D$29:$O$29,0)) ->  | AG56: 0.16 | AH56: 77900 | AI56: 77900 | AJ56: 1558 | AK56: 0 | AL56: 0 | AV56: 2335 | BY56: =IF(Emp_list!A53="","",Emp_list!A53) ->  | BZ56: =IF(Emp_list!B53="","",Emp_list!B53) ->  | CA56: =IF(Emp_list!C53="","",Emp_list!C53) ->  | CB56: =IF(Emp_list!D53="","",Emp_list!D53) ->  | CC56: - | CI56: 2020-21 | CJ56: 2020-21 | CK56: 2021-22 | CL56: =DATE(YEAR(CL55),MONTH(CL55)+12,DAY(CL55)) -> 2020-03-01 | CM56: 2020-03-31
A57: Very Senior Citizen | D57: TAX MARGIN | E57: TAX AT MARGIN | F57: SUR RATE | G57: E.Cess | H57: TAXABLE INCOME | I57: TAX RATE APPLY | J57: TAX MARGIN SLAB | K57: TAX SLAB | L57: Surch.Rate | M57: E.Cess | Z57: ='Gross Salary 19-20'!I47 -> 0 | AA57: 5000 | AB57: 2020-12-01 | AC57: 18 | AD57: 0.17 | AE57: 0.17 | AF57: =INDEX('Gross Salary 19-20'!$D$34:$O$34,MATCH(taxtable1819!AB57,'Gross Salary 19-20'!$D$29:$O$29,0)) ->  | AG57: 0.16 | AH57: 77900 | AI57: 77900 | AJ57: 1558 | AK57: 0 | AL57: 0 | AV57: 2335 | BY57: =IF(Emp_list!A54="","",Emp_list!A54) ->  | BZ57: =IF(Emp_list!B54="","",Emp_list!B54) ->  | CA57: =IF(Emp_list!C54="","",Emp_list!C54) ->  | CB57: =IF(Emp_list!D54="","",Emp_list!D54) ->  | CC57: - | CI57: 2021-22 | CJ57: 2021-22 | CK57: 2022-23 | CL57: =DATE(YEAR(CL56),MONTH(CL56)+12,DAY(CL56)) -> 2021-03-01 | CM57: 2021-03-31
A58: Not defined | Z58: ='Gross Salary 19-20'!I48 -> 0 | AA58: 5000 | AB58: 2021-01-01 | AC58: 19 | AD58: 0.17 | AE58: 0.17 | AF58: =INDEX('Gross Salary 19-20'!$D$34:$O$34,MATCH(taxtable1819!AB58,'Gross Salary 19-20'!$D$29:$O$29,0)) ->  | AG58: 0.16 | AH58: 77900 | AI58: 77900 | AJ58: 1558 | AK58: 0 | AL58: 0 | AV58: 2335 | BY58: =IF(Emp_list!A55="","",Emp_list!A55) ->  | BZ58: =IF(Emp_list!B55="","",Emp_list!B55) ->  | CA58: =IF(Emp_list!C55="","",Emp_list!C55) ->  | CB58: =IF(Emp_list!D55="","",Emp_list!D55) ->  | CC58: - | CI58: 2021-22 | CJ58: 2022-23 | CK58: 2022-23 | CL58: =DATE(YEAR(CL57),MONTH(CL57)+12,DAY(CL57)) -> 2022-03-01 | CM58: 2022-03-31
A59: 0 | B59: 18000 | C59: 0 | D59: 0 | E59: 0 | F59: 0 | G59: 0 | H59: =H37 ->  | I59: =VLOOKUP(H59,A59:C86,3) ->  | J59: =INDEX(D59:D86,MATCH(I59,C59:C86,0)) ->  | K59: =INDEX(E59:E86,MATCH(I59,C59:C86,0)) ->  | L59: =IF(H59>H86,VLOOKUP(H59,A59:F86,6),0) ->  | M59: =VLOOKUP(H59,A59:G86,7) ->  | Z59: ='Gross Salary 19-20'!I49 -> 0 | AA59: 5000 | AB59: 2021-02-01 | AC59: 20 | AD59: 0.17 | AE59: 0.17 | AF59: =INDEX('Gross Salary 19-20'!$D$34:$O$34,MATCH(taxtable1819!AB59,'Gross Salary 19-20'!$D$29:$O$29,0)) ->  | AG59: 0.16 | AH59: =AH60 -> 77900 | AI59: 77900 | AJ59: 1558 | AK59: 0 | AL59: 0 | AV59: 2335 | BY59: =IF(Emp_list!A56="","",Emp_list!A56) ->  | BZ59: =IF(Emp_list!B56="","",Emp_list!B56) ->  | CA59: =IF(Emp_list!C56="","",Emp_list!C56) ->  | CB59: =IF(Emp_list!D56="","",Emp_list!D56) ->  | CC59: -
AA60: 0.17 | AB60: 2021-03-01 | AC60: 21 | AD60: ='Gross Salary 19-20'!D33 -> 0.17 | AE60: 0.17 | AF60: =INDEX('Gross Salary 19-20'!$D$34:$O$34,MATCH(taxtable1819!AB60,'Gross Salary 19-20'!$D$29:$O$29,0)) -> 0.16 | AG60: 0.16 | AH60: =INDEX('Gross Salary 19-20'!$B$38:$B$49,MATCH(taxtable1819!AB60,'Gross Salary 19-20'!$A$38:$A$49,0)) -> 77900 | AI60: 77900 | AJ60: 1558 | AK60: =IF(AB60="",0,ROUND(AI60*(AA60-AD60),0)) -> 0 | AL60: 0
AA61: =AA60 -> 0.17 | AB61: 2021-04-01 | AC61: 22 | AD61: ='Gross Salary 19-20'!E33 -> 0.17 | AE61: 0.17 | AF61: =INDEX('Gross Salary 19-20'!$D$34:$O$34,MATCH(taxtable1819!AB61,'Gross Salary 19-20'!$D$29:$O$29,0)) -> 0.16 | AG61: 0.16 | AH61: =INDEX('Gross Salary 19-20'!$B$38:$B$49,MATCH(taxtable1819!AB61,'Gross Salary 19-20'!$A$38:$A$49,0)) -> 77900 | AI61: 77900 | AJ61: 1558 | AK61: =IF(AB61="",0,ROUND(AI61*(AA61-AD61),0)) -> 0 | AL61: 0
AA62: =AA61 -> 0.17 | AB62: 2021-05-01 | AC62: 23 | AD62: ='Gross Salary 19-20'!F33 -> 0.17 | AE62: 0.17 | AF62: =INDEX('Gross Salary 19-20'!$D$34:$O$34,MATCH(taxtable1819!AB62,'Gross Salary 19-20'!$D$29:$O$29,0)) -> 0.16 | AG62: 0.16 | AH62: =INDEX('Gross Salary 19-20'!$B$38:$B$49,MATCH(taxtable1819!AB62,'Gross Salary 19-20'!$A$38:$A$49,0)) -> 77900 | AI62: 77900 | AJ62: 1558 | AK62: 0 | AL62: 0
AA63: 0.17 | AB63: 2021-06-01 | AC63: 24 | AD63: ='Gross Salary 19-20'!G33 -> 0.17 | AE63: 0.17 | AF63: =INDEX('Gross Salary 19-20'!$D$34:$O$34,MATCH(taxtable1819!AB63,'Gross Salary 19-20'!$D$29:$O$29,0)) -> 0.16 | AG63: 0.16 | AH63: =INDEX('Gross Salary 19-20'!$B$38:$B$49,MATCH(taxtable1819!AB63,'Gross Salary 19-20'!$A$38:$A$49,0)) -> 77900 | AI63: 77900 | AJ63: 1558 | AK63: 0 | AL63: 0
AA64: 0.31 | AB64: 2021-07-01 | AC64: 25 | AD64: ='Gross Salary 19-20'!H33 -> 0.28 | AE64: 0.28 | AF64: =INDEX('Gross Salary 19-20'!$D$34:$O$34,MATCH(taxtable1819!AB64,'Gross Salary 19-20'!$D$29:$O$29,0)) -> 0.16 | AG64: 0.16 | AH64: =INDEX('Gross Salary 19-20'!$B$38:$B$49,MATCH(taxtable1819!AB64,'Gross Salary 19-20'!$A$38:$A$49,0)) -> 80200 | AI64: 80200 | AJ64: 1604 | AK64: 2406 | AL64: 0
AA65: 0.31 | AB65: 2021-08-01 | AC65: 26 | AD65: ='Gross Salary 19-20'!I33 -> 0.28 | AE65: 0.28 | AF65: =INDEX('Gross Salary 19-20'!$D$34:$O$34,MATCH(taxtable1819!AB65,'Gross Salary 19-20'!$D$29:$O$29,0)) -> 0.18 | AG65: 0.18 | AH65: =INDEX('Gross Salary 19-20'!$B$38:$B$49,MATCH(taxtable1819!AB65,'Gross Salary 19-20'!$A$38:$A$49,0)) -> 80200 | AI65: 80200 | AJ65: 1604 | AK65: 2406 | AL65: 0
AA66: 0.31 | AB66: 2021-09-01 | AC66: 27 | AD66: ='Gross Salary 19-20'!J33 -> 0.28 | AE66: 0.28 | AF66: =INDEX('Gross Salary 19-20'!$D$34:$O$34,MATCH(taxtable1819!AB66,'Gross Salary 19-20'!$D$29:$O$29,0)) -> 0.18 | AG66: 0.18 | AH66: =INDEX('Gross Salary 19-20'!$B$38:$B$49,MATCH(taxtable1819!AB66,'Gross Salary 19-20'!$A$38:$A$49,0)) -> 80200 | AI66: 80200 | AJ66: 1604 | AK66: 2406 | AL66: 0
AA67: 0.31 | AB67: 2021-10-01 | AC67: 28 | AD67: ='Gross Salary 19-20'!K33 -> 0.31 | AE67: 0.31 | AF67: =INDEX('Gross Salary 19-20'!$D$34:$O$34,MATCH(taxtable1819!AB67,'Gross Salary 19-20'!$D$29:$O$29,0)) -> 0.18 | AG67: 0.18 | AH67: =INDEX('Gross Salary 19-20'!$B$38:$B$49,MATCH(taxtable1819!AB67,'Gross Salary 19-20'!$A$38:$A$49,0)) -> 80200 | AI67: 80200 | AJ67: 1604 | AK67: 0 | AL67: 0
AA68: 0.31 | AB68: 2021-11-01 | AC68: 29 | AD68: ='Gross Salary 19-20'!L33 -> 0.31 | AE68: 0.31 | AF68: =INDEX('Gross Salary 19-20'!$D$34:$O$34,MATCH(taxtable1819!AB68,'Gross Salary 19-20'!$D$29:$O$29,0)) -> 0.18 | AG68: 0.18 | AH68: =INDEX('Gross Salary 19-20'!$B$38:$B$49,MATCH(taxtable1819!AB68,'Gross Salary 19-20'!$A$38:$A$49,0)) -> 80200 | AI68: 80200 | AJ68: 1604 | AK68: 0 | AL68: 0
AA69: 0.31 | AB69: 2021-12-01 | AC69: 30 | AD69: ='Gross Salary 19-20'!M33 -> 0.31 | AE69: 0.31 | AF69: =INDEX('Gross Salary 19-20'!$D$34:$O$34,MATCH(taxtable1819!AB69,'Gross Salary 19-20'!$D$29:$O$29,0)) -> 0.18 | AG69: 0.18 | AH69: =INDEX('Gross Salary 19-20'!$B$38:$B$49,MATCH(taxtable1819!AB69,'Gross Salary 19-20'!$A$38:$A$49,0)) -> 80200 | AI69: 80200 | AJ69: 1604 | AK69: 0 | AL69: 0
AA70: 0.31 | AB70: 2022-01-01 | AC70: 31 | AD70: ='Gross Salary 19-20'!N33 -> 0.31 | AE70: 0.31 | AF70: =INDEX('Gross Salary 19-20'!$D$34:$O$34,MATCH(taxtable1819!AB70,'Gross Salary 19-20'!$D$29:$O$29,0)) -> 0.18 | AG70: 0.18 | AH70: =INDEX('Gross Salary 19-20'!$B$38:$B$49,MATCH(taxtable1819!AB70,'Gross Salary 19-20'!$A$38:$A$49,0)) -> 80200 | AI70: 80200 | AJ70: 1604 | AK70: 0 | AL70: 0
AA71: 0.31 | AB71: 2022-02-01 | AC71: 32 | AD71: ='Gross Salary 19-20'!O33 -> 0.31 | AE71: 0.31 | AF71: =INDEX('Gross Salary 19-20'!$D$34:$O$34,MATCH(taxtable1819!AB71,'Gross Salary 19-20'!$D$29:$O$29,0)) -> 0.18 | AG71: 0.18 | AH71: =INDEX('Gross Salary 19-20'!$B$38:$B$49,MATCH(taxtable1819!AB71,'Gross Salary 19-20'!$A$38:$A$49,0)) -> 80200 | AI71: 80200 | AJ71: 1604 | AK71: 0 | AL71: 0
AA72: 0.31 | AB72: 2022-03-01 | AC72: 33 | AD72: 0.31 | AE72: 0.31 | AF72: =INDEX('Gross Salary 19-20'!$D$34:$O$34,MATCH(taxtable1819!AB72,'Gross Salary 19-20'!$D$29:$O$29,0)) ->  | AG72: 0.16 | AH72: =INDEX('Gross Salary 19-20'!$B$38:$B$49,MATCH(taxtable1819!AB72,'Gross Salary 19-20'!$A$38:$A$49,0)) ->  | AI72: 77900 | AJ72: 1558 | AK72: 0 | AL72: 0
AF73: =MIN(IF(ISNUMBER(AF40:AF71),AF40:AF71)) -> 0 | AH73: =MIN(IF(ISNUMBER(AH40:AH71),AH40:AH71)) -> 0
AF74: =MAXIFS(AF40:AF71,AF40:AF71,"<=0") ->  | AH74: =MAXIFS(AH40:AH71,AH40:AH71,"<=0") -> 
AE75: Smaller Rate | AF75: =SMALL(IFERROR(AF40:AF71,""),1) -> 0.16 | AH75: =SMALL(IFERROR(AH40:AH71,""),1) -> 77900
AE76: Higest Rate | AF76: =LARGE(IFERROR(AF40:AF71,""),1) -> 0.18
AE77: Diff | AF77: =AF76-AF75 -> 0.02
A83: =B59+1 -> 18001 | B83: 25000 | C83: 0.25 | D83: =B59 -> 18000 | E83: =(B83-B59)*C83 -> 1750 | F83: 0 | G83: 0 | H83: TAX CALCULALTION | I83: SURCHARGE | J83: E. CESS | K83: TOTAL TAX DUE | Y83: DA ARR | Z83: =AM44+AO44 -> 0 | AA83: 15178 | AF83: Surrender Leave Salary DA arrear | AV83: 2335 | BY83: =IF(Emp_list!A57="","",Emp_list!A57) ->  | BZ83: =IF(Emp_list!B57="","",Emp_list!B57) ->  | CA83: =IF(Emp_list!C57="","",Emp_list!C57) ->  | CB83: =IF(Emp_list!D57="","",Emp_list!D57) ->  | CC83: -
A84: =B83+1 -> 25001 | B84: 50000 | C84: 0.3 | D84: =B83 -> 25000 | E84: =E83+(B84-B83)*C84 -> 9250 | F84: 0 | G84: 0 | H84: =IF(I59=C86,E85+ROUND((H59-J59),0)*I59,IF(I59=C85,E84+ROUND((H59-J59)*I59,0),IF(I59=C84,E83+ROUND((H59-J59)*I59,0),IF(I59=C83,E59+ROUND((H59-J59)*I59,0),E58+ROUND((H59-J59)*I59,0))))) ->  | I84: =MIN(K86:L86) ->  | J84: =ROUND(SUM(H84+I84)*M59,0) ->  | K84: =SUM(H84:J84) ->  | Y84: SL ARR | Z84: =AL85 -> 0 | AA84: 4670 | AC84: SL MONTH | AD84: Month | AE84: Mode | AF84: Condition | AG84: Month code | AH84: DA rate | AI84: Salary | AJ84: S.L. | AK84: NPS EMY CATE | AL84: GPF | AM84: CASH | AV84: 2335 | BY84: =IF(Emp_list!A58="","",Emp_list!A58) ->  | BZ84: =IF(Emp_list!B58="","",Emp_list!B58) ->  | CA84: =IF(Emp_list!C58="","",Emp_list!C58) ->  | CB84: =IF(Emp_list!D58="","",Emp_list!D58) ->  | CC84: -
A85: =B84+1 -> 50001 | B85: 100000 | C85: 0.4 | D85: =B84 -> 50000 | E85: =E84+(B85-B84)*C85 -> 29250 | F85: 0.05 | G85: 0 | H85: Surcharge limit | I85: Add.Tax Income | J85: Add. Tax | K85: Diff | L85: Sur. Amt | M85: M.R. | Y85: BONUS | Z85: =AT42 -> 0 | AA85: 5081 | AC85: 2020-01-01 | AD85: ='Gross Salary 19-20'!E18 -> 2020-01-01 | AE85: ='Gross Salary 19-20'!G18 -> Cash | AF85: ='Gross Salary 19-20'!I18 -> NO | AG85: =INDEX($AC$46:$AC$47,MATCH(AD85,$AB$46:$AB$47,0)) -> 7 | AH85: =IF(AF85="YES",5%,0%) -> 0 | AI85: ='Gross Salary 19-20'!D12 -> 77900 | AJ85: =ROUND(ROUND(AL16*$AQ$6/AP16,0)*AH85,0) -> 0 | AK85: ='Gross Salary 19-20'!H11 -> NO | AL85: =IF(AK85="NO",AJ85,0) -> 0 | AM85: =IF(AK85="YES",AJ85,0) -> 0 | AV85: 2335 | BY85: =IF(Emp_list!A59="","",Emp_list!A59) ->  | BZ85: =IF(Emp_list!B59="","",Emp_list!B59) ->  | CA85: =IF(Emp_list!C59="","",Emp_list!C59) ->  | CB85: =IF(Emp_list!D59="","",Emp_list!D59) ->  | CC85: -
A86: =B85+1 -> 100001 | C86: 0.5 | D86: 100000 | E86: =IF(J83=0,0,E85) -> 29250 | F86: 0.05 | G86: 0 | H86: =H56 -> 50000 | I86: =IF(H59>H86,H59-H86,0) ->  | J86: =IF(I86>0,ROUND(I86*I59,0),0) ->  | K86: =I86-J86 ->  | L86: =IF(H84>0,ROUND(H84*L59,0),0) ->  | M86: =IF(K86>L86,0,L86-K86) ->  | AD86: ='Gross Salary 19-20'!M11 -> 2021-07-01 | AE86: =AE85 -> Cash | AF86: ='Gross Salary 19-20'!O11 -> NO | AG86: =INDEX($AC$40:$AC$72,MATCH(AD86,SALARY_MONTH_da,0)) -> 25 | AH86: =AD87-AD88 -> 0.03 | AI86: =INDEX(AQ13:AQ24,MATCH(AD86,AE13:AE24,0)) -> 40100 | AJ86: =IF(AF87="YES",IF(AF86="YES",ROUND(AI86*AH86,0),0)) -> 0 | AL86: =IF(AL85=0,"",CONCATENATE("S.L.DA Arr.","(",TEXT(AC85,"mm/yy"),",","Rs.",AL85,")")) ->  | AM86: =IF(AM85=0,"",CONCATENATE("S.L.DA Arr.","(",TEXT(AC85,"mm/yy"),",","Rs.",AM85,")")) ->  | BY86: =IF(Emp_list!A60="","",Emp_list!A60) ->  | BZ86: =IF(Emp_list!B60="","",Emp_list!B60) ->  | CA86: =IF(Emp_list!C60="","",Emp_list!C60) ->  | CB86: =IF(Emp_list!D60="","",Emp_list!D60) ->  | CC86: -
C87: 1987 | D87: =C87+1 -> 1988 | F87: 1987-88 | Z87: =SUM(Z48:Z85) -> 0 | AA87: =SUM(AA48:AA85) -> 76632.47 | AC87: Due rate | AD87: =INDEX($AA$60:$AA$72,MATCH($AG$86,$AC$60:$AC$72,0)) -> 0.31 | AF87: ='Gross Salary 19-20'!I19 -> YES | AJ87: =SUM(AJ85:AJ86) -> 0 | AK87: oth arr | AL87: ='Gross Salary 19-20'!I55 -> 0 | AM87: ='Gross Salary 19-20'!F55 -> 0 | AV87: =SUM(AV55:AV86) -> 18680 | BY87: =IF(Emp_list!A61="","",Emp_list!A61) ->  | BZ87: =IF(Emp_list!B61="","",Emp_list!B61) ->  | CA87: =IF(Emp_list!C61="","",Emp_list!C61) ->  | CB87: =IF(Emp_list!D61="","",Emp_list!D61) ->  | CC87: -
A88: Male | D88: TAX MARGIN | E88: TAX AT MARGIN | F88: SUR RATE | G88: E.Cess | H88: TAXABLE INCOME | I88: TAX RATE APPLY | J88: TAX MARGIN SLAB | K88: TAX SLAB | L88: Surch.Rate | M88: E.Cess | N88: Tax Range | Z88: ='Gross Salary 19-20'!I56 -> 0 | AC88: Drawn rate | AD88: =INDEX($AD$60:$AD$72,MATCH($AG$86,$AC$60:$AC$72,0)) -> 0.28 | AL88: =IF(AL87=0,"",CONCATENATE(", other Rs."," ",AL87)) ->  | AM88: =IF(AM87=0,"",CONCATENATE(", other Rs."," ",AM87)) ->  | BY88: =IF(Emp_list!A62="","",Emp_list!A62) ->  | BZ88: =IF(Emp_list!B62="","",Emp_list!B62) ->  | CA88: =IF(Emp_list!C62="","",Emp_list!C62) ->  | CB88: =IF(Emp_list!D62="","",Emp_list!D62) ->  | CC88: -
A89: Not defined | N89: F.Year | O89: =C87 -> 1987 | P89: =D87 -> 1988 | Z89: =Z88-Z87 -> 0 | BY89: =IF(Emp_list!A63="","",Emp_list!A63) ->  | BZ89: =IF(Emp_list!B63="","",Emp_list!B63) ->  | CA89: =IF(Emp_list!C63="","",Emp_list!C63) ->  | CB89: =IF(Emp_list!D63="","",Emp_list!D63) ->  | CC89: -
A90: 0 | B90: 18000 | C90: 0 | D90: 0 | E90: 0 | F90: 0 | G90: 0 | H90: =$E$4 ->  | I90: =VLOOKUP(H90,A90:C94,3) ->  | J90: =INDEX(D90:D94,MATCH(I90,C90:C94,0)) ->  | K90: =INDEX(E90:E94,MATCH(I90,C90:C94,0)) ->  | L90: =IF(H90>H94,VLOOKUP(H90,A90:F94,6),0) ->  | M90: =VLOOKUP(H90,A90:G94,7) ->  | N90: 0 | O90: =IF($E$3="Male",B90,IF($E$3="Female",B97,IF($E$3="Senior Citizen",B104,B111))) -> 18000 | P90: 0 | AG90: =CONCATENATE(" Including S.Leave (DA arr.)"," ","Rs."," ",AJ87) -> Including S.Leave (DA arr.) Rs. 0 | BY90: =IF(Emp_list!A64="","",Emp_list!A64) ->  | BZ90: =IF(Emp_list!B64="","",Emp_list!B64) ->  | CA90: =IF(Emp_list!C64="","",Emp_list!C64) ->  | CB90: =IF(Emp_list!D64="","",Emp_list!D64) ->  | CC90: -
A91: =B90+1 -> 18001 | B91: 25000 | C91: 0.25 | D91: =B90 -> 18000 | E91: =(B91-B90)*C91 -> 1750 | F91: 0 | G91: 0 | H91: TAX CALCULALTION | I91: SURCHARGE | J91: E. CESS | K91: TOTAL TAX DUE | N91: =O90+1 -> 18001 | O91: 25000 | P91: 0.25 | AC91: SUM OF GROSS SALARY | BY91: =IF(Emp_list!A65="","",Emp_list!A65) ->  | BZ91: =IF(Emp_list!B65="","",Emp_list!B65) ->  | CA91: =IF(Emp_list!C65="","",Emp_list!C65) ->  | CB91: =IF(Emp_list!D65="","",Emp_list!D65) ->  | CC91: -
A92: =B91+1 -> 25001 | B92: 50000 | C92: 0.3 | D92: =B91 -> 25000 | E92: =E91+(B92-B91)*C92 -> 9250 | F92: 0 | G92: 0 | H92: =IF(I90=C94,E93+ROUND((H90-J90),0)*I90,IF(I90=C93,E92+ROUND((H90-J90)*I90,0),IF(I90=C92,E91+ROUND((H90-J90)*I90,0),IF(I90=C91,E90+ROUND((H90-J90)*I90,0),E89+ROUND((H90-J90)*I90,0))))) ->  | I92: =MIN(K94:L94) ->  | J92: =ROUND(SUM(H92+I92)*M90,0) ->  | K92: =SUM(H92:J92) ->  | N92: =O91+1 -> 25001 | O92: 50000 | P92: 0.3 | AC92: REGULAR | AD92: NPS | BY92: =IF(Emp_list!A66="","",Emp_list!A66) ->  | BZ92: =IF(Emp_list!B66="","",Emp_list!B66) ->  | CA92: =IF(Emp_list!C66="","",Emp_list!C66) ->  | CB92: =IF(Emp_list!D66="","",Emp_list!D66) ->  | CC92: =CONCATENATE(BY92,"-",BZ92) -> -
A93: =B92+1 -> 50001 | B93: 100000 | C93: 0.4 | D93: =B92 -> 50000 | E93: =E92+(B93-B92)*C93 -> 29250 | F93: 0.05 | G93: 0 | H93: Surcharge limit | I93: Add.Tax Income | J93: Add. Tax | K93: Diff | L93: Sur. Amt | M93: M.R. | N93: =O92+1 -> 50001 | O93: 100000 | P93: 0.4 | AB93: SALARY | AC93: =SUM('Gross Salary 19-20'!$H$38:$H$55) -> 1370634 | AD93: =SUM('Gross Salary 19-20'!$H$38:$H$55) -> 1370634 | BY93: =IF(Emp_list!A67="","",Emp_list!A67) ->  | BZ93: =IF(Emp_list!B67="","",Emp_list!B67) ->  | CA93: =IF(Emp_list!C67="","",Emp_list!C67) ->  | CB93: =IF(Emp_list!D67="","",Emp_list!D67) ->  | CC93: -
A94: =B93+1 -> 100001 | C94: 0.5 | D94: 100000 | E94: =IF(J91=0,0,E93) -> 29250 | F94: 0.05 | G94: 0 | H94: 50000 | I94: =IF(H90>H94,H90-H94,0) ->  | J94: =IF(I94>0,ROUND(I94*I90,0),0) ->  | K94: =I94-J94 ->  | L94: =IF(H92>0,ROUND(H92*L90,0),0) ->  | M94: =IF(K94>L94,0,L94-K94) ->  | N94: =O93+1 -> 100001 | O94: 0 | P94: 0.5 | AB94: DA ARR | AC94: =AK36 -> 0 | BY94: =IF(Emp_list!A68="","",Emp_list!A68) ->  | BZ94: =IF(Emp_list!B68="","",Emp_list!B68) ->  | CA94: =IF(Emp_list!C68="","",Emp_list!C68) ->  | CB94: =IF(Emp_list!D68="","",Emp_list!D68) ->  | CC94: -
A95: Female | D95: TAX MARGIN | E95: TAX AT MARGIN | F95: SUR RATE | G95: E.Cess | H95: TAXABLE INCOME | I95: TAX RATE APPLY | J95: TAX MARGIN SLAB | K95: TAX SLAB | L95: Surch.Rate | M95: E.Cess | N95: TAX CALCULALTION | P95: =IF($E$3="Male",H92,IF($E$3="Female",H99,IF($E$3="Senior Citizen",H106,H113))) ->  | AC95: =AK37 -> 0 | BY95: =IF(Emp_list!A69="","",Emp_list!A69) ->  | BZ95: =IF(Emp_list!B69="","",Emp_list!B69) ->  | CA95: =IF(Emp_list!C69="","",Emp_list!C69) ->  | CB95: =IF(Emp_list!D69="","",Emp_list!D69) ->  | CC95: -
A96: Not defined | N96: SURCHARGE | P96: =IF($E$3="Male",I92,IF($E$3="Female",I99,IF($E$3="Senior Citizen",I106,I113))) ->  | AB96: SL ARR | AC96: =AJ85 -> 0 | BY96: =IF(Emp_list!A70="","",Emp_list!A70) ->  | BZ96: =IF(Emp_list!B70="","",Emp_list!B70) ->  | CA96: =IF(Emp_list!C70="","",Emp_list!C70) ->  | CB96: =IF(Emp_list!D70="","",Emp_list!D70) ->  | CC96: -
A97: 0 | B97: 18000 | C97: 0 | D97: 0 | E97: 0 | F97: 0 | G97: 0 | H97: =H90 ->  | I97: =VLOOKUP(H97,A97:C101,3) ->  | J97: =INDEX(D97:D101,MATCH(I97,C97:C101,0)) ->  | K97: =INDEX(E97:E101,MATCH(I97,C97:C101,0)) ->  | L97: =IF(H97>H101,VLOOKUP(H97,A97:F101,6),0) ->  | M97: =VLOOKUP(H97,A97:G101,7) ->  | N97: E. CESS | P97: =IF($E$3="Male",J92,IF($E$3="Female",J99,IF($E$3="Senior Citizen",J106,J113))) ->  | BY97: =IF(Emp_list!A71="","",Emp_list!A71) ->  | BZ97: =IF(Emp_list!B71="","",Emp_list!B71) ->  | CA97: =IF(Emp_list!C71="","",Emp_list!C71) ->  | CB97: =IF(Emp_list!D71="","",Emp_list!D71) ->  | CC97: -
A98: =B97+1 -> 18001 | B98: 25000 | C98: 0.25 | D98: =B97 -> 18000 | E98: =(B98-B97)*C98 -> 1750 | F98: 0 | G98: 0 | H98: TAX CALCULALTION | I98: SURCHARGE | J98: E. CESS | K98: TOTAL TAX DUE | N98: TOTAL TAX DUE | P98: =IF($E$3="Male",K92,IF($E$3="Female",K99,IF($E$3="Senior Citizen",K106,K113))) ->  | BY98: =IF(Emp_list!A72="","",Emp_list!A72) ->  | BZ98: =IF(Emp_list!B72="","",Emp_list!B72) ->  | CA98: =IF(Emp_list!C72="","",Emp_list!C72) ->  | CB98: =IF(Emp_list!D72="","",Emp_list!D72) ->  | CC98: -
A99: =B98+1 -> 25001 | B99: 50000 | C99: 0.3 | D99: =B98 -> 25000 | E99: =E98+(B99-B98)*C99 -> 9250 | F99: 0 | G99: 0 | H99: =IF(I97=C101,E100+ROUND((H97-J97),0)*I97,IF(I97=C100,E99+ROUND((H97-J97)*I97,0),IF(I97=C99,E98+ROUND((H97-J97)*I97,0),IF(I97=C98,E97+ROUND((H97-J97)*I97,0),E96+ROUND((H97-J97)*I97,0))))) ->  | I99: =MIN(K101:L101) ->  | J99: =ROUND(SUM(H99+I99)*M97,0) ->  | K99: =SUM(H99:J99) ->  | N99: Age Defined | P99: =IF($E$3="Male",A89,IF($E$3="Female",A96,IF($E$3="Senior Citizen",A103,A110))) -> Not defined | BY99: =IF(Emp_list!A73="","",Emp_list!A73) ->  | BZ99: =IF(Emp_list!B73="","",Emp_list!B73) ->  | CA99: =IF(Emp_list!C73="","",Emp_list!C73) ->  | CB99: =IF(Emp_list!D73="","",Emp_list!D73) ->  | CC99: -
A100: =B99+1 -> 50001 | B100: 100000 | C100: 0.4 | D100: =B99 -> 50000 | E100: =E99+(B100-B99)*C100 -> 29250 | F100: 0.05 | G100: 0 | H100: Surcharge limit | I100: Add.Tax Income | J100: Add. Tax | K100: Diff | L100: Sur. Amt | M100: M.R. | N100: Marginal Releif | P100: =IF($E$3="Male",M94,IF($E$3="Female",M101,IF($E$3="Senior Citizen",M108,M115))) ->  | BY100: =IF(Emp_list!A74="","",Emp_list!A74) ->  | BZ100: =IF(Emp_list!B74="","",Emp_list!B74) ->  | CA100: =IF(Emp_list!C74="","",Emp_list!C74) ->  | CB100: =IF(Emp_list!D74="","",Emp_list!D74) ->  | CC100: -
A101: =B100+1 -> 100001 | C101: 0.5 | D101: 100000 | E101: =IF(J98=0,0,E100) -> 29250 | F101: 0.05 | G101: 0 | H101: =H94 -> 50000 | I101: =IF(H97>H101,H97-H101,0) ->  | J101: =IF(I101>0,ROUND(I101*I97,0),0) ->  | K101: =I101-J101 ->  | L101: =IF(H99>0,ROUND(H99*L97,0),0) ->  | M101: =IF(K101>L101,0,L101-K101) ->  | N101: Tax Due | P101: =IF($E$3="Male",K92,IF($E$3="Female",K99,IF($E$3="Senior Citizen",K106,K113))) ->  | BY101: =IF(Emp_list!A75="","",Emp_list!A75) ->  | BZ101: =IF(Emp_list!B75="","",Emp_list!B75) ->  | CA101: =IF(Emp_list!C75="","",Emp_list!C75) ->  | CB101: =IF(Emp_list!D75="","",Emp_list!D75) ->  | CC101: -
A102: Senior Citizen | D102: TAX MARGIN | E102: TAX AT MARGIN | F102: SUR RATE | G102: E.Cess | H102: TAXABLE INCOME | I102: TAX RATE APPLY | J102: TAX MARGIN SLAB | K102: TAX SLAB | L102: Surch.Rate | M102: E.Cess | BY102: =IF(Emp_list!A76="","",Emp_list!A76) ->  | BZ102: =IF(Emp_list!B76="","",Emp_list!B76) ->  | CA102: =IF(Emp_list!C76="","",Emp_list!C76) ->  | CB102: =IF(Emp_list!D76="","",Emp_list!D76) ->  | CC102: -
A103: Not defined | BY103: =IF(Emp_list!A77="","",Emp_list!A77) ->  | BZ103: =IF(Emp_list!B77="","",Emp_list!B77) ->  | CA103: =IF(Emp_list!C77="","",Emp_list!C77) ->  | CB103: =IF(Emp_list!D77="","",Emp_list!D77) ->  | CC103: -
A104: 0 | B104: 18000 | C104: 0 | D104: 0 | E104: 0 | F104: 0 | G104: 0 | H104: =H90 ->  | I104: =VLOOKUP(H104,A104:C108,3) ->  | J104: =INDEX(D104:D108,MATCH(I104,C104:C108,0)) ->  | K104: =INDEX(E104:E108,MATCH(I104,C104:C108,0)) ->  | L104: =IF(H104>H108,VLOOKUP(H104,A104:F108,6),0) ->  | M104: =VLOOKUP(H104,A104:G108,7) ->  | BY104: =IF(Emp_list!A78="","",Emp_list!A78) ->  | BZ104: =IF(Emp_list!B78="","",Emp_list!B78) ->  | CA104: =IF(Emp_list!C78="","",Emp_list!C78) ->  | CB104: =IF(Emp_list!D78="","",Emp_list!D78) ->  | CC104: -
A105: =B104+1 -> 18001 | B105: 25000 | C105: 0.25 | D105: =B104 -> 18000 | E105: =(B105-B104)*C105 -> 1750 | F105: 0 | G105: 0 | H105: TAX CALCULALTION | I105: SURCHARGE | J105: E. CESS | K105: TOTAL TAX DUE | BY105: =IF(Emp_list!A79="","",Emp_list!A79) ->  | BZ105: =IF(Emp_list!B79="","",Emp_list!B79) ->  | CA105: =IF(Emp_list!C79="","",Emp_list!C79) ->  | CB105: =IF(Emp_list!D79="","",Emp_list!D79) ->  | CC105: -
A106: =B105+1 -> 25001 | B106: 50000 | C106: 0.3 | D106: =B105 -> 25000 | E106: =E105+(B106-B105)*C106 -> 9250 | F106: 0 | G106: 0 | H106: =IF(I104=C108,E107+ROUND((H104-J104),0)*I104,IF(I104=C107,E106+ROUND((H104-J104)*I104,0),IF(I104=C106,E105+ROUND((H104-J104)*I104,0),IF(I104=C105,E104+ROUND((H104-J104)*I104,0),E103+ROUND((H104-J104)*I104,0))))) ->  | I106: =MIN(K108:L108) ->  | J106: =ROUND(SUM(H106+I106)*M104,0) ->  | K106: =SUM(H106:J106) ->  | BY106: =IF(Emp_list!A80="","",Emp_list!A80) ->  | BZ106: =IF(Emp_list!B80="","",Emp_list!B80) ->  | CA106: =IF(Emp_list!C80="","",Emp_list!C80) ->  | CB106: =IF(Emp_list!D80="","",Emp_list!D80) ->  | CC106: -
A107: =B106+1 -> 50001 | B107: 100000 | C107: 0.4 | D107: =B106 -> 50000 | E107: =E106+(B107-B106)*C107 -> 29250 | F107: 0.05 | G107: 0 | H107: Surcharge limit | I107: Add.Tax Income | J107: Add. Tax | K107: Diff | L107: Sur. Amt | M107: M.R. | BY107: =IF(Emp_list!A81="","",Emp_list!A81) ->  | BZ107: =IF(Emp_list!B81="","",Emp_list!B81) ->  | CA107: =IF(Emp_list!C81="","",Emp_list!C81) ->  | CB107: =IF(Emp_list!D81="","",Emp_list!D81) ->  | CC107: -
A108: =B107+1 -> 100001 | C108: 0.5 | D108: 100000 | E108: =IF(J105=0,0,E107) -> 29250 | F108: 0.05 | G108: 0 | H108: =H101 -> 50000 | I108: =IF(H104>H108,H104-H108,0) ->  | J108: =IF(I108>0,ROUND(I108*I104,0),0) ->  | K108: =I108-J108 ->  | L108: =IF(H106>0,ROUND(H106*L104,0),0) ->  | M108: =IF(K108>L108,0,L108-K108) ->  | BY108: =IF(Emp_list!A82="","",Emp_list!A82) ->  | BZ108: =IF(Emp_list!B82="","",Emp_list!B82) ->  | CA108: =IF(Emp_list!C82="","",Emp_list!C82) ->  | CB108: =IF(Emp_list!D82="","",Emp_list!D82) ->  | CC108: -
A109: Very Senior Citizen | D109: TAX MARGIN | E109: TAX AT MARGIN | F109: SUR RATE | G109: E.Cess | H109: TAXABLE INCOME | I109: TAX RATE APPLY | J109: TAX MARGIN SLAB | K109: TAX SLAB | L109: Surch.Rate | M109: E.Cess | BY109: =IF(Emp_list!A83="","",Emp_list!A83) ->  | BZ109: =IF(Emp_list!B83="","",Emp_list!B83) ->  | CA109: =IF(Emp_list!C83="","",Emp_list!C83) ->  | CB109: =IF(Emp_list!D83="","",Emp_list!D83) ->  | CC109: -
A110: Not defined | BY110: =IF(Emp_list!A84="","",Emp_list!A84) ->  | BZ110: =IF(Emp_list!B84="","",Emp_list!B84) ->  | CA110: =IF(Emp_list!C84="","",Emp_list!C84) ->  | CB110: =IF(Emp_list!D84="","",Emp_list!D84) ->  | CC110: -
A111: 0 | B111: 18000 | C111: 0 | D111: 0 | E111: 0 | F111: 0 | G111: 0 | H111: =H90 ->  | I111: =VLOOKUP(H111,A111:C115,3) ->  | J111: =INDEX(D111:D115,MATCH(I111,C111:C115,0)) ->  | K111: =INDEX(E111:E115,MATCH(I111,C111:C115,0)) ->  | L111: =IF(H111>H115,VLOOKUP(H111,A111:F115,6),0) ->  | M111: =VLOOKUP(H111,A111:G115,7) ->  | BY111: =IF(Emp_list!A85="","",Emp_list!A85) ->  | BZ111: =IF(Emp_list!B85="","",Emp_list!B85) ->  | CA111: =IF(Emp_list!C85="","",Emp_list!C85) ->  | CB111: =IF(Emp_list!D85="","",Emp_list!D85) ->  | CC111: -
A112: =B111+1 -> 18001 | B112: 25000 | C112: 0.25 | D112: =B111 -> 18000 | E112: =(B112-B111)*C112 -> 1750 | F112: 0 | G112: 0 | H112: TAX CALCULALTION | I112: SURCHARGE | J112: E. CESS | K112: TOTAL TAX DUE | BY112: =IF(Emp_list!A86="","",Emp_list!A86) ->  | BZ112: =IF(Emp_list!B86="","",Emp_list!B86) ->  | CA112: =IF(Emp_list!C86="","",Emp_list!C86) ->  | CB112: =IF(Emp_list!D86="","",Emp_list!D86) ->  | CC112: -
A113: =B112+1 -> 25001 | B113: 50000 | C113: 0.3 | D113: =B112 -> 25000 | E113: =E112+(B113-B112)*C113 -> 9250 | F113: 0 | G113: 0 | H113: =IF(I111=C115,E114+ROUND((H111-J111),0)*I111,IF(I111=C114,E113+ROUND((H111-J111)*I111,0),IF(I111=C113,E112+ROUND((H111-J111)*I111,0),IF(I111=C112,E111+ROUND((H111-J111)*I111,0),E110+ROUND((H111-J111)*I111,0))))) ->  | I113: =MIN(K115:L115) ->  | J113: =ROUND(SUM(H113+I113)*M111,0) ->  | K113: =SUM(H113:J113) ->  | BY113: =IF(Emp_list!A87="","",Emp_list!A87) ->  | BZ113: =IF(Emp_list!B87="","",Emp_list!B87) ->  | CA113: =IF(Emp_list!C87="","",Emp_list!C87) ->  | CB113: =IF(Emp_list!D87="","",Emp_list!D87) ->  | CC113: -
A114: =B113+1 -> 50001 | B114: 100000 | C114: 0.4 | D114: =B113 -> 50000 | E114: =E113+(B114-B113)*C114 -> 29250 | F114: 0.05 | G114: 0 | H114: Surcharge limit | I114: Add.Tax Income | J114: Add. Tax | K114: Diff | L114: Sur. Amt | M114: M.R. | BY114: =IF(Emp_list!A88="","",Emp_list!A88) ->  | BZ114: =IF(Emp_list!B88="","",Emp_list!B88) ->  | CA114: =IF(Emp_list!C88="","",Emp_list!C88) ->  | CB114: =IF(Emp_list!D88="","",Emp_list!D88) ->  | CC114: -
A115: =B114+1 -> 100001 | C115: 0.5 | D115: 100000 | E115: =IF(J112=0,0,E114) -> 29250 | F115: 0.05 | G115: 0 | H115: =H108 -> 50000 | I115: =IF(H111>H115,H111-H115,0) ->  | J115: =IF(I115>0,ROUND(I115*I111,0),0) ->  | K115: =I115-J115 ->  | L115: =IF(H113>0,ROUND(H113*L111,0),0) ->  | M115: =IF(K115>L115,0,L115-K115) ->  | BY115: =IF(Emp_list!A89="","",Emp_list!A89) ->  | BZ115: =IF(Emp_list!B89="","",Emp_list!B89) ->  | CA115: =IF(Emp_list!C89="","",Emp_list!C89) ->  | CB115: =IF(Emp_list!D89="","",Emp_list!D89) ->  | CC115: -
C116: 1988 | D116: =C116+1 -> 1989 | F116: 1988-89 | BY116: =IF(Emp_list!A90="","",Emp_list!A90) ->  | BZ116: =IF(Emp_list!B90="","",Emp_list!B90) ->  | CA116: =IF(Emp_list!C90="","",Emp_list!C90) ->  | CB116: =IF(Emp_list!D90="","",Emp_list!D90) ->  | CC116: -
A117: Male | D117: TAX MARGIN | E117: TAX AT MARGIN | F117: SUR RATE | G117: E.Cess | H117: TAXABLE INCOME | I117: TAX RATE APPLY | J117: TAX MARGIN SLAB | K117: TAX SLAB | L117: Surch.Rate | M117: E.Cess | N117: Tax Range | BY117: =IF(Emp_list!A91="","",Emp_list!A91) ->  | BZ117: =IF(Emp_list!B91="","",Emp_list!B91) ->  | CA117: =IF(Emp_list!C91="","",Emp_list!C91) ->  | CB117: =IF(Emp_list!D91="","",Emp_list!D91) ->  | CC117: -
A118: Not defined | N118: F.Year | O118: =C116 -> 1988 | P118: =D116 -> 1989 | BY118: =IF(Emp_list!A92="","",Emp_list!A92) ->  | BZ118: =IF(Emp_list!B92="","",Emp_list!B92) ->  | CA118: =IF(Emp_list!C92="","",Emp_list!C92) ->  | CB118: =IF(Emp_list!D92="","",Emp_list!D92) ->  | CC118: -
A119: 0 | B119: 18000 | C119: 0 | D119: 0 | E119: 0 | F119: 0 | G119: 0 | H119: =$E$4 ->  | I119: =VLOOKUP(H119,A119:C123,3) ->  | J119: =INDEX(D119:D123,MATCH(I119,C119:C123,0)) ->  | K119: =INDEX(E119:E123,MATCH(I119,C119:C123,0)) ->  | L119: =IF(H119>H123,VLOOKUP(H119,A119:F123,6),0) ->  | M119: =VLOOKUP(H119,A119:G123,7) ->  | N119: 0 | O119: =IF($E$3="Male",B119,IF($E$3="Female",B126,IF($E$3="Senior Citizen",B133,B140))) -> 18000 | P119: 0 | BY119: =IF(Emp_list!A93="","",Emp_list!A93) ->  | BZ119: =IF(Emp_list!B93="","",Emp_list!B93) ->  | CA119: =IF(Emp_list!C93="","",Emp_list!C93) ->  | CB119: =IF(Emp_list!D93="","",Emp_list!D93) ->  | CC119: -
A120: =B119+1 -> 18001 | B120: 25000 | C120: 0.25 | D120: =B119 -> 18000 | E120: =(B120-B119)*C120 -> 1750 | F120: 0 | G120: 0 | H120: TAX CALCULALTION | I120: SURCHARGE | J120: E. CESS | K120: TOTAL TAX DUE | N120: =O119+1 -> 18001 | O120: 25000 | P120: 0.25 | BY120: =IF(Emp_list!A94="","",Emp_list!A94) ->  | BZ120: =IF(Emp_list!B94="","",Emp_list!B94) ->  | CA120: =IF(Emp_list!C94="","",Emp_list!C94) ->  | CB120: =IF(Emp_list!D94="","",Emp_list!D94) ->  | CC120: -
A121: =B120+1 -> 25001 | B121: 50000 | C121: 0.3 | D121: =B120 -> 25000 | E121: =E120+(B121-B120)*C121 -> 9250 | F121: 0 | G121: 0 | H121: =IF(I119=C123,E122+ROUND((H119-J119),0)*I119,IF(I119=C122,E121+ROUND((H119-J119)*I119,0),IF(I119=C121,E120+ROUND((H119-J119)*I119,0),IF(I119=C120,E119+ROUND((H119-J119)*I119,0),E118+ROUND((H119-J119)*I119,0))))) ->  | I121: =MIN(K123:L123) ->  | J121: =ROUND(SUM(H121+I121)*M119,0) ->  | K121: =SUM(H121:J121) ->  | N121: =O120+1 -> 25001 | O121: 50000 | P121: 0.3 | BY121: =IF(Emp_list!A95="","",Emp_list!A95) ->  | BZ121: =IF(Emp_list!B95="","",Emp_list!B95) ->  | CA121: =IF(Emp_list!C95="","",Emp_list!C95) ->  | CB121: =IF(Emp_list!D95="","",Emp_list!D95) ->  | CC121: -
A122: =B121+1 -> 50001 | B122: 100000 | C122: 0.4 | D122: =B121 -> 50000 | E122: =E121+(B122-B121)*C122 -> 29250 | F122: 0.05 | G122: 0 | H122: Surcharge limit | I122: Add.Tax Income | J122: Add. Tax | K122: Diff | L122: Sur. Amt | M122: M.R. | N122: =O121+1 -> 50001 | O122: 100000 | P122: 0.4 | BY122: =IF(Emp_list!A96="","",Emp_list!A96) ->  | BZ122: =IF(Emp_list!B96="","",Emp_list!B96) ->  | CA122: =IF(Emp_list!C96="","",Emp_list!C96) ->  | CB122: =IF(Emp_list!D96="","",Emp_list!D96) ->  | CC122: -
A123: =B122+1 -> 100001 | C123: 0.5 | D123: 100000 | E123: =IF(J120=0,0,E122) -> 29250 | F123: 0.05 | G123: 0 | H123: 50000 | I123: =IF(H119>H123,H119-H123,0) ->  | J123: =IF(I123>0,ROUND(I123*I119,0),0) ->  | K123: =I123-J123 ->  | L123: =IF(H121>0,ROUND(H121*L119,0),0) ->  | M123: =IF(K123>L123,0,L123-K123) ->  | N123: =O122+1 -> 100001 | O123: 0 | P123: 0.5 | BY123: =IF(Emp_list!A97="","",Emp_list!A97) ->  | BZ123: =IF(Emp_list!B97="","",Emp_list!B97) ->  | CA123: =IF(Emp_list!C97="","",Emp_list!C97) ->  | CB123: =IF(Emp_list!D97="","",Emp_list!D97) ->  | CC123: -
A124: Female | D124: TAX MARGIN | E124: TAX AT MARGIN | F124: SUR RATE | G124: E.Cess | H124: TAXABLE INCOME | I124: TAX RATE APPLY | J124: TAX MARGIN SLAB | K124: TAX SLAB | L124: Surch.Rate | M124: E.Cess | N124: TAX CALCULALTION | P124: =IF($E$3="Male",H121,IF($E$3="Female",H128,IF($E$3="Senior Citizen",H135,H142))) ->  | BY124: =IF(Emp_list!A98="","",Emp_list!A98) ->  | BZ124: =IF(Emp_list!B98="","",Emp_list!B98) ->  | CA124: =IF(Emp_list!C98="","",Emp_list!C98) ->  | CB124: =IF(Emp_list!D98="","",Emp_list!D98) ->  | CC124: -
A125: Not defined | N125: SURCHARGE | P125: =IF($E$3="Male",I121,IF($E$3="Female",I128,IF($E$3="Senior Citizen",I135,I142))) ->  | BY125: =IF(Emp_list!A99="","",Emp_list!A99) ->  | BZ125: =IF(Emp_list!B99="","",Emp_list!B99) ->  | CA125: =IF(Emp_list!C99="","",Emp_list!C99) ->  | CB125: =IF(Emp_list!D99="","",Emp_list!D99) ->  | CC125: -
A126: 0 | B126: 18000 | C126: 0 | D126: 0 | E126: 0 | F126: 0 | G126: 0 | H126: =H119 ->  | I126: =VLOOKUP(H126,A126:C130,3) ->  | J126: =INDEX(D126:D130,MATCH(I126,C126:C130,0)) ->  | K126: =INDEX(E126:E130,MATCH(I126,C126:C130,0)) ->  | L126: =IF(H126>H130,VLOOKUP(H126,A126:F130,6),0) ->  | M126: =VLOOKUP(H126,A126:G130,7) ->  | N126: E. CESS | P126: =IF($E$3="Male",J121,IF($E$3="Female",J128,IF($E$3="Senior Citizen",J135,J142))) ->  | BY126: =IF(Emp_list!A100="","",Emp_list!A100) ->  | BZ126: =IF(Emp_list!B100="","",Emp_list!B100) ->  | CA126: =IF(Emp_list!C100="","",Emp_list!C100) ->  | CB126: =IF(Emp_list!D100="","",Emp_list!D100) ->  | CC126: -
A127: =B126+1 -> 18001 | B127: 25000 | C127: 0.25 | D127: =B126 -> 18000 | E127: =(B127-B126)*C127 -> 1750 | F127: 0 | G127: 0 | H127: TAX CALCULALTION | I127: SURCHARGE | J127: E. CESS | K127: TOTAL TAX DUE | N127: TOTAL TAX DUE | P127: =IF($E$3="Male",K121,IF($E$3="Female",K128,IF($E$3="Senior Citizen",K135,K142))) ->  | BY127: =IF(Emp_list!A101="","",Emp_list!A101) ->  | BZ127: =IF(Emp_list!B101="","",Emp_list!B101) ->  | CA127: =IF(Emp_list!C101="","",Emp_list!C101) ->  | CB127: =IF(Emp_list!D101="","",Emp_list!D101) ->  | CC127: -
A128: =B127+1 -> 25001 | B128: 50000 | C128: 0.3 | D128: =B127 -> 25000 | E128: =E127+(B128-B127)*C128 -> 9250 | F128: 0 | G128: 0 | H128: =IF(I126=C130,E129+ROUND((H126-J126),0)*I126,IF(I126=C129,E128+ROUND((H126-J126)*I126,0),IF(I126=C128,E127+ROUND((H126-J126)*I126,0),IF(I126=C127,E126+ROUND((H126-J126)*I126,0),E125+ROUND((H126-J126)*I126,0))))) ->  | I128: =MIN(K130:L130) ->  | J128: =ROUND(SUM(H128+I128)*M126,0) ->  | K128: =SUM(H128:J128) ->  | N128: Age Defined | P128: =IF($E$3="Male",A118,IF($E$3="Female",A125,IF($E$3="Senior Citizen",A132,A139))) -> Not defined | BY128: =IF(Emp_list!A102="","",Emp_list!A102) ->  | BZ128: =IF(Emp_list!B102="","",Emp_list!B102) ->  | CA128: =IF(Emp_list!C102="","",Emp_list!C102) ->  | CB128: =IF(Emp_list!D102="","",Emp_list!D102) ->  | CC128: -
A129: =B128+1 -> 50001 | B129: 100000 | C129: 0.4 | D129: =B128 -> 50000 | E129: =E128+(B129-B128)*C129 -> 29250 | F129: 0.05 | G129: 0 | H129: Surcharge limit | I129: Add.Tax Income | J129: Add. Tax | K129: Diff | L129: Sur. Amt | M129: M.R. | N129: Marginal Releif | P129: =IF($E$3="Male",M123,IF($E$3="Female",M130,IF($E$3="Senior Citizen",M137,M144))) ->  | BY129: =IF(Emp_list!A103="","",Emp_list!A103) ->  | BZ129: =IF(Emp_list!B103="","",Emp_list!B103) ->  | CA129: =IF(Emp_list!C103="","",Emp_list!C103) ->  | CB129: =IF(Emp_list!D103="","",Emp_list!D103) ->  | CC129: -
A130: =B129+1 -> 100001 | C130: 0.5 | D130: 100000 | E130: =IF(J127=0,0,E129) -> 29250 | F130: 0.05 | G130: 0 | H130: =H123 -> 50000 | I130: =IF(H126>H130,H126-H130,0) ->  | J130: =IF(I130>0,ROUND(I130*I126,0),0) ->  | K130: =I130-J130 ->  | L130: =IF(H128>0,ROUND(H128*L126,0),0) ->  | M130: =IF(K130>L130,0,L130-K130) ->  | N130: Tax Due | P130: =IF($E$3="Male",K121,IF($E$3="Female",K128,IF($E$3="Senior Citizen",K135,K142))) ->  | BY130: =IF(Emp_list!A104="","",Emp_list!A104) ->  | BZ130: =IF(Emp_list!B104="","",Emp_list!B104) ->  | CA130: =IF(Emp_list!C104="","",Emp_list!C104) ->  | CB130: =IF(Emp_list!D104="","",Emp_list!D104) ->  | CC130: -
A131: Senior Citizen | D131: TAX MARGIN | E131: TAX AT MARGIN | F131: SUR RATE | G131: E.Cess | H131: TAXABLE INCOME | I131: TAX RATE APPLY | J131: TAX MARGIN SLAB | K131: TAX SLAB | L131: Surch.Rate | M131: E.Cess | BY131: =IF(Emp_list!A105="","",Emp_list!A105) ->  | BZ131: =IF(Emp_list!B105="","",Emp_list!B105) ->  | CA131: =IF(Emp_list!C105="","",Emp_list!C105) ->  | CB131: =IF(Emp_list!D105="","",Emp_list!D105) ->  | CC131: -
A132: Not defined | BY132: =IF(Emp_list!A106="","",Emp_list!A106) ->  | BZ132: =IF(Emp_list!B106="","",Emp_list!B106) ->  | CA132: =IF(Emp_list!C106="","",Emp_list!C106) ->  | CB132: =IF(Emp_list!D106="","",Emp_list!D106) ->  | CC132: -
A133: 0 | B133: 18000 | C133: 0 | D133: 0 | E133: 0 | F133: 0 | G133: 0 | H133: =H119 ->  | I133: =VLOOKUP(H133,A133:C137,3) ->  | J133: =INDEX(D133:D137,MATCH(I133,C133:C137,0)) ->  | K133: =INDEX(E133:E137,MATCH(I133,C133:C137,0)) ->  | L133: =IF(H133>H137,VLOOKUP(H133,A133:F137,6),0) ->  | M133: =VLOOKUP(H133,A133:G137,7) ->  | BY133: =IF(Emp_list!A107="","",Emp_list!A107) ->  | BZ133: =IF(Emp_list!B107="","",Emp_list!B107) ->  | CA133: =IF(Emp_list!C107="","",Emp_list!C107) ->  | CB133: =IF(Emp_list!D107="","",Emp_list!D107) ->  | CC133: -
A134: =B133+1 -> 18001 | B134: 25000 | C134: 0.25 | D134: =B133 -> 18000 | E134: =(B134-B133)*C134 -> 1750 | F134: 0 | G134: 0 | H134: TAX CALCULALTION | I134: SURCHARGE | J134: E. CESS | K134: TOTAL TAX DUE | BY134: =IF(Emp_list!A108="","",Emp_list!A108) ->  | BZ134: =IF(Emp_list!B108="","",Emp_list!B108) ->  | CA134: =IF(Emp_list!C108="","",Emp_list!C108) ->  | CB134: =IF(Emp_list!D108="","",Emp_list!D108) ->  | CC134: -
A135: =B134+1 -> 25001 | B135: 50000 | C135: 0.3 | D135: =B134 -> 25000 | E135: =E134+(B135-B134)*C135 -> 9250 | F135: 0 | G135: 0 | H135: =IF(I133=C137,E136+ROUND((H133-J133),0)*I133,IF(I133=C136,E135+ROUND((H133-J133)*I133,0),IF(I133=C135,E134+ROUND((H133-J133)*I133,0),IF(I133=C134,E133+ROUND((H133-J133)*I133,0),E132+ROUND((H133-J133)*I133,0))))) ->  | I135: =MIN(K137:L137) ->  | J135: =ROUND(SUM(H135+I135)*M133,0) ->  | K135: =SUM(H135:J135) ->  | BY135: =IF(Emp_list!A109="","",Emp_list!A109) ->  | BZ135: =IF(Emp_list!B109="","",Emp_list!B109) ->  | CA135: =IF(Emp_list!C109="","",Emp_list!C109) ->  | CB135: =IF(Emp_list!D109="","",Emp_list!D109) ->  | CC135: -
A136: =B135+1 -> 50001 | B136: 100000 | C136: 0.4 | D136: =B135 -> 50000 | E136: =E135+(B136-B135)*C136 -> 29250 | F136: 0.05 | G136: 0 | H136: Surcharge limit | I136: Add.Tax Income | J136: Add. Tax | K136: Diff | L136: Sur. Amt | M136: M.R. | BY136: =IF(Emp_list!A110="","",Emp_list!A110) ->  | BZ136: =IF(Emp_list!B110="","",Emp_list!B110) ->  | CA136: =IF(Emp_list!C110="","",Emp_list!C110) ->  | CB136: =IF(Emp_list!D110="","",Emp_list!D110) ->  | CC136: -
A137: =B136+1 -> 100001 | C137: 0.5 | D137: 100000 | E137: =IF(J134=0,0,E136) -> 29250 | F137: 0.05 | G137: 0 | H137: =H130 -> 50000 | I137: =IF(H133>H137,H133-H137,0) ->  | J137: =IF(I137>0,ROUND(I137*I133,0),0) ->  | K137: =I137-J137 ->  | L137: =IF(H135>0,ROUND(H135*L133,0),0) ->  | M137: =IF(K137>L137,0,L137-K137) ->  | BY137: =IF(Emp_list!A111="","",Emp_list!A111) ->  | BZ137: =IF(Emp_list!B111="","",Emp_list!B111) ->  | CA137: =IF(Emp_list!C111="","",Emp_list!C111) ->  | CB137: =IF(Emp_list!D111="","",Emp_list!D111) ->  | CC137: -
A138: Very Senior Citizen | D138: TAX MARGIN | E138: TAX AT MARGIN | F138: SUR RATE | G138: E.Cess | H138: TAXABLE INCOME | I138: TAX RATE APPLY | J138: TAX MARGIN SLAB | K138: TAX SLAB | L138: Surch.Rate | M138: E.Cess | BY138: =IF(Emp_list!A112="","",Emp_list!A112) ->  | BZ138: =IF(Emp_list!B112="","",Emp_list!B112) ->  | CA138: =IF(Emp_list!C112="","",Emp_list!C112) ->  | CB138: =IF(Emp_list!D112="","",Emp_list!D112) ->  | CC138: -
A139: Not defined | BY139: =IF(Emp_list!A113="","",Emp_list!A113) ->  | BZ139: =IF(Emp_list!B113="","",Emp_list!B113) ->  | CA139: =IF(Emp_list!C113="","",Emp_list!C113) ->  | CB139: =IF(Emp_list!D113="","",Emp_list!D113) ->  | CC139: -
A140: 0 | B140: 18000 | C140: 0 | D140: 0 | E140: 0 | F140: 0 | G140: 0 | H140: =H119 ->  | I140: =VLOOKUP(H140,A140:C144,3) ->  | J140: =INDEX(D140:D144,MATCH(I140,C140:C144,0)) ->  | K140: =INDEX(E140:E144,MATCH(I140,C140:C144,0)) ->  | L140: =IF(H140>H144,VLOOKUP(H140,A140:F144,6),0) ->  | M140: =VLOOKUP(H140,A140:G144,7) ->  | BY140: =IF(Emp_list!A114="","",Emp_list!A114) ->  | BZ140: =IF(Emp_list!B114="","",Emp_list!B114) ->  | CA140: =IF(Emp_list!C114="","",Emp_list!C114) ->  | CB140: =IF(Emp_list!D114="","",Emp_list!D114) ->  | CC140: -
A141: =B140+1 -> 18001 | B141: 25000 | C141: 0.25 | D141: =B140 -> 18000 | E141: =(B141-B140)*C141 -> 1750 | F141: 0 | G141: 0 | H141: TAX CALCULALTION | I141: SURCHARGE | J141: E. CESS | K141: TOTAL TAX DUE | BY141: =IF(Emp_list!A115="","",Emp_list!A115) ->  | BZ141: =IF(Emp_list!B115="","",Emp_list!B115) ->  | CA141: =IF(Emp_list!C115="","",Emp_list!C115) ->  | CB141: =IF(Emp_list!D115="","",Emp_list!D115) ->  | CC141: -
A142: =B141+1 -> 25001 | B142: 50000 | C142: 0.3 | D142: =B141 -> 25000 | E142: =E141+(B142-B141)*C142 -> 9250 | F142: 0 | G142: 0 | H142: =IF(I140=C144,E143+ROUND((H140-J140),0)*I140,IF(I140=C143,E142+ROUND((H140-J140)*I140,0),IF(I140=C142,E141+ROUND((H140-J140)*I140,0),IF(I140=C141,E140+ROUND((H140-J140)*I140,0),E139+ROUND((H140-J140)*I140,0))))) ->  | I142: =MIN(K144:L144) ->  | J142: =ROUND(SUM(H142+I142)*M140,0) ->  | K142: =SUM(H142:J142) ->  | BY142: =IF(Emp_list!A116="","",Emp_list!A116) ->  | BZ142: =IF(Emp_list!B116="","",Emp_list!B116) ->  | CA142: =IF(Emp_list!C116="","",Emp_list!C116) ->  | CB142: =IF(Emp_list!D116="","",Emp_list!D116) ->  | CC142: -
A143: =B142+1 -> 50001 | B143: 100000 | C143: 0.4 | D143: =B142 -> 50000 | E143: =E142+(B143-B142)*C143 -> 29250 | F143: 0.05 | G143: 0 | H143: Surcharge limit | I143: Add.Tax Income | J143: Add. Tax | K143: Diff | L143: Sur. Amt | M143: M.R. | BY143: =IF(Emp_list!A117="","",Emp_list!A117) ->  | BZ143: =IF(Emp_list!B117="","",Emp_list!B117) ->  | CA143: =IF(Emp_list!C117="","",Emp_list!C117) ->  | CB143: =IF(Emp_list!D117="","",Emp_list!D117) ->  | CC143: -
A144: =B143+1 -> 100001 | C144: 0.5 | D144: 100000 | E144: =IF(J141=0,0,E143) -> 29250 | F144: 0.05 | G144: 0 | H144: =H137 -> 50000 | I144: =IF(H140>H144,H140-H144,0) ->  | J144: =IF(I144>0,ROUND(I144*I140,0),0) ->  | K144: =I144-J144 ->  | L144: =IF(H142>0,ROUND(H142*L140,0),0) ->  | M144: =IF(K144>L144,0,L144-K144) ->  | BY144: =IF(Emp_list!A118="","",Emp_list!A118) ->  | BZ144: =IF(Emp_list!B118="","",Emp_list!B118) ->  | CA144: =IF(Emp_list!C118="","",Emp_list!C118) ->  | CB144: =IF(Emp_list!D118="","",Emp_list!D118) ->  | CC144: -
C145: 1989 | D145: =C145+1 -> 1990 | F145: 1989-90 | BY145: =IF(Emp_list!A119="","",Emp_list!A119) ->  | BZ145: =IF(Emp_list!B119="","",Emp_list!B119) ->  | CA145: =IF(Emp_list!C119="","",Emp_list!C119) ->  | CB145: =IF(Emp_list!D119="","",Emp_list!D119) ->  | CC145: -
A146: Male | D146: TAX MARGIN | E146: TAX AT MARGIN | F146: SUR RATE | G146: E.Cess | H146: TAXABLE INCOME | I146: TAX RATE APPLY | J146: TAX MARGIN SLAB | K146: TAX SLAB | L146: Surch.Rate | M146: E.Cess | N146: Tax Range | BY146: =IF(Emp_list!A120="","",Emp_list!A120) ->  | BZ146: =IF(Emp_list!B120="","",Emp_list!B120) ->  | CA146: =IF(Emp_list!C120="","",Emp_list!C120) ->  | CB146: =IF(Emp_list!D120="","",Emp_list!D120) ->  | CC146: -
A147: Not defined | N147: F.Year | O147: =C145 -> 1989 | P147: =D145 -> 1990 | BY147: =IF(Emp_list!A121="","",Emp_list!A121) ->  | BZ147: =IF(Emp_list!B121="","",Emp_list!B121) ->  | CA147: =IF(Emp_list!C121="","",Emp_list!C121) ->  | CB147: =IF(Emp_list!D121="","",Emp_list!D121) ->  | CC147: -
A148: 0 | B148: 18000 | C148: 0 | D148: 0 | E148: 0 | F148: 0 | G148: 0 | H148: =$E$4 ->  | I148: =VLOOKUP(H148,A148:C152,3) ->  | J148: =INDEX(D148:D152,MATCH(I148,C148:C152,0)) ->  | K148: =INDEX(E148:E152,MATCH(I148,C148:C152,0)) ->  | L148: =IF(H148>H152,VLOOKUP(H148,A148:F152,6),0) ->  | M148: =VLOOKUP(H148,A148:G152,7) ->  | N148: 0 | O148: =IF($E$3="Male",B148,IF($E$3="Female",B155,IF($E$3="Senior Citizen",B162,B169))) -> 18000 | P148: 0 | BY148: =IF(Emp_list!A122="","",Emp_list!A122) ->  | BZ148: =IF(Emp_list!B122="","",Emp_list!B122) ->  | CA148: =IF(Emp_list!C122="","",Emp_list!C122) ->  | CB148: =IF(Emp_list!D122="","",Emp_list!D122) ->  | CC148: -
A149: =B148+1 -> 18001 | B149: 25000 | C149: 0.2 | D149: =B148 -> 18000 | E149: =(B149-B148)*C149 -> 1400 | F149: 0 | G149: 0 | H149: TAX CALCULALTION | I149: SURCHARGE | J149: E. CESS | K149: TOTAL TAX DUE | N149: =O148+1 -> 18001 | O149: 25000 | P149: 0.2 | BY149: =IF(Emp_list!A123="","",Emp_list!A123) ->  | BZ149: =IF(Emp_list!B123="","",Emp_list!B123) ->  | CA149: =IF(Emp_list!C123="","",Emp_list!C123) ->  | CB149: =IF(Emp_list!D123="","",Emp_list!D123) ->  | CC149: -
A150: =B149+1 -> 25001 | B150: 50000 | C150: 0.3 | D150: =B149 -> 25000 | E150: =E149+(B150-B149)*C150 -> 8900 | F150: 0 | G150: 0 | H150: =IF(I148=C152,E151+ROUND((H148-J148),0)*I148,IF(I148=C151,E150+ROUND((H148-J148)*I148,0),IF(I148=C150,E149+ROUND((H148-J148)*I148,0),IF(I148=C149,E148+ROUND((H148-J148)*I148,0),E147+ROUND((H148-J148)*I148,0))))) ->  | I150: =MIN(K152:L152) ->  | J150: =ROUND(SUM(H150+I150)*M148,0) ->  | K150: =SUM(H150:J150) ->  | N150: =O149+1 -> 25001 | O150: 50000 | P150: 0.3 | BY150: =IF(Emp_list!A124="","",Emp_list!A124) ->  | BZ150: =IF(Emp_list!B124="","",Emp_list!B124) ->  | CA150: =IF(Emp_list!C124="","",Emp_list!C124) ->  | CB150: =IF(Emp_list!D124="","",Emp_list!D124) ->  | CC150: -
A151: =B150+1 -> 50001 | B151: 100000 | C151: 0.4 | D151: =B150 -> 50000 | E151: =E150+(B151-B150)*C151 -> 28900 | F151: 0.08 | G151: 0 | H151: Surcharge limit | I151: Add.Tax Income | J151: Add. Tax | K151: Diff | L151: Sur. Amt | M151: M.R. | N151: =O150+1 -> 50001 | O151: 100000 | P151: 0.4 | BY151: =IF(Emp_list!A125="","",Emp_list!A125) ->  | BZ151: =IF(Emp_list!B125="","",Emp_list!B125) ->  | CA151: =IF(Emp_list!C125="","",Emp_list!C125) ->  | CB151: =IF(Emp_list!D125="","",Emp_list!D125) ->  | CC151: -
A152: =B151+1 -> 100001 | C152: 0.5 | D152: 100000 | E152: =IF(J149=0,0,E151) -> 28900 | F152: 0.08 | G152: 0 | H152: 50000 | I152: =IF(H148>H152,H148-H152,0) ->  | J152: =IF(I152>0,ROUND(I152*I148,0),0) ->  | K152: =I152-J152 ->  | L152: =IF(H150>0,ROUND(H150*L148,0),0) ->  | M152: =IF(K152>L152,0,L152-K152) ->  | N152: =O151+1 -> 100001 | O152: 0 | P152: 0.5 | BY152: =IF(Emp_list!A126="","",Emp_list!A126) ->  | BZ152: =IF(Emp_list!B126="","",Emp_list!B126) ->  | CA152: =IF(Emp_list!C126="","",Emp_list!C126) ->  | CB152: =IF(Emp_list!D126="","",Emp_list!D126) ->  | CC152: -
A153: Female | D153: TAX MARGIN | E153: TAX AT MARGIN | F153: SUR RATE | G153: E.Cess | H153: TAXABLE INCOME | I153: TAX RATE APPLY | J153: TAX MARGIN SLAB | K153: TAX SLAB | L153: Surch.Rate | M153: E.Cess | N153: TAX CALCULALTION | P153: =IF($E$3="Male",H150,IF($E$3="Female",H157,IF($E$3="Senior Citizen",H164,H171))) ->  | BY153: =IF(Emp_list!A127="","",Emp_list!A127) ->  | BZ153: =IF(Emp_list!B127="","",Emp_list!B127) ->  | CA153: =IF(Emp_list!C127="","",Emp_list!C127) ->  | CB153: =IF(Emp_list!D127="","",Emp_list!D127) ->  | CC153: -
A154: Not defined | N154: SURCHARGE | P154: =IF($E$3="Male",I150,IF($E$3="Female",I157,IF($E$3="Senior Citizen",I164,I171))) ->  | BY154: =IF(Emp_list!A128="","",Emp_list!A128) ->  | BZ154: =IF(Emp_list!B128="","",Emp_list!B128) ->  | CA154: =IF(Emp_list!C128="","",Emp_list!C128) ->  | CB154: =IF(Emp_list!D128="","",Emp_list!D128) ->  | CC154: -
A155: 0 | B155: 18000 | C155: 0 | D155: 0 | E155: 0 | F155: 0 | G155: 0 | H155: =H148 ->  | I155: =VLOOKUP(H155,A155:C159,3) ->  | J155: =INDEX(D155:D159,MATCH(I155,C155:C159,0)) ->  | K155: =INDEX(E155:E159,MATCH(I155,C155:C159,0)) ->  | L155: =IF(H155>H159,VLOOKUP(H155,A155:F159,6),0) ->  | M155: =VLOOKUP(H155,A155:G159,7) ->  | N155: E. CESS | P155: =IF($E$3="Male",J150,IF($E$3="Female",J157,IF($E$3="Senior Citizen",J164,J171))) ->  | BY155: =IF(Emp_list!A129="","",Emp_list!A129) ->  | BZ155: =IF(Emp_list!B129="","",Emp_list!B129) ->  | CA155: =IF(Emp_list!C129="","",Emp_list!C129) ->  | CB155: =IF(Emp_list!D129="","",Emp_list!D129) ->  | CC155: -
A156: =B155+1 -> 18001 | B156: 25000 | C156: 0.2 | D156: =B155 -> 18000 | E156: =(B156-B155)*C156 -> 1400 | F156: 0 | G156: 0 | H156: TAX CALCULALTION | I156: SURCHARGE | J156: E. CESS | K156: TOTAL TAX DUE | N156: TOTAL TAX DUE | P156: =IF($E$3="Male",K150,IF($E$3="Female",K157,IF($E$3="Senior Citizen",K164,K171))) ->  | BY156: =IF(Emp_list!A130="","",Emp_list!A130) ->  | BZ156: =IF(Emp_list!B130="","",Emp_list!B130) ->  | CA156: =IF(Emp_list!C130="","",Emp_list!C130) ->  | CB156: =IF(Emp_list!D130="","",Emp_list!D130) ->  | CC156: =CONCATENATE(BY156,"-",BZ156) -> -
A157: =B156+1 -> 25001 | B157: 50000 | C157: 0.3 | D157: =B156 -> 25000 | E157: =E156+(B157-B156)*C157 -> 8900 | F157: 0 | G157: 0 | H157: =IF(I155=C159,E158+ROUND((H155-J155),0)*I155,IF(I155=C158,E157+ROUND((H155-J155)*I155,0),IF(I155=C157,E156+ROUND((H155-J155)*I155,0),IF(I155=C156,E155+ROUND((H155-J155)*I155,0),E154+ROUND((H155-J155)*I155,0))))) ->  | I157: =MIN(K159:L159) ->  | J157: =ROUND(SUM(H157+I157)*M155,0) ->  | K157: =SUM(H157:J157) ->  | N157: Age Defined | P157: =IF($E$3="Male",A147,IF($E$3="Female",A154,IF($E$3="Senior Citizen",A161,A168))) -> Not defined | BY157: =IF(Emp_list!A131="","",Emp_list!A131) ->  | BZ157: =IF(Emp_list!B131="","",Emp_list!B131) ->  | CA157: =IF(Emp_list!C131="","",Emp_list!C131) ->  | CB157: =IF(Emp_list!D131="","",Emp_list!D131) ->  | CC157: -
A158: =B157+1 -> 50001 | B158: 100000 | C158: 0.4 | D158: =B157 -> 50000 | E158: =E157+(B158-B157)*C158 -> 28900 | F158: 0.08 | G158: 0 | H158: Surcharge limit | I158: Add.Tax Income | J158: Add. Tax | K158: Diff | L158: Sur. Amt | M158: M.R. | N158: Marginal Releif | P158: =IF($E$3="Male",M152,IF($E$3="Female",M159,IF($E$3="Senior Citizen",M166,M173))) ->  | BY158: =IF(Emp_list!A132="","",Emp_list!A132) ->  | BZ158: =IF(Emp_list!B132="","",Emp_list!B132) ->  | CA158: =IF(Emp_list!C132="","",Emp_list!C132) ->  | CB158: =IF(Emp_list!D132="","",Emp_list!D132) ->  | CC158: -
A159: =B158+1 -> 100001 | C159: 0.5 | D159: 100000 | E159: =IF(J156=0,0,E158) -> 28900 | F159: 0.08 | G159: 0 | H159: =H152 -> 50000 | I159: =IF(H155>H159,H155-H159,0) ->  | J159: =IF(I159>0,ROUND(I159*I155,0),0) ->  | K159: =I159-J159 ->  | L159: =IF(H157>0,ROUND(H157*L155,0),0) ->  | M159: =IF(K159>L159,0,L159-K159) ->  | N159: Tax Due | P159: =IF($E$3="Male",K150,IF($E$3="Female",K157,IF($E$3="Senior Citizen",K164,K171))) ->  | BY159: =IF(Emp_list!A133="","",Emp_list!A133) ->  | BZ159: =IF(Emp_list!B133="","",Emp_list!B133) ->  | CA159: =IF(Emp_list!C133="","",Emp_list!C133) ->  | CB159: =IF(Emp_list!D133="","",Emp_list!D133) ->  | CC159: -
A160: Senior Citizen | D160: TAX MARGIN | E160: TAX AT MARGIN | F160: SUR RATE | G160: E.Cess | H160: TAXABLE INCOME | I160: TAX RATE APPLY | J160: TAX MARGIN SLAB | K160: TAX SLAB | L160: Surch.Rate | M160: E.Cess | BY160: =IF(Emp_list!A134="","",Emp_list!A134) ->  | BZ160: =IF(Emp_list!B134="","",Emp_list!B134) ->  | CA160: =IF(Emp_list!C134="","",Emp_list!C134) ->  | CB160: =IF(Emp_list!D134="","",Emp_list!D134) ->  | CC160: -
A161: Not defined | BY161: =IF(Emp_list!A135="","",Emp_list!A135) ->  | BZ161: =IF(Emp_list!B135="","",Emp_list!B135) ->  | CA161: =IF(Emp_list!C135="","",Emp_list!C135) ->  | CB161: =IF(Emp_list!D135="","",Emp_list!D135) ->  | CC161: -
A162: 0 | B162: 18000 | C162: 0 | D162: 0 | E162: 0 | F162: 0 | G162: 0 | H162: =H148 ->  | I162: =VLOOKUP(H162,A162:C166,3) ->  | J162: =INDEX(D162:D166,MATCH(I162,C162:C166,0)) ->  | K162: =INDEX(E162:E166,MATCH(I162,C162:C166,0)) ->  | L162: =IF(H162>H166,VLOOKUP(H162,A162:F166,6),0) ->  | M162: =VLOOKUP(H162,A162:G166,7) ->  | BY162: =IF(Emp_list!A136="","",Emp_list!A136) ->  | BZ162: =IF(Emp_list!B136="","",Emp_list!B136) ->  | CA162: =IF(Emp_list!C136="","",Emp_list!C136) ->  | CB162: =IF(Emp_list!D136="","",Emp_list!D136) ->  | CC162: -
A163: =B162+1 -> 18001 | B163: 25000 | C163: 0.2 | D163: =B162 -> 18000 | E163: =(B163-B162)*C163 -> 1400 | F163: 0 | G163: 0 | H163: TAX CALCULALTION | I163: SURCHARGE | J163: E. CESS | K163: TOTAL TAX DUE | BY163: =IF(Emp_list!A137="","",Emp_list!A137) ->  | BZ163: =IF(Emp_list!B137="","",Emp_list!B137) ->  | CA163: =IF(Emp_list!C137="","",Emp_list!C137) ->  | CB163: =IF(Emp_list!D137="","",Emp_list!D137) ->  | CC163: -
A164: =B163+1 -> 25001 | B164: 50000 | C164: 0.3 | D164: =B163 -> 25000 | E164: =E163+(B164-B163)*C164 -> 8900 | F164: 0 | G164: 0 | H164: =IF(I162=C166,E165+ROUND((H162-J162),0)*I162,IF(I162=C165,E164+ROUND((H162-J162)*I162,0),IF(I162=C164,E163+ROUND((H162-J162)*I162,0),IF(I162=C163,E162+ROUND((H162-J162)*I162,0),E161+ROUND((H162-J162)*I162,0))))) ->  | I164: =MIN(K166:L166) ->  | J164: =ROUND(SUM(H164+I164)*M162,0) ->  | K164: =SUM(H164:J164) ->  | BY164: =IF(Emp_list!A138="","",Emp_list!A138) ->  | BZ164: =IF(Emp_list!B138="","",Emp_list!B138) ->  | CA164: =IF(Emp_list!C138="","",Emp_list!C138) ->  | CB164: =IF(Emp_list!D138="","",Emp_list!D138) ->  | CC164: -
A165: =B164+1 -> 50001 | B165: 100000 | C165: 0.4 | D165: =B164 -> 50000 | E165: =E164+(B165-B164)*C165 -> 28900 | F165: 0.08 | G165: 0 | H165: Surcharge limit | I165: Add.Tax Income | J165: Add. Tax | K165: Diff | L165: Sur. Amt | M165: M.R. | BY165: =IF(Emp_list!A139="","",Emp_list!A139) ->  | BZ165: =IF(Emp_list!B139="","",Emp_list!B139) ->  | CA165: =IF(Emp_list!C139="","",Emp_list!C139) ->  | CB165: =IF(Emp_list!D139="","",Emp_list!D139) ->  | CC165: -
A166: =B165+1 -> 100001 | C166: 0.5 | D166: 100000 | E166: =IF(J163=0,0,E165) -> 28900 | F166: 0.08 | G166: 0 | H166: =H159 -> 50000 | I166: =IF(H162>H166,H162-H166,0) ->  | J166: =IF(I166>0,ROUND(I166*I162,0),0) ->  | K166: =I166-J166 ->  | L166: =IF(H164>0,ROUND(H164*L162,0),0) ->  | M166: =IF(K166>L166,0,L166-K166) ->  | BY166: =IF(Emp_list!A140="","",Emp_list!A140) ->  | BZ166: =IF(Emp_list!B140="","",Emp_list!B140) ->  | CA166: =IF(Emp_list!C140="","",Emp_list!C140) ->  | CB166: =IF(Emp_list!D140="","",Emp_list!D140) ->  | CC166: -
A167: Very Senior Citizen | D167: TAX MARGIN | E167: TAX AT MARGIN | F167: SUR RATE | G167: E.Cess | H167: TAXABLE INCOME | I167: TAX RATE APPLY | J167: TAX MARGIN SLAB | K167: TAX SLAB | L167: Surch.Rate | M167: E.Cess | BY167: =IF(Emp_list!A141="","",Emp_list!A141) ->  | BZ167: =IF(Emp_list!B141="","",Emp_list!B141) ->  | CA167: =IF(Emp_list!C141="","",Emp_list!C141) ->  | CB167: =IF(Emp_list!D141="","",Emp_list!D141) ->  | CC167: -
A168: Not defined | BY168: =IF(Emp_list!A142="","",Emp_list!A142) ->  | BZ168: =IF(Emp_list!B142="","",Emp_list!B142) ->  | CA168: =IF(Emp_list!C142="","",Emp_list!C142) ->  | CB168: =IF(Emp_list!D142="","",Emp_list!D142) ->  | CC168: -
A169: 0 | B169: 18000 | C169: 0 | D169: 0 | E169: 0 | F169: 0 | G169: 0 | H169: =H148 ->  | I169: =VLOOKUP(H169,A169:C173,3) ->  | J169: =INDEX(D169:D173,MATCH(I169,C169:C173,0)) ->  | K169: =INDEX(E169:E173,MATCH(I169,C169:C173,0)) ->  | L169: =IF(H169>H173,VLOOKUP(H169,A169:F173,6),0) ->  | M169: =VLOOKUP(H169,A169:G173,7) ->  | BY169: =IF(Emp_list!A143="","",Emp_list!A143) ->  | BZ169: =IF(Emp_list!B143="","",Emp_list!B143) ->  | CA169: =IF(Emp_list!C143="","",Emp_list!C143) ->  | CB169: =IF(Emp_list!D143="","",Emp_list!D143) ->  | CC169: -
A170: =B169+1 -> 18001 | B170: 25000 | C170: 0.2 | D170: =B169 -> 18000 | E170: =(B170-B169)*C170 -> 1400 | F170: 0 | G170: 0 | H170: TAX CALCULALTION | I170: SURCHARGE | J170: E. CESS | K170: TOTAL TAX DUE | BY170: =IF(Emp_list!A144="","",Emp_list!A144) ->  | BZ170: =IF(Emp_list!B144="","",Emp_list!B144) ->  | CA170: =IF(Emp_list!C144="","",Emp_list!C144) ->  | CB170: =IF(Emp_list!D144="","",Emp_list!D144) ->  | CC170: -
A171: =B170+1 -> 25001 | B171: 50000 | C171: 0.3 | D171: =B170 -> 25000 | E171: =E170+(B171-B170)*C171 -> 8900 | F171: 0 | G171: 0 | H171: =IF(I169=C173,E172+ROUND((H169-J169),0)*I169,IF(I169=C172,E171+ROUND((H169-J169)*I169,0),IF(I169=C171,E170+ROUND((H169-J169)*I169,0),IF(I169=C170,E169+ROUND((H169-J169)*I169,0),E168+ROUND((H169-J169)*I169,0))))) ->  | I171: =MIN(K173:L173) ->  | J171: =ROUND(SUM(H171+I171)*M169,0) ->  | K171: =SUM(H171:J171) ->  | BY171: =IF(Emp_list!A145="","",Emp_list!A145) ->  | BZ171: =IF(Emp_list!B145="","",Emp_list!B145) ->  | CA171: =IF(Emp_list!C145="","",Emp_list!C145) ->  | CB171: =IF(Emp_list!D145="","",Emp_list!D145) ->  | CC171: -
A172: =B171+1 -> 50001 | B172: 100000 | C172: 0.4 | D172: =B171 -> 50000 | E172: =E171+(B172-B171)*C172 -> 28900 | F172: 0.08 | G172: 0 | H172: Surcharge limit | I172: Add.Tax Income | J172: Add. Tax | K172: Diff | L172: Sur. Amt | M172: M.R. | BY172: =IF(Emp_list!A146="","",Emp_list!A146) ->  | BZ172: =IF(Emp_list!B146="","",Emp_list!B146) ->  | CA172: =IF(Emp_list!C146="","",Emp_list!C146) ->  | CB172: =IF(Emp_list!D146="","",Emp_list!D146) ->  | CC172: -
A173: =B172+1 -> 100001 | C173: 0.5 | D173: 100000 | E173: =IF(J170=0,0,E172) -> 28900 | F173: 0.08 | G173: 0 | H173: =H166 -> 50000 | I173: =IF(H169>H173,H169-H173,0) ->  | J173: =IF(I173>0,ROUND(I173*I169,0),0) ->  | K173: =I173-J173 ->  | L173: =IF(H171>0,ROUND(H171*L169,0),0) ->  | M173: =IF(K173>L173,0,L173-K173) ->  | BY173: =IF(Emp_list!A147="","",Emp_list!A147) ->  | BZ173: =IF(Emp_list!B147="","",Emp_list!B147) ->  | CA173: =IF(Emp_list!C147="","",Emp_list!C147) ->  | CB173: =IF(Emp_list!D147="","",Emp_list!D147) ->  | CC173: -
C174: 1990 | D174: =C174+1 -> 1991 | F174: 1990-91 | BY174: =IF(Emp_list!A148="","",Emp_list!A148) ->  | BZ174: =IF(Emp_list!B148="","",Emp_list!B148) ->  | CA174: =IF(Emp_list!C148="","",Emp_list!C148) ->  | CB174: =IF(Emp_list!D148="","",Emp_list!D148) ->  | CC174: -
A175: Male | D175: TAX MARGIN | E175: TAX AT MARGIN | F175: SUR RATE | G175: E.Cess | H175: TAXABLE INCOME | I175: TAX RATE APPLY | J175: TAX MARGIN SLAB | K175: TAX SLAB | L175: Surch.Rate | M175: E.Cess | N175: Tax Range | BY175: =IF(Emp_list!A149="","",Emp_list!A149) ->  | BZ175: =IF(Emp_list!B149="","",Emp_list!B149) ->  | CA175: =IF(Emp_list!C149="","",Emp_list!C149) ->  | CB175: =IF(Emp_list!D149="","",Emp_list!D149) ->  | CC175: -
A176: Not defined | N176: F.Year | O176: =C174 -> 1990 | P176: =D174 -> 1991 | BY176: =IF(Emp_list!A150="","",Emp_list!A150) ->  | BZ176: =IF(Emp_list!B150="","",Emp_list!B150) ->  | CA176: =IF(Emp_list!C150="","",Emp_list!C150) ->  | CB176: =IF(Emp_list!D150="","",Emp_list!D150) ->  | CC176: -
A177: 0 | B177: 22000 | C177: 0 | D177: 0 | E177: 0 | F177: 0 | G177: 0 | H177: =$E$4 ->  | I177: =VLOOKUP(H177,A177:C181,3) ->  | J177: =INDEX(D177:D181,MATCH(I177,C177:C181,0)) ->  | K177: =INDEX(E177:E181,MATCH(I177,C177:C181,0)) ->  | L177: =IF(H177>H181,VLOOKUP(H177,A177:F181,6),0) ->  | M177: =VLOOKUP(H177,A177:G181,7) ->  | N177: 0 | O177: =IF($E$3="Male",B177,IF($E$3="Female",B184,IF($E$3="Senior Citizen",B191,B198))) -> 22000 | P177: 0 | BY177: =IF(Emp_list!A151="","",Emp_list!A151) ->  | BZ177: =IF(Emp_list!B151="","",Emp_list!B151) ->  | CA177: =IF(Emp_list!C151="","",Emp_list!C151) ->  | CB177: =IF(Emp_list!D151="","",Emp_list!D151) ->  | CC177: -
A178: =B177+1 -> 22001 | B178: 30000 | C178: 0.2 | D178: =B177 -> 22000 | E178: =(B178-B177)*C178 -> 1600 | F178: 0 | G178: 0 | H178: TAX CALCULALTION | I178: SURCHARGE | J178: E. CESS | K178: TOTAL TAX DUE | N178: =O177+1 -> 22001 | O178: 30000 | P178: 0.2 | BY178: =IF(Emp_list!A152="","",Emp_list!A152) ->  | BZ178: =IF(Emp_list!B152="","",Emp_list!B152) ->  | CA178: =IF(Emp_list!C152="","",Emp_list!C152) ->  | CB178: =IF(Emp_list!D152="","",Emp_list!D152) ->  | CC178: -
A179: =B178+1 -> 30001 | B179: 50000 | C179: 0.3 | D179: =B178 -> 30000 | E179: =E178+(B179-B178)*C179 -> 7600 | F179: 0 | G179: 0 | H179: =IF(I177=C181,E180+ROUND((H177-J177),0)*I177,IF(I177=C180,E179+ROUND((H177-J177)*I177,0),IF(I177=C179,E178+ROUND((H177-J177)*I177,0),IF(I177=C178,E177+ROUND((H177-J177)*I177,0),E176+ROUND((H177-J177)*I177,0))))) ->  | I179: =MIN(K181:L181) ->  | J179: =ROUND(SUM(H179+I179)*M177,0) ->  | K179: =SUM(H179:J179) ->  | N179: =O178+1 -> 30001 | O179: 50000 | P179: 0.3 | BY179: =IF(Emp_list!A153="","",Emp_list!A153) ->  | BZ179: =IF(Emp_list!B153="","",Emp_list!B153) ->  | CA179: =IF(Emp_list!C153="","",Emp_list!C153) ->  | CB179: =IF(Emp_list!D153="","",Emp_list!D153) ->  | CC179: -
A180: =B179+1 -> 50001 | B180: 100000 | C180: 0.4 | D180: =B179 -> 50000 | E180: =E179+(B180-B179)*C180 -> 27600 | F180: 0.12 | G180: 0 | H180: Surcharge limit | I180: Add.Tax Income | J180: Add. Tax | K180: Diff | L180: Sur. Amt | M180: M.R. | N180: =O179+1 -> 50001 | O180: 100000 | P180: 0.4 | BY180: =IF(Emp_list!A154="","",Emp_list!A154) ->  | BZ180: =IF(Emp_list!B154="","",Emp_list!B154) ->  | CA180: =IF(Emp_list!C154="","",Emp_list!C154) ->  | CB180: =IF(Emp_list!D154="","",Emp_list!D154) ->  | CC180: -
A181: =B180+1 -> 100001 | C181: 0.5 | D181: 100000 | E181: =IF(J178=0,0,E180) -> 27600 | F181: 0.12 | G181: 0 | H181: 75000 | I181: =IF(H177>H181,H177-H181,0) ->  | J181: =IF(I181>0,ROUND(I181*I177,0),0) ->  | K181: =I181-J181 ->  | L181: =IF(H179>0,ROUND(H179*L177,0),0) ->  | M181: =IF(K181>L181,0,L181-K181) ->  | N181: =O180+1 -> 100001 | O181: 0 | P181: 0.5 | BY181: =IF(Emp_list!A155="","",Emp_list!A155) ->  | BZ181: =IF(Emp_list!B155="","",Emp_list!B155) ->  | CA181: =IF(Emp_list!C155="","",Emp_list!C155) ->  | CB181: =IF(Emp_list!D155="","",Emp_list!D155) ->  | CC181: -
A182: Female | D182: TAX MARGIN | E182: TAX AT MARGIN | F182: SUR RATE | G182: E.Cess | H182: TAXABLE INCOME | I182: TAX RATE APPLY | J182: TAX MARGIN SLAB | K182: TAX SLAB | L182: Surch.Rate | M182: E.Cess | N182: TAX CALCULALTION | P182: =IF($E$3="Male",H179,IF($E$3="Female",H186,IF($E$3="Senior Citizen",H193,H200))) ->  | BY182: =IF(Emp_list!A156="","",Emp_list!A156) ->  | BZ182: =IF(Emp_list!B156="","",Emp_list!B156) ->  | CA182: =IF(Emp_list!C156="","",Emp_list!C156) ->  | CB182: =IF(Emp_list!D156="","",Emp_list!D156) ->  | CC182: -
A183: Not defined | N183: SURCHARGE | P183: =IF($E$3="Male",I179,IF($E$3="Female",I186,IF($E$3="Senior Citizen",I193,I200))) ->  | BY183: =IF(Emp_list!A157="","",Emp_list!A157) ->  | BZ183: =IF(Emp_list!B157="","",Emp_list!B157) ->  | CA183: =IF(Emp_list!C157="","",Emp_list!C157) ->  | CB183: =IF(Emp_list!D157="","",Emp_list!D157) ->  | CC183: -
A184: 0 | B184: 22000 | C184: 0 | D184: 0 | E184: 0 | F184: 0 | G184: 0 | H184: =H177 ->  | I184: =VLOOKUP(H184,A184:C188,3) ->  | J184: =INDEX(D184:D188,MATCH(I184,C184:C188,0)) ->  | K184: =INDEX(E184:E188,MATCH(I184,C184:C188,0)) ->  | L184: =IF(H184>H188,VLOOKUP(H184,A184:F188,6),0) ->  | M184: =VLOOKUP(H184,A184:G188,7) ->  | N184: E. CESS | P184: =IF($E$3="Male",J179,IF($E$3="Female",J186,IF($E$3="Senior Citizen",J193,J200))) ->  | BY184: =IF(Emp_list!A158="","",Emp_list!A158) ->  | BZ184: =IF(Emp_list!B158="","",Emp_list!B158) ->  | CA184: =IF(Emp_list!C158="","",Emp_list!C158) ->  | CB184: =IF(Emp_list!D158="","",Emp_list!D158) ->  | CC184: -
A185: =B184+1 -> 22001 | B185: 30000 | C185: 0.2 | D185: =B184 -> 22000 | E185: =(B185-B184)*C185 -> 1600 | F185: 0 | G185: 0 | H185: TAX CALCULALTION | I185: SURCHARGE | J185: E. CESS | K185: TOTAL TAX DUE | N185: TOTAL TAX DUE | P185: =IF($E$3="Male",K179,IF($E$3="Female",K186,IF($E$3="Senior Citizen",K193,K200))) ->  | BY185: =IF(Emp_list!A159="","",Emp_list!A159) ->  | BZ185: =IF(Emp_list!B159="","",Emp_list!B159) ->  | CA185: =IF(Emp_list!C159="","",Emp_list!C159) ->  | CB185: =IF(Emp_list!D159="","",Emp_list!D159) ->  | CC185: -
A186: =B185+1 -> 30001 | B186: 50000 | C186: 0.3 | D186: =B185 -> 30000 | E186: =E185+(B186-B185)*C186 -> 7600 | F186: 0 | G186: 0 | H186: =IF(I184=C188,E187+ROUND((H184-J184),0)*I184,IF(I184=C187,E186+ROUND((H184-J184)*I184,0),IF(I184=C186,E185+ROUND((H184-J184)*I184,0),IF(I184=C185,E184+ROUND((H184-J184)*I184,0),E183+ROUND((H184-J184)*I184,0))))) ->  | I186: =MIN(K188:L188) ->  | J186: =ROUND(SUM(H186+I186)*M184,0) ->  | K186: =SUM(H186:J186) ->  | N186: Age Defined | P186: =IF($E$3="Male",A176,IF($E$3="Female",A183,IF($E$3="Senior Citizen",A190,A197))) -> Not defined | BY186: =IF(Emp_list!A160="","",Emp_list!A160) ->  | BZ186: =IF(Emp_list!B160="","",Emp_list!B160) ->  | CA186: =IF(Emp_list!C160="","",Emp_list!C160) ->  | CB186: =IF(Emp_list!D160="","",Emp_list!D160) ->  | CC186: -
A187: =B186+1 -> 50001 | B187: 100000 | C187: 0.4 | D187: =B186 -> 50000 | E187: =E186+(B187-B186)*C187 -> 27600 | F187: 0.12 | G187: 0 | H187: Surcharge limit | I187: Add.Tax Income | J187: Add. Tax | K187: Diff | L187: Sur. Amt | M187: M.R. | N187: Marginal Releif | P187: =IF($E$3="Male",M181,IF($E$3="Female",M188,IF($E$3="Senior Citizen",M195,M202))) ->  | BY187: =IF(Emp_list!A161="","",Emp_list!A161) ->  | BZ187: =IF(Emp_list!B161="","",Emp_list!B161) ->  | CA187: =IF(Emp_list!C161="","",Emp_list!C161) ->  | CB187: =IF(Emp_list!D161="","",Emp_list!D161) ->  | CC187: -
A188: =B187+1 -> 100001 | C188: 0.5 | D188: 100000 | E188: =IF(J185=0,0,E187) -> 27600 | F188: 0.12 | G188: 0 | H188: =H181 -> 75000 | I188: =IF(H184>H188,H184-H188,0) ->  | J188: =IF(I188>0,ROUND(I188*I184,0),0) ->  | K188: =I188-J188 ->  | L188: =IF(H186>0,ROUND(H186*L184,0),0) ->  | M188: =IF(K188>L188,0,L188-K188) ->  | N188: Tax Due | P188: =IF($E$3="Male",K179,IF($E$3="Female",K186,IF($E$3="Senior Citizen",K193,K200))) ->  | BY188: =IF(Emp_list!A162="","",Emp_list!A162) ->  | BZ188: =IF(Emp_list!B162="","",Emp_list!B162) ->  | CA188: =IF(Emp_list!C162="","",Emp_list!C162) ->  | CB188: =IF(Emp_list!D162="","",Emp_list!D162) ->  | CC188: -
A189: Senior Citizen | D189: TAX MARGIN | E189: TAX AT MARGIN | F189: SUR RATE | G189: E.Cess | H189: TAXABLE INCOME | I189: TAX RATE APPLY | J189: TAX MARGIN SLAB | K189: TAX SLAB | L189: Surch.Rate | M189: E.Cess | BY189: =IF(Emp_list!A163="","",Emp_list!A163) ->  | BZ189: =IF(Emp_list!B163="","",Emp_list!B163) ->  | CA189: =IF(Emp_list!C163="","",Emp_list!C163) ->  | CB189: =IF(Emp_list!D163="","",Emp_list!D163) ->  | CC189: -
A190: Not defined | BY190: =IF(Emp_list!A164="","",Emp_list!A164) ->  | BZ190: =IF(Emp_list!B164="","",Emp_list!B164) ->  | CA190: =IF(Emp_list!C164="","",Emp_list!C164) ->  | CB190: =IF(Emp_list!D164="","",Emp_list!D164) ->  | CC190: -
A191: 0 | B191: 22000 | C191: 0 | D191: 0 | E191: 0 | F191: 0 | G191: 0 | H191: =H177 ->  | I191: =VLOOKUP(H191,A191:C195,3) ->  | J191: =INDEX(D191:D195,MATCH(I191,C191:C195,0)) ->  | K191: =INDEX(E191:E195,MATCH(I191,C191:C195,0)) ->  | L191: =IF(H191>H195,VLOOKUP(H191,A191:F195,6),0) ->  | M191: =VLOOKUP(H191,A191:G195,7) ->  | BY191: =IF(Emp_list!A165="","",Emp_list!A165) ->  | BZ191: =IF(Emp_list!B165="","",Emp_list!B165) ->  | CA191: =IF(Emp_list!C165="","",Emp_list!C165) ->  | CB191: =IF(Emp_list!D165="","",Emp_list!D165) ->  | CC191: -
A192: =B191+1 -> 22001 | B192: 30000 | C192: 0.2 | D192: =B191 -> 22000 | E192: =(B192-B191)*C192 -> 1600 | F192: 0 | G192: 0 | H192: TAX CALCULALTION | I192: SURCHARGE | J192: E. CESS | K192: TOTAL TAX DUE | BY192: =IF(Emp_list!A166="","",Emp_list!A166) ->  | BZ192: =IF(Emp_list!B166="","",Emp_list!B166) ->  | CA192: =IF(Emp_list!C166="","",Emp_list!C166) ->  | CB192: =IF(Emp_list!D166="","",Emp_list!D166) ->  | CC192: -
A193: =B192+1 -> 30001 | B193: 50000 | C193: 0.3 | D193: =B192 -> 30000 | E193: =E192+(B193-B192)*C193 -> 7600 | F193: 0 | G193: 0 | H193: =IF(I191=C195,E194+ROUND((H191-J191),0)*I191,IF(I191=C194,E193+ROUND((H191-J191)*I191,0),IF(I191=C193,E192+ROUND((H191-J191)*I191,0),IF(I191=C192,E191+ROUND((H191-J191)*I191,0),E190+ROUND((H191-J191)*I191,0))))) ->  | I193: =MIN(K195:L195) ->  | J193: =ROUND(SUM(H193+I193)*M191,0) ->  | K193: =SUM(H193:J193) ->  | BY193: =IF(Emp_list!A167="","",Emp_list!A167) ->  | BZ193: =IF(Emp_list!B167="","",Emp_list!B167) ->  | CA193: =IF(Emp_list!C167="","",Emp_list!C167) ->  | CB193: =IF(Emp_list!D167="","",Emp_list!D167) ->  | CC193: -
A194: =B193+1 -> 50001 | B194: 100000 | C194: 0.4 | D194: =B193 -> 50000 | E194: =E193+(B194-B193)*C194 -> 27600 | F194: 0.12 | G194: 0 | H194: Surcharge limit | I194: Add.Tax Income | J194: Add. Tax | K194: Diff | L194: Sur. Amt | M194: M.R. | BY194: =IF(Emp_list!A168="","",Emp_list!A168) ->  | BZ194: =IF(Emp_list!B168="","",Emp_list!B168) ->  | CA194: =IF(Emp_list!C168="","",Emp_list!C168) ->  | CB194: =IF(Emp_list!D168="","",Emp_list!D168) ->  | CC194: -
A195: =B194+1 -> 100001 | C195: 0.5 | D195: 100000 | E195: =IF(J192=0,0,E194) -> 27600 | F195: 0.12 | G195: 0 | H195: =H188 -> 75000 | I195: =IF(H191>H195,H191-H195,0) ->  | J195: =IF(I195>0,ROUND(I195*I191,0),0) ->  | K195: =I195-J195 ->  | L195: =IF(H193>0,ROUND(H193*L191,0),0) ->  | M195: =IF(K195>L195,0,L195-K195) ->  | BY195: =IF(Emp_list!A169="","",Emp_list!A169) ->  | BZ195: =IF(Emp_list!B169="","",Emp_list!B169) ->  | CA195: =IF(Emp_list!C169="","",Emp_list!C169) ->  | CB195: =IF(Emp_list!D169="","",Emp_list!D169) ->  | CC195: -
A196: Very Senior Citizen | D196: TAX MARGIN | E196: TAX AT MARGIN | F196: SUR RATE | G196: E.Cess | H196: TAXABLE INCOME | I196: TAX RATE APPLY | J196: TAX MARGIN SLAB | K196: TAX SLAB | L196: Surch.Rate | M196: E.Cess | BY196: =IF(Emp_list!A170="","",Emp_list!A170) ->  | BZ196: =IF(Emp_list!B170="","",Emp_list!B170) ->  | CA196: =IF(Emp_list!C170="","",Emp_list!C170) ->  | CB196: =IF(Emp_list!D170="","",Emp_list!D170) ->  | CC196: -
A197: Not defined | BY197: =IF(Emp_list!A171="","",Emp_list!A171) ->  | BZ197: =IF(Emp_list!B171="","",Emp_list!B171) ->  | CA197: =IF(Emp_list!C171="","",Emp_list!C171) ->  | CB197: =IF(Emp_list!D171="","",Emp_list!D171) ->  | CC197: -
A198: 0 | B198: 22000 | C198: 0 | D198: 0 | E198: 0 | F198: 0 | G198: 0 | H198: =H177 ->  | I198: =VLOOKUP(H198,A198:C202,3) ->  | J198: =INDEX(D198:D202,MATCH(I198,C198:C202,0)) ->  | K198: =INDEX(E198:E202,MATCH(I198,C198:C202,0)) ->  | L198: =IF(H198>H202,VLOOKUP(H198,A198:F202,6),0) ->  | M198: =VLOOKUP(H198,A198:G202,7) ->  | BY198: =IF(Emp_list!A172="","",Emp_list!A172) ->  | BZ198: =IF(Emp_list!B172="","",Emp_list!B172) ->  | CA198: =IF(Emp_list!C172="","",Emp_list!C172) ->  | CB198: =IF(Emp_list!D172="","",Emp_list!D172) ->  | CC198: -
A199: =B198+1 -> 22001 | B199: 30000 | C199: 0.2 | D199: =B198 -> 22000 | E199: =(B199-B198)*C199 -> 1600 | F199: 0 | G199: 0 | H199: TAX CALCULALTION | I199: SURCHARGE | J199: E. CESS | K199: TOTAL TAX DUE | BY199: =IF(Emp_list!A173="","",Emp_list!A173) ->  | BZ199: =IF(Emp_list!B173="","",Emp_list!B173) ->  | CA199: =IF(Emp_list!C173="","",Emp_list!C173) ->  | CB199: =IF(Emp_list!D173="","",Emp_list!D173) ->  | CC199: -
A200: =B199+1 -> 30001 | B200: 50000 | C200: 0.3 | D200: =B199 -> 30000 | E200: =E199+(B200-B199)*C200 -> 7600 | F200: 0 | G200: 0 | H200: =IF(I198=C202,E201+ROUND((H198-J198),0)*I198,IF(I198=C201,E200+ROUND((H198-J198)*I198,0),IF(I198=C200,E199+ROUND((H198-J198)*I198,0),IF(I198=C199,E198+ROUND((H198-J198)*I198,0),E197+ROUND((H198-J198)*I198,0))))) ->  | I200: =MIN(K202:L202) ->  | J200: =ROUND(SUM(H200+I200)*M198,0) ->  | K200: =SUM(H200:J200) ->  | BY200: =IF(Emp_list!A174="","",Emp_list!A174) ->  | BZ200: =IF(Emp_list!B174="","",Emp_list!B174) ->  | CA200: =IF(Emp_list!C174="","",Emp_list!C174) ->  | CB200: =IF(Emp_list!D174="","",Emp_list!D174) ->  | CC200: -
A201: =B200+1 -> 50001 | B201: 100000 | C201: 0.4 | D201: =B200 -> 50000 | E201: =E200+(B201-B200)*C201 -> 27600 | F201: 0.12 | G201: 0 | H201: Surcharge limit | I201: Add.Tax Income | J201: Add. Tax | K201: Diff | L201: Sur. Amt | M201: M.R. | BY201: =IF(Emp_list!A175="","",Emp_list!A175) ->  | BZ201: =IF(Emp_list!B175="","",Emp_list!B175) ->  | CA201: =IF(Emp_list!C175="","",Emp_list!C175) ->  | CB201: =IF(Emp_list!D175="","",Emp_list!D175) ->  | CC201: -
A202: =B201+1 -> 100001 | C202: 0.5 | D202: 100000 | E202: =IF(J199=0,0,E201) -> 27600 | F202: 0.12 | G202: 0 | H202: =H195 -> 75000 | I202: =IF(H198>H202,H198-H202,0) ->  | J202: =IF(I202>0,ROUND(I202*I198,0),0) ->  | K202: =I202-J202 ->  | L202: =IF(H200>0,ROUND(H200*L198,0),0) ->  | M202: =IF(K202>L202,0,L202-K202) ->  | BY202: =IF(Emp_list!A176="","",Emp_list!A176) ->  | BZ202: =IF(Emp_list!B176="","",Emp_list!B176) ->  | CA202: =IF(Emp_list!C176="","",Emp_list!C176) ->  | CB202: =IF(Emp_list!D176="","",Emp_list!D176) ->  | CC202: -
C203: 1991 | D203: =C203+1 -> 1992 | F203: 1991-92 | BY203: =IF(Emp_list!A177="","",Emp_list!A177) ->  | BZ203: =IF(Emp_list!B177="","",Emp_list!B177) ->  | CA203: =IF(Emp_list!C177="","",Emp_list!C177) ->  | CB203: =IF(Emp_list!D177="","",Emp_list!D177) ->  | CC203: -
A204: Male | D204: TAX MARGIN | E204: TAX AT MARGIN | F204: SUR RATE | G204: E.Cess | H204: TAXABLE INCOME | I204: TAX RATE APPLY | J204: TAX MARGIN SLAB | K204: TAX SLAB | L204: Surch.Rate | M204: E.Cess | N204: Tax Range | BY204: =IF(Emp_list!A178="","",Emp_list!A178) ->  | BZ204: =IF(Emp_list!B178="","",Emp_list!B178) ->  | CA204: =IF(Emp_list!C178="","",Emp_list!C178) ->  | CB204: =IF(Emp_list!D178="","",Emp_list!D178) ->  | CC204: -
A205: Not defined | N205: F.Year | O205: =C203 -> 1991 | P205: =D203 -> 1992 | BY205: =IF(Emp_list!A179="","",Emp_list!A179) ->  | BZ205: =IF(Emp_list!B179="","",Emp_list!B179) ->  | CA205: =IF(Emp_list!C179="","",Emp_list!C179) ->  | CB205: =IF(Emp_list!D179="","",Emp_list!D179) ->  | CC205: -
... 917 more rows

Sheet Statement1819 (hidden)
A1: INCOME TAX CALCULATION FOR THE | E1: Fin. Year | F1: 2018-19 | G1: Code/S.N. | H1: =taxtable1819!BY2 -> 1
A2: TAX CATEGORY | C2: ='Gross Salary 19-20'!D10 -> MALE | E2: NAME OF EMPLOYEE | G2: =taxtable1819!BZ2 -> PRAVESH KUMAR SHARMA
A3: PAN NO | C3: ='Gross Salary 19-20'!N13 -> ABCPP1234D | E3: DESIGNATION | G3: ='Gross Salary 19-20'!J13 -> AAO-I
A4: 1 | B4: INCOME FROM SALARY (including all allowance u/s 17.. i.e. NPS emloyer contribution) | H4: ='Gross Salary 19-20'!$H$56 -> 1370634 | J4: Gross Salary (Home)
A5: 2 | B5: Less : Allowance to the extent exempt under section 10
B6: (a) | C6: Section 10(13 A) H.R Allow | G6: 0 | H6: =G6+G7+G8 -> 
B7: (b) | C7: Section 10(14) Conv Allow | G7: 0
B8: (c ) | C8: Any other Allowances or deduction u/s 10 | G8: ='Gross Salary 19-20'!#REF! ->  | J8: VII pay Fixation Arrear
A9: 3 | B9: Balance (1-2) | H9: =H4-H6 -> 
A10: 4 | B10: Deduction u/s 16 & 17
B11: (a) | C11: Standard Deduction -u/s 16(ia) | G11: =MAX(MIN(H9,40000),0) -> 
B12: (b) | C12: Entertainment Allowance u/s 16(ii) | G12: ='Gross Salary 19-20'!$M$59 -> 0 | H12: =G11+G12+G13 -> 
B13: (c ) | C13: Tax on Employment | G13: ='Gross Salary 19-20'!$M$60 -> 0
A14: 5 | B14: Total of 4 (a)+ 4(b)
A15: 6 | B15: Income chargable under the head Salaries | H15: =H9-H12 -> 
A16: 7 | B16: Add : Any other income reported by the employee
B17: (a) | C17: NSC INTREST | G17: ='Gross Salary 19-20'!H63 -> 0 | H17: =SUM(G17:G21) -> 0
B18: (b) | C18: Bank Intrest on Saving | G18: ='Gross Salary 19-20'!H64 -> 0
B19: (c ) | C19: (Loss) Intrest on House Loan Intrest | G19: =-'Gross Salary 19-20'!H65+'Gross Salary 19-20'!$L$56 -> 0
B20: (d) | C20: Income from pension | G20: ='Gross Salary 19-20'!H66 -> 0
B21: (e) | C21: Any other income | G21: ='Gross Salary 19-20'!H67 -> 0
A22: 8 | B22: Gross Total Income | H22: =H15+H17 -> 
A23: 9 | B23: Deductions under chapter VI A
A24: (a) | B24: U/S 80 CCE -: Invesment in specified investment plans
A25: (i) | B25: Genral Provided Fund | D25: ='Gross Salary 19-20'!E77 -> 0 | E25: (ix) | F25: Purchases of NSC | G25: ='Gross Salary 19-20'!E85 -> 0
A26: (ii) | B26: State Insurance | D26: ='Gross Salary 19-20'!E78 -> 0 | E26: (x) | F26: PPF | G26: ='Gross Salary 19-20'!E86 -> 0
A27: (iii) | B27: Group Insurance | D27: ='Gross Salary 19-20'!E79 -> 220 | E27: (xi) | F27: PLI / ULIP | G27: ='Gross Salary 19-20'!E87 -> 0
A28: (iv) | B28: Life Insurance Premium | D28: ='Gross Salary 19-20'!E80+'Gross Salary 19-20'!$K$56 -> 0 | E28: (xii) | F28: IDBI/ICCI | G28: ='Gross Salary 19-20'!E88 -> 0
A29: (v) | B29: Accured Intrest on NSC | D29: ='Gross Salary 19-20'!E81 -> 0 | E29: (xiii) | F29: BANK /POST OFFICE FD | G29: ='Gross Salary 19-20'!E89 -> 0
A30: (vi) | B30: Tution Fee | D30: ='Gross Salary 19-20'!E82 -> 150000 | E30: (xiv) | F30: Equity link saving bond | G30: ='Gross Salary 19-20'!E90 -> 0
A31: (vii) | B31: Repayment of HBA | D31: ='Gross Salary 19-20'!E83+'Gross Salary 19-20'!$M$56 -> 0 | E31: (xv) | F31: Sukanya Samriddhi Account Deposit Scheme | G31: ='Gross Salary 19-20'!E91 -> 0
A32: (viii) | B32: Hazard Fund | D32: ='Gross Salary 19-20'!E84 -> 0 | E32: (xvi) | F32: Any other ded. u/s 80C | G32: ='Gross Salary 19-20'!E92 -> 0
A33: (b) | B33: Cont. in pension fund (Section 80 CCC) | G33: ='Gross Salary 19-20'!E93 -> 0
A34: (c ) | B34: Employee cont. towards new pension scheme U/S 80 CCD(1) | G34: ='Gross Salary 19-20'!E94 -> 0
A35: Aggregate total of section 80C,80CCC,80CCD (u/s 80 CCE) | H35: =IF(SUM(D25:D32,G25:G34)>150000,150000,SUM(D25:D32,G25:G34)) -> 150000
A36: Other sections ( for e.g., 80E, 80G etc. ) under chapter VIA
A37: a. | B37: U/S 80 CCD(2) | C37: Employer cont. towards new pension scheme | G37: ='Gross Salary 19-20'!N76 -> 0 | H37: =G37 -> 0
B38: U/S 80 CCD(1B) | C38: Additional contribution towards NPS (Upto Rs. 50000 from F.Y. 2015-16) | G38: =taxtable1819!$BO$14 -> 0 | H38: =IF(G38>50000,50000,G38) -> 0
A39: b. | B39: U/S 80CCF | C39: Investment in long term infrasturture bonds | G39: ='Gross Salary 19-20'!N78 -> 0 | H39: =G39 -> 0
A40: c. | B40: U/S 80D- | C40: Medical ins. premium | G40: ='Gross Salary 19-20'!N79 -> 0 | H40: =IF(G40>100000,100000,G40) -> 0
A41: d. | B41: U/S 80DD- | C41: Medical treat. of dependent handicapped person | G41: ='Gross Salary 19-20'!N80 -> 0 | H41: =taxtable1819!EZ2 -> 0 | I41: =taxtable1819!FA4 -> Maxi. allow limit in case of Severe disability Rs. 125000
A42: e. | B42: U/S 80DDB- | C42: Spl ded.to the guardion of a patient suff.from Cancer/Aids | G42: ='Gross Salary 19-20'!N81 -> 0 | H42: =IF(G42>40000,40000,G42) -> 0
A43: f. | B43: U/S 80E- | C43: Repayment of loan for higher education | G43: ='Gross Salary 19-20'!N82 -> 0 | H43: =G43 -> 0
A44: g. | B44: U/S 80EE | C44: Intrest paid on HBA(Loan taking after01-04-13 excluding u/s 24B) | G44: ='Gross Salary 19-20'!N83 -> 0 | H44: =IF(G44>50000,50000,G44) -> 0
A45: h. | B45: U/S 80G- | C45: Donation . 50% and 100% | G45: ='Gross Salary 19-20'!N84 -> 0 | H45: =taxtable1819!EZ10 -> 
A46: i. | B46: U/S 80CCG | C46: New Rajiv Gandhi Saving Scheme | G46: ='Gross Salary 19-20'!N85 -> 0 | H46: =IF(G46>25000,25000,G46) -> 0
A47: j. | B47: U/S 80TTA | C47: Exempt -Intrest from saving bank | G47: ='Gross Salary 19-20'!N86 -> 0 | H47: =taxtable1819!M1102 -> 0
A48: k. | B48: ='Gross Salary 19-20'!G87 -> U/S 80TTB | C48: ='Gross Salary 19-20'!H87 -> Interest income earned on Fixed Deposits & Recurring Deposits | G48: ='Gross Salary 19-20'!N87 -> 0 | H48: =taxtable1819!M1098 -> 0
A49: l. | B49: U/S 80U- | C49: Phy. hand. person or blind person | G49: ='Gross Salary 19-20'!N88 -> 0 | H49: =taxtable1819!EZ6 -> 0 | I49: =taxtable1819!FA9 -> Maxi. allow limit in case of Severe disability Rs. 125000
A50: 10 | B50: Total deduction under chapter VIA | H50: =SUM(H35,H37:H49) -> 
G51: =IF(H22-H50>0,ROUNDUP(H22-H50,-1),0) ->  | H51: =IF(H22-H50>0,H22-H50,0) -> 
A52: 11 | B52: Total Income ( 8 - 10 ) (Rounded off u/s 288A) | H52: =IF(G51-H51<=5,ROUNDUP(G51,-1),ROUNDUP(G51,-1)-10) -> 
A53: 12 | B53: Tax Calculation (With adjusting rebate of agriculture income,if any) | H53: =taxtable1819!C1063 -> 
A54: 13 | B54: Less-Relief U/S 87A (From F.Y. 2013-14) | H54: =taxtable1819!D1063 -> 
A55: 14 | B55: Surcharge (if any) | D55: =taxtable1819!B1067 ->  | H55: =taxtable1819!D1053 -> 
A56: 15 | B56: =IF(F1="2018-19","Add -Health and Education Cess & 4% ","Add -Education Cess @2% on Tax+H.Education Cess @1% ") -> Add -Health and Education Cess & 4% | H56: =taxtable1819!E1063 -> 
A57: 16 | B57: Total Tax (12-13+14+15) | D57: =taxtable1819!L1070 ->  | H57: =taxtable1819!F1063 -> 
A58: 17 | B58: Releif U/S 89 (1) | H58: ='Gross Salary 19-20'!N60 -> 0
A59: 18 | B59: Net Tax Payable (15-16) | D59: =taxtable1819!B1067 ->  | H59: =H57-H58 -> 
A60: 19 | B60: Income Tax Deducted | H60: =SUM($C$62:$C$65)+SUM($E$62:$E$65)+SUM($G$62:$G$65) -> 0
B61: MONTH | C61: AMT | D61: MONTH | E61: AMT | F61: MONTH | G61: AMT
B62: ='Gross Salary 19-20'!A38 -> 2021-03-01 | C62: =taxtable1819!DM7 -> 0 | D62: ='Gross Salary 19-20'!A42 -> 2021-07-01 | E62: =taxtable1819!DM11 -> 0 | F62: ='Gross Salary 19-20'!A46 -> 2021-11-01 | G62: =taxtable1819!DM15 -> 0
B63: ='Gross Salary 19-20'!A39 -> 2021-04-01 | C63: =taxtable1819!DM8 -> 0 | D63: ='Gross Salary 19-20'!A43 -> 2021-08-01 | E63: =taxtable1819!DM12 -> 0 | F63: ='Gross Salary 19-20'!A47 -> 2021-12-01 | G63: =taxtable1819!DM16 -> 0
B64: ='Gross Salary 19-20'!A40 -> 2021-05-01 | C64: =taxtable1819!DM9 -> 0 | D64: ='Gross Salary 19-20'!A44 -> 2021-09-01 | E64: =taxtable1819!DM13 -> 0 | F64: ='Gross Salary 19-20'!A48 -> 2022-01-01 | G64: =taxtable1819!DM17 -> 0
B65: ='Gross Salary 19-20'!A41 -> 2021-06-01 | C65: =taxtable1819!DM10 -> 0 | D65: ='Gross Salary 19-20'!A45 -> 2021-10-01 | E65: =taxtable1819!DM14 -> 0 | F65: ='Gross Salary 19-20'!A49 -> 2022-02-01 | G65: =taxtable1819!DM18 -> 0
A66: 20 | B66: =taxtable1819!H1066 ->  | H66: =taxtable1819!J1063 -> 
A68: Place
A69: Date: | C69: =TODAY() -> 2021-11-29 | G69: SIGNATURE OF EMPLOYEE
A72: Calculaton of Advance tax and Int. u/s 234C | H72: =$H$59 -> 
A73: Date upto | C73: Adv tax due | E73: Act. Tax paid | G73: Shortage tax | H73: Int u/s 234C
A74: 2018-06-15 | C74: =ROUND($H$59*taxtable1819!J1125,0) ->  | E74: =SUM($C$62:$C$64) -> 0 | G74: =C74-E74 ->  | H74: =taxtable1819!F1124 -> 
A75: 2018-09-15 | C75: =ROUND($H$59*taxtable1819!J1126,0) ->  | E75: =SUM(C65,E62,E63)+E74 -> 0 | G75: =C75-E75 ->  | H75: =taxtable1819!F1125 -> 
A76: 2018-12-15 | C76: =ROUND($H$59*taxtable1819!J1127,0) ->  | E76: =SUM(E64:E65,G62)+E75 -> 0 | G76: =C76-E76 ->  | H76: =taxtable1819!F1126 -> 
A77: 2019-03-15 | C77: =ROUND($H$59*taxtable1819!J1128,0) ->  | E77: =SUM(G63:G65)+E76 -> 0 | G77: =C77-E77 ->  | H77: =taxtable1819!F1127 -> 
A78: 2019-03-31 | C78: =ROUND($H$59*taxtable1819!J1129,0) ->  | E78: 0 | G78: 0 | H78: =taxtable1819!F1128 -> 0
A79: Total | C79: =H72 ->  | E79: =H60 -> 0 | G79: =IF(C79>E79,ROUNDDOWN(C79-E79,-2),0) ->  | H79: =IF(G79>0,SUM(H74:H77),0) -> 
A80: Acutal Amount of Intrest u/s 234C | E80: =pravesh(H79) -> 
A81: =IF(H72>10000," Advance Tax Liability raised due to total tax payable is greater than Rs. 10,000 in a year","No Advance Tax Liability raised due to total tax payable is less than Rs. 10,000 in a year") -> 

Sheet Covid
A1: Home | F1: Gross Salary (Home)
A3: Particular | B3: Unit | C3: अखिल भारतीय सेवाओं के समस्त अधिकारी | D3: समस्त राज्य सेवाओं के अधिकारी | E3: अधीनस्थ सेवाओं के अधिकारी/कर्मचारी | F3: मंत्रालयिक सेवाओं के अधिकारी/कर्मचारी | G3: चतुर्थ श्रेणी कर्मचारी | H3: Effective Month
A4: CM Relief Fund-Deduction (in days) | C4: 5 | D4: 5 | E4: 3 | F4: 2 | G4: 1 | H4: March 20,Sept 20 & Oct 20
A5: Base for CM Relief Fund Ded. | C5: Basic Salary | D5: Gross Salary
A6: Deferment of Salary | B6: In % | C6: 0.6 | D6: 0.5 | E6: 0.5 | F6: 0.3 | G6: 0.3 | H6: 2020-03-01
B7: In days | C7: 19 | D7: 16 | E7: 16 | F7: 9 | G7: 9
A8: Drawn Salary | B8: In days | C8: =31-C7 -> 12 | D8: =31-D7 -> 15 | E8: =31-E7 -> 15 | F8: =31-F7 -> 22 | G8: =31-G7 -> 22

Sheet Emp_list
A1: Empl.code | B1: Name | C1: Disignation | D1: PAN | E1: Code_Name
A2: 1 | B2: PRAVESH KUMAR SHARMA | C2: AAO-I | D2: ABCPP1234D | E2: =CONCATENATE(A2,"-",B2) -> 1-PRAVESH KUMAR SHARMA
A3: 2 | B3: xyz | C3: abc | D3: ABCPP1234D | E3: 2-xyz
A4: 3 | B4: ABCD | C4: UDC | D4: ABCPP1234D | E4: 3-ABCD
E5: - | G5: Gross Salary (Home)
E6: -
E7: -
E8: -
E9: - | G9: Income Tax Statement
E10: -
E11: -
E12: -
E13: -
E14: -
E15: -
E16: -
E17: -
E18: -
E19: -
E20: -
E21: -
E22: -
E23: -
E24: -
E25: -
E26: -
E27: -
E28: -
E29: -
E30: -
E31: -
E32: -
E33: -
E34: -
E35: -
E36: -
E37: -
E38: -
E39: -
E40: -
E41: -
E42: -
E43: -
E44: -
E45: -
E46: -
E47: -
E48: -
E49: -
E50: -
E51: -
E52: -
E53: -
E54: -
E55: -
E56: -
E57: -
E58: -
E59: -
E60: -
E61: -
E62: -
E63: -
E64: -
E65: -
E66: =CONCATENATE(A66,"-",B66) -> -
E67: -
E68: -
E69: -
E70: -
E71: -
E72: -
E73: - | G73: Gross Salary (Home)
E74: -
E75: -
E76: -
E77: -
E78: -
E79: -
E80: -
E81: -
E82: -
E83: -
E84: -
E85: -
E86: -
E87: -
E88: -
E89: -
E90: -
E91: -
E92: -
E93: -
E94: -
E95: -
E96: -
E97: -
E98: -
E99: -
E100: -
E101: -
E102: -
E103: -
E104: -
E105: -
E106: -
E107: -
E108: -
E109: -
E110: -
E111: -
E112: -
E113: -
E114: -
E115: -
E116: -
E117: -
E118: -
E119: -
E120: -
E121: -
E122: -
E123: -
E124: -
E125: -
E126: -
E127: -
E128: -
E129: -
E130: =CONCATENATE(A130,"-",B130) -> -
E131: -
E132: -
E133: -
E134: -
E135: -
E136: -
E137: -
E138: -
E139: -
E140: -
E141: -
E142: -
E143: -
E144: -
E145: -
E146: -
E147: -
E148: -
E149: -
E150: -
E151: -
E152: -
E153: -
E154: -
E155: -
E156: -
E157: -
E158: -
E159: -
E160: -
E161: -
E162: -
E163: -
E164: -
E165: -
E166: -
E167: -
E168: -
E169: -
E170: -
E171: -
E172: -
E173: -
E174: -
E175: -
E176: -
E177: -
E178: -
E179: -
E180: -
E181: -
E182: -
E183: - | G183: Income Tax Statement
E184: -
E185: -
E186: -
E187: -
E188: -
E189: -
E190: -
E191: -
E192: -
E193: -
E194: =CONCATENATE(A194,"-",B194) -> -
E195: -
E196: -
E197: -
E198: -
E199: -
E200: -
... 641 more rows

Sheet Fixation Arrear
B1: Gross Salary (Home) | G1: Income Tax Statement
A3: ARREAR START _END PERIOD | E3: =CONCATENATE("Basic Pay on "," ",TEXT(A6,"mm/yyyy")) -> Basic Pay on 01/2017 | J3: Whether arrear amount including deduction amount process for calculation of Gross Salary | T3: NO
A4: Start_Period | C4: End_Period | E4: Due Pay (in VII pay) | G4: Drawn Pay (in VI pay)
A6: ='Gross Salary 19-20'!$A$26 -> 2017-01-01 | C6: ='Gross Salary 19-20'!$C$26 -> 2017-09-30 | E6: ='Gross Salary 19-20'!$E$26 -> 69200 | G6: ='Gross Salary 19-20'!$G$26 -> 26670
A8: =CONCATENATE("Calculation of Fixation arrear"," ","From"," ",TEXT(A6,"mm/yyyy")," ","to "," ",TEXT(C6,"mm/yyyy")," ") -> Calculation of Fixation arrear From 01/2017 to 09/2017
A9: Period | B9: Arrear benefit condition | C9: Incr. Condt. | D9: Grade Pay Diff. | E9: Due Basic Pay | H9: Drawn Basic Pay | K9: DA Rate in VII Pay | L9: DA Rate in VI Pay | M9: Due Gross Amt. | N9: Income Tax | S9: GPF | T9: ECPen Fund | U9: Net Due Amt. | V9: Encashment/Voucher month
E10: Basic Pay | F10: Edit in Basic Pay | G10: Final Basic Pay | H10: Basic Pay | I10: Edit in Basic Pay | J10: Final Basic Pay | N10: I.Tax Rate | O10: Tax amt | P10: Edit amt | Q10: Codt. | R10: Income Tax
A11: =taxtable1819!CK8 -> 2017-01-01 | B11: Adj. in GPF | C11: NO | E11: =IF(A11="","",taxtable1819!CN8) -> 69200 | G11: =IF(A11="","",taxtable1819!CP8) -> 69200 | H11: =IF(A11="","",taxtable1819!CR8) -> 26670 | J11: =IF(A11="","",taxtable1819!CT8) -> 26670 | K11: =IF(A11="","",taxtable1819!DB8) -> 0.04 | L11: =IF(A11="","",taxtable1819!CY8) -> 1.36 | M11: =IF(A11="","",G11+ROUND(G11*K11,0)-(H11+(ROUND(J11*L11,0)))) -> 9027 | N11: 0.1 | O11: =IF(M11>0,ROUND(M11*N11,0)) -> 903 | Q11: YES | R11: =IF(A11="","",IF(Q11="NO",0,IF(P11>0,P11,O11))) -> 903 | S11: =IF(A11=""," ",IF(B11="Adj. in GPF",M11-R11,0)) -> 8124 | T11: =IF(A11="","",IF(B11="Notional",0,IF(B11="Adj. in GPF",0,IF(B11="Cash",ROUND(M11*10%,0))))) -> 0 | U11: =M11-R11-S11-T11 -> 0 | V11: 2019-08-01
A12: =taxtable1819!CK9 -> 2017-02-01 | B12: Adj. in GPF | C12: NO | E12: =IF(A12="","",taxtable1819!CN9) -> 69200 | G12: =IF(A12="","",taxtable1819!CP9) -> 69200 | H12: =IF(A12="","",taxtable1819!CR9) -> 26670 | J12: =IF(A12="","",taxtable1819!CT9) -> 26670 | K12: =IF(A12="","",taxtable1819!DB9) -> 0.04 | L12: =IF(A12="","",taxtable1819!CY9) -> 1.36 | M12: =IF(A12="","",G12+ROUND(G12*K12,0)-(H12+(ROUND(J12*L12,0)))) -> 9027 | N12: 0.1 | O12: =IF(M12>0,ROUND(M12*N12,0)) -> 903 | Q12: YES | R12: =IF(A12="","",IF(Q12="NO",0,IF(P12>0,P12,O12))) -> 903 | S12: =IF(A12=""," ",IF(B12="Adj. in GPF",M12-R12,0)) -> 8124 | T12: =IF(A12="","",IF(B12="Notional",0,IF(B12="Adj. in GPF",0,IF(B12="Cash",ROUND(M12*10%,0))))) -> 0 | U12: =M12-R12-S12-T12 -> 0 | V12: 2019-09-01
A13: =taxtable1819!CK10 -> 2017-03-01 | B13: Adj. in GPF | C13: NO | E13: =IF(A13="","",taxtable1819!CN10) -> 69200 | G13: =IF(A13="","",taxtable1819!CP10) -> 69200 | H13: =IF(A13="","",taxtable1819!CR10) -> 26670 | J13: =IF(A13="","",taxtable1819!CT10) -> 26670 | K13: =IF(A13="","",taxtable1819!DB10) -> 0.04 | L13: =IF(A13="","",taxtable1819!CY10) -> 1.36 | M13: 9027 | N13: 0.1 | O13: 903 | Q13: YES | R13: 903 | S13: 8124 | T13: 0 | U13: 0 | V13: 2019-09-01
A14: =taxtable1819!CK11 -> 2017-04-01 | B14: Adj. in GPF | C14: NO | E14: =IF(A14="","",taxtable1819!CN11) -> 69200 | G14: =IF(A14="","",taxtable1819!CP11) -> 69200 | H14: =IF(A14="","",taxtable1819!CR11) -> 26670 | J14: =IF(A14="","",taxtable1819!CT11) -> 26670 | K14: =IF(A14="","",taxtable1819!DB11) -> 0.04 | L14: =IF(A14="","",taxtable1819!CY11) -> 1.36 | M14: 9027 | N14: 0.1 | O14: 903 | Q14: YES | R14: 903 | S14: 8124 | T14: 0 | U14: 0 | V14: 2019-09-01
A15: =taxtable1819!CK12 -> 2017-05-01 | B15: Adj. in GPF | C15: NO | E15: =IF(A15="","",taxtable1819!CN12) -> 69200 | G15: =IF(A15="","",taxtable1819!CP12) -> 69200 | H15: =IF(A15="","",taxtable1819!CR12) -> 26670 | J15: =IF(A15="","",taxtable1819!CT12) -> 26670 | K15: =IF(A15="","",taxtable1819!DB12) -> 0.04 | L15: =IF(A15="","",taxtable1819!CY12) -> 1.36 | M15: 9027 | N15: 0.1 | O15: 903 | Q15: YES | R15: 903 | S15: 8124 | T15: 0 | U15: 0 | V15: 2019-09-01
A16: =taxtable1819!CK13 -> 2017-06-01 | B16: Adj. in GPF | C16: NO | E16: =IF(A16="","",taxtable1819!CN13) -> 69200 | G16: =IF(A16="","",taxtable1819!CP13) -> 69200 | H16: =IF(A16="","",taxtable1819!CR13) -> 26670 | J16: =IF(A16="","",taxtable1819!CT13) -> 26670 | K16: =IF(A16="","",taxtable1819!DB13) -> 0.04 | L16: =IF(A16="","",taxtable1819!CY13) -> 1.36 | M16: 9027 | N16: 0.1 | O16: 903 | Q16: YES | R16: 903 | S16: 8124 | T16: 0 | U16: 0 | V16: 2019-09-01
A17: =taxtable1819!CK14 -> 2017-07-01 | B17: Adj. in GPF | C17: YES | E17: =IF(A17="","",taxtable1819!CN14) -> 71300 | G17: =IF(A17="","",taxtable1819!CP14) -> 71300 | H17: =IF(A17="","",taxtable1819!CR14) -> 27470 | J17: =IF(A17="","",taxtable1819!CT14) -> 27470 | K17: =IF(A17="","",taxtable1819!DB14) -> 0.05 | L17: =IF(A17="","",taxtable1819!CY14) -> 1.39 | M17: 9212 | N17: 0.1 | O17: 921 | Q17: YES | R17: 921 | S17: 8291 | T17: 0 | U17: 0 | V17: 2019-09-01
A18: =taxtable1819!CK15 -> 2017-08-01 | B18: Adj. in GPF | C18: NO | E18: =IF(A18="","",taxtable1819!CN15) -> 71300 | G18: =IF(A18="","",taxtable1819!CP15) -> 71300 | H18: =IF(A18="","",taxtable1819!CR15) -> 27470 | J18: =IF(A18="","",taxtable1819!CT15) -> 27470 | K18: =IF(A18="","",taxtable1819!DB15) -> 0.05 | L18: =IF(A18="","",taxtable1819!CY15) -> 1.39 | M18: 9212 | N18: 0.1 | O18: 921 | Q18: YES | R18: 921 | S18: 8291 | T18: 0 | U18: 0 | V18: 2019-09-01
A19: =taxtable1819!CK16 -> 2017-09-01 | B19: Adj. in GPF | C19: NO | E19: =IF(A19="","",taxtable1819!CN16) -> 71300 | G19: =IF(A19="","",taxtable1819!CP16) -> 71300 | H19: =IF(A19="","",taxtable1819!CR16) -> 27470 | J19: =IF(A19="","",taxtable1819!CT16) -> 27470 | K19: =IF(A19="","",taxtable1819!DB16) -> 0.05 | L19: =IF(A19="","",taxtable1819!CY16) -> 1.39 | M19: 9212 | N19: 0.1 | O19: 921 | Q19: YES | R19: 921 | S19: 8291 | T19: 0 | U19: 0 | V19: 2019-09-01
A20: Grant Total | E20: =SUM(E11:E19) -> 629100 | F20: -- | G20: =SUM(G11:G19) -> 629100 | H20: 242430 | I20: -- | J20: =IF($T$3="NO",0,SUM(J11:J19)) -> 0 | K20: -- | L20: -- | M20: =IF($T$3="NO",0,SUM(M11:M19)) -> 0 | O20: =IF($T$3="NO",0,SUM(O11:O19)) -> 0 | R20: =IF($T$3="NO",0,SUM(R11:R19)) -> 0 | S20: =IF($T$3="NO",0,SUM(S11:S19)) -> 0 | T20: =IF($T$3="NO",0,SUM(T11:T19)) -> 0 | U20: =IF($T$3="NO",0,SUM(U11:U19)) -> 0 | V20: --
I25: Income Tax Statement | S25: Gross Salary (Home)

Sheet HRA
B1: Home | H1: Gross Salary (Home)
A3: HOUSE RENT ALLOWANCE REBATE CALUCATION-ANNUAL BASIS
A4: Parameters | C4: Input | D4: Result (output)
A5: City Type | C5: Non Metro City | D5: (2) EXCESS OF 10% PAY | F5: =CONCATENATE("(",C6,"*",C7,"-",C8,"*",10,"%",")") -> (50000*12-1370634*10%) | I5: =C6*C7-ROUND(C8*10%,0) -> 462937
A6: HR PAID AMT P.M. | C6: 50000 | D6: =IF(C5="Metro City","(3) 50% of Salary","(3) 40% of Salary") -> (3) 40% of Salary | F6: =IF(C5="Metro City",CONCATENATE("(",C8,"*",,50,"%",")"),CONCATENATE("(",C8,"*",,40,"%",")")) -> (1370634*40%) | I6: =IF(C5="Metro City",ROUND(C8*50%,0),ROUND(C8*40%,0)) -> 548254
A7: PERIOD FOR PAID (in months) | C7: 12 | D7: MINIMUM VALUE | F7: =CONCATENATE("(",C9,",",I5,",",I6,")") -> (45000,462937,548254) | I7: =MIN(C9,I5:I6) -> 45000
A8: SALARY FOR HRA (Basic Pay+G.P.+D.A/D.P.) | C8: ='Gross Salary 19-20'!H56 -> 1370634 | D8: HRA AMT EXEMPT U/S 10(13A) | F8: =IF(I8="NIL","Not Allowed",pravesh(I8)) -> Rupees FourtyFive Thousand Only | I8: =IF(I7>0,I7,"NIL") -> 45000
A9: (1) HRA RECEIVED | C9: 45000
A11: Practical tax treatment of investment in NPS
A13: S.N. | B13: Investment type | E13: Under Section | F13: Amt (in Rs.) | G13: Remarks | I13: Deduction allowed
A14: 1 | B14: Employee contribution in NPS | E14: 80CCD(1) | F14: 25000 | G14: (employee cont. 10% of salary)
A15: 2 | B15: Other Investment (i.e. LIC,PPF, ect.) | E15: 80C | F15: 135000
A16: 3 | B16: Total Investment | F16: =SUM(F14:F15) -> 160000
A17: 4 | B17: Allowed Total Investment (subject to max. 150000 ) | E17: 80CCE | F17: =IF(SUM(F14:F15)>150000,150000,SUM(F14:F15)) -> 150000 | G17: (applicable to all employee) | I17: =F17 -> 150000
A18: 5 | B18: NPS contribution remaining part | D18: =IF(F18>0,F18,0) -> 10000 | F18: =IF((F14+F15-F17)>=F14,F14,(F14+F15-F17)) -> 10000
A19: 6 | B19: Additional Investment in NPS (-other than s.n. 1) | E19: 80CCD(1B) | F19: 0 | G19: (any person upto max 50000) | I19: =IF(F19>50000,50000,F19) -> 0
A20: 7 | B20: Total investment part | F20: =SUM(F18:F19) -> 10000
A21: 8 | B21: Swithover to saving in 80CCD(1B) (subject to max. 50000) | F21: =IF(F20>50000,50000,F20) -> 10000 | G21: (employee belong to NPS category) | I21: =F21 -> 10000
A24: Summary of section 80CCD (1) & 80CCD(2) & 80CCD(1B)
A25: S.N. | B25: Section | C25: Particular | F25: Old Limit | G25: New Limit (from F.Y. 2015-16) | H25: Covered in 80CCE overall Limit of 1.5 Lakh
A26: 1 | B26: 80CCC | C26: Contribution to Pension policy | F26: 100000 | G26: 150000 | H26: Yes
A27: 2 | B27: 80CCD(1) | C27: Self Investment in Pension scheme | F27: 100000 | G27: 150000 | H27: Yes
A28: 3 | B28: 80CCD(IB) | C28: Self Investment in Pension scheme | F28: 0 | G28: 50000 | H28: No (additional Limit)
A29: 4 | B29: 80CCD(2) | C29: Employer Contribution in NPS | F29: Without any monetary limit | H29: No (additional Limit)
B32: The National Pension System consists of two types of accounts
B37: Tier-I account | F37: Tier-II account
B39: The Contribution to Tier-I is mandatory for all Government servants joining Government service on or after 1-1-2004 | F39: Tier-II will be optional and at the discretion of Government servants.
A44: Nature | C44: Section | D44: Maximum deduction | F44: Note | H44: The contribution of the Central Government to NPS for its employees is increased to 14% with effect from 1 April 2019. In case your employer is contributing to NPS, and you are also contributing to NPS – you can claim all the three deductions listed above to maximise your tax benefits.
A45: Deduction for employer contribution | C45: 80CCD(2) | D45: 10% of salary (no monetary limit) | F45: Outside of 80C and 80CCD(1B) limits
A46: Deduction for employee’s contribution | C46: 80CCD(1) | D46: 10% of salary, max up to Rs.1,50,000 | F46: Within Section 80C
A47: Self contribution to NPS | C47: 80CCD(1B) | D47: Rs.50,000 | F47: In addition to 80C and 80CCD(2)

Sheet 12BB
A1: FORM NO.12BB | G1: Home
A2: (See rule 26C)
E3: =Statement1920!H1 -> 1 | G3: Gross Salary (Home)
A4: 1. Name and address of the employee: | D4: =Statement1920!G3 -> PRAVESH KUMAR SHARMA
A5: 2. Permanent Account Number of the employee: | D5: =Statement1920!C4 -> ABCPP1234D
A6: 3. Financial year: | D6: ='Gross Salary 19-20'!D7 -> 2021-22
A8: Details of claims and evidence thereof
A9: Sl No. | B9: Nature of claim | D9: Amount (Rs.) | E9: Evidence / particulars
A10: (1) | B10: (2) | D10: (3) | E10: (4)
A11: 1 | B11: House Rent Allowance:
B12: (i) Rent paid to the landlord
B13: (ii) Name of the landlord
B14: (iii) Address of the landlord
B15: (iv) Permanent Account Number of the landlord
B16: Note: Permanent Account Number shall be furnished if the aggregate rent paid during the previous year exceeds one lakh rupees
A17: 2 | B17: Leave travel concessions or assistance
A18: 3 | B18: Deduction of interest on borrowing:
B19: (i) Interest payable/paid to the lender
B20: (ii) Name of the lender
B21: (iii) Address of the lender
B22: (iv) Permanent Account Number of the lender
B23: (a) Financial Institutions(if available)
B24: (b) Employer(if available)
B25: (c) Others
A26: 4 | B26: Deduction under Chapter VI-A
B27: (A) Section 80C,80CCC and 80CCD
B28: (i) Section 80C
B29: (a)
B30: (b)
B31: (c)
B32: (d)
B33: (e)
B34: (f)
B35: (g)
B36: (h)
B37: (i)
B38: (j)
B39: (k)
B40: (ii) Section 80CCC
B41: (iii) Section 80CCD
B42: (B) Other sections (e.g. 80E, 80G, 80TTA, etc.) under Chapter VI-A.
B43: (i) section……………….
B44: (ii) section……………….
B45: (iii) section……………….
B46: (iv) section……………….
B47: (v) section……………….
A48: Verification
A49: I | B49: =D4 -> PRAVESH KUMAR SHARMA | D49: s/o of
A50: do hereby certify that the information given above is complete and correct.
A51: Place
A52: Date | D52: (Signature of the employee)
A53: Designation | C53: =Statement1920!G4 -> AAO-I
D61: Gross Salary (Home)

Sheet TABLE1920 (hidden)
A1: Tax computation for Tax Calculator
A2: =Statement1920!$G$2 -> Existing Option | B2: Financial Year | E2: =Statement1920!F1 -> 2021-22 | I2: (Above 60 year but less than 80) | K2: =E4+250000 -> 1420630
B3: Tax Category | E3: =Statement1920!$C$3 -> MALE
B4: Taxable Income | E4: =Statement1920!$H$67 -> 1170630 | S4: =pravesh(S1002) -> Rupees Fifty Lakh Only
A5: Fin. Year | C5: 1985 | D5: =C5+1 -> 1986 | F5: 1985-86 | H5: Computation Table | N5: Fin. Year | P5: 1985 | Q5: =P5+1 -> 1986 | AL5: Financial Year for NSC intrest | AO5: FIN. YEAR FOR SELECT | AQ5: Purchase between | AR5: Purchase between | AS5: Purchase between | AT5: Purchase between | AU5: Purchase between | AV5: Purchase on or
A6: Male | D6: TAX MARGIN | E6: TAX AT MARGIN | F6: SUR RATE | G6: E.Cess | H6: TAXABLE INCOME | I6: TAX RATE APPLY | J6: TAX MARGIN SLAB | K6: TAX SLAB | L6: Surch.Rate | M6: E.Cess | N6: Tax Range | AL6: F. Year 2009-10 | AM6: 2009-10 | AN6: =CONCATENATE(TABLE1920!AL6," ",TABLE1920!AM6) -> F. Year 2009-10 2009-10 | AO6: 2005-06 | AQ6: 1-Jan-89 to 31-Dec-98 | AR6: 1-Jan-99 to 14-Jan-00 | AS6: 15-Jan-00 to 28-Feb-01 | AT6: 1-Mar-01 to 28-Feb-02 | AU6: 1-Mar-02 to 28-Feb-03 | AV6: after 1-Mar-03
A7: Not defined | N7: F.Year | O7: =C5 -> 1985 | P7: =D5 -> 1986 | AL7: F. Year 2010-11 | AM7: 2010-11 | AN7: =CONCATENATE(TABLE1920!AL7," ",TABLE1920!AM7) -> F. Year 2010-11 2010-11 | AO7: 2006-07 | AP7: The year for which | AQ7: [Vide Rule 15(1) of the | AR7: [Vide Rule 15(2) of the | AS7: [Vide Rule 15(3) of the | AT7: [Vide Rule 15(4) of the | AU7: [Vide Rule 15(5) of the | AV7: [Vide Rule 15(6) of the
A8: 0 | B8: 18000 | C8: 0 | D8: 0 | E8: 0 | F8: 0 | G8: 0 | H8: =$E$4 -> 1170630 | I8: =VLOOKUP(H8,A8:C12,3) -> 0.5 | J8: =INDEX(D8:D12,MATCH(I8,C8:C12,0)) -> 100000 | K8: =INDEX(E8:E12,MATCH(I8,C8:C12,0)) -> 29250 | L8: =IF(H8>H12,VLOOKUP(H8,A8:F12,6),0) -> 0.05 | M8: =VLOOKUP(H8,A8:G12,7) -> 0 | N8: 0 | O8: =IF($E$3="Male",B8,IF($E$3="Female",B15,IF($E$3="Senior Citizen",B22,B29))) -> 18000 | P8: 0 | AL8: F. Year 2011-12 | AM8: 2011-12 | AN8: =CONCATENATE(TABLE1920!AL8," ",TABLE1920!AM8) -> F. Year 2011-12 2011-12 | AO8: 2007-08 | AP8: interest accruess | AQ8: NSC (VIII) Issue Rules,1989 | AR8: NSC (VIII) Issue Rules,1989 | AS8: NSC (VIII) Issue Rules,1989 | AT8: NSC (VIII) Issue Rules,1989 | AU8: NSC (VIII) Issue Rules,1989 | AV8: NSC (VIII) Issue Rules,1989
A9: =B8+1 -> 18001 | B9: 25000 | C9: 0.25 | D9: =B8 -> 18000 | E9: =(B9-B8)*C9 -> 1750 | F9: 0 | G9: 0 | H9: TAX CALCULALTION | I9: SURCHARGE | J9: E. CESS | K9: TOTAL TAX DUE | N9: =O8+1 -> 18001 | O9: 25000 | P9: 0.25 | AL9: F. Year 2012-13 | AM9: 2012-13 | AN9: =CONCATENATE(TABLE1920!AL9," ",TABLE1920!AM9) -> F. Year 2012-13 2012-13 | AO9: 2008-09 | AQ9: 0.12 | AR9: 0.115 | AS9: 0.11 | AT9: 0.095 | AU9: 0.09 | AV9: 0.08
A10: =B9+1 -> 25001 | B10: 50000 | C10: 0.3 | D10: =B9 -> 25000 | E10: =E9+(B10-B9)*C10 -> 9250 | F10: 0 | G10: 0 | H10: =IF(I8=C12,E11+ROUND((H8-J8),0)*I8,IF(I8=C11,E10+ROUND((H8-J8)*I8,0),IF(I8=C10,E9+ROUND((H8-J8)*I8,0),IF(I8=C9,E8+ROUND((H8-J8)*I8,0),E7+ROUND((H8-J8)*I8,0))))) -> 564565 | I10: =MIN(K12:L12) -> 28228 | J10: =ROUND(SUM(H10+I10)*M8,0) -> 0 | K10: =SUM(H10:J10) -> 592793 | N10: =O9+1 -> 25001 | O10: 50000 | P10: 0.3 | AL10: F. Year 2013-14 | AM10: 2013-14 | AN10: =CONCATENATE(TABLE1920!AL10," ",TABLE1920!AM10) -> F. Year 2013-14 2013-14 | AO10: 2009-10 | AP10: First year | AQ10: 12.4 | AR10: 11.83 | AS10: 11.3 | AT10: 9.72 | AU10: 9.2 | AV10: 8.16
A11: =B10+1 -> 50001 | B11: 100000 | C11: 0.4 | D11: =B10 -> 50000 | E11: =E10+(B11-B10)*C11 -> 29250 | F11: 0.05 | G11: 0 | H11: Surcharge limit | I11: Add.Tax Income | J11: Add. Tax | K11: Diff | L11: Sur. Amt | M11: M.R. | N11: =O10+1 -> 50001 | O11: 100000 | P11: 0.4 | AL11: F. Year 2014-15 | AM11: 2014-15 | AN11: =CONCATENATE(TABLE1920!AL11," ",TABLE1920!AM11) -> F. Year 2014-15 2014-15 | AO11: 2010-11 | AP11: Second year | AQ11: 13.9 | AR11: 13.23 | AS11: 12.58 | AT11: 10.67 | AU11: 10.05 | AV11: 8.83
A12: =B11+1 -> 100001 | C12: 0.5 | D12: 100000 | E12: =IF(J9=0,0,E11) -> 29250 | F12: 0.05 | G12: 0 | H12: 50000 | I12: =IF(H8>H12,H8-H12,0) -> 1120630 | J12: =IF(I12>0,ROUND(I12*I8,0),0) -> 560315 | K12: =I12-J12 -> 560315 | L12: =IF(H10>0,ROUND(H10*L8,0),0) -> 28228 | M12: =IF(K12>L12,0,L12-K12) -> 0 | N12: =O11+1 -> 100001 | O12: 0 | P12: 0.5 | AL12: F. Year 2015-16 | AM12: 2015-16 | AN12: 2015-16 | AO12: 2011-12 | AP12: Third year | AQ12: 15.6 | AR12: 14.8 | AS12: 14 | AT12: 11.71 | AU12: 10.97 | AV12: 9.55
A13: Female | D13: TAX MARGIN | E13: TAX AT MARGIN | F13: SUR RATE | G13: E.Cess | H13: TAXABLE INCOME | I13: TAX RATE APPLY | J13: TAX MARGIN SLAB | K13: TAX SLAB | L13: Surch.Rate | M13: E.Cess | N13: TAX CALCULALTION | P13: =IF($E$3="Male",H10,IF($E$3="Female",H17,IF($E$3="Senior Citizen",H24,H31))) -> 564565 | AO13: 2012-13 | AP13: Fourth year | AQ13: 17.5 | AR13: 16.54 | AS13: 15.58 | AT13: 12.85 | AU13: 11.98 | AV13: 10.33
A14: Not defined | N14: SURCHARGE | P14: =IF($E$3="Male",I10,IF($E$3="Female",I17,IF($E$3="Senior Citizen",I24,I31))) -> 28228 | AO14: 2013-14 | AP14: Fifth year | AQ14: 19.7 | AR14: 18.51 | AS14: 17.35 | AT14: 14.1 | AU14: 13.09 | AV14: 11.17
A15: 0 | B15: 18000 | C15: 0 | D15: 0 | E15: 0 | F15: 0 | G15: 0 | H15: =H8 -> 1170630 | I15: =VLOOKUP(H15,A15:C19,3) -> 0.5 | J15: =INDEX(D15:D19,MATCH(I15,C15:C19,0)) -> 100000 | K15: =INDEX(E15:E19,MATCH(I15,C15:C19,0)) -> 29250 | L15: =IF(H15>H19,VLOOKUP(H15,A15:F19,6),0) -> 0.05 | M15: =VLOOKUP(H15,A15:G19,7) -> 0 | N15: E. CESS | P15: =IF($E$3="Male",J10,IF($E$3="Female",J17,IF($E$3="Senior Citizen",J24,J31))) -> 0 | AO15: 2014-15 | AP15: Sixth year | AQ15: 22.4 | AR15: 20.69 | AS15: 19.31 | AT15: 15.47 | AU15: 14.29 | AV15: 12.08
A16: =B15+1 -> 18001 | B16: 25000 | C16: 0.25 | D16: =B15 -> 18000 | E16: =(B16-B15)*C16 -> 1750 | F16: 0 | G16: 0 | H16: TAX CALCULALTION | I16: SURCHARGE | J16: E. CESS | K16: TOTAL TAX DUE | N16: TOTAL TAX DUE | P16: =IF($E$3="Male",K10,IF($E$3="Female",K17,IF($E$3="Senior Citizen",K24,K31))) -> 592793 | AP16: Interest Total: | AQ16: 101.5 | AR16: 95.6 | AS16: 90.12 | AT16: 74.52 | AU16: 69.59 | AV16: 60.12
A17: =B16+1 -> 25001 | B17: 50000 | C17: 0.3 | D17: =B16 -> 25000 | E17: =E16+(B17-B16)*C17 -> 9250 | F17: 0 | G17: 0 | H17: =IF(I15=C19,E18+ROUND((H15-J15),0)*I15,IF(I15=C18,E17+ROUND((H15-J15)*I15,0),IF(I15=C17,E16+ROUND((H15-J15)*I15,0),IF(I15=C16,E15+ROUND((H15-J15)*I15,0),E14+ROUND((H15-J15)*I15,0))))) -> 564565 | I17: =MIN(K19:L19) -> 28228 | J17: =ROUND(SUM(H17+I17)*M15,0) -> 0 | K17: =SUM(H17:J17) -> 592793 | N17: Age Defined | P17: =IF($E$3="Male",A7,IF($E$3="Female",A14,IF($E$3="Senior Citizen",A21,A28))) -> Not defined | BC17: =(1+8%/2)^2-2 -> -0.9184
A18: =B17+1 -> 50001 | B18: 100000 | C18: 0.4 | D18: =B17 -> 50000 | E18: =E17+(B18-B17)*C18 -> 29250 | F18: 0.05 | G18: 0 | H18: Surcharge limit | I18: Add.Tax Income | J18: Add. Tax | K18: Diff | L18: Sur. Amt | M18: M.R. | N18: Marginal Releif | P18: =IF($E$3="Male",M12,IF($E$3="Female",M19,IF($E$3="Senior Citizen",M26,M33))) -> 0 | AZ18: (I) | BA18: (J) | BB18: (K) | BC18: (L) | BD18: (M) | BE18: (N) | BF18: (O)
A19: =B18+1 -> 100001 | C19: 0.5 | D19: 100000 | E19: =IF(J16=0,0,E18) -> 29250 | F19: 0.05 | G19: 0 | H19: =H12 -> 50000 | I19: =IF(H15>H19,H15-H19,0) -> 1120630 | J19: =IF(I19>0,ROUND(I19*I15,0),0) -> 560315 | K19: =I19-J19 -> 560315 | L19: =IF(H17>0,ROUND(H17*L15,0),0) -> 28228 | M19: =IF(K19>L19,0,L19-K19) -> 0 | N19: Tax Due | P19: =IF($E$3="Male",K10,IF($E$3="Female",K17,IF($E$3="Senior Citizen",K24,K31))) -> 592793 | AP19: Purchase From-> | AQ19: 1980-01-01 | AR19: =AQ20+1 -> 1999-01-01 | AS19: 2000-01-15 | AT19: 2001-03-01 | AU19: 2002-03-01 | AV19: 2003-03-01 | AW19: 2011-12-01 | AX19: 2012-04-01 | AY19: 2013-04-01 | AZ19: 2016-04-01 | BA19: 2016-04-01 | BB19: 2016-10-01 | BC19: 2017-04-01 | BD19: 2017-07-01 | BE19: 2018-01-01 | BF19: 2019-04-01
A20: Senior Citizen | D20: TAX MARGIN | E20: TAX AT MARGIN | F20: SUR RATE | G20: E.Cess | H20: TAXABLE INCOME | I20: TAX RATE APPLY | J20: TAX MARGIN SLAB | K20: TAX SLAB | L20: Surch.Rate | M20: E.Cess | AP20: Purchase To-> | AQ20: 1998-12-31 | AR20: 2000-01-14 | AS20: 2001-02-28 | AT20: 2002-02-28 | AU20: 2003-02-28 | AV20: 2011-11-30 | AW20: 2012-03-31 | AX20: 2013-03-31 | AY20: 2016-03-31 | AZ20: 2016-09-30 | BA20: 2016-09-30 | BB20: 2017-03-31 | BC20: 2017-06-30 | BD20: 2017-12-31 | BE20: 2019-03-31 | BF20: 2020-03-31
A21: Not defined | AP21: Interest Rate -> | AQ21: 0.12 | AR21: 0.115 | AS21: 0.11 | AT21: 0.095 | AU21: 0.09 | AV21: 0.08 | AW21: 0.084 | AX21: 0.086 | AY21: 0.085 | AZ21: 0.081 | BA21: 0.08 | BB21: 0.079 | BC21: 0.078 | BD21: 0.076 | BE21: 0.076 | BF21: 0.076
A22: 0 | B22: 18000 | C22: 0 | D22: 0 | E22: 0 | F22: 0 | G22: 0 | H22: =H8 -> 1170630 | I22: =VLOOKUP(H22,A22:C26,3) -> 0.5 | J22: =INDEX(D22:D26,MATCH(I22,C22:C26,0)) -> 100000 | K22: =INDEX(E22:E26,MATCH(I22,C22:C26,0)) -> 29250 | L22: =IF(H22>H26,VLOOKUP(H22,A22:F26,6),0) -> 0.05 | M22: =VLOOKUP(H22,A22:G26,7) -> 0 | AP22: 1st com. year | AQ22: 12.4 | AR22: 11.83 | AS22: 11.3 | AT22: 9.72 | AU22: 9.2 | AV22: 8.16 | AW22: 8.58 | AX22: 8.78 | AY22: 8.68 | AZ22: 8.68 | BA22: 8.1 | BB22: 8 | BC22: 7.9 | BD22: 7.8 | BE22: 7.6 | BF22: =BE22 -> 7.6 | BG22: =AP22 -> 1st com. year
A23: =B22+1 -> 18001 | B23: 25000 | C23: 0.25 | D23: =B22 -> 18000 | E23: =(B23-B22)*C23 -> 1750 | F23: 0 | G23: 0 | H23: TAX CALCULALTION | I23: SURCHARGE | J23: E. CESS | K23: TOTAL TAX DUE | AP23: 2nd com. year | AQ23: 13.9 | AR23: 13.23 | AS23: 12.58 | AT23: 10.67 | AU23: 10.05 | AV23: 8.83 | AW23: 9.31 | AX23: 9.56 | AY23: 9.43 | AZ23: 9.43 | BA23: 8.76 | BB23: 8.64 | BC23: 8.52 | BD23: 8.41 | BE23: 8.18 | BF23: 8.18 | BG23: 2nd com. year
A24: =B23+1 -> 25001 | B24: 50000 | C24: 0.3 | D24: =B23 -> 25000 | E24: =E23+(B24-B23)*C24 -> 9250 | F24: 0 | G24: 0 | H24: =IF(I22=C26,E25+ROUND((H22-J22),0)*I22,IF(I22=C25,E24+ROUND((H22-J22)*I22,0),IF(I22=C24,E23+ROUND((H22-J22)*I22,0),IF(I22=C23,E22+ROUND((H22-J22)*I22,0),E21+ROUND((H22-J22)*I22,0))))) -> 564565 | I24: =MIN(K26:L26) -> 28228 | J24: =ROUND(SUM(H24+I24)*M22,0) -> 0 | K24: =SUM(H24:J24) -> 592793 | AP24: 3rd com. year | AQ24: 15.6 | AR24: 14.8 | AS24: 14 | AT24: 11.71 | AU24: 10.97 | AV24: 9.55 | AW24: 10.11 | AX24: 10.4 | AY24: 10.25 | AZ24: 10.25 | BA24: 9.46 | BB24: 9.33 | BC24: 9.2 | BD24: 9.06 | BE24: 8.8 | BF24: 8.8 | BG24: 3rd com. year
A25: =B24+1 -> 50001 | B25: 100000 | C25: 0.4 | D25: =B24 -> 50000 | E25: =E24+(B25-B24)*C25 -> 29250 | F25: 0.05 | G25: 0 | H25: Surcharge limit | I25: Add.Tax Income | J25: Add. Tax | K25: Diff | L25: Sur. Amt | M25: M.R. | AP25: 4th com. year | AQ25: 17.5 | AR25: 16.54 | AS25: 15.58 | AT25: 12.85 | AU25: 11.98 | AV25: 10.33 | AW25: 10.98 | AX25: 11.31 | AY25: 11.14 | AZ25: 11.14 | BA25: 10.23 | BB25: 10.08 | BC25: 9.92 | BD25: 9.77 | BE25: 9.47 | BF25: 9.47 | BG25: 4th com. year
A26: =B25+1 -> 100001 | C26: 0.5 | D26: 100000 | E26: =IF(J23=0,0,E25) -> 29250 | F26: 0.05 | G26: 0 | H26: =H19 -> 50000 | I26: =IF(H22>H26,H22-H26,0) -> 1120630 | J26: =IF(I26>0,ROUND(I26*I22,0),0) -> 560315 | K26: =I26-J26 -> 560315 | L26: =IF(H24>0,ROUND(H24*L22,0),0) -> 28228 | M26: =IF(K26>L26,0,L26-K26) -> 0 | AP26: 5th com. year | AQ26: 19.7 | AR26: 18.51 | AS26: 17.35 | AT26: 14.1 | AU26: 13.09 | AV26: 11.17 | AW26: 11.92 | AX26: 12.3 | AY26: 12.11 | AZ26: 12.11 | BA26: 11.06 | BB26: 10.88 | BC26: 10.71 | BD26: 10.53 | BE26: 10.19 | BF26: 10.19 | BG26: 5th com. year
A27: Very Senior Citizen | D27: TAX MARGIN | E27: TAX AT MARGIN | F27: SUR RATE | G27: E.Cess | H27: TAXABLE INCOME | I27: TAX RATE APPLY | J27: TAX MARGIN SLAB | K27: TAX SLAB | L27: Surch.Rate | M27: E.Cess | AP27: 6th com. year | AQ27: 22.4 | AR27: 20.69 | AS27: 19.31 | AT27: 15.47 | AU27: 14.29 | AV27: 12.08 | AW27: 0 | AX27: 0 | AY27: 0 | AZ27: 0 | BA27: 12.08 | BB27: 0 | BC27: 0 | BD27: 0 | BE27: 0 | BF27: 0 | BG27: 6th com. year
A28: Not defined | AP28: Total Interest | AQ28: 111.5 | AR28: 95.6 | AS28: 90.12 | AT28: 74.52 | AU28: 69.59 | AV28: 60.12 | AW28: 50.9 | AX28: 52.35 | AY28: 51.61 | AZ28: 48.74 | BA28: 60.12 | BB28: 60.12 | BC28: 60.12 | BD28: 60.12 | BE28: 60.12 | BF28: 60.12 | BG28: Total Interest
A29: 0 | B29: 18000 | C29: 0 | D29: 0 | E29: 0 | F29: 0 | G29: 0 | H29: =H8 -> 1170630 | I29: =VLOOKUP(H29,A29:C33,3) -> 0.5 | J29: =INDEX(D29:D33,MATCH(I29,C29:C33,0)) -> 100000 | K29: =INDEX(E29:E33,MATCH(I29,C29:C33,0)) -> 29250 | L29: =IF(H29>H33,VLOOKUP(H29,A29:F33,6),0) -> 0.05 | M29: =VLOOKUP(H29,A29:G33,7) -> 0 | AP29: Maturity Amount | AQ29: 201.5 | AR29: 195.6 | AS29: 190.12 | AT29: 174.52 | AU29: 169.59 | AV29: 160.12 | AW29: 150.9 | AX29: 152.35 | AY29: 151.61 | AZ29: =100+AZ28 -> 148.74 | BA29: 160.12 | BB29: 160.12 | BC29: 160.12 | BD29: 160.12 | BE29: 160.12 | BF29: 160.12
A30: =B29+1 -> 18001 | B30: 25000 | C30: 0.25 | D30: =B29 -> 18000 | E30: =(B30-B29)*C30 -> 1750 | F30: 0 | G30: 0 | H30: TAX CALCULALTION | I30: SURCHARGE | J30: E. CESS | K30: TOTAL TAX DUE | AQ30: Calendar Year Start: | AR30: =AY46 -> 2019-04-01 | AS30: =DATE(YEAR(AR30)-6,MONTH(AR30),DAY(AR30)) -> 2013-04-01 | AY30: 1 | AZ30: 2 | BB30: 3 | BD30: 4
A31: =B30+1 -> 25001 | B31: 50000 | C31: 0.3 | D31: =B30 -> 25000 | E31: =E30+(B31-B30)*C31 -> 9250 | F31: 0 | G31: 0 | H31: =IF(I29=C33,E32+ROUND((H29-J29),0)*I29,IF(I29=C32,E31+ROUND((H29-J29)*I29,0),IF(I29=C31,E30+ROUND((H29-J29)*I29,0),IF(I29=C30,E29+ROUND((H29-J29)*I29,0),E28+ROUND((H29-J29)*I29,0))))) -> 564565 | I31: =MIN(K33:L33) -> 28228 | J31: =ROUND(SUM(H31+I31)*M29,0) -> 0 | K31: =SUM(H31:J31) -> 592793 | AR31: =AY47 ->  | AS31: =DATE(YEAR(AR31)-6,MONTH(AR31),DAY(AR31)) -> 
A32: =B31+1 -> 50001 | B32: 100000 | C32: 0.4 | D32: =B31 -> 50000 | E32: =E31+(B32-B31)*C32 -> 29250 | F32: 0.05 | G32: 0 | H32: Surcharge limit | I32: Add.Tax Income | J32: Add. Tax | K32: Diff | L32: Sur. Amt | M32: M.R.
A33: =B32+1 -> 100001 | C33: 0.5 | D33: 100000 | E33: =IF(J30=0,0,E32) -> 29250 | F33: 0.05 | G33: 0 | H33: =H26 -> 50000 | I33: =IF(H29>H33,H29-H33,0) -> 1120630 | J33: =IF(I33>0,ROUND(I33*I29,0),0) -> 560315 | K33: =I33-J33 -> 560315 | L33: =IF(H31>0,ROUND(H31*L29,0),0) -> 28228 | M33: =IF(K33>L33,0,L33-K33) -> 0 | AP33: Purchased Year | AQ33: Date of Purchase (DD/MM/YYYY) | AR33: Amount Invested Rs | AS33: Accrued Interest Rs | AT33: Purchase Year | AU33: CODE | AV33: Rate Applied | AW33: NSC_YEAR | AX33: Year Code | AY33: Relvant F.Y.
C34: =D5 -> 1986 | D34: =C34+1 -> 1987 | F34: 1986-87 | AQ34: ='Gross Salary 19-20'!N63 -> 2016-04-01 | AR34: ='Gross Salary 19-20'!N64 -> 5000 | AS34: =IF(AU34>0,HLOOKUP(AQ34,$AQ$19:$BF$29,3+AU34,TRUE)*AR34/100,0) -> 473 | AT34: =IF(AND(AU34>0,AR34>0),AU34,"") -> 3 | AU34: =IF(AND(AQ34>=$AS$30,AQ34<$AR$30),CEILING(DAYS360(AQ34,$AR$30)/360,1),0) -> 3 | AV34: =IF(AS34>0,(AS34*100)/AR34,"") -> 9.46 | AW34: F. Year 2009-10 | AX34: 2 | AY34: 2009-04-01
A35: Male | D35: TAX MARGIN | E35: TAX AT MARGIN | F35: SUR RATE | G35: E.Cess | H35: TAXABLE INCOME | I35: TAX RATE APPLY | J35: TAX MARGIN SLAB | K35: TAX SLAB | L35: Surch.Rate | M35: E.Cess | N35: Tax Range | AS35: =IF(AU35>0,HLOOKUP(AQ35,$AQ$19:$AZ$29,3+AU35,TRUE)*AR35/100,0) ->  | AU35: =IF(AND(AQ35>=$AS$31,AQ35<$AR$31),CEILING(DAYS360(AQ35,$AR$31)/360,1),0) ->  | AW35: F. Year 2010-11 | AX35: 3 | AY35: 2010-04-01
A36: Not defined | N36: F.Year | O36: =C34 -> 1986 | P36: =D34 -> 1987 | AS36: 0 | AU36: =IF(AND(AQ36>=$AS$30,AQ36<$AR$30),CEILING(DAYS360(AQ36,$AR$30)/360,1),0) -> 0 | AW36: F. Year 2011-12 | AX36: 4 | AY36: 2011-04-01
A37: 0 | B37: 18000 | C37: 0 | D37: 0 | E37: 0 | F37: 0 | G37: 0 | H37: =$E$4 -> 1170630 | I37: =VLOOKUP(H37,A37:C41,3) -> 0.5 | J37: =INDEX(D37:D41,MATCH(I37,C37:C41,0)) -> 100000 | K37: =INDEX(E37:E41,MATCH(I37,C37:C41,0)) -> 29250 | L37: =IF(H37>H41,VLOOKUP(H37,A37:F41,6),0) -> 0.05 | M37: =VLOOKUP(H37,A37:G41,7) -> 0 | N37: 0 | O37: =IF($E$3="Male",B37,IF($E$3="Female",B44,IF($E$3="Senior Citizen",B51,B58))) -> 18000 | P37: 0 | AS37: 0 | AU37: 0 | AW37: F. Year 2012-13 | AX37: 5 | AY37: 2012-04-01
A38: =B37+1 -> 18001 | B38: 25000 | C38: 0.25 | D38: =B37 -> 18000 | E38: =(B38-B37)*C38 -> 1750 | F38: 0 | G38: 0 | H38: TAX CALCULALTION | I38: SURCHARGE | J38: E. CESS | K38: TOTAL TAX DUE | N38: =O37+1 -> 18001 | O38: 25000 | P38: 0.25 | AS38: 0 | AU38: 0 | AW38: F. Year 2013-14 | AX38: 6 | AY38: 2013-04-01
A39: =B38+1 -> 25001 | B39: 50000 | C39: 0.3 | D39: =B38 -> 25000 | E39: =E38+(B39-B38)*C39 -> 9250 | F39: 0 | G39: 0 | H39: =IF(I37=C41,E40+ROUND((H37-J37),0)*I37,IF(I37=C40,E39+ROUND((H37-J37)*I37,0),IF(I37=C39,E38+ROUND((H37-J37)*I37,0),IF(I37=C38,E37+ROUND((H37-J37)*I37,0),E36+ROUND((H37-J37)*I37,0))))) -> 564565 | I39: =MIN(K41:L41) -> 28228 | J39: =ROUND(SUM(H39+I39)*M37,0) -> 0 | K39: =SUM(H39:J39) -> 592793 | N39: =O38+1 -> 25001 | O39: 50000 | P39: 0.3 | AS39: 0 | AU39: 0 | AW39: F. Year 2014-15 | AX39: 7 | AY39: 2014-04-01
A40: =B39+1 -> 50001 | B40: 100000 | C40: 0.4 | D40: =B39 -> 50000 | E40: =E39+(B40-B39)*C40 -> 29250 | F40: 0.05 | G40: 0 | H40: Surcharge limit | I40: Add.Tax Income | J40: Add. Tax | K40: Diff | L40: Sur. Amt | M40: M.R. | N40: =O39+1 -> 50001 | O40: 100000 | P40: 0.4 | AR40: 0 | AS40: 0 | AU40: 0 | AW40: F.Year 2015-16 | AX40: 8 | AY40: 2015-04-01
A41: =B40+1 -> 100001 | C41: 0.5 | D41: 100000 | E41: =IF(J38=0,0,E40) -> 29250 | F41: 0.05 | G41: 0 | H41: 50000 | I41: =IF(H37>H41,H37-H41,0) -> 1120630 | J41: =IF(I41>0,ROUND(I41*I37,0),0) -> 560315 | K41: =I41-J41 -> 560315 | L41: =IF(H39>0,ROUND(H39*L37,0),0) -> 28228 | M41: =IF(K41>L41,0,L41-K41) -> 0 | N41: =O40+1 -> 100001 | O41: 0 | P41: 0.5 | AS41: 0 | AU41: 0 | AW41: F.Year 2016-17 | AX41: 8 | AY41: 2016-04-01
A42: Female | D42: TAX MARGIN | E42: TAX AT MARGIN | F42: SUR RATE | G42: E.Cess | H42: TAXABLE INCOME | I42: TAX RATE APPLY | J42: TAX MARGIN SLAB | K42: TAX SLAB | L42: Surch.Rate | M42: E.Cess | N42: TAX CALCULALTION | P42: =IF($E$3="Male",H39,IF($E$3="Female",H46,IF($E$3="Senior Citizen",H53,H60))) -> 564565 | AW42: F. Year 2017-18 | AX42: 8 | AY42: 2017-04-01
A43: Not defined | N43: SURCHARGE | P43: =IF($E$3="Male",I39,IF($E$3="Female",I46,IF($E$3="Senior Citizen",I53,I60))) -> 28228 | AW43: F. Year 2018-19 | AX43: 8 | AY43: 2018-04-01
A44: 0 | B44: 18000 | C44: 0 | D44: 0 | E44: 0 | F44: 0 | G44: 0 | H44: =H37 -> 1170630 | I44: =VLOOKUP(H44,A44:C48,3) -> 0.5 | J44: =INDEX(D44:D48,MATCH(I44,C44:C48,0)) -> 100000 | K44: =INDEX(E44:E48,MATCH(I44,C44:C48,0)) -> 29250 | L44: =IF(H44>H48,VLOOKUP(H44,A44:F48,6),0) -> 0.05 | M44: =VLOOKUP(H44,A44:G48,7) -> 0 | N44: E. CESS | P44: =IF($E$3="Male",J39,IF($E$3="Female",J46,IF($E$3="Senior Citizen",J53,J60))) -> 0 | AW44: F. Year 2019-20 | AX44: 8 | AY44: 2019-04-01
A45: =B44+1 -> 18001 | B45: 25000 | C45: 0.25 | D45: =B44 -> 18000 | E45: =(B45-B44)*C45 -> 1750 | F45: 0 | G45: 0 | H45: TAX CALCULALTION | I45: SURCHARGE | J45: E. CESS | K45: TOTAL TAX DUE | N45: TOTAL TAX DUE | P45: =IF($E$3="Male",K39,IF($E$3="Female",K46,IF($E$3="Senior Citizen",K53,K60))) -> 592793 | AW45: F. Year 2019-20 | AX45: 8 | AY45: 2019-04-01
A46: =B45+1 -> 25001 | B46: 50000 | C46: 0.3 | D46: =B45 -> 25000 | E46: =E45+(B46-B45)*C46 -> 9250 | F46: 0 | G46: 0 | H46: =IF(I44=C48,E47+ROUND((H44-J44),0)*I44,IF(I44=C47,E46+ROUND((H44-J44)*I44,0),IF(I44=C46,E45+ROUND((H44-J44)*I44,0),IF(I44=C45,E44+ROUND((H44-J44)*I44,0),E43+ROUND((H44-J44)*I44,0))))) -> 564565 | I46: =MIN(K48:L48) -> 28228 | J46: =ROUND(SUM(H46+I46)*M44,0) -> 0 | K46: =SUM(H46:J46) -> 592793 | N46: Age Defined | P46: =IF($E$3="Male",A36,IF($E$3="Female",A43,IF($E$3="Senior Citizen",A50,A57))) -> Not defined | AP46: Total Accrued Interest | AS46: =SUM(AS34:AS36) ->  | AW46: ='Gross Salary 19-20'!N65 -> F. Year 2019-20 | AX46: =INDEX($AX$34:$AX$45,MATCH(AW46,$AW$34:$AW$45,0)) -> 8 | AY46: =INDEX($AY$34:$AY$45,MATCH(AW46,$AW$34:$AW$45,0)) -> 2019-04-01
A47: =B46+1 -> 50001 | B47: 100000 | C47: 0.4 | D47: =B46 -> 50000 | E47: =E46+(B47-B46)*C47 -> 29250 | F47: 0.05 | G47: 0 | H47: Surcharge limit | I47: Add.Tax Income | J47: Add. Tax | K47: Diff | L47: Sur. Amt | M47: M.R. | N47: Marginal Releif | P47: =IF($E$3="Male",M41,IF($E$3="Female",M48,IF($E$3="Senior Citizen",M55,M62))) -> 0 | AX47: =INDEX($AX$34:$AX$45,MATCH(AW47,$AW$34:$AW$45,0)) ->  | AY47: =INDEX($AY$34:$AY$45,MATCH(AW47,$AW$34:$AW$45,0)) -> 
A48: =B47+1 -> 100001 | C48: 0.5 | D48: 100000 | E48: =IF(J45=0,0,E47) -> 29250 | F48: 0.05 | G48: 0 | H48: =H41 -> 50000 | I48: =IF(H44>H48,H44-H48,0) -> 1120630 | J48: =IF(I48>0,ROUND(I48*I44,0),0) -> 560315 | K48: =I48-J48 -> 560315 | L48: =IF(H46>0,ROUND(H46*L44,0),0) -> 28228 | M48: =IF(K48>L48,0,L48-K48) -> 0 | N48: Tax Due | P48: =IF($E$3="Male",K39,IF($E$3="Female",K46,IF($E$3="Senior Citizen",K53,K60))) -> 592793
A49: Senior Citizen | D49: TAX MARGIN | E49: TAX AT MARGIN | F49: SUR RATE | G49: E.Cess | H49: TAXABLE INCOME | I49: TAX RATE APPLY | J49: TAX MARGIN SLAB | K49: TAX SLAB | L49: Surch.Rate | M49: E.Cess
A50: Not defined
A51: 0 | B51: 18000 | C51: 0 | D51: 0 | E51: 0 | F51: 0 | G51: 0 | H51: =H37 -> 1170630 | I51: =VLOOKUP(H51,A51:C55,3) -> 0.5 | J51: =INDEX(D51:D55,MATCH(I51,C51:C55,0)) -> 100000 | K51: =INDEX(E51:E55,MATCH(I51,C51:C55,0)) -> 29250 | L51: =IF(H51>H55,VLOOKUP(H51,A51:F55,6),0) -> 0.05 | M51: =VLOOKUP(H51,A51:G55,7) -> 0
A52: =B51+1 -> 18001 | B52: 25000 | C52: 0.25 | D52: =B51 -> 18000 | E52: =(B52-B51)*C52 -> 1750 | F52: 0 | G52: 0 | H52: TAX CALCULALTION | I52: SURCHARGE | J52: E. CESS | K52: TOTAL TAX DUE
A53: =B52+1 -> 25001 | B53: 50000 | C53: 0.3 | D53: =B52 -> 25000 | E53: =E52+(B53-B52)*C53 -> 9250 | F53: 0 | G53: 0 | H53: =IF(I51=C55,E54+ROUND((H51-J51),0)*I51,IF(I51=C54,E53+ROUND((H51-J51)*I51,0),IF(I51=C53,E52+ROUND((H51-J51)*I51,0),IF(I51=C52,E51+ROUND((H51-J51)*I51,0),E50+ROUND((H51-J51)*I51,0))))) -> 564565 | I53: =MIN(K55:L55) -> 28228 | J53: =ROUND(SUM(H53+I53)*M51,0) -> 0 | K53: =SUM(H53:J53) -> 592793
A54: =B53+1 -> 50001 | B54: 100000 | C54: 0.4 | D54: =B53 -> 50000 | E54: =E53+(B54-B53)*C54 -> 29250 | F54: 0.05 | G54: 0 | H54: Surcharge limit | I54: Add.Tax Income | J54: Add. Tax | K54: Diff | L54: Sur. Amt | M54: M.R.
A55: =B54+1 -> 100001 | C55: 0.5 | D55: 100000 | E55: =IF(J52=0,0,E54) -> 29250 | F55: 0.05 | G55: 0 | H55: =H48 -> 50000 | I55: =IF(H51>H55,H51-H55,0) -> 1120630 | J55: =IF(I55>0,ROUND(I55*I51,0),0) -> 560315 | K55: =I55-J55 -> 560315 | L55: =IF(H53>0,ROUND(H53*L51,0),0) -> 28228 | M55: =IF(K55>L55,0,L55-K55) -> 0
A56: Very Senior Citizen | D56: TAX MARGIN | E56: TAX AT MARGIN | F56: SUR RATE | G56: E.Cess | H56: TAXABLE INCOME | I56: TAX RATE APPLY | J56: TAX MARGIN SLAB | K56: TAX SLAB | L56: Surch.Rate | M56: E.Cess
A57: Not defined
A58: 0 | B58: 18000 | C58: 0 | D58: 0 | E58: 0 | F58: 0 | G58: 0 | H58: =H37 -> 1170630 | I58: =VLOOKUP(H58,A58:C62,3) -> 0.5 | J58: =INDEX(D58:D62,MATCH(I58,C58:C62,0)) -> 100000 | K58: =INDEX(E58:E62,MATCH(I58,C58:C62,0)) -> 29250 | L58: =IF(H58>H62,VLOOKUP(H58,A58:F62,6),0) -> 0.05 | M58: =VLOOKUP(H58,A58:G62,7) -> 0
A59: =B58+1 -> 18001 | B59: 25000 | C59: 0.25 | D59: =B58 -> 18000 | E59: =(B59-B58)*C59 -> 1750 | F59: 0 | G59: 0 | H59: TAX CALCULALTION | I59: SURCHARGE | J59: E. CESS | K59: TOTAL TAX DUE
A60: =B59+1 -> 25001 | B60: 50000 | C60: 0.3 | D60: =B59 -> 25000 | E60: =E59+(B60-B59)*C60 -> 9250 | F60: 0 | G60: 0 | H60: =IF(I58=C62,E61+ROUND((H58-J58),0)*I58,IF(I58=C61,E60+ROUND((H58-J58)*I58,0),IF(I58=C60,E59+ROUND((H58-J58)*I58,0),IF(I58=C59,E58+ROUND((H58-J58)*I58,0),E57+ROUND((H58-J58)*I58,0))))) -> 564565 | I60: =MIN(K62:L62) -> 28228 | J60: =ROUND(SUM(H60+I60)*M58,0) -> 0 | K60: =SUM(H60:J60) -> 592793
A61: =B60+1 -> 50001 | B61: 100000 | C61: 0.4 | D61: =B60 -> 50000 | E61: =E60+(B61-B60)*C61 -> 29250 | F61: 0.05 | G61: 0 | H61: Surcharge limit | I61: Add.Tax Income | J61: Add. Tax | K61: Diff | L61: Sur. Amt | M61: M.R.
A62: =B61+1 -> 100001 | C62: 0.5 | D62: 100000 | E62: =IF(J59=0,0,E61) -> 29250 | F62: 0.05 | G62: 0 | H62: =H55 -> 50000 | I62: =IF(H58>H62,H58-H62,0) -> 1120630 | J62: =IF(I62>0,ROUND(I62*I58,0),0) -> 560315 | K62: =I62-J62 -> 560315 | L62: =IF(H60>0,ROUND(H60*L58,0),0) -> 28228 | M62: =IF(K62>L62,0,L62-K62) -> 0
C63: 1987 | D63: =C63+1 -> 1988 | F63: 1987-88
A64: Male | D64: TAX MARGIN | E64: TAX AT MARGIN | F64: SUR RATE | G64: E.Cess | H64: TAXABLE INCOME | I64: TAX RATE APPLY | J64: TAX MARGIN SLAB | K64: TAX SLAB | L64: Surch.Rate | M64: E.Cess | N64: Tax Range
A65: Not defined | N65: F.Year | O65: =C63 -> 1987 | P65: =D63 -> 1988
A66: 0 | B66: 18000 | C66: 0 | D66: 0 | E66: 0 | F66: 0 | G66: 0 | H66: =$E$4 -> 1170630 | I66: =VLOOKUP(H66,A66:C70,3) -> 0.5 | J66: =INDEX(D66:D70,MATCH(I66,C66:C70,0)) -> 100000 | K66: =INDEX(E66:E70,MATCH(I66,C66:C70,0)) -> 29250 | L66: =IF(H66>H70,VLOOKUP(H66,A66:F70,6),0) -> 0.05 | M66: =VLOOKUP(H66,A66:G70,7) -> 0 | N66: 0 | O66: =IF($E$3="Male",B66,IF($E$3="Female",B73,IF($E$3="Senior Citizen",B80,B87))) -> 18000 | P66: 0
A67: =B66+1 -> 18001 | B67: 25000 | C67: 0.25 | D67: =B66 -> 18000 | E67: =(B67-B66)*C67 -> 1750 | F67: 0 | G67: 0 | H67: TAX CALCULALTION | I67: SURCHARGE | J67: E. CESS | K67: TOTAL TAX DUE | N67: =O66+1 -> 18001 | O67: 25000 | P67: 0.25
A68: =B67+1 -> 25001 | B68: 50000 | C68: 0.3 | D68: =B67 -> 25000 | E68: =E67+(B68-B67)*C68 -> 9250 | F68: 0 | G68: 0 | H68: =IF(I66=C70,E69+ROUND((H66-J66),0)*I66,IF(I66=C69,E68+ROUND((H66-J66)*I66,0),IF(I66=C68,E67+ROUND((H66-J66)*I66,0),IF(I66=C67,E66+ROUND((H66-J66)*I66,0),E65+ROUND((H66-J66)*I66,0))))) -> 564565 | I68: =MIN(K70:L70) -> 28228 | J68: =ROUND(SUM(H68+I68)*M66,0) -> 0 | K68: =SUM(H68:J68) -> 592793 | N68: =O67+1 -> 25001 | O68: 50000 | P68: 0.3
A69: =B68+1 -> 50001 | B69: 100000 | C69: 0.4 | D69: =B68 -> 50000 | E69: =E68+(B69-B68)*C69 -> 29250 | F69: 0.05 | G69: 0 | H69: Surcharge limit | I69: Add.Tax Income | J69: Add. Tax | K69: Diff | L69: Sur. Amt | M69: M.R. | N69: =O68+1 -> 50001 | O69: 100000 | P69: 0.4
A70: =B69+1 -> 100001 | C70: 0.5 | D70: 100000 | E70: =IF(J67=0,0,E69) -> 29250 | F70: 0.05 | G70: 0 | H70: 50000 | I70: =IF(H66>H70,H66-H70,0) -> 1120630 | J70: =IF(I70>0,ROUND(I70*I66,0),0) -> 560315 | K70: =I70-J70 -> 560315 | L70: =IF(H68>0,ROUND(H68*L66,0),0) -> 28228 | M70: =IF(K70>L70,0,L70-K70) -> 0 | N70: =O69+1 -> 100001 | O70: 0 | P70: 0.5
A71: Female | D71: TAX MARGIN | E71: TAX AT MARGIN | F71: SUR RATE | G71: E.Cess | H71: TAXABLE INCOME | I71: TAX RATE APPLY | J71: TAX MARGIN SLAB | K71: TAX SLAB | L71: Surch.Rate | M71: E.Cess | N71: TAX CALCULALTION | P71: =IF($E$3="Male",H68,IF($E$3="Female",H75,IF($E$3="Senior Citizen",H82,H89))) -> 564565
A72: Not defined | N72: SURCHARGE | P72: =IF($E$3="Male",I68,IF($E$3="Female",I75,IF($E$3="Senior Citizen",I82,I89))) -> 28228
A73: 0 | B73: 18000 | C73: 0 | D73: 0 | E73: 0 | F73: 0 | G73: 0 | H73: =H66 -> 1170630 | I73: =VLOOKUP(H73,A73:C77,3) -> 0.5 | J73: =INDEX(D73:D77,MATCH(I73,C73:C77,0)) -> 100000 | K73: =INDEX(E73:E77,MATCH(I73,C73:C77,0)) -> 29250 | L73: =IF(H73>H77,VLOOKUP(H73,A73:F77,6),0) -> 0.05 | M73: =VLOOKUP(H73,A73:G77,7) -> 0 | N73: E. CESS | P73: =IF($E$3="Male",J68,IF($E$3="Female",J75,IF($E$3="Senior Citizen",J82,J89))) -> 0
A74: =B73+1 -> 18001 | B74: 25000 | C74: 0.25 | D74: =B73 -> 18000 | E74: =(B74-B73)*C74 -> 1750 | F74: 0 | G74: 0 | H74: TAX CALCULALTION | I74: SURCHARGE | J74: E. CESS | K74: TOTAL TAX DUE | N74: TOTAL TAX DUE | P74: =IF($E$3="Male",K68,IF($E$3="Female",K75,IF($E$3="Senior Citizen",K82,K89))) -> 592793
A75: =B74+1 -> 25001 | B75: 50000 | C75: 0.3 | D75: =B74 -> 25000 | E75: =E74+(B75-B74)*C75 -> 9250 | F75: 0 | G75: 0 | H75: =IF(I73=C77,E76+ROUND((H73-J73),0)*I73,IF(I73=C76,E75+ROUND((H73-J73)*I73,0),IF(I73=C75,E74+ROUND((H73-J73)*I73,0),IF(I73=C74,E73+ROUND((H73-J73)*I73,0),E72+ROUND((H73-J73)*I73,0))))) -> 564565 | I75: =MIN(K77:L77) -> 28228 | J75: =ROUND(SUM(H75+I75)*M73,0) -> 0 | K75: =SUM(H75:J75) -> 592793 | N75: Age Defined | P75: =IF($E$3="Male",A65,IF($E$3="Female",A72,IF($E$3="Senior Citizen",A79,A86))) -> Not defined
A76: =B75+1 -> 50001 | B76: 100000 | C76: 0.4 | D76: =B75 -> 50000 | E76: =E75+(B76-B75)*C76 -> 29250 | F76: 0.05 | G76: 0 | H76: Surcharge limit | I76: Add.Tax Income | J76: Add. Tax | K76: Diff | L76: Sur. Amt | M76: M.R. | N76: Marginal Releif | P76: =IF($E$3="Male",M70,IF($E$3="Female",M77,IF($E$3="Senior Citizen",M84,M91))) -> 0
A77: =B76+1 -> 100001 | C77: 0.5 | D77: 100000 | E77: =IF(J74=0,0,E76) -> 29250 | F77: 0.05 | G77: 0 | H77: =H70 -> 50000 | I77: =IF(H73>H77,H73-H77,0) -> 1120630 | J77: =IF(I77>0,ROUND(I77*I73,0),0) -> 560315 | K77: =I77-J77 -> 560315 | L77: =IF(H75>0,ROUND(H75*L73,0),0) -> 28228 | M77: =IF(K77>L77,0,L77-K77) -> 0 | N77: Tax Due | P77: =IF($E$3="Male",K68,IF($E$3="Female",K75,IF($E$3="Senior Citizen",K82,K89))) -> 592793
A78: Senior Citizen | D78: TAX MARGIN | E78: TAX AT MARGIN | F78: SUR RATE | G78: E.Cess | H78: TAXABLE INCOME | I78: TAX RATE APPLY | J78: TAX MARGIN SLAB | K78: TAX SLAB | L78: Surch.Rate | M78: E.Cess
A79: Not defined
A80: 0 | B80: 18000 | C80: 0 | D80: 0 | E80: 0 | F80: 0 | G80: 0 | H80: =H66 -> 1170630 | I80: =VLOOKUP(H80,A80:C84,3) -> 0.5 | J80: =INDEX(D80:D84,MATCH(I80,C80:C84,0)) -> 100000 | K80: =INDEX(E80:E84,MATCH(I80,C80:C84,0)) -> 29250 | L80: =IF(H80>H84,VLOOKUP(H80,A80:F84,6),0) -> 0.05 | M80: =VLOOKUP(H80,A80:G84,7) -> 0
A81: =B80+1 -> 18001 | B81: 25000 | C81: 0.25 | D81: =B80 -> 18000 | E81: =(B81-B80)*C81 -> 1750 | F81: 0 | G81: 0 | H81: TAX CALCULALTION | I81: SURCHARGE | J81: E. CESS | K81: TOTAL TAX DUE
A82: =B81+1 -> 25001 | B82: 50000 | C82: 0.3 | D82: =B81 -> 25000 | E82: =E81+(B82-B81)*C82 -> 9250 | F82: 0 | G82: 0 | H82: =IF(I80=C84,E83+ROUND((H80-J80),0)*I80,IF(I80=C83,E82+ROUND((H80-J80)*I80,0),IF(I80=C82,E81+ROUND((H80-J80)*I80,0),IF(I80=C81,E80+ROUND((H80-J80)*I80,0),E79+ROUND((H80-J80)*I80,0))))) -> 564565 | I82: =MIN(K84:L84) -> 28228 | J82: =ROUND(SUM(H82+I82)*M80,0) -> 0 | K82: =SUM(H82:J82) -> 592793
A83: =B82+1 -> 50001 | B83: 100000 | C83: 0.4 | D83: =B82 -> 50000 | E83: =E82+(B83-B82)*C83 -> 29250 | F83: 0.05 | G83: 0 | H83: Surcharge limit | I83: Add.Tax Income | J83: Add. Tax | K83: Diff | L83: Sur. Amt | M83: M.R.
A84: =B83+1 -> 100001 | C84: 0.5 | D84: 100000 | E84: =IF(J81=0,0,E83) -> 29250 | F84: 0.05 | G84: 0 | H84: =H77 -> 50000 | I84: =IF(H80>H84,H80-H84,0) -> 1120630 | J84: =IF(I84>0,ROUND(I84*I80,0),0) -> 560315 | K84: =I84-J84 -> 560315 | L84: =IF(H82>0,ROUND(H82*L80,0),0) -> 28228 | M84: =IF(K84>L84,0,L84-K84) -> 0
A85: Very Senior Citizen | D85: TAX MARGIN | E85: TAX AT MARGIN | F85: SUR RATE | G85: E.Cess | H85: TAXABLE INCOME | I85: TAX RATE APPLY | J85: TAX MARGIN SLAB | K85: TAX SLAB | L85: Surch.Rate | M85: E.Cess
A86: Not defined
A87: 0 | B87: 18000 | C87: 0 | D87: 0 | E87: 0 | F87: 0 | G87: 0 | H87: =H66 -> 1170630 | I87: =VLOOKUP(H87,A87:C91,3) -> 0.5 | J87: =INDEX(D87:D91,MATCH(I87,C87:C91,0)) -> 100000 | K87: =INDEX(E87:E91,MATCH(I87,C87:C91,0)) -> 29250 | L87: =IF(H87>H91,VLOOKUP(H87,A87:F91,6),0) -> 0.05 | M87: =VLOOKUP(H87,A87:G91,7) -> 0
A88: =B87+1 -> 18001 | B88: 25000 | C88: 0.25 | D88: =B87 -> 18000 | E88: =(B88-B87)*C88 -> 1750 | F88: 0 | G88: 0 | H88: TAX CALCULALTION | I88: SURCHARGE | J88: E. CESS | K88: TOTAL TAX DUE
A89: =B88+1 -> 25001 | B89: 50000 | C89: 0.3 | D89: =B88 -> 25000 | E89: =E88+(B89-B88)*C89 -> 9250 | F89: 0 | G89: 0 | H89: =IF(I87=C91,E90+ROUND((H87-J87),0)*I87,IF(I87=C90,E89+ROUND((H87-J87)*I87,0),IF(I87=C89,E88+ROUND((H87-J87)*I87,0),IF(I87=C88,E87+ROUND((H87-J87)*I87,0),E86+ROUND((H87-J87)*I87,0))))) -> 564565 | I89: =MIN(K91:L91) -> 28228 | J89: =ROUND(SUM(H89+I89)*M87,0) -> 0 | K89: =SUM(H89:J89) -> 592793
A90: =B89+1 -> 50001 | B90: 100000 | C90: 0.4 | D90: =B89 -> 50000 | E90: =E89+(B90-B89)*C90 -> 29250 | F90: 0.05 | G90: 0 | H90: Surcharge limit | I90: Add.Tax Income | J90: Add. Tax | K90: Diff | L90: Sur. Amt | M90: M.R.
A91: =B90+1 -> 100001 | C91: 0.5 | D91: 100000 | E91: =IF(J88=0,0,E90) -> 29250 | F91: 0.05 | G91: 0 | H91: =H84 -> 50000 | I91: =IF(H87>H91,H87-H91,0) -> 1120630 | J91: =IF(I91>0,ROUND(I91*I87,0),0) -> 560315 | K91: =I91-J91 -> 560315 | L91: =IF(H89>0,ROUND(H89*L87,0),0) -> 28228 | M91: =IF(K91>L91,0,L91-K91) -> 0
C92: 1988 | D92: =C92+1 -> 1989 | F92: 1988-89
A93: Male | D93: TAX MARGIN | E93: TAX AT MARGIN | F93: SUR RATE | G93: E.Cess | H93: TAXABLE INCOME | I93: TAX RATE APPLY | J93: TAX MARGIN SLAB | K93: TAX SLAB | L93: Surch.Rate | M93: E.Cess | N93: Tax Range
A94: Not defined | N94: F.Year | O94: =C92 -> 1988 | P94: =D92 -> 1989
A95: 0 | B95: 18000 | C95: 0 | D95: 0 | E95: 0 | F95: 0 | G95: 0 | H95: =$E$4 -> 1170630 | I95: =VLOOKUP(H95,A95:C99,3) -> 0.5 | J95: =INDEX(D95:D99,MATCH(I95,C95:C99,0)) -> 100000 | K95: =INDEX(E95:E99,MATCH(I95,C95:C99,0)) -> 29250 | L95: =IF(H95>H99,VLOOKUP(H95,A95:F99,6),0) -> 0.05 | M95: =VLOOKUP(H95,A95:G99,7) -> 0 | N95: 0 | O95: =IF($E$3="Male",B95,IF($E$3="Female",B102,IF($E$3="Senior Citizen",B109,B116))) -> 18000 | P95: 0
A96: =B95+1 -> 18001 | B96: 25000 | C96: 0.25 | D96: =B95 -> 18000 | E96: =(B96-B95)*C96 -> 1750 | F96: 0 | G96: 0 | H96: TAX CALCULALTION | I96: SURCHARGE | J96: E. CESS | K96: TOTAL TAX DUE | N96: =O95+1 -> 18001 | O96: 25000 | P96: 0.25
A97: =B96+1 -> 25001 | B97: 50000 | C97: 0.3 | D97: =B96 -> 25000 | E97: =E96+(B97-B96)*C97 -> 9250 | F97: 0 | G97: 0 | H97: =IF(I95=C99,E98+ROUND((H95-J95),0)*I95,IF(I95=C98,E97+ROUND((H95-J95)*I95,0),IF(I95=C97,E96+ROUND((H95-J95)*I95,0),IF(I95=C96,E95+ROUND((H95-J95)*I95,0),E94+ROUND((H95-J95)*I95,0))))) -> 564565 | I97: =MIN(K99:L99) -> 28228 | J97: =ROUND(SUM(H97+I97)*M95,0) -> 0 | K97: =SUM(H97:J97) -> 592793 | N97: =O96+1 -> 25001 | O97: 50000 | P97: 0.3
A98: =B97+1 -> 50001 | B98: 100000 | C98: 0.4 | D98: =B97 -> 50000 | E98: =E97+(B98-B97)*C98 -> 29250 | F98: 0.05 | G98: 0 | H98: Surcharge limit | I98: Add.Tax Income | J98: Add. Tax | K98: Diff | L98: Sur. Amt | M98: M.R. | N98: =O97+1 -> 50001 | O98: 100000 | P98: 0.4
A99: =B98+1 -> 100001 | C99: 0.5 | D99: 100000 | E99: =IF(J96=0,0,E98) -> 29250 | F99: 0.05 | G99: 0 | H99: 50000 | I99: =IF(H95>H99,H95-H99,0) -> 1120630 | J99: =IF(I99>0,ROUND(I99*I95,0),0) -> 560315 | K99: =I99-J99 -> 560315 | L99: =IF(H97>0,ROUND(H97*L95,0),0) -> 28228 | M99: =IF(K99>L99,0,L99-K99) -> 0 | N99: =O98+1 -> 100001 | O99: 0 | P99: 0.5
A100: Female | D100: TAX MARGIN | E100: TAX AT MARGIN | F100: SUR RATE | G100: E.Cess | H100: TAXABLE INCOME | I100: TAX RATE APPLY | J100: TAX MARGIN SLAB | K100: TAX SLAB | L100: Surch.Rate | M100: E.Cess | N100: TAX CALCULALTION | P100: =IF($E$3="Male",H97,IF($E$3="Female",H104,IF($E$3="Senior Citizen",H111,H118))) -> 564565
A101: Not defined | N101: SURCHARGE | P101: =IF($E$3="Male",I97,IF($E$3="Female",I104,IF($E$3="Senior Citizen",I111,I118))) -> 28228
A102: 0 | B102: 18000 | C102: 0 | D102: 0 | E102: 0 | F102: 0 | G102: 0 | H102: =H95 -> 1170630 | I102: =VLOOKUP(H102,A102:C106,3) -> 0.5 | J102: =INDEX(D102:D106,MATCH(I102,C102:C106,0)) -> 100000 | K102: =INDEX(E102:E106,MATCH(I102,C102:C106,0)) -> 29250 | L102: =IF(H102>H106,VLOOKUP(H102,A102:F106,6),0) -> 0.05 | M102: =VLOOKUP(H102,A102:G106,7) -> 0 | N102: E. CESS | P102: =IF($E$3="Male",J97,IF($E$3="Female",J104,IF($E$3="Senior Citizen",J111,J118))) -> 0
A103: =B102+1 -> 18001 | B103: 25000 | C103: 0.25 | D103: =B102 -> 18000 | E103: =(B103-B102)*C103 -> 1750 | F103: 0 | G103: 0 | H103: TAX CALCULALTION | I103: SURCHARGE | J103: E. CESS | K103: TOTAL TAX DUE | N103: TOTAL TAX DUE | P103: =IF($E$3="Male",K97,IF($E$3="Female",K104,IF($E$3="Senior Citizen",K111,K118))) -> 592793
A104: =B103+1 -> 25001 | B104: 50000 | C104: 0.3 | D104: =B103 -> 25000 | E104: =E103+(B104-B103)*C104 -> 9250 | F104: 0 | G104: 0 | H104: =IF(I102=C106,E105+ROUND((H102-J102),0)*I102,IF(I102=C105,E104+ROUND((H102-J102)*I102,0),IF(I102=C104,E103+ROUND((H102-J102)*I102,0),IF(I102=C103,E102+ROUND((H102-J102)*I102,0),E101+ROUND((H102-J102)*I102,0))))) -> 564565 | I104: =MIN(K106:L106) -> 28228 | J104: =ROUND(SUM(H104+I104)*M102,0) -> 0 | K104: =SUM(H104:J104) -> 592793 | N104: Age Defined | P104: =IF($E$3="Male",A94,IF($E$3="Female",A101,IF($E$3="Senior Citizen",A108,A115))) -> Not defined
A105: =B104+1 -> 50001 | B105: 100000 | C105: 0.4 | D105: =B104 -> 50000 | E105: =E104+(B105-B104)*C105 -> 29250 | F105: 0.05 | G105: 0 | H105: Surcharge limit | I105: Add.Tax Income | J105: Add. Tax | K105: Diff | L105: Sur. Amt | M105: M.R. | N105: Marginal Releif | P105: =IF($E$3="Male",M99,IF($E$3="Female",M106,IF($E$3="Senior Citizen",M113,M120))) -> 0
A106: =B105+1 -> 100001 | C106: 0.5 | D106: 100000 | E106: =IF(J103=0,0,E105) -> 29250 | F106: 0.05 | G106: 0 | H106: =H99 -> 50000 | I106: =IF(H102>H106,H102-H106,0) -> 1120630 | J106: =IF(I106>0,ROUND(I106*I102,0),0) -> 560315 | K106: =I106-J106 -> 560315 | L106: =IF(H104>0,ROUND(H104*L102,0),0) -> 28228 | M106: =IF(K106>L106,0,L106-K106) -> 0 | N106: Tax Due | P106: =IF($E$3="Male",K97,IF($E$3="Female",K104,IF($E$3="Senior Citizen",K111,K118))) -> 592793
A107: Senior Citizen | D107: TAX MARGIN | E107: TAX AT MARGIN | F107: SUR RATE | G107: E.Cess | H107: TAXABLE INCOME | I107: TAX RATE APPLY | J107: TAX MARGIN SLAB | K107: TAX SLAB | L107: Surch.Rate | M107: E.Cess
A108: Not defined
A109: 0 | B109: 18000 | C109: 0 | D109: 0 | E109: 0 | F109: 0 | G109: 0 | H109: =H95 -> 1170630 | I109: =VLOOKUP(H109,A109:C113,3) -> 0.5 | J109: =INDEX(D109:D113,MATCH(I109,C109:C113,0)) -> 100000 | K109: =INDEX(E109:E113,MATCH(I109,C109:C113,0)) -> 29250 | L109: =IF(H109>H113,VLOOKUP(H109,A109:F113,6),0) -> 0.05 | M109: =VLOOKUP(H109,A109:G113,7) -> 0
A110: =B109+1 -> 18001 | B110: 25000 | C110: 0.25 | D110: =B109 -> 18000 | E110: =(B110-B109)*C110 -> 1750 | F110: 0 | G110: 0 | H110: TAX CALCULALTION | I110: SURCHARGE | J110: E. CESS | K110: TOTAL TAX DUE
A111: =B110+1 -> 25001 | B111: 50000 | C111: 0.3 | D111: =B110 -> 25000 | E111: =E110+(B111-B110)*C111 -> 9250 | F111: 0 | G111: 0 | H111: =IF(I109=C113,E112+ROUND((H109-J109),0)*I109,IF(I109=C112,E111+ROUND((H109-J109)*I109,0),IF(I109=C111,E110+ROUND((H109-J109)*I109,0),IF(I109=C110,E109+ROUND((H109-J109)*I109,0),E108+ROUND((H109-J109)*I109,0))))) -> 564565 | I111: =MIN(K113:L113) -> 28228 | J111: =ROUND(SUM(H111+I111)*M109,0) -> 0 | K111: =SUM(H111:J111) -> 592793
A112: =B111+1 -> 50001 | B112: 100000 | C112: 0.4 | D112: =B111 -> 50000 | E112: =E111+(B112-B111)*C112 -> 29250 | F112: 0.05 | G112: 0 | H112: Surcharge limit | I112: Add.Tax Income | J112: Add. Tax | K112: Diff | L112: Sur. Amt | M112: M.R.
A113: =B112+1 -> 100001 | C113: 0.5 | D113: 100000 | E113: =IF(J110=0,0,E112) -> 29250 | F113: 0.05 | G113: 0 | H113: =H106 -> 50000 | I113: =IF(H109>H113,H109-H113,0) -> 1120630 | J113: =IF(I113>0,ROUND(I113*I109,0),0) -> 560315 | K113: =I113-J113 -> 560315 | L113: =IF(H111>0,ROUND(H111*L109,0),0) -> 28228 | M113: =IF(K113>L113,0,L113-K113) -> 0
A114: Very Senior Citizen | D114: TAX MARGIN | E114: TAX AT MARGIN | F114: SUR RATE | G114: E.Cess | H114: TAXABLE INCOME | I114: TAX RATE APPLY | J114: TAX MARGIN SLAB | K114: TAX SLAB | L114: Surch.Rate | M114: E.Cess
A115: Not defined
A116: 0 | B116: 18000 | C116: 0 | D116: 0 | E116: 0 | F116: 0 | G116: 0 | H116: =H95 -> 1170630 | I116: =VLOOKUP(H116,A116:C120,3) -> 0.5 | J116: =INDEX(D116:D120,MATCH(I116,C116:C120,0)) -> 100000 | K116: =INDEX(E116:E120,MATCH(I116,C116:C120,0)) -> 29250 | L116: =IF(H116>H120,VLOOKUP(H116,A116:F120,6),0) -> 0.05 | M116: =VLOOKUP(H116,A116:G120,7) -> 0
A117: =B116+1 -> 18001 | B117: 25000 | C117: 0.25 | D117: =B116 -> 18000 | E117: =(B117-B116)*C117 -> 1750 | F117: 0 | G117: 0 | H117: TAX CALCULALTION | I117: SURCHARGE | J117: E. CESS | K117: TOTAL TAX DUE
A118: =B117+1 -> 25001 | B118: 50000 | C118: 0.3 | D118: =B117 -> 25000 | E118: =E117+(B118-B117)*C118 -> 9250 | F118: 0 | G118: 0 | H118: =IF(I116=C120,E119+ROUND((H116-J116),0)*I116,IF(I116=C119,E118+ROUND((H116-J116)*I116,0),IF(I116=C118,E117+ROUND((H116-J116)*I116,0),IF(I116=C117,E116+ROUND((H116-J116)*I116,0),E115+ROUND((H116-J116)*I116,0))))) -> 564565 | I118: =MIN(K120:L120) -> 28228 | J118: =ROUND(SUM(H118+I118)*M116,0) -> 0 | K118: =SUM(H118:J118) -> 592793
A119: =B118+1 -> 50001 | B119: 100000 | C119: 0.4 | D119: =B118 -> 50000 | E119: =E118+(B119-B118)*C119 -> 29250 | F119: 0.05 | G119: 0 | H119: Surcharge limit | I119: Add.Tax Income | J119: Add. Tax | K119: Diff | L119: Sur. Amt | M119: M.R.
A120: =B119+1 -> 100001 | C120: 0.5 | D120: 100000 | E120: =IF(J117=0,0,E119) -> 29250 | F120: 0.05 | G120: 0 | H120: =H113 -> 50000 | I120: =IF(H116>H120,H116-H120,0) -> 1120630 | J120: =IF(I120>0,ROUND(I120*I116,0),0) -> 560315 | K120: =I120-J120 -> 560315 | L120: =IF(H118>0,ROUND(H118*L116,0),0) -> 28228 | M120: =IF(K120>L120,0,L120-K120) -> 0
C121: 1989 | D121: =C121+1 -> 1990 | F121: 1989-90
A122: Male | D122: TAX MARGIN | E122: TAX AT MARGIN | F122: SUR RATE | G122: E.Cess | H122: TAXABLE INCOME | I122: TAX RATE APPLY | J122: TAX MARGIN SLAB | K122: TAX SLAB | L122: Surch.Rate | M122: E.Cess | N122: Tax Range
A123: Not defined | N123: F.Year | O123: =C121 -> 1989 | P123: =D121 -> 1990
A124: 0 | B124: 18000 | C124: 0 | D124: 0 | E124: 0 | F124: 0 | G124: 0 | H124: =$E$4 -> 1170630 | I124: =VLOOKUP(H124,A124:C128,3) -> 0.5 | J124: =INDEX(D124:D128,MATCH(I124,C124:C128,0)) -> 100000 | K124: =INDEX(E124:E128,MATCH(I124,C124:C128,0)) -> 28900 | L124: =IF(H124>H128,VLOOKUP(H124,A124:F128,6),0) -> 0.08 | M124: =VLOOKUP(H124,A124:G128,7) -> 0 | N124: 0 | O124: =IF($E$3="Male",B124,IF($E$3="Female",B131,IF($E$3="Senior Citizen",B138,B145))) -> 18000 | P124: 0
A125: =B124+1 -> 18001 | B125: 25000 | C125: 0.2 | D125: =B124 -> 18000 | E125: =(B125-B124)*C125 -> 1400 | F125: 0 | G125: 0 | H125: TAX CALCULALTION | I125: SURCHARGE | J125: E. CESS | K125: TOTAL TAX DUE | N125: =O124+1 -> 18001 | O125: 25000 | P125: 0.2
A126: =B125+1 -> 25001 | B126: 50000 | C126: 0.3 | D126: =B125 -> 25000 | E126: =E125+(B126-B125)*C126 -> 8900 | F126: 0 | G126: 0 | H126: =IF(I124=C128,E127+ROUND((H124-J124),0)*I124,IF(I124=C127,E126+ROUND((H124-J124)*I124,0),IF(I124=C126,E125+ROUND((H124-J124)*I124,0),IF(I124=C125,E124+ROUND((H124-J124)*I124,0),E123+ROUND((H124-J124)*I124,0))))) -> 564215 | I126: =MIN(K128:L128) -> 45137 | J126: =ROUND(SUM(H126+I126)*M124,0) -> 0 | K126: =SUM(H126:J126) -> 609352 | N126: =O125+1 -> 25001 | O126: 50000 | P126: 0.3
A127: =B126+1 -> 50001 | B127: 100000 | C127: 0.4 | D127: =B126 -> 50000 | E127: =E126+(B127-B126)*C127 -> 28900 | F127: 0.08 | G127: 0 | H127: Surcharge limit | I127: Add.Tax Income | J127: Add. Tax | K127: Diff | L127: Sur. Amt | M127: M.R. | N127: =O126+1 -> 50001 | O127: 100000 | P127: 0.4
A128: =B127+1 -> 100001 | C128: 0.5 | D128: 100000 | E128: =IF(J125=0,0,E127) -> 28900 | F128: 0.08 | G128: 0 | H128: 50000 | I128: =IF(H124>H128,H124-H128,0) -> 1120630 | J128: =IF(I128>0,ROUND(I128*I124,0),0) -> 560315 | K128: =I128-J128 -> 560315 | L128: =IF(H126>0,ROUND(H126*L124,0),0) -> 45137 | M128: =IF(K128>L128,0,L128-K128) -> 0 | N128: =O127+1 -> 100001 | O128: 0 | P128: 0.5
A129: Female | D129: TAX MARGIN | E129: TAX AT MARGIN | F129: SUR RATE | G129: E.Cess | H129: TAXABLE INCOME | I129: TAX RATE APPLY | J129: TAX MARGIN SLAB | K129: TAX SLAB | L129: Surch.Rate | M129: E.Cess | N129: TAX CALCULALTION | P129: =IF($E$3="Male",H126,IF($E$3="Female",H133,IF($E$3="Senior Citizen",H140,H147))) -> 564215
A130: Not defined | N130: SURCHARGE | P130: =IF($E$3="Male",I126,IF($E$3="Female",I133,IF($E$3="Senior Citizen",I140,I147))) -> 45137
A131: 0 | B131: 18000 | C131: 0 | D131: 0 | E131: 0 | F131: 0 | G131: 0 | H131: =H124 -> 1170630 | I131: =VLOOKUP(H131,A131:C135,3) -> 0.5 | J131: =INDEX(D131:D135,MATCH(I131,C131:C135,0)) -> 100000 | K131: =INDEX(E131:E135,MATCH(I131,C131:C135,0)) -> 28900 | L131: =IF(H131>H135,VLOOKUP(H131,A131:F135,6),0) -> 0.08 | M131: =VLOOKUP(H131,A131:G135,7) -> 0 | N131: E. CESS | P131: =IF($E$3="Male",J126,IF($E$3="Female",J133,IF($E$3="Senior Citizen",J140,J147))) -> 0
A132: =B131+1 -> 18001 | B132: 25000 | C132: 0.2 | D132: =B131 -> 18000 | E132: =(B132-B131)*C132 -> 1400 | F132: 0 | G132: 0 | H132: TAX CALCULALTION | I132: SURCHARGE | J132: E. CESS | K132: TOTAL TAX DUE | N132: TOTAL TAX DUE | P132: =IF($E$3="Male",K126,IF($E$3="Female",K133,IF($E$3="Senior Citizen",K140,K147))) -> 609352
A133: =B132+1 -> 25001 | B133: 50000 | C133: 0.3 | D133: =B132 -> 25000 | E133: =E132+(B133-B132)*C133 -> 8900 | F133: 0 | G133: 0 | H133: =IF(I131=C135,E134+ROUND((H131-J131),0)*I131,IF(I131=C134,E133+ROUND((H131-J131)*I131,0),IF(I131=C133,E132+ROUND((H131-J131)*I131,0),IF(I131=C132,E131+ROUND((H131-J131)*I131,0),E130+ROUND((H131-J131)*I131,0))))) -> 564215 | I133: =MIN(K135:L135) -> 45137 | J133: =ROUND(SUM(H133+I133)*M131,0) -> 0 | K133: =SUM(H133:J133) -> 609352 | N133: Age Defined | P133: =IF($E$3="Male",A123,IF($E$3="Female",A130,IF($E$3="Senior Citizen",A137,A144))) -> Not defined
A134: =B133+1 -> 50001 | B134: 100000 | C134: 0.4 | D134: =B133 -> 50000 | E134: =E133+(B134-B133)*C134 -> 28900 | F134: 0.08 | G134: 0 | H134: Surcharge limit | I134: Add.Tax Income | J134: Add. Tax | K134: Diff | L134: Sur. Amt | M134: M.R. | N134: Marginal Releif | P134: =IF($E$3="Male",M128,IF($E$3="Female",M135,IF($E$3="Senior Citizen",M142,M149))) -> 0
A135: =B134+1 -> 100001 | C135: 0.5 | D135: 100000 | E135: =IF(J132=0,0,E134) -> 28900 | F135: 0.08 | G135: 0 | H135: =H128 -> 50000 | I135: =IF(H131>H135,H131-H135,0) -> 1120630 | J135: =IF(I135>0,ROUND(I135*I131,0),0) -> 560315 | K135: =I135-J135 -> 560315 | L135: =IF(H133>0,ROUND(H133*L131,0),0) -> 45137 | M135: =IF(K135>L135,0,L135-K135) -> 0 | N135: Tax Due | P135: =IF($E$3="Male",K126,IF($E$3="Female",K133,IF($E$3="Senior Citizen",K140,K147))) -> 609352
A136: Senior Citizen | D136: TAX MARGIN | E136: TAX AT MARGIN | F136: SUR RATE | G136: E.Cess | H136: TAXABLE INCOME | I136: TAX RATE APPLY | J136: TAX MARGIN SLAB | K136: TAX SLAB | L136: Surch.Rate | M136: E.Cess
A137: Not defined
A138: 0 | B138: 18000 | C138: 0 | D138: 0 | E138: 0 | F138: 0 | G138: 0 | H138: =H124 -> 1170630 | I138: =VLOOKUP(H138,A138:C142,3) -> 0.5 | J138: =INDEX(D138:D142,MATCH(I138,C138:C142,0)) -> 100000 | K138: =INDEX(E138:E142,MATCH(I138,C138:C142,0)) -> 28900 | L138: =IF(H138>H142,VLOOKUP(H138,A138:F142,6),0) -> 0.08 | M138: =VLOOKUP(H138,A138:G142,7) -> 0
A139: =B138+1 -> 18001 | B139: 25000 | C139: 0.2 | D139: =B138 -> 18000 | E139: =(B139-B138)*C139 -> 1400 | F139: 0 | G139: 0 | H139: TAX CALCULALTION | I139: SURCHARGE | J139: E. CESS | K139: TOTAL TAX DUE
A140: =B139+1 -> 25001 | B140: 50000 | C140: 0.3 | D140: =B139 -> 25000 | E140: =E139+(B140-B139)*C140 -> 8900 | F140: 0 | G140: 0 | H140: =IF(I138=C142,E141+ROUND((H138-J138),0)*I138,IF(I138=C141,E140+ROUND((H138-J138)*I138,0),IF(I138=C140,E139+ROUND((H138-J138)*I138,0),IF(I138=C139,E138+ROUND((H138-J138)*I138,0),E137+ROUND((H138-J138)*I138,0))))) -> 564215 | I140: =MIN(K142:L142) -> 45137 | J140: =ROUND(SUM(H140+I140)*M138,0) -> 0 | K140: =SUM(H140:J140) -> 609352
A141: =B140+1 -> 50001 | B141: 100000 | C141: 0.4 | D141: =B140 -> 50000 | E141: =E140+(B141-B140)*C141 -> 28900 | F141: 0.08 | G141: 0 | H141: Surcharge limit | I141: Add.Tax Income | J141: Add. Tax | K141: Diff | L141: Sur. Amt | M141: M.R.
A142: =B141+1 -> 100001 | C142: 0.5 | D142: 100000 | E142: =IF(J139=0,0,E141) -> 28900 | F142: 0.08 | G142: 0 | H142: =H135 -> 50000 | I142: =IF(H138>H142,H138-H142,0) -> 1120630 | J142: =IF(I142>0,ROUND(I142*I138,0),0) -> 560315 | K142: =I142-J142 -> 560315 | L142: =IF(H140>0,ROUND(H140*L138,0),0) -> 45137 | M142: =IF(K142>L142,0,L142-K142) -> 0
A143: Very Senior Citizen | D143: TAX MARGIN | E143: TAX AT MARGIN | F143: SUR RATE | G143: E.Cess | H143: TAXABLE INCOME | I143: TAX RATE APPLY | J143: TAX MARGIN SLAB | K143: TAX SLAB | L143: Surch.Rate | M143: E.Cess
A144: Not defined
A145: 0 | B145: 18000 | C145: 0 | D145: 0 | E145: 0 | F145: 0 | G145: 0 | H145: =H124 -> 1170630 | I145: =VLOOKUP(H145,A145:C149,3) -> 0.5 | J145: =INDEX(D145:D149,MATCH(I145,C145:C149,0)) -> 100000 | K145: =INDEX(E145:E149,MATCH(I145,C145:C149,0)) -> 28900 | L145: =IF(H145>H149,VLOOKUP(H145,A145:F149,6),0) -> 0.08 | M145: =VLOOKUP(H145,A145:G149,7) -> 0
A146: =B145+1 -> 18001 | B146: 25000 | C146: 0.2 | D146: =B145 -> 18000 | E146: =(B146-B145)*C146 -> 1400 | F146: 0 | G146: 0 | H146: TAX CALCULALTION | I146: SURCHARGE | J146: E. CESS | K146: TOTAL TAX DUE
A147: =B146+1 -> 25001 | B147: 50000 | C147: 0.3 | D147: =B146 -> 25000 | E147: =E146+(B147-B146)*C147 -> 8900 | F147: 0 | G147: 0 | H147: =IF(I145=C149,E148+ROUND((H145-J145),0)*I145,IF(I145=C148,E147+ROUND((H145-J145)*I145,0),IF(I145=C147,E146+ROUND((H145-J145)*I145,0),IF(I145=C146,E145+ROUND((H145-J145)*I145,0),E144+ROUND((H145-J145)*I145,0))))) -> 564215 | I147: =MIN(K149:L149) -> 45137 | J147: =ROUND(SUM(H147+I147)*M145,0) -> 0 | K147: =SUM(H147:J147) -> 609352
A148: =B147+1 -> 50001 | B148: 100000 | C148: 0.4 | D148: =B147 -> 50000 | E148: =E147+(B148-B147)*C148 -> 28900 | F148: 0.08 | G148: 0 | H148: Surcharge limit | I148: Add.Tax Income | J148: Add. Tax | K148: Diff | L148: Sur. Amt | M148: M.R.
A149: =B148+1 -> 100001 | C149: 0.5 | D149: 100000 | E149: =IF(J146=0,0,E148) -> 28900 | F149: 0.08 | G149: 0 | H149: =H142 -> 50000 | I149: =IF(H145>H149,H145-H149,0) -> 1120630 | J149: =IF(I149>0,ROUND(I149*I145,0),0) -> 560315 | K149: =I149-J149 -> 560315 | L149: =IF(H147>0,ROUND(H147*L145,0),0) -> 45137 | M149: =IF(K149>L149,0,L149-K149) -> 0
C150: 1990 | D150: =C150+1 -> 1991 | F150: 1990-91
A151: Male | D151: TAX MARGIN | E151: TAX AT MARGIN | F151: SUR RATE | G151: E.Cess | H151: TAXABLE INCOME | I151: TAX RATE APPLY | J151: TAX MARGIN SLAB | K151: TAX SLAB | L151: Surch.Rate | M151: E.Cess | N151: Tax Range
A152: Not defined | N152: F.Year | O152: =C150 -> 1990 | P152: =D150 -> 1991
A153: 0 | B153: 22000 | C153: 0 | D153: 0 | E153: 0 | F153: 0 | G153: 0 | H153: =$E$4 -> 1170630 | I153: =VLOOKUP(H153,A153:C157,3) -> 0.5 | J153: =INDEX(D153:D157,MATCH(I153,C153:C157,0)) -> 100000 | K153: =INDEX(E153:E157,MATCH(I153,C153:C157,0)) -> 27600 | L153: =IF(H153>H157,VLOOKUP(H153,A153:F157,6),0) -> 0.12 | M153: =VLOOKUP(H153,A153:G157,7) -> 0 | N153: 0 | O153: =IF($E$3="Male",B153,IF($E$3="Female",B160,IF($E$3="Senior Citizen",B167,B174))) -> 22000 | P153: 0
A154: =B153+1 -> 22001 | B154: 30000 | C154: 0.2 | D154: =B153 -> 22000 | E154: =(B154-B153)*C154 -> 1600 | F154: 0 | G154: 0 | H154: TAX CALCULALTION | I154: SURCHARGE | J154: E. CESS | K154: TOTAL TAX DUE | N154: =O153+1 -> 22001 | O154: 30000 | P154: 0.2
A155: =B154+1 -> 30001 | B155: 50000 | C155: 0.3 | D155: =B154 -> 30000 | E155: =E154+(B155-B154)*C155 -> 7600 | F155: 0 | G155: 0 | H155: =IF(I153=C157,E156+ROUND((H153-J153),0)*I153,IF(I153=C156,E155+ROUND((H153-J153)*I153,0),IF(I153=C155,E154+ROUND((H153-J153)*I153,0),IF(I153=C154,E153+ROUND((H153-J153)*I153,0),E152+ROUND((H153-J153)*I153,0))))) -> 562915 | I155: =MIN(K157:L157) -> 67550 | J155: =ROUND(SUM(H155+I155)*M153,0) -> 0 | K155: =SUM(H155:J155) -> 630465 | N155: =O154+1 -> 30001 | O155: 50000 | P155: 0.3
A156: =B155+1 -> 50001 | B156: 100000 | C156: 0.4 | D156: =B155 -> 50000 | E156: =E155+(B156-B155)*C156 -> 27600 | F156: 0.12 | G156: 0 | H156: Surcharge limit | I156: Add.Tax Income | J156: Add. Tax | K156: Diff | L156: Sur. Amt | M156: M.R. | N156: =O155+1 -> 50001 | O156: 100000 | P156: 0.4
A157: =B156+1 -> 100001 | C157: 0.5 | D157: 100000 | E157: =IF(J154=0,0,E156) -> 27600 | F157: 0.12 | G157: 0 | H157: 75000 | I157: =IF(H153>H157,H153-H157,0) -> 1095630 | J157: =IF(I157>0,ROUND(I157*I153,0),0) -> 547815 | K157: =I157-J157 -> 547815 | L157: =IF(H155>0,ROUND(H155*L153,0),0) -> 67550 | M157: =IF(K157>L157,0,L157-K157) -> 0 | N157: =O156+1 -> 100001 | O157: 0 | P157: 0.5
A158: Female | D158: TAX MARGIN | E158: TAX AT MARGIN | F158: SUR RATE | G158: E.Cess | H158: TAXABLE INCOME | I158: TAX RATE APPLY | J158: TAX MARGIN SLAB | K158: TAX SLAB | L158: Surch.Rate | M158: E.Cess | N158: TAX CALCULALTION | P158: =IF($E$3="Male",H155,IF($E$3="Female",H162,IF($E$3="Senior Citizen",H169,H176))) -> 562915
A159: Not defined | N159: SURCHARGE | P159: =IF($E$3="Male",I155,IF($E$3="Female",I162,IF($E$3="Senior Citizen",I169,I176))) -> 67550
A160: 0 | B160: 22000 | C160: 0 | D160: 0 | E160: 0 | F160: 0 | G160: 0 | H160: =H153 -> 1170630 | I160: =VLOOKUP(H160,A160:C164,3) -> 0.5 | J160: =INDEX(D160:D164,MATCH(I160,C160:C164,0)) -> 100000 | K160: =INDEX(E160:E164,MATCH(I160,C160:C164,0)) -> 27600 | L160: =IF(H160>H164,VLOOKUP(H160,A160:F164,6),0) -> 0.12 | M160: =VLOOKUP(H160,A160:G164,7) -> 0 | N160: E. CESS | P160: =IF($E$3="Male",J155,IF($E$3="Female",J162,IF($E$3="Senior Citizen",J169,J176))) -> 0
A161: =B160+1 -> 22001 | B161: 30000 | C161: 0.2 | D161: =B160 -> 22000 | E161: =(B161-B160)*C161 -> 1600 | F161: 0 | G161: 0 | H161: TAX CALCULALTION | I161: SURCHARGE | J161: E. CESS | K161: TOTAL TAX DUE | N161: TOTAL TAX DUE | P161: =IF($E$3="Male",K155,IF($E$3="Female",K162,IF($E$3="Senior Citizen",K169,K176))) -> 630465
A162: =B161+1 -> 30001 | B162: 50000 | C162: 0.3 | D162: =B161 -> 30000 | E162: =E161+(B162-B161)*C162 -> 7600 | F162: 0 | G162: 0 | H162: =IF(I160=C164,E163+ROUND((H160-J160),0)*I160,IF(I160=C163,E162+ROUND((H160-J160)*I160,0),IF(I160=C162,E161+ROUND((H160-J160)*I160,0),IF(I160=C161,E160+ROUND((H160-J160)*I160,0),E159+ROUND((H160-J160)*I160,0))))) -> 562915 | I162: =MIN(K164:L164) -> 67550 | J162: =ROUND(SUM(H162+I162)*M160,0) -> 0 | K162: =SUM(H162:J162) -> 630465 | N162: Age Defined | P162: =IF($E$3="Male",A152,IF($E$3="Female",A159,IF($E$3="Senior Citizen",A166,A173))) -> Not defined
A163: =B162+1 -> 50001 | B163: 100000 | C163: 0.4 | D163: =B162 -> 50000 | E163: =E162+(B163-B162)*C163 -> 27600 | F163: 0.12 | G163: 0 | H163: Surcharge limit | I163: Add.Tax Income | J163: Add. Tax | K163: Diff | L163: Sur. Amt | M163: M.R. | N163: Marginal Releif | P163: =IF($E$3="Male",M157,IF($E$3="Female",M164,IF($E$3="Senior Citizen",M171,M178))) -> 0
A164: =B163+1 -> 100001 | C164: 0.5 | D164: 100000 | E164: =IF(J161=0,0,E163) -> 27600 | F164: 0.12 | G164: 0 | H164: =H157 -> 75000 | I164: =IF(H160>H164,H160-H164,0) -> 1095630 | J164: =IF(I164>0,ROUND(I164*I160,0),0) -> 547815 | K164: =I164-J164 -> 547815 | L164: =IF(H162>0,ROUND(H162*L160,0),0) -> 67550 | M164: =IF(K164>L164,0,L164-K164) -> 0 | N164: Tax Due | P164: =IF($E$3="Male",K155,IF($E$3="Female",K162,IF($E$3="Senior Citizen",K169,K176))) -> 630465
A165: Senior Citizen | D165: TAX MARGIN | E165: TAX AT MARGIN | F165: SUR RATE | G165: E.Cess | H165: TAXABLE INCOME | I165: TAX RATE APPLY | J165: TAX MARGIN SLAB | K165: TAX SLAB | L165: Surch.Rate | M165: E.Cess
A166: Not defined
A167: 0 | B167: 22000 | C167: 0 | D167: 0 | E167: 0 | F167: 0 | G167: 0 | H167: =H153 -> 1170630 | I167: =VLOOKUP(H167,A167:C171,3) -> 0.5 | J167: =INDEX(D167:D171,MATCH(I167,C167:C171,0)) -> 100000 | K167: =INDEX(E167:E171,MATCH(I167,C167:C171,0)) -> 27600 | L167: =IF(H167>H171,VLOOKUP(H167,A167:F171,6),0) -> 0.12 | M167: =VLOOKUP(H167,A167:G171,7) -> 0
A168: =B167+1 -> 22001 | B168: 30000 | C168: 0.2 | D168: =B167 -> 22000 | E168: =(B168-B167)*C168 -> 1600 | F168: 0 | G168: 0 | H168: TAX CALCULALTION | I168: SURCHARGE | J168: E. CESS | K168: TOTAL TAX DUE
A169: =B168+1 -> 30001 | B169: 50000 | C169: 0.3 | D169: =B168 -> 30000 | E169: =E168+(B169-B168)*C169 -> 7600 | F169: 0 | G169: 0 | H169: =IF(I167=C171,E170+ROUND((H167-J167),0)*I167,IF(I167=C170,E169+ROUND((H167-J167)*I167,0),IF(I167=C169,E168+ROUND((H167-J167)*I167,0),IF(I167=C168,E167+ROUND((H167-J167)*I167,0),E166+ROUND((H167-J167)*I167,0))))) -> 562915 | I169: =MIN(K171:L171) -> 67550 | J169: =ROUND(SUM(H169+I169)*M167,0) -> 0 | K169: =SUM(H169:J169) -> 630465
A170: =B169+1 -> 50001 | B170: 100000 | C170: 0.4 | D170: =B169 -> 50000 | E170: =E169+(B170-B169)*C170 -> 27600 | F170: 0.12 | G170: 0 | H170: Surcharge limit | I170: Add.Tax Income | J170: Add. Tax | K170: Diff | L170: Sur. Amt | M170: M.R.
A171: =B170+1 -> 100001 | C171: 0.5 | D171: 100000 | E171: =IF(J168=0,0,E170) -> 27600 | F171: 0.12 | G171: 0 | H171: =H164 -> 75000 | I171: =IF(H167>H171,H167-H171,0) -> 1095630 | J171: =IF(I171>0,ROUND(I171*I167,0),0) -> 547815 | K171: =I171-J171 -> 547815 | L171: =IF(H169>0,ROUND(H169*L167,0),0) -> 67550 | M171: =IF(K171>L171,0,L171-K171) -> 0
A172: Very Senior Citizen | D172: TAX MARGIN | E172: TAX AT MARGIN | F172: SUR RATE | G172: E.Cess | H172: TAXABLE INCOME | I172: TAX RATE APPLY | J172: TAX MARGIN SLAB | K172: TAX SLAB | L172: Surch.Rate | M172: E.Cess
A173: Not defined
A174: 0 | B174: 22000 | C174: 0 | D174: 0 | E174: 0 | F174: 0 | G174: 0 | H174: =H153 -> 1170630 | I174: =VLOOKUP(H174,A174:C178,3) -> 0.5 | J174: =INDEX(D174:D178,MATCH(I174,C174:C178,0)) -> 100000 | K174: =INDEX(E174:E178,MATCH(I174,C174:C178,0)) -> 27600 | L174: =IF(H174>H178,VLOOKUP(H174,A174:F178,6),0) -> 0.12 | M174: =VLOOKUP(H174,A174:G178,7) -> 0
A175: =B174+1 -> 22001 | B175: 30000 | C175: 0.2 | D175: =B174 -> 22000 | E175: =(B175-B174)*C175 -> 1600 | F175: 0 | G175: 0 | H175: TAX CALCULALTION | I175: SURCHARGE | J175: E. CESS | K175: TOTAL TAX DUE
A176: =B175+1 -> 30001 | B176: 50000 | C176: 0.3 | D176: =B175 -> 30000 | E176: =E175+(B176-B175)*C176 -> 7600 | F176: 0 | G176: 0 | H176: =IF(I174=C178,E177+ROUND((H174-J174),0)*I174,IF(I174=C177,E176+ROUND((H174-J174)*I174,0),IF(I174=C176,E175+ROUND((H174-J174)*I174,0),IF(I174=C175,E174+ROUND((H174-J174)*I174,0),E173+ROUND((H174-J174)*I174,0))))) -> 562915 | I176: =MIN(K178:L178) -> 67550 | J176: =ROUND(SUM(H176+I176)*M174,0) -> 0 | K176: =SUM(H176:J176) -> 630465
A177: =B176+1 -> 50001 | B177: 100000 | C177: 0.4 | D177: =B176 -> 50000 | E177: =E176+(B177-B176)*C177 -> 27600 | F177: 0.12 | G177: 0 | H177: Surcharge limit | I177: Add.Tax Income | J177: Add. Tax | K177: Diff | L177: Sur. Amt | M177: M.R.
A178: =B177+1 -> 100001 | C178: 0.5 | D178: 100000 | E178: =IF(J175=0,0,E177) -> 27600 | F178: 0.12 | G178: 0 | H178: =H171 -> 75000 | I178: =IF(H174>H178,H174-H178,0) -> 1095630 | J178: =IF(I178>0,ROUND(I178*I174,0),0) -> 547815 | K178: =I178-J178 -> 547815 | L178: =IF(H176>0,ROUND(H176*L174,0),0) -> 67550 | M178: =IF(K178>L178,0,L178-K178) -> 0
C179: 1991 | D179: =C179+1 -> 1992 | F179: 1991-92
A180: Male | D180: TAX MARGIN | E180: TAX AT MARGIN | F180: SUR RATE | G180: E.Cess | H180: TAXABLE INCOME | I180: TAX RATE APPLY | J180: TAX MARGIN SLAB | K180: TAX SLAB | L180: Surch.Rate | M180: E.Cess | N180: Tax Range
A181: Not defined | N181: F.Year | O181: =C179 -> 1991 | P181: =D179 -> 1992
A182: 0 | B182: 22000 | C182: 0 | D182: 0 | E182: 0 | F182: 0 | G182: 0 | H182: =$E$4 -> 1170630 | I182: =VLOOKUP(H182,A182:C186,3) -> 0.5 | J182: =INDEX(D182:D186,MATCH(I182,C182:C186,0)) -> 100000 | K182: =INDEX(E182:E186,MATCH(I182,C182:C186,0)) -> 27600 | L182: =IF(H182>H186,VLOOKUP(H182,A182:F186,6),0) -> 0.12 | M182: =VLOOKUP(H182,A182:G186,7) -> 0 | N182: 0 | O182: =IF($E$3="Male",B182,IF($E$3="Female",B189,IF($E$3="Senior Citizen",B196,B203))) -> 22000 | P182: 0
A183: =B182+1 -> 22001 | B183: 30000 | C183: 0.2 | D183: =B182 -> 22000 | E183: =(B183-B182)*C183 -> 1600 | F183: 0 | G183: 0 | H183: TAX CALCULALTION | I183: SURCHARGE | J183: E. CESS | K183: TOTAL TAX DUE | N183: =O182+1 -> 22001 | O183: 30000 | P183: 0.2
A184: =B183+1 -> 30001 | B184: 50000 | C184: 0.3 | D184: =B183 -> 30000 | E184: =E183+(B184-B183)*C184 -> 7600 | F184: 0 | G184: 0 | H184: =IF(I182=C186,E185+ROUND((H182-J182),0)*I182,IF(I182=C185,E184+ROUND((H182-J182)*I182,0),IF(I182=C184,E183+ROUND((H182-J182)*I182,0),IF(I182=C183,E182+ROUND((H182-J182)*I182,0),E181+ROUND((H182-J182)*I182,0))))) -> 562915 | I184: =MIN(K186:L186) -> 67550 | J184: =ROUND(SUM(H184+I184)*M182,0) -> 0 | K184: =SUM(H184:J184) -> 630465 | N184: =O183+1 -> 30001 | O184: 50000 | P184: 0.3
A185: =B184+1 -> 50001 | B185: 100000 | C185: 0.4 | D185: =B184 -> 50000 | E185: =E184+(B185-B184)*C185 -> 27600 | F185: 0.12 | G185: 0 | H185: Surcharge limit | I185: Add.Tax Income | J185: Add. Tax | K185: Diff | L185: Sur. Amt | M185: M.R. | N185: =O184+1 -> 50001 | O185: 100000 | P185: 0.4
A186: =B185+1 -> 100001 | C186: 0.5 | D186: 100000 | E186: =IF(J183=0,0,E185) -> 27600 | F186: 0.12 | G186: 0 | H186: 100000 | I186: =IF(H182>H186,H182-H186,0) -> 1070630 | J186: =IF(I186>0,ROUND(I186*I182,0),0) -> 535315 | K186: =I186-J186 -> 535315 | L186: =IF(H184>0,ROUND(H184*L182,0),0) -> 67550 | M186: =IF(K186>L186,0,L186-K186) -> 0 | N186: =O185+1 -> 100001 | O186: 0 | P186: 0.5
A187: Female | D187: TAX MARGIN | E187: TAX AT MARGIN | F187: SUR RATE | G187: E.Cess | H187: TAXABLE INCOME | I187: TAX RATE APPLY | J187: TAX MARGIN SLAB | K187: TAX SLAB | L187: Surch.Rate | M187: E.Cess | N187: TAX CALCULALTION | P187: =IF($E$3="Male",H184,IF($E$3="Female",H191,IF($E$3="Senior Citizen",H198,H205))) -> 562915
A188: Not defined | N188: SURCHARGE | P188: =IF($E$3="Male",I184,IF($E$3="Female",I191,IF($E$3="Senior Citizen",I198,I205))) -> 67550
A189: 0 | B189: 22000 | C189: 0 | D189: 0 | E189: 0 | F189: 0 | G189: 0 | H189: =H182 -> 1170630 | I189: =VLOOKUP(H189,A189:C193,3) -> 0.5 | J189: =INDEX(D189:D193,MATCH(I189,C189:C193,0)) -> 100000 | K189: =INDEX(E189:E193,MATCH(I189,C189:C193,0)) -> 27600 | L189: =IF(H189>H193,VLOOKUP(H189,A189:F193,6),0) -> 0.12 | M189: =VLOOKUP(H189,A189:G193,7) -> 0 | N189: E. CESS | P189: =IF($E$3="Male",J184,IF($E$3="Female",J191,IF($E$3="Senior Citizen",J198,J205))) -> 0
A190: =B189+1 -> 22001 | B190: 30000 | C190: 0.2 | D190: =B189 -> 22000 | E190: =(B190-B189)*C190 -> 1600 | F190: 0 | G190: 0 | H190: TAX CALCULALTION | I190: SURCHARGE | J190: E. CESS | K190: TOTAL TAX DUE | N190: TOTAL TAX DUE | P190: =IF($E$3="Male",K184,IF($E$3="Female",K191,IF($E$3="Senior Citizen",K198,K205))) -> 630465
A191: =B190+1 -> 30001 | B191: 50000 | C191: 0.3 | D191: =B190 -> 30000 | E191: =E190+(B191-B190)*C191 -> 7600 | F191: 0 | G191: 0 | H191: =IF(I189=C193,E192+ROUND((H189-J189),0)*I189,IF(I189=C192,E191+ROUND((H189-J189)*I189,0),IF(I189=C191,E190+ROUND((H189-J189)*I189,0),IF(I189=C190,E189+ROUND((H189-J189)*I189,0),E188+ROUND((H189-J189)*I189,0))))) -> 562915 | I191: =MIN(K193:L193) -> 67550 | J191: =ROUND(SUM(H191+I191)*M189,0) -> 0 | K191: =SUM(H191:J191) -> 630465 | N191: Age Defined | P191: =IF($E$3="Male",A181,IF($E$3="Female",A188,IF($E$3="Senior Citizen",A195,A202))) -> Not defined
A192: =B191+1 -> 50001 | B192: 100000 | C192: 0.4 | D192: =B191 -> 50000 | E192: =E191+(B192-B191)*C192 -> 27600 | F192: 0.12 | G192: 0 | H192: Surcharge limit | I192: Add.Tax Income | J192: Add. Tax | K192: Diff | L192: Sur. Amt | M192: M.R. | N192: Marginal Releif | P192: =IF($E$3="Male",M186,IF($E$3="Female",M193,IF($E$3="Senior Citizen",M200,M207))) -> 0
A193: =B192+1 -> 100001 | C193: 0.5 | D193: 100000 | E193: =IF(J190=0,0,E192) -> 27600 | F193: 0.12 | G193: 0 | H193: =H186 -> 100000 | I193: =IF(H189>H193,H189-H193,0) -> 1070630 | J193: =IF(I193>0,ROUND(I193*I189,0),0) -> 535315 | K193: =I193-J193 -> 535315 | L193: =IF(H191>0,ROUND(H191*L189,0),0) -> 67550 | M193: =IF(K193>L193,0,L193-K193) -> 0 | N193: Tax Due | P193: =IF($E$3="Male",K184,IF($E$3="Female",K191,IF($E$3="Senior Citizen",K198,K205))) -> 630465
A194: Senior Citizen | D194: TAX MARGIN | E194: TAX AT MARGIN | F194: SUR RATE | G194: E.Cess | H194: TAXABLE INCOME | I194: TAX RATE APPLY | J194: TAX MARGIN SLAB | K194: TAX SLAB | L194: Surch.Rate | M194: E.Cess
A195: Not defined
A196: 0 | B196: 22000 | C196: 0 | D196: 0 | E196: 0 | F196: 0 | G196: 0 | H196: =H182 -> 1170630 | I196: =VLOOKUP(H196,A196:C200,3) -> 0.5 | J196: =INDEX(D196:D200,MATCH(I196,C196:C200,0)) -> 100000 | K196: =INDEX(E196:E200,MATCH(I196,C196:C200,0)) -> 27600 | L196: =IF(H196>H200,VLOOKUP(H196,A196:F200,6),0) -> 0.12 | M196: =VLOOKUP(H196,A196:G200,7) -> 0
A197: =B196+1 -> 22001 | B197: 30000 | C197: 0.2 | D197: =B196 -> 22000 | E197: =(B197-B196)*C197 -> 1600 | F197: 0 | G197: 0 | H197: TAX CALCULALTION | I197: SURCHARGE | J197: E. CESS | K197: TOTAL TAX DUE
A198: =B197+1 -> 30001 | B198: 50000 | C198: 0.3 | D198: =B197 -> 30000 | E198: =E197+(B198-B197)*C198 -> 7600 | F198: 0 | G198: 0 | H198: =IF(I196=C200,E199+ROUND((H196-J196),0)*I196,IF(I196=C199,E198+ROUND((H196-J196)*I196,0),IF(I196=C198,E197+ROUND((H196-J196)*I196,0),IF(I196=C197,E196+ROUND((H196-J196)*I196,0),E195+ROUND((H196-J196)*I196,0))))) -> 562915 | I198: =MIN(K200:L200) -> 67550 | J198: =ROUND(SUM(H198+I198)*M196,0) -> 0 | K198: =SUM(H198:J198) -> 630465
A199: =B198+1 -> 50001 | B199: 100000 | C199: 0.4 | D199: =B198 -> 50000 | E199: =E198+(B199-B198)*C199 -> 27600 | F199: 0.12 | G199: 0 | H199: Surcharge limit | I199: Add.Tax Income | J199: Add. Tax | K199: Diff | L199: Sur. Amt | M199: M.R.
A200: =B199+1 -> 100001 | C200: 0.5 | D200: 100000 | E200: =IF(J197=0,0,E199) -> 27600 | F200: 0.12 | G200: 0 | H200: =H193 -> 100000 | I200: =IF(H196>H200,H196-H200,0) -> 1070630 | J200: =IF(I200>0,ROUND(I200*I196,0),0) -> 535315 | K200: =I200-J200 -> 535315 | L200: =IF(H198>0,ROUND(H198*L196,0),0) -> 67550 | M200: =IF(K200>L200,0,L200-K200) -> 0
... 1126 more rows

Sheet Statement1920
A1: INCOME TAX CALCULATION FOR THE | E1: Fin. Year | F1: ='Gross Salary 19-20'!$D$7 -> 2021-22 | G1: Code/S.N. | H1: =taxtable1819!BY2 -> 1 | I1: Home
G2: ='Gross Salary 19-20'!$M$7 -> Existing Option
A3: TAX CATEGORY | C3: ='Gross Salary 19-20'!D10 -> MALE | E3: NAME OF EMPLOYEE | G3: =taxtable1819!BZ2 -> PRAVESH KUMAR SHARMA
A4: PAN NO | C4: ='Gross Salary 19-20'!$N$13 -> ABCPP1234D | E4: DESIGNATION | G4: ='Gross Salary 19-20'!J13 -> AAO-I | M4: =LEN(C4) -> 10
A5: 1 | B5: INCOME FROM SALARY (including all allowance u/s 17.. i.e. NPS emloyer contribution) | J5: Gross Salary (Home)
B6: (a) | C6: Salary as per provisons contained in sec 17(1) | G6: ='Gross Salary 19-20'!$H$56 -> 1370634 | H6: =G6+G7+G8 -> 1370634
B7: (b) | C7: Value of perquisites u/s 17(2) | G7: ='Gross Salary 19-20'!$C$61 -> 0
B8: (c ) | C8: Profits in lieu of salary under section 17(3) | G8: ='Gross Salary 19-20'!$E$61 -> 0
B9: (d) | C9: Total
B10: (e) | C10: Reported total amount of salary received from other employer(s) | G10: ='Gross Salary 19-20'!$G$61 -> 0
A11: 2 | B11: Less : Allowance to the extent exempt under section 10
B12: (a) | C12: Travel concession or assistance u/s 10(5) | G12: =IF($G$2="New option u/s 115BAC",0,'Gross Salary 19-20'!E63) -> 0
B13: (b) | C13: Death-cum-retirement gratuity u/s 10(10) | G13: =IF($G$2="New option u/s 115BAC",0,'Gross Salary 19-20'!E64) -> 0
B14: (c ) | C14: Commuted value of pension u/s 10(10A) | G14: =IF($G$2="New option u/s 115BAC",0,'Gross Salary 19-20'!E65) -> 0
B15: (d) | C15: Cash equivlent of leave salary encashment u/s 10(10AA) | G15: =IF($G$2="New option u/s 115BAC",0,'Gross Salary 19-20'!E66) -> 0
B16: (e) | C16: House rent allowance u/s 10(13 A) | G16: =IF($G$2="New option u/s 115BAC",0,'Gross Salary 19-20'!E67) -> 0
B17: (f) | C17: Conv Allow under Section 10(14) | G17: =IF($G$2="New option u/s 115BAC",0,'Gross Salary 19-20'!E68) -> 0 | H17: =SUM(G12:G18) -> 0
B18: (g) | C18: Other Allowances exempt u/s 10 | G18: =IF($G$2="New option u/s 115BAC",0,'Gross Salary 19-20'!E69) -> 0
B19: (h) | C19: Total amount of exemption claimd u/s 10
A20: 3 | B20: Total amount of salary received from current employer [1(d)-2(h)] | H20: =H6-H17 -> 1370634
A21: 4 | B21: Deduction u/s 16 & 17
B22: (a) | C22: Standard Deduction -u/s 16(ia) | G22: =IF($G$2="New option u/s 115BAC",0,IF($F$1="2021-22",MAX(MIN(H20,50000),0),IF($F$1="2020-21",MAX(MIN(H20,50000),0),IF($F$1="2018-19",MAX(MIN(H20,40000),0),0)))) -> 50000 | H22: =G22+G23+G24 -> 50000
B23: (b) | C23: Entertainment Allowance u/s 16(ii) | G23: =IF($G$2="New option u/s 115BAC",0,'Gross Salary 19-20'!$M$59) -> 0
B24: (c ) | C24: Tax on Employment | G24: =IF($G$2="New option u/s 115BAC",0,'Gross Salary 19-20'!$M$60) -> 0
A25: 5 | B25: Total of 4 (a)+ 4(b)
A26: 6 | B26: Income chargable under the head Salaries [3+1(e)-5] | H26: =H20+G10-H22 -> 1320634
A27: 7 | B27: Add : Any other income reported by the employee
B28: (a) | C28: NSC INTREST | G28: ='Gross Salary 19-20'!H63 -> 0 | H28: =SUM(G28:G29,G31:G32)-G30 -> 0 | Q28: Statement
B29: (b) | C29: Bank Intrest on Saving | G29: ='Gross Salary 19-20'!H64 -> 0
B30: (c ) | C30: (Loss) Intrest on House Loan Intrest | G30: =IF($G$2="New option u/s 115BAC",0,'Gross Salary 19-20'!H65+'Gross Salary 19-20'!M56) -> 0
B31: (d) | C31: Income from pension | G31: ='Gross Salary 19-20'!H66 -> 0
B32: (e) | C32: Any other income | G32: ='Gross Salary 19-20'!H67 -> 0
A33: 8 | B33: Total amount of other income reported by the employee
A34: 9 | B34: GROSS TOTAL INCOME ( 6 + 8 ) | H34: =H26+H28 -> 1320634
A35: 10 | B35: Deductions under chapter VI A
A36: (a) | B36: U/S 80 CCE -: Invesment in specified investment plans
A37: (i) | B37: GPF | D37: =IF($G$2="New option u/s 115BAC",0,'Gross Salary 19-20'!E77) -> 0 | E37: (ix) | F37: Purchases of NSC | G37: =IF($G$2="New option u/s 115BAC",0,'Gross Salary 19-20'!E85) -> 0
A38: (ii) | B38: State Insurance | D38: =IF($G$2="New option u/s 115BAC",0,'Gross Salary 19-20'!E78) -> 0 | E38: (x) | F38: PPF | G38: =IF($G$2="New option u/s 115BAC",0,'Gross Salary 19-20'!E86) -> 0
A39: (iii) | B39: Group Insurance | D39: =IF($G$2="New option u/s 115BAC",0,'Gross Salary 19-20'!E79) -> 220 | E39: (xi) | F39: PLI / ULIP | G39: =IF($G$2="New option u/s 115BAC",0,'Gross Salary 19-20'!E87) -> 0
A40: (iv) | B40: Life Insurance Premium | D40: =IF($G$2="New option u/s 115BAC",0,'Gross Salary 19-20'!E80+'Gross Salary 19-20'!D80) -> 0 | E40: (xii) | F40: IDBI/ICCI | G40: =IF($G$2="New option u/s 115BAC",0,'Gross Salary 19-20'!E88) -> 0
A41: (v) | B41: Accured Intrest on NSC | D41: =IF($G$2="New option u/s 115BAC",0,'Gross Salary 19-20'!E81) -> 0 | E41: (xiii) | F41: BANK /POST OFFICE FD | G41: =IF($G$2="New option u/s 115BAC",0,'Gross Salary 19-20'!E89) -> 0
A42: (vi) | B42: Tution Fee | D42: =IF($G$2="New option u/s 115BAC",0,'Gross Salary 19-20'!E82) -> 150000 | E42: (xiv) | F42: Equity link saving bond | G42: =IF($G$2="New option u/s 115BAC",0,'Gross Salary 19-20'!E90) -> 0
A43: (vii) | B43: Repayment of HBA | D43: =IF($G$2="New option u/s 115BAC",0,'Gross Salary 19-20'!E83+'Gross Salary 19-20'!D83) -> 0 | E43: (xv) | F43: Sukanya Samriddhi Account Deposit Scheme | G43: =IF($G$2="New option u/s 115BAC",0,'Gross Salary 19-20'!E91) -> 0
A44: (viii) | B44: Hazard Fund | D44: =IF($G$2="New option u/s 115BAC",0,'Gross Salary 19-20'!E84) -> 0 | E44: (xvi) | F44: ='Gross Salary 19-20'!B92 -> GPF-2004 | G44: =IF($G$2="New option u/s 115BAC",0,'Gross Salary 19-20'!E92) -> 0
A45: (b) | B45: Cont. in pension fund (Section 80 CCC) | G45: =IF($G$2="New option u/s 115BAC",0,'Gross Salary 19-20'!E93) -> 0
A46: (c ) | B46: Employee cont. towards new pension scheme U/S 80 CCD(1) | G46: =IF($G$2="New option u/s 115BAC",0,'Gross Salary 19-20'!F56) -> 0
A47: Aggregate total of section 80C,80CCC,80CCD (u/s 80 CCE) | H47: =IF(SUM(D37:D44,G37:G46)>150000,150000,SUM(D37:D44,G37:G46)) -> 150000
A48: Other sections ( for e.g., 80E, 80G etc. ) under chapter VIA | G48: Gross Amount | H48: Deductible Amount
A49: a. | B49: U/S 80 CCD(2) | C49: Employer cont. towards new pension scheme | G49: ='Gross Salary 19-20'!N76 -> 0 | H49: =G49 -> 0
B50: U/S 80 CCD(1B) | C50: Additional cont. towards NPS (Upto Rs. 50000 from F.Y. 2015-16) | G50: =IF($G$2="New option u/s 115BAC",0,IF('Gross Salary 19-20'!M77="YES",'Gross Salary 19-20'!N77,0)) -> 0 | H50: =IF(G50>50000,50000,G50) -> 0
A51: b. | B51: U/S 80CCF | C51: Investment in long term infrasturture bonds | G51: =IF($G$2="New option u/s 115BAC",0,'Gross Salary 19-20'!N78) -> 0 | H51: =G51 -> 0 | I51: =IF(H51>0,"","Not Allowed") -> Not Allowed
A52: c. | B52: U/S 80D- | C52: Medical ins. premium for himself, spous and childrens & Parents | G52: =IF($G$2="New option u/s 115BAC",0,'Gross Salary 19-20'!N79) -> 0 | H52: =IF(G52>100000,100000,G52) -> 0 | I52: =IF(H52>0,"","Not Allowed") -> Not Allowed
A53: d. | B53: U/S 80DD- | C53: Medical treat. of dependent handicapped person | G53: =IF($G$2="New option u/s 115BAC",0,'Gross Salary 19-20'!N80) -> 0 | H53: =IF(G53>TABLE1920!F1296,TABLE1920!F1296,Statement1920!G53) -> 0 | I53: ='Gross Salary 19-20'!L80 -> Severe disability
A54: e. | B54: U/S 80DDB- | C54: Spl ded.to the guardion of a patient suff.from Cancer/Aids | G54: =IF($G$2="New option u/s 115BAC",0,'Gross Salary 19-20'!N81) -> 0 | H54: =IF(G54>TABLE1920!N1261,TABLE1920!N1261,Statement1920!G54) -> 0 | I54: =IF(H54>0,"","Not Allowed") -> Not Allowed
A55: f. | B55: U/S 80E- | C55: Repayment of loan for higher education | G55: =IF($G$2="New option u/s 115BAC",0,'Gross Salary 19-20'!N82) -> 0 | H55: =G55 -> 0 | I55: Not Allowed
A56: g. | B56: U/S 80EE | C56: Intrest paid on HBA(Loan taking after01-04-13 excluding u/s 24B) | G56: =IF($G$2="New option u/s 115BAC",0,'Gross Salary 19-20'!N83) -> 0 | H56: =IF(G56>TABLE1920!N1263,TABLE1920!N1263,Statement1920!G56) -> 0 | I56: Not Allowed
A57: h. | B57: U/S 80EEA- | C57: Deduction in respect of interest on loan taken for certain house property | G57: 0 | H57: =IF(G57>TABLE1920!N1270,TABLE1920!N1270,Statement1920!G57) -> 0 | I57: Not Allowed
A58: i. | B58: U/S 80EEB- | C58: Deduction in respect of purchase of electric vehicle | G58: 0 | H58: =IF(G58>TABLE1920!N1271,TABLE1920!N1271,Statement1920!G58) -> 0 | I58: Not Allowed
A59: j. | B59: U/S 80G- | C59: Donation . 50% and 100% | F59: ='Gross Salary 19-20'!$M$84 -> 1 | G59: =IF($G$2="New option u/s 115BAC",0,'Gross Salary 19-20'!N84+'Gross Salary 19-20'!L84) -> 0 | H59: =TABLE1920!I1286 -> 0 | I59: Not Allowed
A60: k. | B60: U/S 80CCG | C60: New Rajiv Gandhi Saving Scheme | G60: =IF($G$2="New option u/s 115BAC",0,'Gross Salary 19-20'!N85) -> 0 | H60: =TABLE1920!G1299 -> 0 | I60: (50% of Investment & GTI does not exceed Rs. 12 lakhs)
A61: l. | B61: U/S 80TTA | C61: Interest on deposits in savings account | G61: =IF($G$2="New option u/s 115BAC",0,'Gross Salary 19-20'!N86) -> 0 | H61: =TABLE1920!F1344 -> 0 | I61: =IF(H61>0,"","Not Allowed") -> Not Allowed
A62: m. | B62: U/S 80TTB | C62: Interest income earned on Fixed Deposits & Recurring Deposits | G62: =IF($G$2="New option u/s 115BAC",0,'Gross Salary 19-20'!N87) -> 0 | H62: =TABLE1920!G1344 -> 0 | I62: =IF(H62>0,"","Not Allowed") -> Not Allowed
A63: n. | B63: U/S 80U- | C63: Phy. hand. person or blind person | G63: =IF($G$2="New option u/s 115BAC",0,'Gross Salary 19-20'!N88) -> 0 | H63: =IF(G63>TABLE1920!F1297,TABLE1920!F1297,Statement1920!G63) -> 0 | I63: ='Gross Salary 19-20'!L88 -> Severe disability
A64: o. | C64: (Any other deduction..Give name) | G64: 0 | H64: =G64 -> 0
A65: 11 | B65: Total deduction under chapter VIA | G65: =SUM(G50:G64)+H47 -> 150000 | H65: =SUM(H47,H49:H64) -> 150000
G66: =IF(H34-H65>0,ROUNDUP(H34-H65,-1),0) -> 1170640 | H66: =IF(H34-H65>0,H34-H65,0) -> 1170634
A67: 12 | B67: Total Income ( 9-11 ) (Rounded off u/s 288A) | H67: =IF(G66-H66<=5,ROUNDUP(G66,-1),ROUNDUP(G66,-1)-10) -> 1170630
A68: 13 | B68: Tax Calculation (With adjusting rebate of agriculture income,if any) | H68: =TABLE1920!C1128 -> 163689 | J68: =IF(D72="","",TABLE1920!L1130) -> 
A69: 14 | B69: Less-Relief U/S 87A (From F.Y. 2013-14) | H69: =TABLE1920!D1128 -> 0
A70: 15 | B70: Surcharge (if any) | D70: =TABLE1920!B1132 -> ( After allowed Marginal relief Rs. 0 ) | H70: =TABLE1920!D1118 -> 0
A71: 16 | B71: =IF(F1="2021-22","Add -Health and Education Cess @ 4% ",IF(F1="2020-21","Add -Health and Education Cess @ 4% ",IF(F1="2019-20","Add -Health and Education Cess @ 4% ",IF(F1="2018-19","Add -Health and Education Cess @ 4% ","Add -Education Cess @2% on Tax+H.Education Cess @1% ")))) -> Add -Health and Education Cess @ 4% | H71: =TABLE1920!E1128 -> 6548
A72: 17 | B72: Total Tax (13+14+15+16) | D72: =TABLE1920!L1135 ->  | H72: =TABLE1920!F1128 -> 170237
A73: 18 | B73: Releif U/S 89 (1) | H73: ='Gross Salary 19-20'!$N$60 -> 0
A74: 19 | B74: Net Tax Payable (17-18) | H74: =H72-H73 -> 170237
A75: 20 | B75: Income Tax Deducted | H75: =SUM($C$77:$C$80)+SUM($E$77:$E$80)+SUM($G$77:$G$80) -> 0
B76: MONTH | C76: AMT | D76: MONTH | E76: AMT | F76: MONTH | G76: AMT
B77: ='Gross Salary 19-20'!A38 -> 2021-03-01 | C77: =TABLE1920!I1358 -> 0 | D77: =B80+31 -> 2021-07-03 | E77: =TABLE1920!I1362 -> 0 | F77: =D80+31 -> 2021-11-04 | G77: =TABLE1920!I1366 -> 0
B78: =B77+31 -> 2021-04-01 | C78: =TABLE1920!I1359 -> 0 | D78: =D77+31 -> 2021-08-03 | E78: =TABLE1920!I1363 -> 0 | F78: =F77+31 -> 2021-12-05 | G78: =TABLE1920!I1367 -> 0
B79: =B78+31 -> 2021-05-02 | C79: =TABLE1920!I1360 -> 0 | D79: =D78+31 -> 2021-09-03 | E79: =TABLE1920!I1364 -> 0 | F79: =F78+31 -> 2022-01-05 | G79: =TABLE1920!I1368 -> 0
B80: =B79+31 -> 2021-06-02 | C80: =TABLE1920!I1361 -> 0 | D80: =D79+31 -> 2021-10-04 | E80: =TABLE1920!I1365 -> 0 | F80: =F79+31 -> 2022-02-05 | G80: =TABLE1920!I1369 -> 0
A81: 21 | B81: =TABLE1920!H1131 -> Income Tax PAYABLE {Balance [19- 20 ]} (Rounded off) | H81: =TABLE1920!J1128 -> 170240
J82: Gross Salary (Home)
A83: Place | C83: BIKANER
A84: Date: | C84: =TODAY() -> 2021-11-29 | G84: SIGNATURE OF EMPLOYEE
A87: Calculaton of Advance tax and Int. u/s 234C | H87: =$H$74 -> 170237
A88: Date upto | C88: Adv tax due | E88: Act. Tax paid | G88: Shortage tax | H88: Int u/s 234C
A89: =TABLE1920!A1189 -> 2021-06-15 | C89: =ROUND($H$87*TABLE1920!J1190,0) -> 25536 | E89: =SUM($C$77:$C$79) -> 0 | G89: =C89-E89 -> 25536 | H89: =TABLE1920!F1189 -> 765
A90: =TABLE1920!A1190 -> 2021-09-15 | C90: =ROUND($H$87*TABLE1920!J1191,0) -> 76607 | E90: =SUM(C80,E77,E78)+E89 -> 0 | G90: =C90-E90 -> 76607 | H90: =TABLE1920!F1190 -> 2298
A91: =TABLE1920!A1191 -> 2021-12-15 | C91: =ROUND($H$87*TABLE1920!J1192,0) -> 127678 | E91: =SUM(E79:E80,G77)+E90 -> 0 | G91: =C91-E91 -> 127678 | H91: =TABLE1920!F1191 -> 3828
A92: =TABLE1920!A1192 -> 2022-03-15 | C92: =ROUND($H$87*TABLE1920!J1193,0) -> 170237 | E92: =SUM(G78:G80)+E91 -> 0 | G92: =C92-E92 -> 170237 | H92: =TABLE1920!F1192 -> 1702
A93: =TABLE1920!A1193 -> 2022-03-31 | C93: =ROUND($H$87*TABLE1920!J1194,0) -> 170237 | E93: 0 | G93: 0 | H93: =TABLE1920!F1193 -> 0
A94: Total | C94: =H87 -> 170237 | E94: =H75 -> 0 | G94: =IF(C94>E94,ROUNDDOWN(C94-E94,-2),0) -> 170200 | H94: =IF(G94>0,SUM(H89:H92),0) -> 8593
A95: Acutal Amount of Intrest u/s 234C | E95: =pravesh(H94) -> Rupees Eight Thousand Five Hundred NinetyThree Only
A96: =IF(H87>10000," Advance Tax Liability raised due to total tax payable is greater than Rs. 10,000 in a year","No Advance Tax Liability raised due to total tax payable is less than Rs. 10,000 in a year") -> Advance Tax Liability raised due to total tax payable is greater than Rs. 10,000 in a year
J111: 16.18.1.22.5.19.8√97263.0458756048

Sheet 115bac (hidden)
A1: Tax computation for Tax Calculator-STATEMENT
B2: Financial Year | E2: =TABLE1920!E2 -> 2021-22
B3: Tax Category | E3: =TABLE1920!E3 -> MALE
B4: Taxable Income | E4: =TABLE1920!E4 -> 1170630
C5: 2020 | D5: =C5+1 -> 2021 | F5: 2020-21 | AE5: Fin._Year | AF5: Asst._Year
A6: Male | D6: TAX MARGIN | E6: TAX AT MARGIN | F6: SUR RATE | G6: E.Cess | H6: TAXABLE INCOME | I6: TAX RATE APPLY | J6: TAX MARGIN SLAB | K6: TAX SLAB | L6: Surch.Rate | M6: E.Cess | N6: Tax Range | Q6: Basic Exemtion limit | R6: Tax Category | T6: Tax (inluding addition income) | U6: Tax (excluding addition income) | V6: Surchange on whole amt | W6: Relief (if amt > one crore | Y6: Surcharge Table (2019-20) | AE6: 1985-86 | AF6: 1986-87
A7: (below 60 years) | N7: F.Year | O7: =C5 -> 2020 | P7: =D5 -> 2021 | Y7: 0 | Z7: 5000000 | AA7: 0 | AE7: 1986-87 | AF7: 1987-88
A8: 0 | B8: 250000 | C8: 0 | D8: 0 | E8: 0 | F8: 0 | G8: 0 | H8: =$E$4 -> 1170630 | I8: =VLOOKUP(H8,A8:C14,3) -> 0.2 | J8: =INDEX(D8:D14,MATCH(I8,C8:C14,0)) -> 1000000 | K8: =INDEX(E8:E14,MATCH(I8,C8:C14,0)) -> 125000 | L8: =VLOOKUP(H8,$Y$7:$AA$11,3) -> 0 | M8: 0.04 | N8: 0 | O8: =IF($E$3="Male",B8,IF($E$3="Female",B15,IF($E$3="Senior Citizen",#REF!,#REF!))) -> 250000 | P8: =IF($E$3="Male",C8,IF($E$3="Female",C15,IF($E$3="Senior Citizen",#REF!,#REF!))) -> 0 | Q8: =O8 -> 250000 | Y8: =Z7+1 -> 5000001 | Z8: 10000000 | AA8: 0.1 | AE8: 1987-88 | AF8: 1988-89
A9: =B8+1 -> 250001 | B9: 500000 | C9: 0.05 | D9: =B8 -> 250000 | E9: =(B9-B8)*C9 -> 12500 | F9: 0 | G9: 0.04 | H9: TAX CALCULALTION | I9: SURCHARGE | J9: E. CESS | K9: TOTAL TAX DUE | N9: =O8+1 -> 250001 | O9: =IF($E$3="Male",B9,IF($E$3="Female",#REF!,IF($E$3="Senior Citizen",#REF!,#REF!))) -> 500000 | P9: =IF($E$3="Male",C9,IF($E$3="Female",#REF!,IF($E$3="Senior Citizen",#REF!,#REF!))) -> 0.05 | R9: =$E$3 -> MALE | T9: =INDEX(T10:T13,MATCH(R9,R10:R13,0)) -> 109126 | W9: =IF(S15=37%,25%,IF(S15=25%,15%,IF(S15=15%,10%,0))) -> 0 | Y9: =Z8+1 -> 10000001 | Z9: 20000000 | AA9: 0.15 | AE9: 1988-89 | AF9: 1989-90
A10: =B9+1 -> 500001 | B10: 750000 | C10: 0.1 | D10: =B9 -> 500000 | E10: =E9+(B10-B9)*C10 -> 37500 | F10: 0 | G10: 0.04 | H10: =IF(I8=C14,E13+ROUND((H8-J8),0)*I8,IF(I8=C13,E12+ROUND((H8-J8),0)*I8,IF(I8=C12,E11+ROUND((H8-J8),0)*I8,IF(I8=C11,E10+ROUND((H8-J8)*I8,0),IF(I8=C10,E9+ROUND((H8-J8)*I8,0),IF(I8=C9,E8+ROUND((H8-J8)*I8,0),E7+ROUND((H8-J8)*I8,0))))))) -> 109126 | I10: =MIN(K12:L12) -> 0 | J10: =ROUND(SUM(H10+I10)*M8,0) -> 4365 | K10: =SUM(H10:J10) -> 113491 | N10: =O9+1 -> 500001 | O10: =IF($E$3="Male",B10,IF($E$3="Female",#REF!,IF($E$3="Senior Citizen",#REF!,#REF!))) -> 750000 | P10: =IF($E$3="Male",C10,IF($E$3="Female",#REF!,IF($E$3="Senior Citizen",#REF!,#REF!))) -> 0.1 | R10: Male | T10: =H10 -> 109126 | U10: =IF(U15>1500000,187500+((U15-1500000)*0.3),IF(U15>1250000,125000+((U15-1250000)*0.25),IF(U15>1000000,75000+((U15-1000000)*0.2),IF(U15>750000,37500+((U15-750000)*0.15),IF(U15>500000,12500+((U15-500000)*0.1),IF(U15>250000,(U15-250000)*0.05,0)))))) -> 1237500 | V10: =ROUND(T10*$S$15,0) -> 0 | W10: =ROUND(U10*$W$9,0) -> 0 | X10: =T10+V10-U10-W10 -> -1128374 | Y10: =Z9+1 -> 20000001 | Z10: 50000000 | AA10: 0.25 | AE10: 1989-90 | AF10: 1990-91
A11: =B10+1 -> 750001 | B11: 1000000 | C11: 0.15 | D11: =B10 -> 750000 | E11: =E10+(B11-B10)*C11 -> 75000 | F11: 0.1 | G11: 0.04 | H11: Surcharge limit | I11: Add.Tax Income | J11: Add. Tax | K11: Diff | L11: Sur. Amt | M11: M.R. | N11: =O10+1 -> 750001 | O11: =IF($E$3="Male",B11,IF($E$3="Female",#REF!,IF($E$3="Senior Citizen",#REF!,#REF!))) -> 1000000 | P11: =IF($E$3="Male",C11,IF($E$3="Female",#REF!,IF($E$3="Senior Citizen",#REF!,#REF!))) -> 0.15 | R11: Female | T11: =T10 -> 109126 | U11: =IF(U15>1500000,187500+((U15-1500000)*0.3),IF(U15>1250000,125000+((U15-1250000)*0.25),IF(U15>1000000,75000+((U15-1000000)*0.2),IF(U15>750000,37500+((U15-750000)*0.15),IF(U15>500000,12500+((U15-500000)*0.1),IF(U15>250000,(U15-250000)*0.05,0)))))) -> 1237500 | V11: =ROUND(T11*$S$15,0) -> 0 | W11: =ROUND(U11*$W$9,0) -> 0 | X11: =T11+V11-U11-W11 -> -1128374 | Y11: =Z10+1 -> 50000001 | AA11: 0.37 | AE11: 1990-91 | AF11: 1991-92
A12: =B11+1 -> 1000001 | B12: 1250000 | C12: 0.2 | D12: =B11 -> 1000000 | E12: 125000 | F12: 0.15 | G12: 0.04 | H12: =D15 -> 50000000 | I12: =IF(H8>H12,H8-H12,0) -> 0 | J12: =IF(I12>0,ROUND(I12*I8,0),0) -> 0 | K12: =IF(H12>=D12,Q12+(I12-J12),(I12-J12)) -> 0 | L12: =IF(H10>0,ROUND(H10*L8,0),0) -> 0 | M12: =IF(K12>L12,0,L12-K12) -> 0 | N12: =O11+1 -> 1000001 | O12: =IF($E$3="Male",B12,IF($E$3="Female",#REF!,IF($E$3="Senior Citizen",#REF!,#REF!))) -> 1250000 | P12: =IF($E$3="Male",C12,IF($E$3="Female",#REF!,IF($E$3="Senior Citizen",#REF!,#REF!))) -> 0.2 | Q12: =W10 -> 0 | R12: Senior Citizen | T12: =T11 -> 109126 | U12: =IF(U15>1500000,187500+((U15-1500000)*0.3),IF(U15>1250000,125000+((U15-1250000)*0.25),IF(U15>1000000,75000+((U15-1000000)*0.2),IF(U15>750000,37500+((U15-750000)*0.15),IF(U15>500000,12500+((U15-500000)*0.1),IF(U15>250000,(U15-250000)*0.05,0)))))) -> 1237500 | V12: =ROUND(T12*$S$15,0) -> 0 | W12: 0 | AE12: 1991-92 | AF12: 1992-93
A13: 1250001 | B13: 1500000 | C13: 0.25 | D13: 1250000 | E13: 187500 | F13: 0.25 | G13: 0.04 | N13: 1250001 | O13: =IF($E$3="Male",B13,IF($E$3="Female",#REF!,IF($E$3="Senior Citizen",#REF!,#REF!))) -> 1500000 | P13: =IF($E$3="Male",C13,IF($E$3="Female",#REF!,IF($E$3="Senior Citizen",#REF!,#REF!))) -> 0.25 | R13: Very Senior Citizen | T13: 109126 | U13: =IF(U15>1500000,187500+((U15-1500000)*0.3),IF(U15>1250000,125000+((U15-1250000)*0.25),IF(U15>1000000,75000+((U15-1000000)*0.2),IF(U15>750000,37500+((U15-750000)*0.15),IF(U15>500000,12500+((U15-500000)*0.1),IF(U15>250000,(U15-250000)*0.05,0)))))) -> 1237500 | V13: =ROUND(T13*$S$15,0) -> 0 | W13: 0 | AE13: 1992-93 | AF13: 1993-94
A14: 1500001 | C14: 0.3 | D14: 1500000 | E14: =IF(J8=0,0,E13) -> 187500 | F14: 0.37 | G14: 0.04 | N14: 1500001 | O14: =IF($E$3="Male",B14,IF($E$3="Female",#REF!,IF($E$3="Senior Citizen",#REF!,#REF!))) -> 0 | P14: =IF($E$3="Male",C14,IF($E$3="Female",#REF!,IF($E$3="Senior Citizen",#REF!,#REF!))) -> 0.3 | AE14: 1993-94 | AF14: 1994-95
A15: Surcharge Limit | D15: =IF(L8=10%,5000000,IF(L8=15%,10000000,IF(L8=25%,20000000,50000000))) -> 50000000 | R15: Tax Income | S15: =L8 -> 0 | T15: =$E$4 -> 1170630 | U15: =IF(T15=T20,S19,IF(S15=T19,S18,IF(S15=T18,S17,S16))) -> 5000000 | AE15: 1994-95 | AF15: 1995-96
R16: 0 | S16: 5000000 | T16: 0 | U16: =S18 -> 20000000 | AE16: 1995-96 | AF16: 1996-97
A17: =IF(E2="2020-21",Statement1920!G2,"Existing Option") -> Existing Option | B17: Fin._Year | C17: Asst. Year | D17: TAX CALCULALTION | E17: SURCHARGE | F17: E. CESS | G17: TOTAL TAX DUE | H17: Age Defined | I17: Marginal Releif | J17: Tax Due | K17: Rebate u/s 87A | L17: Revised E.cess(adjusting 87A) | M17: Revised Total Tax due | R17: =S16+1 -> 5000001 | S17: 10000000 | T17: 0.1 | U17: =T15-R17+1 -> -3829370 | AE17: 1996-97 | AF17: 1997-98
A18: New option u/s 115BAC | B18: =Statement1920!F1 -> 2021-22 | C18: 2021-22 | D18: =H10 -> 109126 | E18: =I10 -> 0 | F18: =J10 -> 4365 | G18: =K10 -> 113491 | H18: Not Defined | I18: =M12 -> 0 | J18: =K10 -> 113491 | K18: =IF($E$4<=P18,0,IF($E$4>500000,0,IF($E$4>P18,IF(D18<12500,D18,12500),0))) -> 0 | L18: =IF(K18>0,ROUND((D18-K18)*0.04,0),F18) -> 4365 | M18: =D18+E18-K18+L18 -> 113491 | R18: =S17+1 -> 10000001 | S18: 20000000 | T18: 0.15 | AE18: 1997-98 | AF18: 1998-99
A19: Existing Option | R19: =S18+1 -> 20000001 | S19: 50000000 | T19: 0.25 | AE19: 1998-99 | AF19: 1999-00
A20: Final Value | D20: =IF($A$17=$A$18,D18,D19) -> 0 | E20: =IF($A$17=$A$18,E18,E19) -> 0 | F20: 0 | G20: 0 | H20: 0 | I20: 0 | J20: 0 | K20: 0 | L20: 0 | M20: 0 | R20: =S19+1 -> 50000001 | T20: 0.37 | AE20: 1999-00 | AF20: 2000-01
AE21: 2000-01 | AF21: 2001-02
AE22: 2001-02 | AF22: 2002-03
AE23: 2002-03 | AF23: 2003-04
AE24: 2003-04 | AF24: 2004-05
AE25: 2004-05 | AF25: 2005-06
AE26: 2005-06 | AF26: 2006-07
AE27: 2006-07 | AF27: 2007-08
AE28: 2007-08 | AF28: 2008-09
AE29: 2008-09 | AF29: 2009-10
AE30: 2009-10 | AF30: 2010-11
AE31: 2010-11 | AF31: 2011-12
AE32: 2011-12 | AF32: 2012-13
AE33: 2012-13 | AF33: 2013-14
AE34: 2013-14 | AF34: 2014-15
AE35: 2014-15 | AF35: 2015-16
AE36: 2015-16 | AF36: 2016-17
AE37: 2016-17 | AF37: 2017-18
AE38: 2017-18 | AF38: 2018-19
AE39: 2017-18 | AF39: 2018-19
AE40: 2018-19 | AF40: 2019-20
AE41: 2019-20 | AF41: 2020-21
AE42: 2020-21 | AF42: 2021-22
AE43: =AF42 -> 2021-22 | AF43: 2022-23

Sheet Key Points
A1: Home | B1: Gross Salary (Home)
A3: Key points -Section 115BAC
A4: Section | B4: Existing Provision | C4: New Provision | D4: Remarks
A5: 115BAC | B5: As per the existing law, there was only one tax regime for individuals and HUF. According to the same, the tax payer was allowed deductions under chapter VI A on their ‘Gross total income’ before arriving at ‘Total Income’. | C5: An option under section 115BAC of the Income tax Act, 1961 (Act) to avail a concessional slab rates by forgoing certain exemptions & deductions and satisfying certain conditions. | D5: The option to opt for or out of the new regime could only be exercised once for tax payers earning business income. In this matter use following link
D6: https://www.incometaxindia.gov.in/communications/circular/circular_no_9_2020.pdf
A7: Income Tax Rate for Individual Since (F.Y. 2020-21)
A8: Tax Range | C8: Existing Tax Rate | D8: New Rate (u/s 115BAC)
A9: 0 | B9: 250000 | C9: 0 | D9: 0
A10: =B9+1 -> 250001 | B10: 500000 | C10: 0.05 | D10: 0.05
A11: =B10+1 -> 500001 | B11: 750000 | C11: 0.2 | D11: 0.1
A12: =B11+1 -> 750001 | B12: 1000000 | D12: 0.15
A13: 1000001 | B13: 1250000 | C13: 0.3 | D13: 0.2
A14: 1250001 | B14: 1500000 | D14: 0.25
A15: 1500001 | D15: 0.3
A16: Education Cess and Surcharge Limit is same in both condition
A18: Deduction under chapter VIA not allowed under section 115BAC
A19: Section | B19: Name of deduction | C19: Maxi Limit | D19: Avaible to
A20: 80 C | B20: Invesment in specified investment plans | C20: Aggregate total of section 80C,80CCC,80CCD (u/s 80 CCE) subject to limit Rs.1,50,000/- | D20: Individual/HUF
A21: 80CCC | B21: Payment of premium for annuity plan of LIC or any other
A22: 80 CCD(1) | B22: Employee cont. towards new pension scheme
A23: 80 CCD(1B) | B23: Additional contribution towards NPS | C23: Upto Rs. 50000 (Cont. in Atal Pension Yojana is also eligible) | D23: Individual/HUF
A24: 80CCF | B24: Investment in long term infrasturture bonds | C24: No limit | D24: Individual/HUF
A25: 80CCG | B25: Investment made under an Equity savings scheme/ Equity oriented fund | C25: 25000 (50% of Investment & GTI does not exceed Rs. 12 lakhs) | D25: Individual
A26: 80D | B26: Medical ins. premium for himself, spous and childrens & Parents | C26: Total deduction allowed Rs. 100000 | D26: Individual/HUF
A27: 80DD | B27: Medical treatment of dependent handicapped person | C27: Maxi. allow limit in case of Severe disability Rs. 125000 | D27: Individual/HUF
A28: 80DDB | B28: Spl ded to the guardion of a patient suff.from Cancer/Aids | C28: 100000 (Maximum aggregate allowable limit) | D28: Individual
A29: 80E | B29: Repayment of loan for higher education | C29: No limit (higher education for self/ spouse/ his children.) | D29: Individual
A30: 80EE | B30: Intrest paid on House Building Loan ( excluding u/s 24B) | C30: 50000 (loan not to exceed Rs 35 lakhs) | D30: Individual
A31: 80EEA | B31: Deduction in respect of interest on loan taken for certain house property | C31: 150000 Maxi. allowable limit, Applicable from f.y. 2019-20,) | D31: Individual
A32: 80EEB | B32: Deduction in respect of purchase of electric vehicle | C32: 150000 Maxi. allowable limit, Applicable from f.y. 2019-20,) | D32: Individual
A33: 80G | B33: Donation to certain funds, charitable institutions etc. | C33: 100 /50 % or 10 percent of the Gross Total Income | D33: Individual/HUF
A34: 80GG | B34: Deduction in respect of rent paid | C34: Maximum Rs. 60000 (When HRA not received) | D34: Individual
A35: 80QQB | B35: Royalty income of books | C35: Least of the following: a) In case of Lump sum payment – maximum of Rs.3,00,000/- b) In other cases – amount of such income subject to maximum of 15% of value of books sold during the previous year. | D35: Individual
A36: 80RRB | B36: Royalty of patents | C36: Rs.3,00,000/- | D36: Individual
A37: 80TTA | B37: Interest on deposits in savings account (w.e.f. 2012-13) | C37: 10000 (Maxi. Rs 10,000 or actual interest whichever is lower ) | D37: Individual/HUF
A38: 80TTB | B38: Interest income earned on Saving/ Fixed Deposits & Recurring Deposits (w.e.f. 2018-19) | C38: 50000 (Intrrest on FD & Recurring Deposits i.e.Banks / Post office schemes) | D38: Senior and Super Senior Resident Individuals
A39: 80U | B39: Physical disability (including blindness) or mental retardation. | C39: Maxi. allow limit in case of Severe disability Rs. 125000 | D39: Individual
A40: Deduction under chapter VIA allowed under section 115BAC
A41: Section | B41: Name of deduction | C41: Maxi Limit | D41: Avaible to
A42: 80 CCD(2) | B42: Employer cont. towards new pension scheme | C42: 10% of Salary (Equal to 10% of Salary (Pay+D.A.) | D42: Individual/HUF
A43: 80JJAA | B43: Incentive for Employment Generation | C43: This deduction is available to all assessee provided all conditions specified in this section is satisfied.
A44: Important Allowance & Deduction allowed under existing option
A45: Section | B45: Name of deduction | C45: Maxi Limit | D45: Avaible to
A46: 10(5) | B46: Leave Travel Concession u/s | C46: The value of any travel concession or assistance received or due. | D46: Salaried Individual
A47: 10(13A) | B47: House Rent Allowance u/s | C47: Least of: | D47: Salaried Individual
C48: (a) Actual HRA received;b. 50% of [Basic Pay + DA] for those living in metro cities (40% for non-metros); or(c) Actual rent paid less 10% of Basic Pay + DA
A49: 10(14) | B49: Other Allowances u/s | C49: Actual amount of such Allowance received | D49: Salaried Individual
A50: 10(17) | B50: Allowances to MPs/MLAs u/s | C50: Actual amount of such Allowance received | D50: Salaried Individual
A51: 10(32) | B51: Allowance for income of minor u/s | C51: Rs.1,500/- per child | D51: Individual
A52: 16(i) | B52: Standard Deduction u/s | C52: Rs.50,000/- | D52: Salaried Individual
A53: 16(ii) | B53: Deduction for entertainment allowance | C53: Maxi Rs. 5000 | D53: Salaried Individual
A54: 16(iii) | B54: Employment / professional tax | C54: Actual amount | D54: Salaried Individual
A55: 24 | B55: Interest in respect of self-occupied or vacant property | C55: Rs.200000/- | D55: Individual/HUF
A56: 32(1)(iia) | B56: Additional Depreciation u/s | C56: Allowed to eligible assessee: 20% of the actual cost of Plant and Machinery (35% in case of Notified Backward Areas) | D56: Individual/HUF
A57: 57(iia) | B57: Deduction from family pension u/s | C57: Least of: One-third of such income or Rs.15,000/- | D57: Individual
A58: 10AA | B58: Exemption for SEZ unit | C58: Deduction to eligible persons as per the provisions of said section. | D58: Individual/HUF
A59: 32AD | B59: Investment if new plant or machinery in notified backward areas in certain states | C59: Deduction to eligible persons as per the provisions of said section. | D59: Individual/HUF

Sheet Option Form
A2: To, | K2: Gross Salary (Home)
A3: Deputy Director (Adm.)
A4: Secondary Education, Raj.
A5: Bikaner | K5: Home
B7: Subject | C7: Option for deduction Income Tax through Salaries
B8: Ref. | C8: CBDT has issued a Circular No. C1/2020 dated 13.04.2020
A10: Sir,
A12: The Above cited subject & reference, I want to opt following option for deduction of Income Tax through Salaries
E14: (Tick one from A & B, and cross other)
A15: (A) | B15: New Tax Regim i.e. New option u/s 115BAC
A16: (B) | B16: Old Tax Regim i.e. Existing option
B18: The above option is applicable for Fin. Year 2021-22
A21: Dated
E22: Your sincerely
E24: =Statement1920!G3 -> PRAVESH KUMAR SHARMA
E25: ='Gross Salary 19-20'!J13 -> AAO-I
E26: PAN NO. | G26: ='Gross Salary 19-20'!N13 -> ABCPP1234D
K28: Home

Sheet salary
D1: Home
A2: 1 | B2: SALARY
A3: : | B3: Salary is defined to include:
A4: (a) | B4: Wages
A5: (b) | B5: Annuity
A6: (c) | B6: Pension
A7: (d) | B7: Gratuity
A8: (e) | B8: Fees, Commission, Perquisites, Profits in lieu of or in addition to Salary or Wages
A9: (f) | B9: Advance of Salary
A10: (g) | B10: Leave Encashment
A11: (h) | B11: Annual accretion to the balance of Recognized Provident Fund
A12: (i) | B12: Transferred balance in Recognized Provident Fund
A13: (j) | B13: Contribution by Central Government or any other employer to Employees Pension Account as referred in Sec. 80CCD
A14: : | B14: Place of accrual of salary:
A15: (a) | B15: Salary accrues where the services are rendered even if it is paid outside India;
A16: (b) | B16: Salary paid by the Foreign Government to his employee serving in India is taxable under the head Salaries;
A17: (c) | B17: Leave salary paid abroad in respect of leave earned in India shall be deemed to accrue or arise in India.
B18: Exceptions - If a Citizen of India render services outside India, and receives salary from Government of India, it would be taxable as salary deemed to have accrued in India.
A20: : | B20: Key Points
A21: (a) | B21: Salary income is chargeable to tax on “due basis” or “receipt basis” whichever is earlier.
A22: (b) | B22: Existence of relationship of employer and employee is must between the payer and payee to tax the income under this head.
A23: (c) | B23: Income from salary taxable during the year shall consists of following:
B24: i. Salary due from employer (including former employer) to taxpayer during the previous year, whether paid or not;
B25: ii. Salary paid by employer (including former employer) to taxpayer during the previous year before it became due;
B26: iii. Arrear of salary paid by the employer (including former employer) to taxpayer during the previous year, if not charged to tax in any earlier year;
B27: Exceptions - Remuneration, bonus or commission received by a partner from the firm is not taxable under the head Salaries rather it would be taxable under the head business or profession.
A29: : | B29: Taxability of various components of salary:
A30: Section | B30: Particulars | D30: Taxability/Exemption
A31: 17 | B31: Basic salary | D31: Fully taxable
A32: 17 | B32: Dearness Allowance (referred to as ‘DA’) | D32: Fully taxable
A33: 17 | B33: Bonus, fees or commission | D33: Fully taxable
A34: A. | B34: Allowances
